{"text_format":"1","workbook":"xlsx","n_sheets":70,"sheets":["Choix de l'instrument ","Mes listes","Domaines de mesure","SOUS Domaines","Masse","Angle_incliné","Angle_mesure","Aspect_avec_mesure","Aspect_sans_mesure","Couple","Débit_capteur","Débit_générateur","Débit_quantifié","Densité","Détection_gaz","Dimensionnel_Epaisseur","Dimensionnel_sans_contact_2D","Dimensions_avec_contact_3D","Dimensions_sans_contact_2D","Dureté_Hv_Hrc","Dureté_Shore_A","Electricité_Conductivité","Electricité_Courant","Electricité_Résistance","Electricité_Rotophase","Electricité_Statique","Electrique_Puissance","Epaisseur","Epaisseur_par_micromètre","Epaisseur_Ultrason","Etalonnage_Epaisseur","Etalonnage_Rugosité","Etalonnage_Dureté","Etalonnage_Fuite","Etalonnage_Instrument_optique","Etalonnage_Mesure_étalon","Etalonnage_Micromètre","Etalonnage_Perte_de_charge","Etalonnage_Pesage","Etalonnage_Pression","Etalonnage_Projecteur","Filetage","Force","Force_Jauge_de_Contrainte","Fréquence","Fuite","Géométrie","Hauteur","ø_exter","ø_exter_longueur","ø_exter_ø_inter_longueur","ø_inter","ø_inter_exter_longueur","Longueur","Lumière","Physico_chimique","Pression","Propreté_surface","Réctitude","Réglage_réctitude","Rugosité","Son","Spectrométrie","Taraudage","Température","Température_hygrométrie","Temps","Vitesse","Volume","Dim av contact 3d"],"not_rendered":{"charts":0,"images":0,"macros":1,"external_links":0,"defined_names":35,"comments":1,"pivot_tables":0},"unopened":[],"bounds":{"document_bytes":16777216,"sheet_cells":100000,"rows_first":2000,"rows_last":500,"rows_between":2000,"halvings":0,"cell_chars":16384,"cell_head_chars":4096},"cells_cut":0,"cells_raw":0,"read":"whole","date_system":"1900"}

{"sheet":"Choix de l'instrument ","index":0,"n_rows":100,"n_cols":8,"rows_kept":100,"cut":false,"hidden":false,"merged":[]}
[null,null,null,null,"Avec fonctions diverses voir E4 et F4",null,"Pas modifier"]
[null,"Domaine de mesure ","Sous domaine ","Critère IT","Identification ","Lien ",{"$f":"MID(CELL(\"nomfichier\",A1),SEARCH(\"[\",CELL(\"nomfichier\",A1))+1,SEARCH(\"]\",CELL(\"nomfichier\",A1))-SEARCH(\"[\",CELL(\"nomfichier\",A1))-1)","v":"Essai 2 ++.xlsm"}]
[null,"Etalonnage","Etalonnage_Rugosité",{"$f":"IF(B6<>\"\",B6/10,\"\")","v":5000},"=SI($B$6<>\"\";RECHERCHEV($B$6;INDIRECT(\"'\"&NomCla&\"'!\"&$C$3 &\"_tab\");3;FAUX);\"\")","=SI($B$6<>\"\";RECHERCHEV($B$6;INDIRECT(\"'\"&@NomCla&\"'!\"&$C$3 &\"_tab\");2;FAUX);\"\")","Nombre de cas","Nb selon feuille data"]
[null,null,null,null,{"$f":"IF($B$6<>\"\",IF(SUMPRODUCT((INDIRECT($C$3&\"!N3:N\"&NbLi)=TRUE)*1)-ROW(1:1)+1>0,INDEX(INDIRECT($C$3&\"!A3:A\"&NbLi),LARGE((INDIRECT($C$3&\"!N3:N\"&NbLi)=TRUE)*ROW(OFFSET(INDIRECT($C$3&\"!N3:N\"&NbLi),-2,0)),SUMPRODUCT((INDIRECT($C$3&\"!N3:N\"&NbLi)=TRUE)*1)-ROW(1:1)+1),),\"\"),\"\")","v":{"$error":"#REF!"}},{"$f":"IF(E4<>\"\",HYPERLINK($B$11&E4,\"Clic pour suivre\"),\"\")","v":{"$error":"#REF!"}},{"$f":"COUNTA(E4:E100)-COUNTIF(E4:E100,\"\")","v":97},{"$f":"COUNTIF(Masse!N3:N100,TRUE)","v":0}]
[null,"Opérateur Entrer l'IT ",null,null,{"$f":"IF($B$6<>\"\",IF(SUMPRODUCT((INDIRECT($C$3&\"!N3:N\"&NbLi)=TRUE)*1)-ROW(2:2)+1>0,INDEX(INDIRECT($C$3&\"!A3:A\"&NbLi),LARGE((INDIRECT($C$3&\"!N3:N\"&NbLi)=TRUE)*ROW(OFFSET(INDIRECT($C$3&\"!N3:N\"&NbLi),-2,0)),SUMPRODUCT((INDIRECT($C$3&\"!N3:N\"&NbLi)=TRUE)*1)-ROW(2:2)+1),),\"\"),\"\")","v":{"$error":"#REF!"}},{"$f":"IF(E5<>\"\",HYPERLINK($B$11&E5,\"Clic pour suivre\"),\"\")","v":{"$error":"#REF!"}}]
[null,50000,null,null,{"$f":"IF($B$6<>\"\",IF(SUMPRODUCT((INDIRECT($C$3&\"!N3:N\"&NbLi)=TRUE)*1)-ROW(3:3)+1>0,INDEX(INDIRECT($C$3&\"!A3:A\"&NbLi),LARGE((INDIRECT($C$3&\"!N3:N\"&NbLi)=TRUE)*ROW(OFFSET(INDIRECT($C$3&\"!N3:N\"&NbLi),-2,0)),SUMPRODUCT((INDIRECT($C$3&\"!N3:N\"&NbLi)=TRUE)*1)-ROW(3:3)+1),),\"\"),\"\")","v":{"$error":"#REF!"}},{"$error":"#REF!"}]
[null,null,null,null,{"$f":"IF($B$6<>\"\",IF(SUMPRODUCT((INDIRECT($C$3&\"!N3:N\"&NbLi)=TRUE)*1)-ROW(4:4)+1>0,INDEX(INDIRECT($C$3&\"!A3:A\"&NbLi),LARGE((INDIRECT($C$3&\"!N3:N\"&NbLi)=TRUE)*ROW(OFFSET(INDIRECT($C$3&\"!N3:N\"&NbLi),-2,0)),SUMPRODUCT((INDIRECT($C$3&\"!N3:N\"&NbLi)=TRUE)*1)-ROW(4:4)+1),),\"\"),\"\")","v":{"$error":"#REF!"}},{"$error":"#REF!"}]
[null,null,null,null,{"$f":"IF($B$6<>\"\",IF(SUMPRODUCT((INDIRECT($C$3&\"!N3:N\"&NbLi)=TRUE)*1)-ROW(5:5)+1>0,INDEX(INDIRECT($C$3&\"!A3:A\"&NbLi),LARGE((INDIRECT($C$3&\"!N3:N\"&NbLi)=TRUE)*ROW(OFFSET(INDIRECT($C$3&\"!N3:N\"&NbLi),-2,0)),SUMPRODUCT((INDIRECT($C$3&\"!N3:N\"&NbLi)=TRUE)*1)-ROW(5:5)+1),),\"\"),\"\")","v":{"$error":"#REF!"}},{"$error":"#REF!"}]
[null,"Ne pas modifier",null,null,{"$f":"IF($B$6<>\"\",IF(SUMPRODUCT((INDIRECT($C$3&\"!N3:N\"&NbLi)=TRUE)*1)-ROW(6:6)+1>0,INDEX(INDIRECT($C$3&\"!A3:A\"&NbLi),LARGE((INDIRECT($C$3&\"!N3:N\"&NbLi)=TRUE)*ROW(OFFSET(INDIRECT($C$3&\"!N3:N\"&NbLi),-2,0)),SUMPRODUCT((INDIRECT($C$3&\"!N3:N\"&NbLi)=TRUE)*1)-ROW(6:6)+1),),\"\"),\"\")","v":{"$error":"#REF!"}},{"$error":"#REF!"}]
[null,"hyperlien",null,null,{"$f":"IF($B$6<>\"\",IF(SUMPRODUCT((INDIRECT($C$3&\"!N3:N\"&NbLi)=TRUE)*1)-ROW(7:7)+1>0,INDEX(INDIRECT($C$3&\"!A3:A\"&NbLi),LARGE((INDIRECT($C$3&\"!N3:N\"&NbLi)=TRUE)*ROW(OFFSET(INDIRECT($C$3&\"!N3:N\"&NbLi),-2,0)),SUMPRODUCT((INDIRECT($C$3&\"!N3:N\"&NbLi)=TRUE)*1)-ROW(7:7)+1),),\"\"),\"\")","v":{"$error":"#REF!"}},{"$error":"#REF!"}]
[null,"http://metro2/OptiMuNet/Instruments.aspx?code=MINIT-38&identification=",null,null,{"$f":"IF($B$6<>\"\",IF(SUMPRODUCT((INDIRECT($C$3&\"!N3:N\"&NbLi)=TRUE)*1)-ROW(8:8)+1>0,INDEX(INDIRECT($C$3&\"!A3:A\"&NbLi),LARGE((INDIRECT($C$3&\"!N3:N\"&NbLi)=TRUE)*ROW(OFFSET(INDIRECT($C$3&\"!N3:N\"&NbLi),-2,0)),SUMPRODUCT((INDIRECT($C$3&\"!N3:N\"&NbLi)=TRUE)*1)-ROW(8:8)+1),),\"\"),\"\")","v":{"$error":"#REF!"}},{"$error":"#REF!"}]
[null,{"$f":"HYPERLINK(B11&B13, \"Afficher\")","v":"Afficher"},null,null,{"$f":"IF($B$6<>\"\",IF(SUMPRODUCT((INDIRECT($C$3&\"!N3:N\"&NbLi)=TRUE)*1)-ROW(9:9)+1>0,INDEX(INDIRECT($C$3&\"!A3:A\"&NbLi),LARGE((INDIRECT($C$3&\"!N3:N\"&NbLi)=TRUE)*ROW(OFFSET(INDIRECT($C$3&\"!N3:N\"&NbLi),-2,0)),SUMPRODUCT((INDIRECT($C$3&\"!N3:N\"&NbLi)=TRUE)*1)-ROW(9:9)+1),),\"\"),\"\")","v":{"$error":"#REF!"}},{"$error":"#REF!"}]
[null,"MAS-0020",null,null,{"$f":"IF($B$6<>\"\",IF(SUMPRODUCT((INDIRECT($C$3&\"!N3:N\"&NbLi)=TRUE)*1)-ROW(10:10)+1>0,INDEX(INDIRECT($C$3&\"!A3:A\"&NbLi),LARGE((INDIRECT($C$3&\"!N3:N\"&NbLi)=TRUE)*ROW(OFFSET(INDIRECT($C$3&\"!N3:N\"&NbLi),-2,0)),SUMPRODUCT((INDIRECT($C$3&\"!N3:N\"&NbLi)=TRUE)*1)-ROW(10:10)+1),),\"\"),\"\")","v":{"$error":"#REF!"}},{"$error":"#REF!"}]
[null,{"$f":"COUNTA(INDIRECT('Choix de l''instrument '!C3&\"!A:A\"))","v":0},null,null,{"$f":"IF($B$6<>\"\",IF(SUMPRODUCT((INDIRECT($C$3&\"!N3:N\"&NbLi)=TRUE)*1)-ROW(11:11)+1>0,INDEX(INDIRECT($C$3&\"!A3:A\"&NbLi),LARGE((INDIRECT($C$3&\"!N3:N\"&NbLi)=TRUE)*ROW(OFFSET(INDIRECT($C$3&\"!N3:N\"&NbLi),-2,0)),SUMPRODUCT((INDIRECT($C$3&\"!N3:N\"&NbLi)=TRUE)*1)-ROW(11:11)+1),),\"\"),\"\")","v":{"$error":"#REF!"}},{"$error":"#REF!"}]
[null,null,null,null,{"$f":"IF($B$6<>\"\",IF(SUMPRODUCT((INDIRECT($C$3&\"!N3:N\"&NbLi)=TRUE)*1)-ROW(12:12)+1>0,INDEX(INDIRECT($C$3&\"!A3:A\"&NbLi),LARGE((INDIRECT($C$3&\"!N3:N\"&NbLi)=TRUE)*ROW(OFFSET(INDIRECT($C$3&\"!N3:N\"&NbLi),-2,0)),SUMPRODUCT((INDIRECT($C$3&\"!N3:N\"&NbLi)=TRUE)*1)-ROW(12:12)+1),),\"\"),\"\")","v":{"$error":"#REF!"}},{"$error":"#REF!"}]
[null,null,null,null,{"$f":"IF($B$6<>\"\",IF(SUMPRODUCT((INDIRECT($C$3&\"!N3:N\"&NbLi)=TRUE)*1)-ROW(13:13)+1>0,INDEX(INDIRECT($C$3&\"!A3:A\"&NbLi),LARGE((INDIRECT($C$3&\"!N3:N\"&NbLi)=TRUE)*ROW(OFFSET(INDIRECT($C$3&\"!N3:N\"&NbLi),-2,0)),SUMPRODUCT((INDIRECT($C$3&\"!N3:N\"&NbLi)=TRUE)*1)-ROW(13:13)+1),),\"\"),\"\")","v":{"$error":"#REF!"}},{"$error":"#REF!"}]
["Afficher l'identitfication","=SI($B$6<>\"\";SI(SOMMEPROD((INDIRECT($C$3&\"!N3:N\"&NbLi)=VRAI)*1)-LIGNE(1:1)+1>0;INDEX(INDIRECT($C$3&\"!A3:A\"&NbLi);GRANDE.VALEUR((INDIRECT($C$3&\"!N3:N\"&NbLi)=VRAI)*LIGNE(DECALER(INDIRECT($C$3&\"!N3:N\"&NbLi);-2;0));SOMMEPROD((INDIRECT($C$3&\"!N3:N\"&NbLi)=VRAI)*1)-LIGNE(1:1)+1););\"\");\"\")",null,null,{"$f":"IF($B$6<>\"\",IF(SUMPRODUCT((INDIRECT($C$3&\"!N3:N\"&NbLi)=TRUE)*1)-ROW(14:14)+1>0,INDEX(INDIRECT($C$3&\"!A3:A\"&NbLi),LARGE((INDIRECT($C$3&\"!N3:N\"&NbLi)=TRUE)*ROW(OFFSET(INDIRECT($C$3&\"!N3:N\"&NbLi),-2,0)),SUMPRODUCT((INDIRECT($C$3&\"!N3:N\"&NbLi)=TRUE)*1)-ROW(14:14)+1),),\"\"),\"\")","v":{"$error":"#REF!"}},{"$error":"#REF!"}]
["Afficher le lien ","=SI(E4<>\"\";LIEN_HYPERTEXTE($B$11&E4;\"Clic pour suivre\");\"\")",null,null,{"$f":"IF($B$6<>\"\",IF(SUMPRODUCT((INDIRECT($C$3&\"!N3:N\"&NbLi)=TRUE)*1)-ROW(15:15)+1>0,INDEX(INDIRECT($C$3&\"!A3:A\"&NbLi),LARGE((INDIRECT($C$3&\"!N3:N\"&NbLi)=TRUE)*ROW(OFFSET(INDIRECT($C$3&\"!N3:N\"&NbLi),-2,0)),SUMPRODUCT((INDIRECT($C$3&\"!N3:N\"&NbLi)=TRUE)*1)-ROW(15:15)+1),),\"\"),\"\")","v":{"$error":"#REF!"}},{"$error":"#REF!"}]
[null,null,null,null,{"$f":"IF($B$6<>\"\",IF(SUMPRODUCT((INDIRECT($C$3&\"!N3:N\"&NbLi)=TRUE)*1)-ROW(16:16)+1>0,INDEX(INDIRECT($C$3&\"!A3:A\"&NbLi),LARGE((INDIRECT($C$3&\"!N3:N\"&NbLi)=TRUE)*ROW(OFFSET(INDIRECT($C$3&\"!N3:N\"&NbLi),-2,0)),SUMPRODUCT((INDIRECT($C$3&\"!N3:N\"&NbLi)=TRUE)*1)-ROW(16:16)+1),),\"\"),\"\")","v":{"$error":"#REF!"}},{"$error":"#REF!"}]
["Formule feuille sous-domaine","=SI('Choix de l''instrument '!$C$3=\"Masse\";ET('Choix de l''instrument '!$D$3>=Masse!G3;G3<>\"\");\"\")",null,null,{"$f":"IF($B$6<>\"\",IF(SUMPRODUCT((INDIRECT($C$3&\"!N3:N\"&NbLi)=TRUE)*1)-ROW(17:17)+1>0,INDEX(INDIRECT($C$3&\"!A3:A\"&NbLi),LARGE((INDIRECT($C$3&\"!N3:N\"&NbLi)=TRUE)*ROW(OFFSET(INDIRECT($C$3&\"!N3:N\"&NbLi),-2,0)),SUMPRODUCT((INDIRECT($C$3&\"!N3:N\"&NbLi)=TRUE)*1)-ROW(17:17)+1),),\"\"),\"\")","v":{"$error":"#REF!"}},{"$error":"#REF!"}]
["Changer le nom du sous domaine",null,null,null,{"$f":"IF($B$6<>\"\",IF(SUMPRODUCT((INDIRECT($C$3&\"!N3:N\"&NbLi)=TRUE)*1)-ROW(18:18)+1>0,INDEX(INDIRECT($C$3&\"!A3:A\"&NbLi),LARGE((INDIRECT($C$3&\"!N3:N\"&NbLi)=TRUE)*ROW(OFFSET(INDIRECT($C$3&\"!N3:N\"&NbLi),-2,0)),SUMPRODUCT((INDIRECT($C$3&\"!N3:N\"&NbLi)=TRUE)*1)-ROW(18:18)+1),),\"\"),\"\")","v":{"$error":"#REF!"}},{"$error":"#REF!"}]
[null,null,null,null,{"$f":"IF($B$6<>\"\",IF(SUMPRODUCT((INDIRECT($C$3&\"!N3:N\"&NbLi)=TRUE)*1)-ROW(19:19)+1>0,INDEX(INDIRECT($C$3&\"!A3:A\"&NbLi),LARGE((INDIRECT($C$3&\"!N3:N\"&NbLi)=TRUE)*ROW(OFFSET(INDIRECT($C$3&\"!N3:N\"&NbLi),-2,0)),SUMPRODUCT((INDIRECT($C$3&\"!N3:N\"&NbLi)=TRUE)*1)-ROW(19:19)+1),),\"\"),\"\")","v":{"$error":"#REF!"}},{"$error":"#REF!"}]
[null,null,null,null,{"$f":"IF($B$6<>\"\",IF(SUMPRODUCT((INDIRECT($C$3&\"!N3:N\"&NbLi)=TRUE)*1)-ROW(20:20)+1>0,INDEX(INDIRECT($C$3&\"!A3:A\"&NbLi),LARGE((INDIRECT($C$3&\"!N3:N\"&NbLi)=TRUE)*ROW(OFFSET(INDIRECT($C$3&\"!N3:N\"&NbLi),-2,0)),SUMPRODUCT((INDIRECT($C$3&\"!N3:N\"&NbLi)=TRUE)*1)-ROW(20:20)+1),),\"\"),\"\")","v":{"$error":"#REF!"}},{"$error":"#REF!"}]
[null,null,null,null,{"$f":"IF($B$6<>\"\",IF(SUMPRODUCT((INDIRECT($C$3&\"!N3:N\"&NbLi)=TRUE)*1)-ROW(21:21)+1>0,INDEX(INDIRECT($C$3&\"!A3:A\"&NbLi),LARGE((INDIRECT($C$3&\"!N3:N\"&NbLi)=TRUE)*ROW(OFFSET(INDIRECT($C$3&\"!N3:N\"&NbLi),-2,0)),SUMPRODUCT((INDIRECT($C$3&\"!N3:N\"&NbLi)=TRUE)*1)-ROW(21:21)+1),),\"\"),\"\")","v":{"$error":"#REF!"}},{"$error":"#REF!"}]
[null,null,null,null,{"$f":"IF($B$6<>\"\",IF(SUMPRODUCT((INDIRECT($C$3&\"!N3:N\"&NbLi)=TRUE)*1)-ROW(22:22)+1>0,INDEX(INDIRECT($C$3&\"!A3:A\"&NbLi),LARGE((INDIRECT($C$3&\"!N3:N\"&NbLi)=TRUE)*ROW(OFFSET(INDIRECT($C$3&\"!N3:N\"&NbLi),-2,0)),SUMPRODUCT((INDIRECT($C$3&\"!N3:N\"&NbLi)=TRUE)*1)-ROW(22:22)+1),),\"\"),\"\")","v":{"$error":"#REF!"}},{"$error":"#REF!"}]
[null,null,null,null,{"$f":"IF($B$6<>\"\",IF(SUMPRODUCT((INDIRECT($C$3&\"!N3:N\"&NbLi)=TRUE)*1)-ROW(23:23)+1>0,INDEX(INDIRECT($C$3&\"!A3:A\"&NbLi),LARGE((INDIRECT($C$3&\"!N3:N\"&NbLi)=TRUE)*ROW(OFFSET(INDIRECT($C$3&\"!N3:N\"&NbLi),-2,0)),SUMPRODUCT((INDIRECT($C$3&\"!N3:N\"&NbLi)=TRUE)*1)-ROW(23:23)+1),),\"\"),\"\")","v":{"$error":"#REF!"}},{"$error":"#REF!"}]
[null,null,null,null,{"$f":"IF($B$6<>\"\",IF(SUMPRODUCT((INDIRECT($C$3&\"!N3:N\"&NbLi)=TRUE)*1)-ROW(24:24)+1>0,INDEX(INDIRECT($C$3&\"!A3:A\"&NbLi),LARGE((INDIRECT($C$3&\"!N3:N\"&NbLi)=TRUE)*ROW(OFFSET(INDIRECT($C$3&\"!N3:N\"&NbLi),-2,0)),SUMPRODUCT((INDIRECT($C$3&\"!N3:N\"&NbLi)=TRUE)*1)-ROW(24:24)+1),),\"\"),\"\")","v":{"$error":"#REF!"}},{"$error":"#REF!"}]
[null,null,null,null,{"$f":"IF($B$6<>\"\",IF(SUMPRODUCT((INDIRECT($C$3&\"!N3:N\"&NbLi)=TRUE)*1)-ROW(25:25)+1>0,INDEX(INDIRECT($C$3&\"!A3:A\"&NbLi),LARGE((INDIRECT($C$3&\"!N3:N\"&NbLi)=TRUE)*ROW(OFFSET(INDIRECT($C$3&\"!N3:N\"&NbLi),-2,0)),SUMPRODUCT((INDIRECT($C$3&\"!N3:N\"&NbLi)=TRUE)*1)-ROW(25:25)+1),),\"\"),\"\")","v":{"$error":"#REF!"}},{"$error":"#REF!"}]
[null,null,null,null,{"$f":"IF($B$6<>\"\",IF(SUMPRODUCT((INDIRECT($C$3&\"!N3:N\"&NbLi)=TRUE)*1)-ROW(26:26)+1>0,INDEX(INDIRECT($C$3&\"!A3:A\"&NbLi),LARGE((INDIRECT($C$3&\"!N3:N\"&NbLi)=TRUE)*ROW(OFFSET(INDIRECT($C$3&\"!N3:N\"&NbLi),-2,0)),SUMPRODUCT((INDIRECT($C$3&\"!N3:N\"&NbLi)=TRUE)*1)-ROW(26:26)+1),),\"\"),\"\")","v":{"$error":"#REF!"}},{"$error":"#REF!"}]
[null,null,null,null,{"$f":"IF($B$6<>\"\",IF(SUMPRODUCT((INDIRECT($C$3&\"!N3:N\"&NbLi)=TRUE)*1)-ROW(27:27)+1>0,INDEX(INDIRECT($C$3&\"!A3:A\"&NbLi),LARGE((INDIRECT($C$3&\"!N3:N\"&NbLi)=TRUE)*ROW(OFFSET(INDIRECT($C$3&\"!N3:N\"&NbLi),-2,0)),SUMPRODUCT((INDIRECT($C$3&\"!N3:N\"&NbLi)=TRUE)*1)-ROW(27:27)+1),),\"\"),\"\")","v":{"$error":"#REF!"}},{"$error":"#REF!"}]
[null,null,null,null,{"$f":"IF($B$6<>\"\",IF(SUMPRODUCT((INDIRECT($C$3&\"!N3:N\"&NbLi)=TRUE)*1)-ROW(28:28)+1>0,INDEX(INDIRECT($C$3&\"!A3:A\"&NbLi),LARGE((INDIRECT($C$3&\"!N3:N\"&NbLi)=TRUE)*ROW(OFFSET(INDIRECT($C$3&\"!N3:N\"&NbLi),-2,0)),SUMPRODUCT((INDIRECT($C$3&\"!N3:N\"&NbLi)=TRUE)*1)-ROW(28:28)+1),),\"\"),\"\")","v":{"$error":"#REF!"}},{"$error":"#REF!"}]
[null,null,null,null,{"$f":"IF($B$6<>\"\",IF(SUMPRODUCT((INDIRECT($C$3&\"!N3:N\"&NbLi)=TRUE)*1)-ROW(29:29)+1>0,INDEX(INDIRECT($C$3&\"!A3:A\"&NbLi),LARGE((INDIRECT($C$3&\"!N3:N\"&NbLi)=TRUE)*ROW(OFFSET(INDIRECT($C$3&\"!N3:N\"&NbLi),-2,0)),SUMPRODUCT((INDIRECT($C$3&\"!N3:N\"&NbLi)=TRUE)*1)-ROW(29:29)+1),),\"\"),\"\")","v":{"$error":"#REF!"}},{"$error":"#REF!"}]
[null,null,null,null,{"$f":"IF($B$6<>\"\",IF(SUMPRODUCT((INDIRECT($C$3&\"!N3:N\"&NbLi)=TRUE)*1)-ROW(30:30)+1>0,INDEX(INDIRECT($C$3&\"!A3:A\"&NbLi),LARGE((INDIRECT($C$3&\"!N3:N\"&NbLi)=TRUE)*ROW(OFFSET(INDIRECT($C$3&\"!N3:N\"&NbLi),-2,0)),SUMPRODUCT((INDIRECT($C$3&\"!N3:N\"&NbLi)=TRUE)*1)-ROW(30:30)+1),),\"\"),\"\")","v":{"$error":"#REF!"}},{"$error":"#REF!"}]
[null,null,null,null,{"$f":"IF($B$6<>\"\",IF(SUMPRODUCT((INDIRECT($C$3&\"!N3:N\"&NbLi)=TRUE)*1)-ROW(31:31)+1>0,INDEX(INDIRECT($C$3&\"!A3:A\"&NbLi),LARGE((INDIRECT($C$3&\"!N3:N\"&NbLi)=TRUE)*ROW(OFFSET(INDIRECT($C$3&\"!N3:N\"&NbLi),-2,0)),SUMPRODUCT((INDIRECT($C$3&\"!N3:N\"&NbLi)=TRUE)*1)-ROW(31:31)+1),),\"\"),\"\")","v":{"$error":"#REF!"}},{"$error":"#REF!"}]
[null,null,null,null,{"$f":"IF($B$6<>\"\",IF(SUMPRODUCT((INDIRECT($C$3&\"!N3:N\"&NbLi)=TRUE)*1)-ROW(32:32)+1>0,INDEX(INDIRECT($C$3&\"!A3:A\"&NbLi),LARGE((INDIRECT($C$3&\"!N3:N\"&NbLi)=TRUE)*ROW(OFFSET(INDIRECT($C$3&\"!N3:N\"&NbLi),-2,0)),SUMPRODUCT((INDIRECT($C$3&\"!N3:N\"&NbLi)=TRUE)*1)-ROW(32:32)+1),),\"\"),\"\")","v":{"$error":"#REF!"}},{"$error":"#REF!"}]
[null,null,null,null,{"$f":"IF($B$6<>\"\",IF(SUMPRODUCT((INDIRECT($C$3&\"!N3:N\"&NbLi)=TRUE)*1)-ROW(33:33)+1>0,INDEX(INDIRECT($C$3&\"!A3:A\"&NbLi),LARGE((INDIRECT($C$3&\"!N3:N\"&NbLi)=TRUE)*ROW(OFFSET(INDIRECT($C$3&\"!N3:N\"&NbLi),-2,0)),SUMPRODUCT((INDIRECT($C$3&\"!N3:N\"&NbLi)=TRUE)*1)-ROW(33:33)+1),),\"\"),\"\")","v":{"$error":"#REF!"}},{"$error":"#REF!"}]
[null,null,null,null,{"$f":"IF($B$6<>\"\",IF(SUMPRODUCT((INDIRECT($C$3&\"!N3:N\"&NbLi)=TRUE)*1)-ROW(34:34)+1>0,INDEX(INDIRECT($C$3&\"!A3:A\"&NbLi),LARGE((INDIRECT($C$3&\"!N3:N\"&NbLi)=TRUE)*ROW(OFFSET(INDIRECT($C$3&\"!N3:N\"&NbLi),-2,0)),SUMPRODUCT((INDIRECT($C$3&\"!N3:N\"&NbLi)=TRUE)*1)-ROW(34:34)+1),),\"\"),\"\")","v":{"$error":"#REF!"}},{"$error":"#REF!"}]
[null,null,null,null,{"$f":"IF($B$6<>\"\",IF(SUMPRODUCT((INDIRECT($C$3&\"!N3:N\"&NbLi)=TRUE)*1)-ROW(35:35)+1>0,INDEX(INDIRECT($C$3&\"!A3:A\"&NbLi),LARGE((INDIRECT($C$3&\"!N3:N\"&NbLi)=TRUE)*ROW(OFFSET(INDIRECT($C$3&\"!N3:N\"&NbLi),-2,0)),SUMPRODUCT((INDIRECT($C$3&\"!N3:N\"&NbLi)=TRUE)*1)-ROW(35:35)+1),),\"\"),\"\")","v":{"$error":"#REF!"}},{"$error":"#REF!"}]
[null,null,null,null,{"$f":"IF($B$6<>\"\",IF(SUMPRODUCT((INDIRECT($C$3&\"!N3:N\"&NbLi)=TRUE)*1)-ROW(36:36)+1>0,INDEX(INDIRECT($C$3&\"!A3:A\"&NbLi),LARGE((INDIRECT($C$3&\"!N3:N\"&NbLi)=TRUE)*ROW(OFFSET(INDIRECT($C$3&\"!N3:N\"&NbLi),-2,0)),SUMPRODUCT((INDIRECT($C$3&\"!N3:N\"&NbLi)=TRUE)*1)-ROW(36:36)+1),),\"\"),\"\")","v":{"$error":"#REF!"}},{"$error":"#REF!"}]
[null,null,null,null,{"$f":"IF($B$6<>\"\",IF(SUMPRODUCT((INDIRECT($C$3&\"!N3:N\"&NbLi)=TRUE)*1)-ROW(37:37)+1>0,INDEX(INDIRECT($C$3&\"!A3:A\"&NbLi),LARGE((INDIRECT($C$3&\"!N3:N\"&NbLi)=TRUE)*ROW(OFFSET(INDIRECT($C$3&\"!N3:N\"&NbLi),-2,0)),SUMPRODUCT((INDIRECT($C$3&\"!N3:N\"&NbLi)=TRUE)*1)-ROW(37:37)+1),),\"\"),\"\")","v":{"$error":"#REF!"}},{"$error":"#REF!"}]
[null,null,null,null,{"$f":"IF($B$6<>\"\",IF(SUMPRODUCT((INDIRECT($C$3&\"!N3:N\"&NbLi)=TRUE)*1)-ROW(38:38)+1>0,INDEX(INDIRECT($C$3&\"!A3:A\"&NbLi),LARGE((INDIRECT($C$3&\"!N3:N\"&NbLi)=TRUE)*ROW(OFFSET(INDIRECT($C$3&\"!N3:N\"&NbLi),-2,0)),SUMPRODUCT((INDIRECT($C$3&\"!N3:N\"&NbLi)=TRUE)*1)-ROW(38:38)+1),),\"\"),\"\")","v":{"$error":"#REF!"}},{"$error":"#REF!"}]
[null,null,null,null,{"$f":"IF($B$6<>\"\",IF(SUMPRODUCT((INDIRECT($C$3&\"!N3:N\"&NbLi)=TRUE)*1)-ROW(39:39)+1>0,INDEX(INDIRECT($C$3&\"!A3:A\"&NbLi),LARGE((INDIRECT($C$3&\"!N3:N\"&NbLi)=TRUE)*ROW(OFFSET(INDIRECT($C$3&\"!N3:N\"&NbLi),-2,0)),SUMPRODUCT((INDIRECT($C$3&\"!N3:N\"&NbLi)=TRUE)*1)-ROW(39:39)+1),),\"\"),\"\")","v":{"$error":"#REF!"}},{"$error":"#REF!"}]
[null,null,null,null,{"$f":"IF($B$6<>\"\",IF(SUMPRODUCT((INDIRECT($C$3&\"!N3:N\"&NbLi)=TRUE)*1)-ROW(40:40)+1>0,INDEX(INDIRECT($C$3&\"!A3:A\"&NbLi),LARGE((INDIRECT($C$3&\"!N3:N\"&NbLi)=TRUE)*ROW(OFFSET(INDIRECT($C$3&\"!N3:N\"&NbLi),-2,0)),SUMPRODUCT((INDIRECT($C$3&\"!N3:N\"&NbLi)=TRUE)*1)-ROW(40:40)+1),),\"\"),\"\")","v":{"$error":"#REF!"}},{"$error":"#REF!"}]
[null,null,null,null,{"$f":"IF($B$6<>\"\",IF(SUMPRODUCT((INDIRECT($C$3&\"!N3:N\"&NbLi)=TRUE)*1)-ROW(41:41)+1>0,INDEX(INDIRECT($C$3&\"!A3:A\"&NbLi),LARGE((INDIRECT($C$3&\"!N3:N\"&NbLi)=TRUE)*ROW(OFFSET(INDIRECT($C$3&\"!N3:N\"&NbLi),-2,0)),SUMPRODUCT((INDIRECT($C$3&\"!N3:N\"&NbLi)=TRUE)*1)-ROW(41:41)+1),),\"\"),\"\")","v":{"$error":"#REF!"}},{"$error":"#REF!"}]
[null,null,null,null,{"$f":"IF($B$6<>\"\",IF(SUMPRODUCT((INDIRECT($C$3&\"!N3:N\"&NbLi)=TRUE)*1)-ROW(42:42)+1>0,INDEX(INDIRECT($C$3&\"!A3:A\"&NbLi),LARGE((INDIRECT($C$3&\"!N3:N\"&NbLi)=TRUE)*ROW(OFFSET(INDIRECT($C$3&\"!N3:N\"&NbLi),-2,0)),SUMPRODUCT((INDIRECT($C$3&\"!N3:N\"&NbLi)=TRUE)*1)-ROW(42:42)+1),),\"\"),\"\")","v":{"$error":"#REF!"}},{"$error":"#REF!"}]
[null,null,null,null,{"$f":"IF($B$6<>\"\",IF(SUMPRODUCT((INDIRECT($C$3&\"!N3:N\"&NbLi)=TRUE)*1)-ROW(43:43)+1>0,INDEX(INDIRECT($C$3&\"!A3:A\"&NbLi),LARGE((INDIRECT($C$3&\"!N3:N\"&NbLi)=TRUE)*ROW(OFFSET(INDIRECT($C$3&\"!N3:N\"&NbLi),-2,0)),SUMPRODUCT((INDIRECT($C$3&\"!N3:N\"&NbLi)=TRUE)*1)-ROW(43:43)+1),),\"\"),\"\")","v":{"$error":"#REF!"}},{"$error":"#REF!"}]
[null,null,null,null,{"$f":"IF($B$6<>\"\",IF(SUMPRODUCT((INDIRECT($C$3&\"!N3:N\"&NbLi)=TRUE)*1)-ROW(44:44)+1>0,INDEX(INDIRECT($C$3&\"!A3:A\"&NbLi),LARGE((INDIRECT($C$3&\"!N3:N\"&NbLi)=TRUE)*ROW(OFFSET(INDIRECT($C$3&\"!N3:N\"&NbLi),-2,0)),SUMPRODUCT((INDIRECT($C$3&\"!N3:N\"&NbLi)=TRUE)*1)-ROW(44:44)+1),),\"\"),\"\")","v":{"$error":"#REF!"}},{"$error":"#REF!"}]
[null,null,null,null,{"$f":"IF($B$6<>\"\",IF(SUMPRODUCT((INDIRECT($C$3&\"!N3:N\"&NbLi)=TRUE)*1)-ROW(45:45)+1>0,INDEX(INDIRECT($C$3&\"!A3:A\"&NbLi),LARGE((INDIRECT($C$3&\"!N3:N\"&NbLi)=TRUE)*ROW(OFFSET(INDIRECT($C$3&\"!N3:N\"&NbLi),-2,0)),SUMPRODUCT((INDIRECT($C$3&\"!N3:N\"&NbLi)=TRUE)*1)-ROW(45:45)+1),),\"\"),\"\")","v":{"$error":"#REF!"}},{"$error":"#REF!"}]
[null,null,null,null,{"$f":"IF($B$6<>\"\",IF(SUMPRODUCT((INDIRECT($C$3&\"!N3:N\"&NbLi)=TRUE)*1)-ROW(46:46)+1>0,INDEX(INDIRECT($C$3&\"!A3:A\"&NbLi),LARGE((INDIRECT($C$3&\"!N3:N\"&NbLi)=TRUE)*ROW(OFFSET(INDIRECT($C$3&\"!N3:N\"&NbLi),-2,0)),SUMPRODUCT((INDIRECT($C$3&\"!N3:N\"&NbLi)=TRUE)*1)-ROW(46:46)+1),),\"\"),\"\")","v":{"$error":"#REF!"}},{"$error":"#REF!"}]
[null,null,null,null,{"$f":"IF($B$6<>\"\",IF(SUMPRODUCT((INDIRECT($C$3&\"!N3:N\"&NbLi)=TRUE)*1)-ROW(47:47)+1>0,INDEX(INDIRECT($C$3&\"!A3:A\"&NbLi),LARGE((INDIRECT($C$3&\"!N3:N\"&NbLi)=TRUE)*ROW(OFFSET(INDIRECT($C$3&\"!N3:N\"&NbLi),-2,0)),SUMPRODUCT((INDIRECT($C$3&\"!N3:N\"&NbLi)=TRUE)*1)-ROW(47:47)+1),),\"\"),\"\")","v":{"$error":"#REF!"}},{"$error":"#REF!"}]
[null,null,null,null,{"$f":"IF($B$6<>\"\",IF(SUMPRODUCT((INDIRECT($C$3&\"!N3:N\"&NbLi)=TRUE)*1)-ROW(48:48)+1>0,INDEX(INDIRECT($C$3&\"!A3:A\"&NbLi),LARGE((INDIRECT($C$3&\"!N3:N\"&NbLi)=TRUE)*ROW(OFFSET(INDIRECT($C$3&\"!N3:N\"&NbLi),-2,0)),SUMPRODUCT((INDIRECT($C$3&\"!N3:N\"&NbLi)=TRUE)*1)-ROW(48:48)+1),),\"\"),\"\")","v":{"$error":"#REF!"}},{"$error":"#REF!"}]
[null,null,null,null,{"$f":"IF($B$6<>\"\",IF(SUMPRODUCT((INDIRECT($C$3&\"!N3:N\"&NbLi)=TRUE)*1)-ROW(49:49)+1>0,INDEX(INDIRECT($C$3&\"!A3:A\"&NbLi),LARGE((INDIRECT($C$3&\"!N3:N\"&NbLi)=TRUE)*ROW(OFFSET(INDIRECT($C$3&\"!N3:N\"&NbLi),-2,0)),SUMPRODUCT((INDIRECT($C$3&\"!N3:N\"&NbLi)=TRUE)*1)-ROW(49:49)+1),),\"\"),\"\")","v":{"$error":"#REF!"}},{"$error":"#REF!"}]
[null,null,null,null,{"$f":"IF($B$6<>\"\",IF(SUMPRODUCT((INDIRECT($C$3&\"!N3:N\"&NbLi)=TRUE)*1)-ROW(50:50)+1>0,INDEX(INDIRECT($C$3&\"!A3:A\"&NbLi),LARGE((INDIRECT($C$3&\"!N3:N\"&NbLi)=TRUE)*ROW(OFFSET(INDIRECT($C$3&\"!N3:N\"&NbLi),-2,0)),SUMPRODUCT((INDIRECT($C$3&\"!N3:N\"&NbLi)=TRUE)*1)-ROW(50:50)+1),),\"\"),\"\")","v":{"$error":"#REF!"}},{"$error":"#REF!"}]
[null,null,null,null,{"$f":"IF($B$6<>\"\",IF(SUMPRODUCT((INDIRECT($C$3&\"!N3:N\"&NbLi)=TRUE)*1)-ROW(51:51)+1>0,INDEX(INDIRECT($C$3&\"!A3:A\"&NbLi),LARGE((INDIRECT($C$3&\"!N3:N\"&NbLi)=TRUE)*ROW(OFFSET(INDIRECT($C$3&\"!N3:N\"&NbLi),-2,0)),SUMPRODUCT((INDIRECT($C$3&\"!N3:N\"&NbLi)=TRUE)*1)-ROW(51:51)+1),),\"\"),\"\")","v":{"$error":"#REF!"}},{"$error":"#REF!"}]
[null,null,null,null,{"$f":"IF($B$6<>\"\",IF(SUMPRODUCT((INDIRECT($C$3&\"!N3:N\"&NbLi)=TRUE)*1)-ROW(52:52)+1>0,INDEX(INDIRECT($C$3&\"!A3:A\"&NbLi),LARGE((INDIRECT($C$3&\"!N3:N\"&NbLi)=TRUE)*ROW(OFFSET(INDIRECT($C$3&\"!N3:N\"&NbLi),-2,0)),SUMPRODUCT((INDIRECT($C$3&\"!N3:N\"&NbLi)=TRUE)*1)-ROW(52:52)+1),),\"\"),\"\")","v":{"$error":"#REF!"}},{"$error":"#REF!"}]
[null,null,null,null,{"$f":"IF($B$6<>\"\",IF(SUMPRODUCT((INDIRECT($C$3&\"!N3:N\"&NbLi)=TRUE)*1)-ROW(53:53)+1>0,INDEX(INDIRECT($C$3&\"!A3:A\"&NbLi),LARGE((INDIRECT($C$3&\"!N3:N\"&NbLi)=TRUE)*ROW(OFFSET(INDIRECT($C$3&\"!N3:N\"&NbLi),-2,0)),SUMPRODUCT((INDIRECT($C$3&\"!N3:N\"&NbLi)=TRUE)*1)-ROW(53:53)+1),),\"\"),\"\")","v":{"$error":"#REF!"}},{"$error":"#REF!"}]
[null,null,null,null,{"$f":"IF($B$6<>\"\",IF(SUMPRODUCT((INDIRECT($C$3&\"!N3:N\"&NbLi)=TRUE)*1)-ROW(54:54)+1>0,INDEX(INDIRECT($C$3&\"!A3:A\"&NbLi),LARGE((INDIRECT($C$3&\"!N3:N\"&NbLi)=TRUE)*ROW(OFFSET(INDIRECT($C$3&\"!N3:N\"&NbLi),-2,0)),SUMPRODUCT((INDIRECT($C$3&\"!N3:N\"&NbLi)=TRUE)*1)-ROW(54:54)+1),),\"\"),\"\")","v":{"$error":"#REF!"}},{"$error":"#REF!"}]
[null,null,null,null,{"$f":"IF($B$6<>\"\",IF(SUMPRODUCT((INDIRECT($C$3&\"!N3:N\"&NbLi)=TRUE)*1)-ROW(55:55)+1>0,INDEX(INDIRECT($C$3&\"!A3:A\"&NbLi),LARGE((INDIRECT($C$3&\"!N3:N\"&NbLi)=TRUE)*ROW(OFFSET(INDIRECT($C$3&\"!N3:N\"&NbLi),-2,0)),SUMPRODUCT((INDIRECT($C$3&\"!N3:N\"&NbLi)=TRUE)*1)-ROW(55:55)+1),),\"\"),\"\")","v":{"$error":"#REF!"}},{"$error":"#REF!"}]
[null,null,null,null,{"$f":"IF($B$6<>\"\",IF(SUMPRODUCT((INDIRECT($C$3&\"!N3:N\"&NbLi)=TRUE)*1)-ROW(56:56)+1>0,INDEX(INDIRECT($C$3&\"!A3:A\"&NbLi),LARGE((INDIRECT($C$3&\"!N3:N\"&NbLi)=TRUE)*ROW(OFFSET(INDIRECT($C$3&\"!N3:N\"&NbLi),-2,0)),SUMPRODUCT((INDIRECT($C$3&\"!N3:N\"&NbLi)=TRUE)*1)-ROW(56:56)+1),),\"\"),\"\")","v":{"$error":"#REF!"}},{"$error":"#REF!"}]
[null,null,null,null,{"$f":"IF($B$6<>\"\",IF(SUMPRODUCT((INDIRECT($C$3&\"!N3:N\"&NbLi)=TRUE)*1)-ROW(57:57)+1>0,INDEX(INDIRECT($C$3&\"!A3:A\"&NbLi),LARGE((INDIRECT($C$3&\"!N3:N\"&NbLi)=TRUE)*ROW(OFFSET(INDIRECT($C$3&\"!N3:N\"&NbLi),-2,0)),SUMPRODUCT((INDIRECT($C$3&\"!N3:N\"&NbLi)=TRUE)*1)-ROW(57:57)+1),),\"\"),\"\")","v":{"$error":"#REF!"}},{"$error":"#REF!"}]
[null,null,null,null,{"$f":"IF($B$6<>\"\",IF(SUMPRODUCT((INDIRECT($C$3&\"!N3:N\"&NbLi)=TRUE)*1)-ROW(58:58)+1>0,INDEX(INDIRECT($C$3&\"!A3:A\"&NbLi),LARGE((INDIRECT($C$3&\"!N3:N\"&NbLi)=TRUE)*ROW(OFFSET(INDIRECT($C$3&\"!N3:N\"&NbLi),-2,0)),SUMPRODUCT((INDIRECT($C$3&\"!N3:N\"&NbLi)=TRUE)*1)-ROW(58:58)+1),),\"\"),\"\")","v":{"$error":"#REF!"}},{"$error":"#REF!"}]
[null,null,null,null,{"$f":"IF($B$6<>\"\",IF(SUMPRODUCT((INDIRECT($C$3&\"!N3:N\"&NbLi)=TRUE)*1)-ROW(59:59)+1>0,INDEX(INDIRECT($C$3&\"!A3:A\"&NbLi),LARGE((INDIRECT($C$3&\"!N3:N\"&NbLi)=TRUE)*ROW(OFFSET(INDIRECT($C$3&\"!N3:N\"&NbLi),-2,0)),SUMPRODUCT((INDIRECT($C$3&\"!N3:N\"&NbLi)=TRUE)*1)-ROW(59:59)+1),),\"\"),\"\")","v":{"$error":"#REF!"}},{"$error":"#REF!"}]
[null,null,null,null,{"$f":"IF($B$6<>\"\",IF(SUMPRODUCT((INDIRECT($C$3&\"!N3:N\"&NbLi)=TRUE)*1)-ROW(60:60)+1>0,INDEX(INDIRECT($C$3&\"!A3:A\"&NbLi),LARGE((INDIRECT($C$3&\"!N3:N\"&NbLi)=TRUE)*ROW(OFFSET(INDIRECT($C$3&\"!N3:N\"&NbLi),-2,0)),SUMPRODUCT((INDIRECT($C$3&\"!N3:N\"&NbLi)=TRUE)*1)-ROW(60:60)+1),),\"\"),\"\")","v":{"$error":"#REF!"}},{"$error":"#REF!"}]
[null,null,null,null,{"$f":"IF($B$6<>\"\",IF(SUMPRODUCT((INDIRECT($C$3&\"!N3:N\"&NbLi)=TRUE)*1)-ROW(61:61)+1>0,INDEX(INDIRECT($C$3&\"!A3:A\"&NbLi),LARGE((INDIRECT($C$3&\"!N3:N\"&NbLi)=TRUE)*ROW(OFFSET(INDIRECT($C$3&\"!N3:N\"&NbLi),-2,0)),SUMPRODUCT((INDIRECT($C$3&\"!N3:N\"&NbLi)=TRUE)*1)-ROW(61:61)+1),),\"\"),\"\")","v":{"$error":"#REF!"}},{"$error":"#REF!"}]
[null,null,null,null,{"$f":"IF($B$6<>\"\",IF(SUMPRODUCT((INDIRECT($C$3&\"!N3:N\"&NbLi)=TRUE)*1)-ROW(62:62)+1>0,INDEX(INDIRECT($C$3&\"!A3:A\"&NbLi),LARGE((INDIRECT($C$3&\"!N3:N\"&NbLi)=TRUE)*ROW(OFFSET(INDIRECT($C$3&\"!N3:N\"&NbLi),-2,0)),SUMPRODUCT((INDIRECT($C$3&\"!N3:N\"&NbLi)=TRUE)*1)-ROW(62:62)+1),),\"\"),\"\")","v":{"$error":"#REF!"}},{"$error":"#REF!"}]
[null,null,null,null,{"$f":"IF($B$6<>\"\",IF(SUMPRODUCT((INDIRECT($C$3&\"!N3:N\"&NbLi)=TRUE)*1)-ROW(63:63)+1>0,INDEX(INDIRECT($C$3&\"!A3:A\"&NbLi),LARGE((INDIRECT($C$3&\"!N3:N\"&NbLi)=TRUE)*ROW(OFFSET(INDIRECT($C$3&\"!N3:N\"&NbLi),-2,0)),SUMPRODUCT((INDIRECT($C$3&\"!N3:N\"&NbLi)=TRUE)*1)-ROW(63:63)+1),),\"\"),\"\")","v":{"$error":"#REF!"}},{"$error":"#REF!"}]
[null,null,null,null,{"$f":"IF($B$6<>\"\",IF(SUMPRODUCT((INDIRECT($C$3&\"!N3:N\"&NbLi)=TRUE)*1)-ROW(64:64)+1>0,INDEX(INDIRECT($C$3&\"!A3:A\"&NbLi),LARGE((INDIRECT($C$3&\"!N3:N\"&NbLi)=TRUE)*ROW(OFFSET(INDIRECT($C$3&\"!N3:N\"&NbLi),-2,0)),SUMPRODUCT((INDIRECT($C$3&\"!N3:N\"&NbLi)=TRUE)*1)-ROW(64:64)+1),),\"\"),\"\")","v":{"$error":"#REF!"}},{"$error":"#REF!"}]
[null,null,null,null,{"$f":"IF($B$6<>\"\",IF(SUMPRODUCT((INDIRECT($C$3&\"!N3:N\"&NbLi)=TRUE)*1)-ROW(65:65)+1>0,INDEX(INDIRECT($C$3&\"!A3:A\"&NbLi),LARGE((INDIRECT($C$3&\"!N3:N\"&NbLi)=TRUE)*ROW(OFFSET(INDIRECT($C$3&\"!N3:N\"&NbLi),-2,0)),SUMPRODUCT((INDIRECT($C$3&\"!N3:N\"&NbLi)=TRUE)*1)-ROW(65:65)+1),),\"\"),\"\")","v":{"$error":"#REF!"}},{"$error":"#REF!"}]
[null,null,null,null,{"$f":"IF($B$6<>\"\",IF(SUMPRODUCT((INDIRECT($C$3&\"!N3:N\"&NbLi)=TRUE)*1)-ROW(66:66)+1>0,INDEX(INDIRECT($C$3&\"!A3:A\"&NbLi),LARGE((INDIRECT($C$3&\"!N3:N\"&NbLi)=TRUE)*ROW(OFFSET(INDIRECT($C$3&\"!N3:N\"&NbLi),-2,0)),SUMPRODUCT((INDIRECT($C$3&\"!N3:N\"&NbLi)=TRUE)*1)-ROW(66:66)+1),),\"\"),\"\")","v":{"$error":"#REF!"}},{"$f":"IF(E69<>\"\",HYPERLINK($B$11&E69,\"Clic pour suivre\"),\"\")","v":{"$error":"#REF!"}}]
[null,null,null,null,{"$f":"IF($B$6<>\"\",IF(SUMPRODUCT((INDIRECT($C$3&\"!N3:N\"&NbLi)=TRUE)*1)-ROW(67:67)+1>0,INDEX(INDIRECT($C$3&\"!A3:A\"&NbLi),LARGE((INDIRECT($C$3&\"!N3:N\"&NbLi)=TRUE)*ROW(OFFSET(INDIRECT($C$3&\"!N3:N\"&NbLi),-2,0)),SUMPRODUCT((INDIRECT($C$3&\"!N3:N\"&NbLi)=TRUE)*1)-ROW(67:67)+1),),\"\"),\"\")","v":{"$error":"#REF!"}},{"$error":"#REF!"}]
[null,null,null,null,{"$f":"IF($B$6<>\"\",IF(SUMPRODUCT((INDIRECT($C$3&\"!N3:N\"&NbLi)=TRUE)*1)-ROW(68:68)+1>0,INDEX(INDIRECT($C$3&\"!A3:A\"&NbLi),LARGE((INDIRECT($C$3&\"!N3:N\"&NbLi)=TRUE)*ROW(OFFSET(INDIRECT($C$3&\"!N3:N\"&NbLi),-2,0)),SUMPRODUCT((INDIRECT($C$3&\"!N3:N\"&NbLi)=TRUE)*1)-ROW(68:68)+1),),\"\"),\"\")","v":{"$error":"#REF!"}},{"$error":"#REF!"}]
[null,null,null,null,{"$f":"IF($B$6<>\"\",IF(SUMPRODUCT((INDIRECT($C$3&\"!N3:N\"&NbLi)=TRUE)*1)-ROW(69:69)+1>0,INDEX(INDIRECT($C$3&\"!A3:A\"&NbLi),LARGE((INDIRECT($C$3&\"!N3:N\"&NbLi)=TRUE)*ROW(OFFSET(INDIRECT($C$3&\"!N3:N\"&NbLi),-2,0)),SUMPRODUCT((INDIRECT($C$3&\"!N3:N\"&NbLi)=TRUE)*1)-ROW(69:69)+1),),\"\"),\"\")","v":{"$error":"#REF!"}},{"$error":"#REF!"}]
[null,null,null,null,{"$f":"IF($B$6<>\"\",IF(SUMPRODUCT((INDIRECT($C$3&\"!N3:N\"&NbLi)=TRUE)*1)-ROW(70:70)+1>0,INDEX(INDIRECT($C$3&\"!A3:A\"&NbLi),LARGE((INDIRECT($C$3&\"!N3:N\"&NbLi)=TRUE)*ROW(OFFSET(INDIRECT($C$3&\"!N3:N\"&NbLi),-2,0)),SUMPRODUCT((INDIRECT($C$3&\"!N3:N\"&NbLi)=TRUE)*1)-ROW(70:70)+1),),\"\"),\"\")","v":{"$error":"#REF!"}},{"$error":"#REF!"}]
[null,null,null,null,{"$f":"IF($B$6<>\"\",IF(SUMPRODUCT((INDIRECT($C$3&\"!N3:N\"&NbLi)=TRUE)*1)-ROW(71:71)+1>0,INDEX(INDIRECT($C$3&\"!A3:A\"&NbLi),LARGE((INDIRECT($C$3&\"!N3:N\"&NbLi)=TRUE)*ROW(OFFSET(INDIRECT($C$3&\"!N3:N\"&NbLi),-2,0)),SUMPRODUCT((INDIRECT($C$3&\"!N3:N\"&NbLi)=TRUE)*1)-ROW(71:71)+1),),\"\"),\"\")","v":{"$error":"#REF!"}},{"$error":"#REF!"}]
[null,null,null,null,{"$f":"IF($B$6<>\"\",IF(SUMPRODUCT((INDIRECT($C$3&\"!N3:N\"&NbLi)=TRUE)*1)-ROW(72:72)+1>0,INDEX(INDIRECT($C$3&\"!A3:A\"&NbLi),LARGE((INDIRECT($C$3&\"!N3:N\"&NbLi)=TRUE)*ROW(OFFSET(INDIRECT($C$3&\"!N3:N\"&NbLi),-2,0)),SUMPRODUCT((INDIRECT($C$3&\"!N3:N\"&NbLi)=TRUE)*1)-ROW(72:72)+1),),\"\"),\"\")","v":{"$error":"#REF!"}},{"$error":"#REF!"}]
[null,null,null,null,{"$f":"IF($B$6<>\"\",IF(SUMPRODUCT((INDIRECT($C$3&\"!N3:N\"&NbLi)=TRUE)*1)-ROW(73:73)+1>0,INDEX(INDIRECT($C$3&\"!A3:A\"&NbLi),LARGE((INDIRECT($C$3&\"!N3:N\"&NbLi)=TRUE)*ROW(OFFSET(INDIRECT($C$3&\"!N3:N\"&NbLi),-2,0)),SUMPRODUCT((INDIRECT($C$3&\"!N3:N\"&NbLi)=TRUE)*1)-ROW(73:73)+1),),\"\"),\"\")","v":{"$error":"#REF!"}},{"$error":"#REF!"}]
[null,null,null,null,{"$f":"IF($B$6<>\"\",IF(SUMPRODUCT((INDIRECT($C$3&\"!N3:N\"&NbLi)=TRUE)*1)-ROW(74:74)+1>0,INDEX(INDIRECT($C$3&\"!A3:A\"&NbLi),LARGE((INDIRECT($C$3&\"!N3:N\"&NbLi)=TRUE)*ROW(OFFSET(INDIRECT($C$3&\"!N3:N\"&NbLi),-2,0)),SUMPRODUCT((INDIRECT($C$3&\"!N3:N\"&NbLi)=TRUE)*1)-ROW(74:74)+1),),\"\"),\"\")","v":{"$error":"#REF!"}},{"$error":"#REF!"}]
[null,null,null,null,{"$f":"IF($B$6<>\"\",IF(SUMPRODUCT((INDIRECT($C$3&\"!N3:N\"&NbLi)=TRUE)*1)-ROW(75:75)+1>0,INDEX(INDIRECT($C$3&\"!A3:A\"&NbLi),LARGE((INDIRECT($C$3&\"!N3:N\"&NbLi)=TRUE)*ROW(OFFSET(INDIRECT($C$3&\"!N3:N\"&NbLi),-2,0)),SUMPRODUCT((INDIRECT($C$3&\"!N3:N\"&NbLi)=TRUE)*1)-ROW(75:75)+1),),\"\"),\"\")","v":{"$error":"#REF!"}},{"$error":"#REF!"}]
[null,null,null,null,{"$f":"IF($B$6<>\"\",IF(SUMPRODUCT((INDIRECT($C$3&\"!N3:N\"&NbLi)=TRUE)*1)-ROW(76:76)+1>0,INDEX(INDIRECT($C$3&\"!A3:A\"&NbLi),LARGE((INDIRECT($C$3&\"!N3:N\"&NbLi)=TRUE)*ROW(OFFSET(INDIRECT($C$3&\"!N3:N\"&NbLi),-2,0)),SUMPRODUCT((INDIRECT($C$3&\"!N3:N\"&NbLi)=TRUE)*1)-ROW(76:76)+1),),\"\"),\"\")","v":{"$error":"#REF!"}},{"$error":"#REF!"}]
[null,null,null,null,{"$f":"IF($B$6<>\"\",IF(SUMPRODUCT((INDIRECT($C$3&\"!N3:N\"&NbLi)=TRUE)*1)-ROW(77:77)+1>0,INDEX(INDIRECT($C$3&\"!A3:A\"&NbLi),LARGE((INDIRECT($C$3&\"!N3:N\"&NbLi)=TRUE)*ROW(OFFSET(INDIRECT($C$3&\"!N3:N\"&NbLi),-2,0)),SUMPRODUCT((INDIRECT($C$3&\"!N3:N\"&NbLi)=TRUE)*1)-ROW(77:77)+1),),\"\"),\"\")","v":{"$error":"#REF!"}},{"$error":"#REF!"}]
[null,null,null,null,{"$f":"IF($B$6<>\"\",IF(SUMPRODUCT((INDIRECT($C$3&\"!N3:N\"&NbLi)=TRUE)*1)-ROW(78:78)+1>0,INDEX(INDIRECT($C$3&\"!A3:A\"&NbLi),LARGE((INDIRECT($C$3&\"!N3:N\"&NbLi)=TRUE)*ROW(OFFSET(INDIRECT($C$3&\"!N3:N\"&NbLi),-2,0)),SUMPRODUCT((INDIRECT($C$3&\"!N3:N\"&NbLi)=TRUE)*1)-ROW(78:78)+1),),\"\"),\"\")","v":{"$error":"#REF!"}},{"$error":"#REF!"}]
[null,null,null,null,{"$f":"IF($B$6<>\"\",IF(SUMPRODUCT((INDIRECT($C$3&\"!N3:N\"&NbLi)=TRUE)*1)-ROW(79:79)+1>0,INDEX(INDIRECT($C$3&\"!A3:A\"&NbLi),LARGE((INDIRECT($C$3&\"!N3:N\"&NbLi)=TRUE)*ROW(OFFSET(INDIRECT($C$3&\"!N3:N\"&NbLi),-2,0)),SUMPRODUCT((INDIRECT($C$3&\"!N3:N\"&NbLi)=TRUE)*1)-ROW(79:79)+1),),\"\"),\"\")","v":{"$error":"#REF!"}},{"$error":"#REF!"}]
[null,null,null,null,{"$f":"IF($B$6<>\"\",IF(SUMPRODUCT((INDIRECT($C$3&\"!N3:N\"&NbLi)=TRUE)*1)-ROW(80:80)+1>0,INDEX(INDIRECT($C$3&\"!A3:A\"&NbLi),LARGE((INDIRECT($C$3&\"!N3:N\"&NbLi)=TRUE)*ROW(OFFSET(INDIRECT($C$3&\"!N3:N\"&NbLi),-2,0)),SUMPRODUCT((INDIRECT($C$3&\"!N3:N\"&NbLi)=TRUE)*1)-ROW(80:80)+1),),\"\"),\"\")","v":{"$error":"#REF!"}},{"$error":"#REF!"}]
[null,null,null,null,{"$f":"IF($B$6<>\"\",IF(SUMPRODUCT((INDIRECT($C$3&\"!N3:N\"&NbLi)=TRUE)*1)-ROW(81:81)+1>0,INDEX(INDIRECT($C$3&\"!A3:A\"&NbLi),LARGE((INDIRECT($C$3&\"!N3:N\"&NbLi)=TRUE)*ROW(OFFSET(INDIRECT($C$3&\"!N3:N\"&NbLi),-2,0)),SUMPRODUCT((INDIRECT($C$3&\"!N3:N\"&NbLi)=TRUE)*1)-ROW(81:81)+1),),\"\"),\"\")","v":{"$error":"#REF!"}},{"$error":"#REF!"}]
[null,null,null,null,{"$f":"IF($B$6<>\"\",IF(SUMPRODUCT((INDIRECT($C$3&\"!N3:N\"&NbLi)=TRUE)*1)-ROW(82:82)+1>0,INDEX(INDIRECT($C$3&\"!A3:A\"&NbLi),LARGE((INDIRECT($C$3&\"!N3:N\"&NbLi)=TRUE)*ROW(OFFSET(INDIRECT($C$3&\"!N3:N\"&NbLi),-2,0)),SUMPRODUCT((INDIRECT($C$3&\"!N3:N\"&NbLi)=TRUE)*1)-ROW(82:82)+1),),\"\"),\"\")","v":{"$error":"#REF!"}},{"$error":"#REF!"}]
[null,null,null,null,{"$f":"IF($B$6<>\"\",IF(SUMPRODUCT((INDIRECT($C$3&\"!N3:N\"&NbLi)=TRUE)*1)-ROW(83:83)+1>0,INDEX(INDIRECT($C$3&\"!A3:A\"&NbLi),LARGE((INDIRECT($C$3&\"!N3:N\"&NbLi)=TRUE)*ROW(OFFSET(INDIRECT($C$3&\"!N3:N\"&NbLi),-2,0)),SUMPRODUCT((INDIRECT($C$3&\"!N3:N\"&NbLi)=TRUE)*1)-ROW(83:83)+1),),\"\"),\"\")","v":{"$error":"#REF!"}},{"$error":"#REF!"}]
[null,null,null,null,{"$f":"IF($B$6<>\"\",IF(SUMPRODUCT((INDIRECT($C$3&\"!N3:N\"&NbLi)=TRUE)*1)-ROW(84:84)+1>0,INDEX(INDIRECT($C$3&\"!A3:A\"&NbLi),LARGE((INDIRECT($C$3&\"!N3:N\"&NbLi)=TRUE)*ROW(OFFSET(INDIRECT($C$3&\"!N3:N\"&NbLi),-2,0)),SUMPRODUCT((INDIRECT($C$3&\"!N3:N\"&NbLi)=TRUE)*1)-ROW(84:84)+1),),\"\"),\"\")","v":{"$error":"#REF!"}},{"$error":"#REF!"}]
[null,null,null,null,{"$f":"IF($B$6<>\"\",IF(SUMPRODUCT((INDIRECT($C$3&\"!N3:N\"&NbLi)=TRUE)*1)-ROW(85:85)+1>0,INDEX(INDIRECT($C$3&\"!A3:A\"&NbLi),LARGE((INDIRECT($C$3&\"!N3:N\"&NbLi)=TRUE)*ROW(OFFSET(INDIRECT($C$3&\"!N3:N\"&NbLi),-2,0)),SUMPRODUCT((INDIRECT($C$3&\"!N3:N\"&NbLi)=TRUE)*1)-ROW(85:85)+1),),\"\"),\"\")","v":{"$error":"#REF!"}},{"$error":"#REF!"}]
[null,null,null,null,{"$f":"IF($B$6<>\"\",IF(SUMPRODUCT((INDIRECT($C$3&\"!N3:N\"&NbLi)=TRUE)*1)-ROW(86:86)+1>0,INDEX(INDIRECT($C$3&\"!A3:A\"&NbLi),LARGE((INDIRECT($C$3&\"!N3:N\"&NbLi)=TRUE)*ROW(OFFSET(INDIRECT($C$3&\"!N3:N\"&NbLi),-2,0)),SUMPRODUCT((INDIRECT($C$3&\"!N3:N\"&NbLi)=TRUE)*1)-ROW(86:86)+1),),\"\"),\"\")","v":{"$error":"#REF!"}},{"$error":"#REF!"}]
[null,null,null,null,{"$f":"IF($B$6<>\"\",IF(SUMPRODUCT((INDIRECT($C$3&\"!N3:N\"&NbLi)=TRUE)*1)-ROW(87:87)+1>0,INDEX(INDIRECT($C$3&\"!A3:A\"&NbLi),LARGE((INDIRECT($C$3&\"!N3:N\"&NbLi)=TRUE)*ROW(OFFSET(INDIRECT($C$3&\"!N3:N\"&NbLi),-2,0)),SUMPRODUCT((INDIRECT($C$3&\"!N3:N\"&NbLi)=TRUE)*1)-ROW(87:87)+1),),\"\"),\"\")","v":{"$error":"#REF!"}},{"$error":"#REF!"}]
[null,null,null,null,{"$f":"IF($B$6<>\"\",IF(SUMPRODUCT((INDIRECT($C$3&\"!N3:N\"&NbLi)=TRUE)*1)-ROW(88:88)+1>0,INDEX(INDIRECT($C$3&\"!A3:A\"&NbLi),LARGE((INDIRECT($C$3&\"!N3:N\"&NbLi)=TRUE)*ROW(OFFSET(INDIRECT($C$3&\"!N3:N\"&NbLi),-2,0)),SUMPRODUCT((INDIRECT($C$3&\"!N3:N\"&NbLi)=TRUE)*1)-ROW(88:88)+1),),\"\"),\"\")","v":{"$error":"#REF!"}},{"$error":"#REF!"}]
[null,null,null,null,{"$f":"IF($B$6<>\"\",IF(SUMPRODUCT((INDIRECT($C$3&\"!N3:N\"&NbLi)=TRUE)*1)-ROW(89:89)+1>0,INDEX(INDIRECT($C$3&\"!A3:A\"&NbLi),LARGE((INDIRECT($C$3&\"!N3:N\"&NbLi)=TRUE)*ROW(OFFSET(INDIRECT($C$3&\"!N3:N\"&NbLi),-2,0)),SUMPRODUCT((INDIRECT($C$3&\"!N3:N\"&NbLi)=TRUE)*1)-ROW(89:89)+1),),\"\"),\"\")","v":{"$error":"#REF!"}},{"$error":"#REF!"}]
[null,null,null,null,{"$f":"IF($B$6<>\"\",IF(SUMPRODUCT((INDIRECT($C$3&\"!N3:N\"&NbLi)=TRUE)*1)-ROW(90:90)+1>0,INDEX(INDIRECT($C$3&\"!A3:A\"&NbLi),LARGE((INDIRECT($C$3&\"!N3:N\"&NbLi)=TRUE)*ROW(OFFSET(INDIRECT($C$3&\"!N3:N\"&NbLi),-2,0)),SUMPRODUCT((INDIRECT($C$3&\"!N3:N\"&NbLi)=TRUE)*1)-ROW(90:90)+1),),\"\"),\"\")","v":{"$error":"#REF!"}},{"$error":"#REF!"}]
[null,null,null,null,{"$f":"IF($B$6<>\"\",IF(SUMPRODUCT((INDIRECT($C$3&\"!N3:N\"&NbLi)=TRUE)*1)-ROW(91:91)+1>0,INDEX(INDIRECT($C$3&\"!A3:A\"&NbLi),LARGE((INDIRECT($C$3&\"!N3:N\"&NbLi)=TRUE)*ROW(OFFSET(INDIRECT($C$3&\"!N3:N\"&NbLi),-2,0)),SUMPRODUCT((INDIRECT($C$3&\"!N3:N\"&NbLi)=TRUE)*1)-ROW(91:91)+1),),\"\"),\"\")","v":{"$error":"#REF!"}},{"$error":"#REF!"}]
[null,null,null,null,{"$f":"IF($B$6<>\"\",IF(SUMPRODUCT((INDIRECT($C$3&\"!N3:N\"&NbLi)=TRUE)*1)-ROW(92:92)+1>0,INDEX(INDIRECT($C$3&\"!A3:A\"&NbLi),LARGE((INDIRECT($C$3&\"!N3:N\"&NbLi)=TRUE)*ROW(OFFSET(INDIRECT($C$3&\"!N3:N\"&NbLi),-2,0)),SUMPRODUCT((INDIRECT($C$3&\"!N3:N\"&NbLi)=TRUE)*1)-ROW(92:92)+1),),\"\"),\"\")","v":{"$error":"#REF!"}},{"$error":"#REF!"}]
[null,null,null,null,{"$f":"IF($B$6<>\"\",IF(SUMPRODUCT((INDIRECT($C$3&\"!N3:N\"&NbLi)=TRUE)*1)-ROW(93:93)+1>0,INDEX(INDIRECT($C$3&\"!A3:A\"&NbLi),LARGE((INDIRECT($C$3&\"!N3:N\"&NbLi)=TRUE)*ROW(OFFSET(INDIRECT($C$3&\"!N3:N\"&NbLi),-2,0)),SUMPRODUCT((INDIRECT($C$3&\"!N3:N\"&NbLi)=TRUE)*1)-ROW(93:93)+1),),\"\"),\"\")","v":{"$error":"#REF!"}},{"$error":"#REF!"}]
[null,null,null,null,{"$f":"IF($B$6<>\"\",IF(SUMPRODUCT((INDIRECT($C$3&\"!N3:N\"&NbLi)=TRUE)*1)-ROW(94:94)+1>0,INDEX(INDIRECT($C$3&\"!A3:A\"&NbLi),LARGE((INDIRECT($C$3&\"!N3:N\"&NbLi)=TRUE)*ROW(OFFSET(INDIRECT($C$3&\"!N3:N\"&NbLi),-2,0)),SUMPRODUCT((INDIRECT($C$3&\"!N3:N\"&NbLi)=TRUE)*1)-ROW(94:94)+1),),\"\"),\"\")","v":{"$error":"#REF!"}},{"$error":"#REF!"}]
[null,null,null,null,{"$f":"IF($B$6<>\"\",IF(SUMPRODUCT((INDIRECT($C$3&\"!N3:N\"&NbLi)=TRUE)*1)-ROW(95:95)+1>0,INDEX(INDIRECT($C$3&\"!A3:A\"&NbLi),LARGE((INDIRECT($C$3&\"!N3:N\"&NbLi)=TRUE)*ROW(OFFSET(INDIRECT($C$3&\"!N3:N\"&NbLi),-2,0)),SUMPRODUCT((INDIRECT($C$3&\"!N3:N\"&NbLi)=TRUE)*1)-ROW(95:95)+1),),\"\"),\"\")","v":{"$error":"#REF!"}},{"$error":"#REF!"}]
[null,null,null,null,{"$f":"IF($B$6<>\"\",IF(SUMPRODUCT((INDIRECT($C$3&\"!N3:N\"&NbLi)=TRUE)*1)-ROW(96:96)+1>0,INDEX(INDIRECT($C$3&\"!A3:A\"&NbLi),LARGE((INDIRECT($C$3&\"!N3:N\"&NbLi)=TRUE)*ROW(OFFSET(INDIRECT($C$3&\"!N3:N\"&NbLi),-2,0)),SUMPRODUCT((INDIRECT($C$3&\"!N3:N\"&NbLi)=TRUE)*1)-ROW(96:96)+1),),\"\"),\"\")","v":{"$error":"#REF!"}},{"$error":"#REF!"}]
[null,null,null,null,{"$f":"IF($B$6<>\"\",IF(SUMPRODUCT((INDIRECT($C$3&\"!N3:N\"&NbLi)=TRUE)*1)-ROW(97:97)+1>0,INDEX(INDIRECT($C$3&\"!A3:A\"&NbLi),LARGE((INDIRECT($C$3&\"!N3:N\"&NbLi)=TRUE)*ROW(OFFSET(INDIRECT($C$3&\"!N3:N\"&NbLi),-2,0)),SUMPRODUCT((INDIRECT($C$3&\"!N3:N\"&NbLi)=TRUE)*1)-ROW(97:97)+1),),\"\"),\"\")","v":{"$error":"#REF!"}},{"$error":"#REF!"}]

{"sheet":"Mes listes","index":1,"n_rows":18,"n_cols":32,"rows_kept":18,"cut":false,"hidden":false,"merged":[]}
["Angle","Aspect","Couple","Débit","Densité","Détection","Diamètre","Dimensionnel","Distance","Dureté","Electrique ","Etalonnage","Filetage","Force","Fréquence","Fuite","Géométrie","Hauteur","Hygrométrie","Lumière","Pesage","Physico_chimique","Pression","Propreté","Réctitude","Rugosité","Son","Spectrométrie","Taraudage","Température","Vitesse","Volumétrie"]
["Angle_incliné","Aspect _avec_mesure","Couple","Débit_capteur","Densité","Détection_gaz","ø_exter","Epaisseur","Longueur","Dureté_Hv_Hrc ","Electricité_Conductivité","Etalonnage _Epaisseur","Filetage","Force","Fréquence","Fuite","Géométrie","Hauteur","Hygrométrie","Lumière","Masse","Physico_chimique","Pression","Propreté_surface","Réctitude","Rugosité","Son","Spectrométrie","Taraudage","Température","Vitesse","Volume"]
["Angle_mesure ","Aspect_sans_mesure",null,"Débit_générateur",null,null,"ø_exter_longueur","Epaisseur_par_micromètre",null,"Dureté_Shore_A","Electricité_Courant","Etalonnage_Rugosité",null,"Force_Jauge_de_Contrainte",null,null,null,null,null,null,null,null,null,null,"Réglage_réctitude",null,null,null,null,"Température_hygrométrie"]
[null,null,null,"Débit_quantifié",null,null,"ø_exter_ø_inter_longueur","Epaisseur_Ultrason",null,null,"Electricité_Résistance","Etalonnage_Dureté"]
[null,null,null,null,null,null,"ø_exter_longueur","Dimensionnel_sans_contact_2D",null,null,"Electricité_Rotophase","Etalonnage_Battement"]
[null,null,null,null,null,null,"ø_inter","Dimensions_avec_contact_3D",null,null,"Electricité_Statique","Etalonnage_Dimensionnel"]
[null,null,null,null,null,null,"ø_inter_exter_longueur","Dimensions_sans_contact_2D",null,null,"Electrique_Puissance","Etalonnage_Dureté"]
[null,null,null,null,null,null,null,null,null,null,null,"Etalonnage_Epaisseur"]
[null,null,null,null,null,null,null,null,null,null,null,"Etalonnage_Fluorescence"]
[null,null,null,null,null,null,null,null,null,null,null,"Etalonnage_Fuite"]
[null,null,null,null,null,null,null,null,null,null,null,"Etalonnage_Instrument_optique"]
[null,null,null,null,null,null,null,null,null,null,null,"Etalonnage_Mesure_étalon"]
[null,null,null,null,null,null,null,null,null,null,null,"Etalonnage_Micromètre"]
[null,null,null,null,null,null,null,null,null,null,null,"Etalonnage_Perte_de_charge"]
[null,null,null,null,null,null,null,null,null,null,null,"Etalonnage_Pesage"]
[null,null,null,null,null,null,null,null,null,null,null,"Etalonnage_Pression"]
[null,null,null,null,null,null,null,null,null,null,null,"Etalonnage_Projecteur"]
[null,null,null,null,null,null,null,null,null,null,null,"Etalonnage_Rugosité"]

{"sheet":"Domaines de mesure","index":2,"n_rows":32,"n_cols":1,"rows_kept":32,"cut":false,"hidden":true,"merged":[[0,0,0,2]]}
["Domaines_de_mesure"]
["Angle"]
["Aspect"]
["Couple"]
["Débit"]
["Densité"]
["Détection"]
["Diamètre"]
["Dimensionnel"]
["Dureté"]
["Electrique "]
["Etalonnage"]
["Filetage"]
["Force"]
["Fréquence"]
["Fuite"]
["Géométrie"]
["Hauteur"]
["Hygrométrie"]
["Lumière"]
["Pesage"]
["Physico_chimique"]
["Pression"]
["Propreté"]
["Réctitude"]
["Rugosité"]
["Son"]
["Spectrométrie"]
["Taraudage"]
["Température"]
["Vitesse"]
["Volumétrie"]

{"sheet":"SOUS Domaines","index":3,"n_rows":73,"n_cols":1,"rows_kept":73,"cut":false,"hidden":true,"merged":[[0,0,0,2]]}
["Sous_Domaines"]
["Angle_incliné"]
["Angle_mesure "]
["Aspect _avec_mesure"]
["Aspect_sans_mesure"]
["Couple"]
["Débit_capteur"]
["Débit_générateur"]
["Débit_quantifié"]
["Densité"]
["Détection_gaz"]
["Dimensionnel_Epaisseur"]
["Dimensionnel_sans_contact_2D"]
["Dimensions_avec_contact_3D"]
["Dimensions_sans_contact_2D"]
["Dureté_Hv_Hrc "]
["Dureté_Shore_A"]
["Electricité_Conductivité"]
["Electricité_Courant"]
["Electricité_Résistance"]
["Electricité_Rotophase"]
["Electricité_Statique"]
["Electrique_Puissance"]
["Epaisseur"]
["Epaisseur_par_micromètre"]
["Epaisseur_Ultrason"]
["Etalonnage _Epaisseur"]
["Etalonnage_Rugosité"]
["Etalonnage_Dureté"]
["Etalonnage_Battement"]
["Etalonnage_Dimensionnel"]
["Etalonnage_Dureté"]
["Etalonnage_Epaisseur"]
["Etalonnage_Fluorescence"]
["Etalonnage_Fuite"]
["Etalonnage_Instrument_optique"]
["Etalonnage_Mesure_étalon"]
["Etalonnage_Micromètre"]
["Etalonnage_Perte_de_charge"]
["Etalonnage_Pesage"]
["Etalonnage_Pression"]
["Etalonnage_Projecteur"]
["Etalonnage_Rugosité"]
["Filetage"]
["Force"]
["Force_Jauge_de_Contrainte"]
["Fréquence"]
["Fuite"]
["Géométrie"]
["Hauteur"]
["Hygrométrie"]
["ø_exter"]
["ø_exter_longueur"]
["ø_exter_ø_inter_longueur"]
["ø_exter_longueur"]
["ø_inter"]
["ø_inter_exter_longueur"]
["Lumière"]
["Masse"]
["Physico_chimique"]
["Pression"]
["Propreté_surface"]
["Réctitude"]
["Réglage_réctitude"]
["Rugosité"]
["Son"]
["Spectrométrie"]
["Taraudage"]
["Température"]
["Température_hygrométrie"]
["Temps"]
["Vitesse"]
["Volume"]

{"sheet":"Masse","index":4,"n_rows":101,"n_cols":16,"rows_kept":101,"cut":false,"hidden":false,"merged":[]}
["PESAGE"]
["Pesage",null,null,null,null,null,"résolution g","Incertitude g","Justesse g","IT mini détectable g","Capacité mini g","Capacité Maxi g",null,"Résultat critère IT"]
["B.078","Peson","Production / 8403 / Bull-blocks","1 / 300 kg",null,"Afficher",50,null,null,"AAA",0,300000,null,{"$f":"IF('Choix de l''instrument '!$C$3=\"Masse\",AND('Choix de l''instrument '!$D$3>=Masse!G3,G3<>\"\"),\"\")","v":""}]
["MAS_0027","Peson","Technique / 7700 / Armoire Métrologie M1 A","0 / 1000 kg",null,"Afficher",500,null,null,"BBB",1,100000,null,{"$f":"IF('Choix de l''instrument '!$C$3=\"Masse\",AND('Choix de l''instrument '!$D$3>=Masse!G4,G4<>\"\"),\"\")","v":""},"=NBVAL(A:A)","=NB.SI(N3:N100;Vrai)"]
["B.072","Balance","Production / 8403 / Etirage Couronnes","1 / 30 kg",null,"Afficher",50,null,null,"CCC",1,100000,null,{"$f":"IF('Choix de l''instrument '!$C$3=\"Masse\",AND('Choix de l''instrument '!$D$3>=Masse!G5,G5<>\"\"),\"\")","v":""}]
["MAS-0020","Balance","Production / 8403 / Bull-blocks",null,null,"Afficher",1,null,null,1.0213399999999999,0,60000,null,{"$f":"IF('Choix de l''instrument '!$C$3=\"Masse\",AND('Choix de l''instrument '!$D$3>=Masse!G6,G6<>\"\"),\"\")","v":""}]
["MAS-0040 /D","Balance","Production / 8404 / Soudure","10 / 30000 g",null,"Afficher",10,null,null,null,0,30000,null,{"$f":"IF('Choix de l''instrument '!$C$3=\"Masse\",AND('Choix de l''instrument '!$D$3>=Masse!G7,G7<>\"\"),\"\")","v":""}]
["B_042","Balance","Client / SERA",null,null,"Afficher",0.1,8.5110000000000005E-2,-2.0500000000000001E-2,1.0213399999999999,0,22000,null,{"$f":"IF('Choix de l''instrument '!$C$3=\"Masse\",AND('Choix de l''instrument '!$D$3>=Masse!G8,G8<>\"\"),\"\")","v":""}]
["MAS-0023","Balance","Client / SERA","24 KG",null,"Afficher",0.1,null,null,null,0,24000,null,{"$f":"IF('Choix de l''instrument '!$C$3=\"Masse\",AND('Choix de l''instrument '!$D$3>=Masse!G9,G9<>\"\"),\"\")","v":""}]
["B.006","Balance","Technique / 7700 / Armoire Prototype P1 D","50 / 31000 g",null,"Afficher",1,null,null,null,50,31000,null,{"$f":"IF('Choix de l''instrument '!$C$3=\"Masse\",AND('Choix de l''instrument '!$D$3>=Masse!G10,G10<>\"\"),\"\")","v":""}]
["B.020","Balance","Technique / 7700 / Armoire Métrologie M1 A","1000 / 125000 mg",null,"Afficher",1E-4,9.5E-4,-9.4000000000000004E-3,1.142E-2,0,125,null,{"$f":"IF('Choix de l''instrument '!$C$3=\"Masse\",AND('Choix de l''instrument '!$D$3>=Masse!G11,G11<>\"\"),\"\")","v":""}]
["B.059","Balance","Production / 7700","22000 / 10 g",null,"Afficher",1E-4,0.08,0.1948,0.96,5,22000,null,{"$f":"IF('Choix de l''instrument '!$C$3=\"Masse\",AND('Choix de l''instrument '!$D$3>=Masse!G12,G12<>\"\"),\"\")","v":""}]
["B.066","Balance","Technique / 7700 / Armoire Prototype P1 B","10 / 620 g",null,"Afficher",0.01,null,null,null,0.02,620,null,{"$f":"IF('Choix de l''instrument '!$C$3=\"Masse\",AND('Choix de l''instrument '!$D$3>=Masse!G13,G13<>\"\"),\"\")","v":""}]
["B.069","Balance","Technique / 7700 / Table des prototypes","1000 / 60000 g",null,"Afficher",10,null,null,null,400,60000,null,{"$f":"IF('Choix de l''instrument '!$C$3=\"Masse\",AND('Choix de l''instrument '!$D$3>=Masse!G14,G14<>\"\"),\"\")","v":""}]
["B.070","Balance","Production / 7700 / armoir métrologie M2B","0 / 2100 g",null,"Afficher",0.1,null,null,null,0,2100,null,{"$f":"IF('Choix de l''instrument '!$C$3=\"Masse\",AND('Choix de l''instrument '!$D$3>=Masse!G15,G15<>\"\"),\"\")","v":""}]
["B.001","Balance","Production / 8507 / Micro Assemblage","1000 / 410000 mg",null,"Afficher",0.1,6.7299999999999999E-3,8.4799999999999997E-3,8.0710000000000004E-2,0.2,410,null,{"$f":"IF('Choix de l''instrument '!$C$3=\"Masse\",AND('Choix de l''instrument '!$D$3>=Masse!G16,G16<>\"\"),\"\")","v":""}]
["B.016","Balance","Production / 8016 / Magasin Pièces","10 / 30000 g",null,"Afficher",1,0.17509,4.6800000000000001E-2,"2.10106",5,30000,null,{"$f":"IF('Choix de l''instrument '!$C$3=\"Masse\",AND('Choix de l''instrument '!$D$3>=Masse!G17,G17<>\"\"),\"\")","v":""}]
["B.018","Balance","Production / 8553 / PRESSE C/C","1 / 100 kg",null,"Afficher",50,null,null,null,1000,100000,null,{"$f":"IF('Choix de l''instrument '!$C$3=\"Masse\",AND('Choix de l''instrument '!$D$3>=Masse!G18,G18<>\"\"),\"\")","v":""}]
["B.023","Balance","Production / 8016 / magasin tubes","1 / 120 g",null,"Afficher",1E-3,5.8E-4,7.3999999999999999E-4,6.9699999999999996E-3,1,120,null,{"$f":"IF('Choix de l''instrument '!$C$3=\"Masse\",AND('Choix de l''instrument '!$D$3>=Masse!G19,G19<>\"\"),\"\")","v":""}]
["B.025","Balance","Administratif / 8016 / Magasin Tubes","1 / 600 kg",null,"Afficher",10,0,-6.4999999999999997E-3,null,1000,600000,null,{"$f":"IF('Choix de l''instrument '!$C$3=\"Masse\",AND('Choix de l''instrument '!$D$3>=Masse!G20,G20<>\"\"),\"\")","v":""}]
["B.027","Balance","Production / 8510 / Tour de Reprise","0,001 / 15 kg",null,"Afficher",1,null,null,null,50,15000,null,{"$f":"IF('Choix de l''instrument '!$C$3=\"Masse\",AND('Choix de l''instrument '!$D$3>=Masse!G21,G21<>\"\"),\"\")","v":""}]
["B.041","Balance","Administratif / 8016 / Magasin Tubes","10 / 22000 g",null,"Afficher",0.1,9.9500000000000005E-2,-5.7000000000000002E-2,1.19398,5,22000,null,{"$f":"IF('Choix de l''instrument '!$C$3=\"Masse\",AND('Choix de l''instrument '!$D$3>=Masse!G22,G22<>\"\"),\"\")","v":""}]
["B.043","Balance","Production / 8414IMP / contrôle tube implant","50 / 22000 g",null,"Afficher",0.1,0.15548999999999999,0.2288,1.86564,0.5,22000,null,{"$f":"IF('Choix de l''instrument '!$C$3=\"Masse\",AND('Choix de l''instrument '!$D$3>=Masse!G23,G23<>\"\"),\"\")","v":""}]
["B.044","Balance","Production / 8513 / Contrôle Final Pièces","0,01 / 610 g",null,"Afficher",0.01,null,null,null,null,610,null,{"$f":"IF('Choix de l''instrument '!$C$3=\"Masse\",AND('Choix de l''instrument '!$D$3>=Masse!G24,G24<>\"\"),\"\")","v":""}]
["B.049","Balance","Production / 8414 IMP / Laboratoire + local Tubes Impl","1 / 810 g",null,"Afficher",0.01,1.804E-2,-1.0800000000000001E-2,0.21648000000000001,0.5,810,null,{"$f":"IF('Choix de l''instrument '!$C$3=\"Masse\",AND('Choix de l''instrument '!$D$3>=Masse!G25,G25<>\"\"),\"\")","v":""}]
["B.050","Balance","Production / 8016 / magasin tubes","1 / 22000 g",null,"Afficher",0.1,0.10156999999999999,0.35449999999999998,1.2188099999999999,5,22000,null,{"$f":"IF('Choix de l''instrument '!$C$3=\"Masse\",AND('Choix de l''instrument '!$D$3>=Masse!G26,G26<>\"\"),\"\")","v":""}]
["B.054","Balance","Production / 8346","1 / 610 g",null,"Afficher",1E-3,2.3999999999999998E-3,-4.0000000000000002E-4,2.8799999999999999E-2,5.0000000000000001E-3,610,null,{"$f":"IF('Choix de l''instrument '!$C$3=\"Masse\",AND('Choix de l''instrument '!$D$3>=Masse!G27,G27<>\"\"),\"\")","v":""}]
["B.055","Balance","Administratif / 8016 / Magasin Tubes","1 / 610 g",null,"Afficher",0.01,1.1199999999999999E-3,2.3000000000000001E-4,1.3440000000000001E-2,0.05,610,null,{"$f":"IF('Choix de l''instrument '!$C$3=\"Masse\",AND('Choix de l''instrument '!$D$3>=Masse!G28,G28<>\"\"),\"\")","v":""}]
["B.057","Balance","Production / 8016 / Magasin Pièces","0,5 / 2100 g",null,"Afficher",0.1,null,null,null,0.5,2100,null,{"$f":"IF('Choix de l''instrument '!$C$3=\"Masse\",AND('Choix de l''instrument '!$D$3>=Masse!G29,G29<>\"\"),\"\")","v":""}]
["B.060","Balance","Administratif / 8016 / Magasin Tubes","2 / 300 kg",null,"Afficher",0.1,1.9900000000000001E-2,1E-3,0.23880000000000001,2000,300000,null,{"$f":"IF('Choix de l''instrument '!$C$3=\"Masse\",AND('Choix de l''instrument '!$D$3>=Masse!G30,G30<>\"\"),\"\")","v":""}]
["B.061","Balance","Production / 8346","0,01 / 210 g",null,"Afficher",1E-3,1E-4,0,8.9999999999999998E-4,0.01,210,null,{"$f":"IF('Choix de l''instrument '!$C$3=\"Masse\",AND('Choix de l''instrument '!$D$3>=Masse!G31,G31<>\"\"),\"\")","v":""}]
["B.062","Balance","Production / 8444 / Interopérations","1 / 22000 g",null,"Afficher",0.1,null,null,null,5,22000,null,{"$f":"IF('Choix de l''instrument '!$C$3=\"Masse\",AND('Choix de l''instrument '!$D$3>=Masse!G32,G32<>\"\"),\"\")","v":""}]
["B.063","Balance","Production / 8414DIV / Contrôle Final Tubes","50 / 62000 g",null,"Afficher",10,0.99919999999999998,-0.78,11.990399999999999,50,62000,null,{"$f":"IF('Choix de l''instrument '!$C$3=\"Masse\",AND('Choix de l''instrument '!$D$3>=Masse!G33,G33<>\"\"),\"\")","v":""}]
["B.064","Balance","Production / 8414IMP / Local PCA","50 / 34100 g",null,"Afficher",1,0.08,-5.1999999999999998E-3,0.96,50,34000,null,{"$f":"IF('Choix de l''instrument '!$C$3=\"Masse\",AND('Choix de l''instrument '!$D$3>=Masse!G34,G34<>\"\"),\"\")","v":""}]
["B.065","Balance","Technique / 7245 / Prototype","100 / 31000 mg",null,"Afficher",1,null,null,null,5,31000,null,{"$f":"IF('Choix de l''instrument '!$C$3=\"Masse\",AND('Choix de l''instrument '!$D$3>=Masse!G35,G35<>\"\"),\"\")","v":""}]
["B.067","Balance","Production / 8016 / magasin pièce","500 / 210000 mg",null,"Afficher",0.01,2.9999999999999997E-4,-5.0000000000000002E-5,3.5500000000000002E-3,0.1,210,null,{"$f":"IF('Choix de l''instrument '!$C$3=\"Masse\",AND('Choix de l''instrument '!$D$3>=Masse!G36,G36<>\"\"),\"\")","v":""}]
["B.068","Balance","Production / 8400 / Etirage Bancs droits","10 / 2000 g",null,"Afficher",0.1,null,null,null,0.5,2000,null,{"$f":"IF('Choix de l''instrument '!$C$3=\"Masse\",AND('Choix de l''instrument '!$D$3>=Masse!G37,G37<>\"\"),\"\")","v":""}]
["B.071","Balance","Production / 8515 / Production laboratoire","1 / 6200 g",null,"Afficher",0.1,null,null,null,1,6200,null,{"$f":"IF('Choix de l''instrument '!$C$3=\"Masse\",AND('Choix de l''instrument '!$D$3>=Masse!G38,G38<>\"\"),\"\")","v":""}]
["B.076","Balance","Production / 8403 / Redressage Couronnes","200 / 60000 g",null,"Afficher",10,null,null,null,200,60000,null,{"$f":"IF('Choix de l''instrument '!$C$3=\"Masse\",AND('Choix de l''instrument '!$D$3>=Masse!G39,G39<>\"\"),\"\")","v":""}]
["B.077","Balance","Production / 8414IMP","1 / 34100 g",null,"Afficher",0.1,0.2482,-2.52E-2,2.9782999999999999,5,24000,null,{"$f":"IF('Choix de l''instrument '!$C$3=\"Masse\",AND('Choix de l''instrument '!$D$3>=Masse!G40,G40<>\"\"),\"\")","v":""}]
["B.079","Balance","Production / 8404 / Soudure","1 / 150 kg",null,"Afficher",1000,null,null,null,5000,150000,null,{"$f":"IF('Choix de l''instrument '!$C$3=\"Masse\",AND('Choix de l''instrument '!$D$3>=Masse!G41,G41<>\"\"),\"\")","v":""}]
["BAL-002","Balance","Production / 8444 / Interopérations","100 / 30000 g",null,"Afficher",10,null,null,null,200,30000,null,{"$f":"IF('Choix de l''instrument '!$C$3=\"Masse\",AND('Choix de l''instrument '!$D$3>=Masse!G42,G42<>\"\"),\"\")","v":""}]
["BAL-003","Balance","Production / 8414IMP",null,null,"Afficher",1E-4,5.9999999999999995E-4,2E-3,7.1000000000000004E-3,0.05,220,null,{"$f":"IF('Choix de l''instrument '!$C$3=\"Masse\",AND('Choix de l''instrument '!$D$3>=Masse!G43,G43<>\"\"),\"\")","v":""}]
["BAL-005","Balance","Production / 8507 / Micro Assemblage","0,2 / 30 kg",null,"Afficher",10,null,null,null,100,30000,null,{"$f":"IF('Choix de l''instrument '!$C$3=\"Masse\",AND('Choix de l''instrument '!$D$3>=Masse!G44,G44<>\"\"),\"\")","v":""}]
["BAL-121","Balance","Production / 8515 / Laboratoire",null,null,"Afficher",20,2.8300000000000001E-3,0,3.3939999999999998E-2,400,60000,null,{"$f":"IF('Choix de l''instrument '!$C$3=\"Masse\",AND('Choix de l''instrument '!$D$3>=Masse!G45,G45<>\"\"),\"\")","v":""}]
["CF.482","Balance","Production / 8414DIV / Contrôle tube divers","20 / 3000 g",null,"Afficher",1,4.3589999999999997E-2,-5.0000000000000001E-3,0.52307000000000003,20,3000,null,{"$f":"IF('Choix de l''instrument '!$C$3=\"Masse\",AND('Choix de l''instrument '!$D$3>=Masse!G46,G46<>\"\"),\"\")","v":""}]
["MAS-0001","Balance","Production / 8403 / Etirage Couronnes","0 / 300 kg",null,"Afficher",50,null,null,null,1000,300000,null,{"$f":"IF('Choix de l''instrument '!$C$3=\"Masse\",AND('Choix de l''instrument '!$D$3>=Masse!G47,G47<>\"\"),\"\")","v":""}]
["MAS-0002","Balance","Production / 8552 / Presse Automatique",null,null,"Afficher",1,null,null,null,20,3000,null,{"$f":"IF('Choix de l''instrument '!$C$3=\"Masse\",AND('Choix de l''instrument '!$D$3>=Masse!G48,G48<>\"\"),\"\")","v":""}]
["MAS-0007","Balance","Production / 8404 / Soudure","10 / 30000 g",null,"Afficher",10,null,null,null,200,30000,null,{"$f":"IF('Choix de l''instrument '!$C$3=\"Masse\",AND('Choix de l''instrument '!$D$3>=Masse!G49,G49<>\"\"),\"\")","v":""}]
["MAS-0008","Balance","Production / 8403 / Bull-blocks","0,2 / 60 kg",null,"Afficher",20,null,null,null,400,60000,null,{"$f":"IF('Choix de l''instrument '!$C$3=\"Masse\",AND('Choix de l''instrument '!$D$3>=Masse!G50,G50<>\"\"),\"\")","v":""}]
["MAS-0009","Balance","Production / 8346 / Contrôle SPECIAUX","0,1 / 1000 g",null,"Afficher",0.1,null,null,null,2,1000,null,{"$f":"IF('Choix de l''instrument '!$C$3=\"Masse\",AND('Choix de l''instrument '!$D$3>=Masse!G51,G51<>\"\"),\"\")","v":""}]
["MAS-0019","Balance","Production / 8403 / TT904",null,null,"Afficher",10,null,null,null,1000,60000,null,{"$f":"IF('Choix de l''instrument '!$C$3=\"Masse\",AND('Choix de l''instrument '!$D$3>=Masse!G52,G52<>\"\"),\"\")","v":""}]
["MAS-0021","Balance","Production / 8509 / Tronconnage","20 g/ 30000 g",null,"Afficher",1,0.96250000000000002,-0.78849999999999998,11.54996,10,30000,null,{"$f":"IF('Choix de l''instrument '!$C$3=\"Masse\",AND('Choix de l''instrument '!$D$3>=Masse!G53,G53<>\"\"),\"\")","v":""}]
["MAS-0025","Balance","Production / 8016 / magasin pièce",null,null,"Afficher",0.01,1.9E-3,7.6000000000000004E-4,2.2759999999999999E-2,0.02,620,null,{"$f":"IF('Choix de l''instrument '!$C$3=\"Masse\",AND('Choix de l''instrument '!$D$3>=Masse!G54,G54<>\"\"),\"\")","v":""}]
["MAS-0028","Balance","Technique / 7245 / Prototype","5 / 24100 g",null,"Afficher",5,0.14799999999999999,-1.2244999999999999,1.776,100,24100,null,{"$f":"IF('Choix de l''instrument '!$C$3=\"Masse\",AND('Choix de l''instrument '!$D$3>=Masse!G55,G55<>\"\"),\"\")","v":""}]
["MAS-0029","Balance","Production / 8016 / magasin tubes","5 / 24100 g",null,"Afficher",5,0.30984,-2.1204999999999998,3.7180599999999999,20,24100,null,{"$f":"IF('Choix de l''instrument '!$C$3=\"Masse\",AND('Choix de l''instrument '!$D$3>=Masse!G56,G56<>\"\"),\"\")","v":""}]
["MAS-0030","Balance","Production / 8403 / Laboratoire","20 / 30000 g",null,"Afficher",20,null,null,null,400,30000,null,{"$f":"IF('Choix de l''instrument '!$C$3=\"Masse\",AND('Choix de l''instrument '!$D$3>=Masse!G57,G57<>\"\"),\"\")","v":""}]
["MAS-0037","Balance","Technique / 7700","0,02 / 620 g",null,"Afficher",1E-3,null,null,null,0.02,620,null,{"$f":"IF('Choix de l''instrument '!$C$3=\"Masse\",AND('Choix de l''instrument '!$D$3>=Masse!G58,G58<>\"\"),\"\")","v":""}]
["MAS-0038","Balance","Technique / 7700","50 / 34100 g",null,"Afficher",0.1,null,null,null,50,34100,null,{"$f":"IF('Choix de l''instrument '!$C$3=\"Masse\",AND('Choix de l''instrument '!$D$3>=Masse!G59,G59<>\"\"),\"\")","v":""}]
["MAS-0039","Balance","Technique / 7700 / Bureau de Laurent SENEE","0,01 / 120 g",null,"Afficher",1E-4,1.3999999999999999E-4,-5.0000000000000002E-5,1.67E-3,0.01,120,null,{"$f":"IF('Choix de l''instrument '!$C$3=\"Masse\",AND('Choix de l''instrument '!$D$3>=Masse!G60,G60<>\"\"),\"\")","v":""}]
["MAS-0041","Balance","Production / 8404 / Soudure","10 / 30000 g",null,"Afficher",0.01,null,null,null,null,30000,null,{"$f":"IF('Choix de l''instrument '!$C$3=\"Masse\",AND('Choix de l''instrument '!$D$3>=Masse!G61,G61<>\"\"),\"\")","v":""}]
[null,null,null,null,null,null,null,null,null,null,null,null,null,{"$f":"IF('Choix de l''instrument '!$C$3=\"Masse\",AND('Choix de l''instrument '!$D$3>=Masse!J62,J62<>\"\"),\"\")","v":""}]
[null,null,null,null,null,null,null,null,null,null,null,null,null,{"$f":"IF('Choix de l''instrument '!$C$3=\"Masse\",AND('Choix de l''instrument '!$D$3>=Masse!J63,J63<>\"\"),\"\")","v":""}]
[null,null,null,null,null,null,null,null,null,null,null,null,null,{"$f":"IF('Choix de l''instrument '!$C$3=\"Masse\",AND('Choix de l''instrument '!$D$3>=Masse!J64,J64<>\"\"),\"\")","v":""}]
[null,null,null,null,null,null,null,null,null,null,null,null,null,{"$f":"IF('Choix de l''instrument '!$C$3=\"Masse\",AND('Choix de l''instrument '!$D$3>=Masse!J65,J65<>\"\"),\"\")","v":""}]
[null,null,null,null,null,null,null,null,null,null,null,null,null,{"$f":"IF('Choix de l''instrument '!$C$3=\"Masse\",AND('Choix de l''instrument '!$D$3>=Masse!J66,J66<>\"\"),\"\")","v":""}]
[null,null,null,null,null,null,null,null,null,null,null,null,null,{"$f":"IF('Choix de l''instrument '!$C$3=\"Masse\",AND('Choix de l''instrument '!$D$3>=Masse!J67,J67<>\"\"),\"\")","v":""}]
[null,null,null,null,null,null,null,null,null,null,null,null,null,{"$f":"IF('Choix de l''instrument '!$C$3=\"Masse\",AND('Choix de l''instrument '!$D$3>=Masse!J68,J68<>\"\"),\"\")","v":""}]
[null,null,null,null,null,null,null,null,null,null,null,null,null,{"$f":"IF('Choix de l''instrument '!$C$3=\"Masse\",AND('Choix de l''instrument '!$D$3>=Masse!J69,J69<>\"\"),\"\")","v":""}]
[null,null,null,null,null,null,null,null,null,null,null,null,null,{"$f":"IF('Choix de l''instrument '!$C$3=\"Masse\",AND('Choix de l''instrument '!$D$3>=Masse!J70,J70<>\"\"),\"\")","v":""}]
[null,null,null,null,null,null,null,null,null,null,null,null,null,{"$f":"IF('Choix de l''instrument '!$C$3=\"Masse\",AND('Choix de l''instrument '!$D$3>=Masse!J71,J71<>\"\"),\"\")","v":""}]
[null,null,null,null,null,null,null,null,null,null,null,null,null,{"$f":"IF('Choix de l''instrument '!$C$3=\"Masse\",AND('Choix de l''instrument '!$D$3>=Masse!J72,J72<>\"\"),\"\")","v":""}]
[null,null,null,null,null,null,null,null,null,null,null,null,null,{"$f":"IF('Choix de l''instrument '!$C$3=\"Masse\",AND('Choix de l''instrument '!$D$3>=Masse!J73,J73<>\"\"),\"\")","v":""}]
[null,null,null,null,null,null,null,null,null,null,null,null,null,{"$f":"IF('Choix de l''instrument '!$C$3=\"Masse\",AND('Choix de l''instrument '!$D$3>=Masse!J74,J74<>\"\"),\"\")","v":""}]
[null,null,null,null,null,null,null,null,null,null,null,null,null,{"$f":"IF('Choix de l''instrument '!$C$3=\"Masse\",AND('Choix de l''instrument '!$D$3>=Masse!J75,J75<>\"\"),\"\")","v":""}]
[null,null,null,null,null,null,null,null,null,null,null,null,null,{"$f":"IF('Choix de l''instrument '!$C$3=\"Masse\",AND('Choix de l''instrument '!$D$3>=Masse!J76,J76<>\"\"),\"\")","v":""}]
[null,null,null,null,null,null,null,null,null,null,null,null,null,{"$f":"IF('Choix de l''instrument '!$C$3=\"Masse\",AND('Choix de l''instrument '!$D$3>=Masse!J77,J77<>\"\"),\"\")","v":""}]
[null,null,null,null,null,null,null,null,null,null,null,null,null,{"$f":"IF('Choix de l''instrument '!$C$3=\"Masse\",AND('Choix de l''instrument '!$D$3>=Masse!J78,J78<>\"\"),\"\")","v":""}]
[null,null,null,null,null,null,null,null,null,null,null,null,null,{"$f":"IF('Choix de l''instrument '!$C$3=\"Masse\",AND('Choix de l''instrument '!$D$3>=Masse!J79,J79<>\"\"),\"\")","v":""}]
[null,null,null,null,null,null,null,null,null,null,null,null,null,{"$f":"IF('Choix de l''instrument '!$C$3=\"Masse\",AND('Choix de l''instrument '!$D$3>=Masse!J80,J80<>\"\"),\"\")","v":""}]
[null,null,null,null,null,null,null,null,null,null,null,null,null,{"$f":"IF('Choix de l''instrument '!$C$3=\"Masse\",AND('Choix de l''instrument '!$D$3>=Masse!J81,J81<>\"\"),\"\")","v":""}]
[null,null,null,null,null,null,null,null,null,null,null,null,null,{"$f":"IF('Choix de l''instrument '!$C$3=\"Masse\",AND('Choix de l''instrument '!$D$3>=Masse!J82,J82<>\"\"),\"\")","v":""}]
[null,null,null,null,null,null,null,null,null,null,null,null,null,{"$f":"IF('Choix de l''instrument '!$C$3=\"Masse\",AND('Choix de l''instrument '!$D$3>=Masse!J83,J83<>\"\"),\"\")","v":""}]
[null,null,null,null,null,null,null,null,null,null,null,null,null,{"$f":"IF('Choix de l''instrument '!$C$3=\"Masse\",AND('Choix de l''instrument '!$D$3>=Masse!J84,J84<>\"\"),\"\")","v":""}]
[null,null,null,null,null,null,null,null,null,null,null,null,null,{"$f":"IF('Choix de l''instrument '!$C$3=\"Masse\",AND('Choix de l''instrument '!$D$3>=Masse!J85,J85<>\"\"),\"\")","v":""}]
[null,null,null,null,null,null,null,null,null,null,null,null,null,{"$f":"IF('Choix de l''instrument '!$C$3=\"Masse\",AND('Choix de l''instrument '!$D$3>=Masse!J86,J86<>\"\"),\"\")","v":""}]
[null,null,null,null,null,null,null,null,null,null,null,null,null,{"$f":"IF('Choix de l''instrument '!$C$3=\"Masse\",AND('Choix de l''instrument '!$D$3>=Masse!J87,J87<>\"\"),\"\")","v":""}]
[null,null,null,null,null,null,null,null,null,null,null,null,null,{"$f":"IF('Choix de l''instrument '!$C$3=\"Masse\",AND('Choix de l''instrument '!$D$3>=Masse!J88,J88<>\"\"),\"\")","v":""}]
[null,null,null,null,null,null,null,null,null,null,null,null,null,{"$f":"IF('Choix de l''instrument '!$C$3=\"Masse\",AND('Choix de l''instrument '!$D$3>=Masse!J89,J89<>\"\"),\"\")","v":""}]
[null,null,null,null,null,null,null,null,null,null,null,null,null,{"$f":"IF('Choix de l''instrument '!$C$3=\"Masse\",AND('Choix de l''instrument '!$D$3>=Masse!J90,J90<>\"\"),\"\")","v":""}]
[null,null,null,null,null,null,null,null,null,null,null,null,null,{"$f":"IF('Choix de l''instrument '!$C$3=\"Masse\",AND('Choix de l''instrument '!$D$3>=Masse!J91,J91<>\"\"),\"\")","v":""}]
[null,null,null,null,null,null,null,null,null,null,null,null,null,{"$f":"IF('Choix de l''instrument '!$C$3=\"Masse\",AND('Choix de l''instrument '!$D$3>=Masse!J92,J92<>\"\"),\"\")","v":""}]
[null,null,null,null,null,null,null,null,null,null,null,null,null,{"$f":"IF('Choix de l''instrument '!$C$3=\"Masse\",AND('Choix de l''instrument '!$D$3>=Masse!J93,J93<>\"\"),\"\")","v":""}]
[null,null,null,null,null,null,null,null,null,null,null,null,null,{"$f":"IF('Choix de l''instrument '!$C$3=\"Masse\",AND('Choix de l''instrument '!$D$3>=Masse!J94,J94<>\"\"),\"\")","v":""}]
[null,null,null,null,null,null,null,null,null,null,null,null,null,{"$f":"IF('Choix de l''instrument '!$C$3=\"Masse\",AND('Choix de l''instrument '!$D$3>=Masse!J95,J95<>\"\"),\"\")","v":""}]
[null,null,null,null,null,null,null,null,null,null,null,null,null,{"$f":"IF('Choix de l''instrument '!$C$3=\"Masse\",AND('Choix de l''instrument '!$D$3>=Masse!J96,J96<>\"\"),\"\")","v":""}]
[null,null,null,null,null,null,null,null,null,null,null,null,null,{"$f":"IF('Choix de l''instrument '!$C$3=\"Masse\",AND('Choix de l''instrument '!$D$3>=Masse!J97,J97<>\"\"),\"\")","v":""}]
[null,null,null,null,null,null,null,null,null,null,null,null,null,{"$f":"IF('Choix de l''instrument '!$C$3=\"Masse\",AND('Choix de l''instrument '!$D$3>=Masse!J98,J98<>\"\"),\"\")","v":""}]
[null,null,null,null,null,null,null,null,null,null,null,null,null,{"$f":"IF('Choix de l''instrument '!$C$3=\"Masse\",AND('Choix de l''instrument '!$D$3>=Masse!J99,J99<>\"\"),\"\")","v":""}]
[null,null,null,null,null,null,null,null,null,null,null,null,null,{"$f":"IF('Choix de l''instrument '!$C$3=\"Masse\",AND('Choix de l''instrument '!$D$3>=Masse!J100,J100<>\"\"),\"\")","v":""}]
[null,null,null,null,null,null,null,null,null,null,null,null,null,{"$f":"IF('Choix de l''instrument '!$C$3=\"Masse\",AND('Choix de l''instrument '!$D$3>=Masse!J101,J101<>\"\"),\"\")","v":""}]

{"sheet":"Angle_incliné","index":5,"n_rows":101,"n_cols":16,"rows_kept":101,"cut":false,"hidden":false,"merged":[]}
["PESAGE"]
["Pesage",null,null,null,null,null,"résolution g","Incertitude g","Justesse g","IT mini détectable g","Capacité mini g","Capacité Maxi g",null,"Résultat critère IT"]
["PCC.013","Equerre","Production / 8508 / Tour Cathode",null,null,"Afficher","so",null,null,null,null,null,null,{"$f":"IF('Choix de l''instrument '!$C$3=\"Angle_incliné\",AND('Choix de l''instrument '!$D$3>=Angle_incliné!G3,G3<>\"\"),\"\")","v":""}]
["NIV-001","Niveau à bulle","Technique / 7300 / Mécanique","0 / 0,04 mm/m",null,"Afficher","so",null,null,null,null,null,null,{"$f":"IF('Choix de l''instrument '!$C$3=\"Angle_incliné\",AND('Choix de l''instrument '!$D$3>=Masse!G4,G4<>\"\"),\"\")","v":""},"=NBVAL(A:A)","=NB.SI(N3:N100;Vrai)"]
["CLIN-125","Clinomètre","Technique / 7700 / Armoire BOTT KG",null,null,"Afficher","so",null,null,null,null,null,null,{"$f":"IF('Choix de l''instrument '!$C$3=\"Angle_incliné\",AND('Choix de l''instrument '!$D$3>=Masse!G5,G5<>\"\"),\"\")","v":""}]
[null,null,null,null,null,null,null,null,null,null,null,null,null,{"$f":"IF('Choix de l''instrument '!$C$3=\"Masse\",AND('Choix de l''instrument '!$D$3>=Masse!G6,G6<>\"\"),\"\")","v":""}]
[null,null,null,null,null,null,null,null,null,null,null,null,null,{"$f":"IF('Choix de l''instrument '!$C$3=\"Masse\",AND('Choix de l''instrument '!$D$3>=Masse!G7,G7<>\"\"),\"\")","v":""}]
[null,null,null,null,null,null,null,null,null,null,null,null,null,{"$f":"IF('Choix de l''instrument '!$C$3=\"Masse\",AND('Choix de l''instrument '!$D$3>=Masse!G8,G8<>\"\"),\"\")","v":""}]
[null,null,null,null,null,null,null,null,null,null,null,null,null,{"$f":"IF('Choix de l''instrument '!$C$3=\"Masse\",AND('Choix de l''instrument '!$D$3>=Masse!G9,G9<>\"\"),\"\")","v":""}]
[null,null,null,null,null,null,null,null,null,null,null,null,null,{"$f":"IF('Choix de l''instrument '!$C$3=\"Masse\",AND('Choix de l''instrument '!$D$3>=Masse!G10,G10<>\"\"),\"\")","v":""}]
[null,null,null,null,null,null,null,null,null,null,null,null,null,{"$f":"IF('Choix de l''instrument '!$C$3=\"Masse\",AND('Choix de l''instrument '!$D$3>=Masse!G11,G11<>\"\"),\"\")","v":""}]
[null,null,null,null,null,null,null,null,null,null,null,null,null,{"$f":"IF('Choix de l''instrument '!$C$3=\"Masse\",AND('Choix de l''instrument '!$D$3>=Masse!G12,G12<>\"\"),\"\")","v":""}]
[null,null,null,null,null,null,null,null,null,null,null,null,null,{"$f":"IF('Choix de l''instrument '!$C$3=\"Masse\",AND('Choix de l''instrument '!$D$3>=Masse!G13,G13<>\"\"),\"\")","v":""}]
[null,null,null,null,null,null,null,null,null,null,null,null,null,{"$f":"IF('Choix de l''instrument '!$C$3=\"Masse\",AND('Choix de l''instrument '!$D$3>=Masse!G14,G14<>\"\"),\"\")","v":""}]
[null,null,null,null,null,null,null,null,null,null,null,null,null,{"$f":"IF('Choix de l''instrument '!$C$3=\"Masse\",AND('Choix de l''instrument '!$D$3>=Masse!G15,G15<>\"\"),\"\")","v":""}]
[null,null,null,null,null,null,null,null,null,null,null,null,null,{"$f":"IF('Choix de l''instrument '!$C$3=\"Masse\",AND('Choix de l''instrument '!$D$3>=Masse!G16,G16<>\"\"),\"\")","v":""}]
[null,null,null,null,null,null,null,null,null,null,null,null,null,{"$f":"IF('Choix de l''instrument '!$C$3=\"Masse\",AND('Choix de l''instrument '!$D$3>=Masse!G17,G17<>\"\"),\"\")","v":""}]
[null,null,null,null,null,null,null,null,null,null,null,null,null,{"$f":"IF('Choix de l''instrument '!$C$3=\"Masse\",AND('Choix de l''instrument '!$D$3>=Masse!G18,G18<>\"\"),\"\")","v":""}]
[null,null,null,null,null,null,null,null,null,null,null,null,null,{"$f":"IF('Choix de l''instrument '!$C$3=\"Masse\",AND('Choix de l''instrument '!$D$3>=Masse!G19,G19<>\"\"),\"\")","v":""}]
[null,null,null,null,null,null,null,null,null,null,null,null,null,{"$f":"IF('Choix de l''instrument '!$C$3=\"Masse\",AND('Choix de l''instrument '!$D$3>=Masse!G20,G20<>\"\"),\"\")","v":""}]
[null,null,null,null,null,null,null,null,null,null,null,null,null,{"$f":"IF('Choix de l''instrument '!$C$3=\"Masse\",AND('Choix de l''instrument '!$D$3>=Masse!G21,G21<>\"\"),\"\")","v":""}]
[null,null,null,null,null,null,null,null,null,null,null,null,null,{"$f":"IF('Choix de l''instrument '!$C$3=\"Masse\",AND('Choix de l''instrument '!$D$3>=Masse!G22,G22<>\"\"),\"\")","v":""}]
[null,null,null,null,null,null,null,null,null,null,null,null,null,{"$f":"IF('Choix de l''instrument '!$C$3=\"Masse\",AND('Choix de l''instrument '!$D$3>=Masse!G23,G23<>\"\"),\"\")","v":""}]
[null,null,null,null,null,null,null,null,null,null,null,null,null,{"$f":"IF('Choix de l''instrument '!$C$3=\"Masse\",AND('Choix de l''instrument '!$D$3>=Masse!G24,G24<>\"\"),\"\")","v":""}]
[null,null,null,null,null,null,null,null,null,null,null,null,null,{"$f":"IF('Choix de l''instrument '!$C$3=\"Masse\",AND('Choix de l''instrument '!$D$3>=Masse!G25,G25<>\"\"),\"\")","v":""}]
[null,null,null,null,null,null,null,null,null,null,null,null,null,{"$f":"IF('Choix de l''instrument '!$C$3=\"Masse\",AND('Choix de l''instrument '!$D$3>=Masse!G26,G26<>\"\"),\"\")","v":""}]
[null,null,null,null,null,null,null,null,null,null,null,null,null,{"$f":"IF('Choix de l''instrument '!$C$3=\"Masse\",AND('Choix de l''instrument '!$D$3>=Masse!G27,G27<>\"\"),\"\")","v":""}]
[null,null,null,null,null,null,null,null,null,null,null,null,null,{"$f":"IF('Choix de l''instrument '!$C$3=\"Masse\",AND('Choix de l''instrument '!$D$3>=Masse!G28,G28<>\"\"),\"\")","v":""}]
[null,null,null,null,null,null,null,null,null,null,null,null,null,{"$f":"IF('Choix de l''instrument '!$C$3=\"Masse\",AND('Choix de l''instrument '!$D$3>=Masse!G29,G29<>\"\"),\"\")","v":""}]
[null,null,null,null,null,null,null,null,null,null,null,null,null,{"$f":"IF('Choix de l''instrument '!$C$3=\"Masse\",AND('Choix de l''instrument '!$D$3>=Masse!G30,G30<>\"\"),\"\")","v":""}]
[null,null,null,null,null,null,null,null,null,null,null,null,null,{"$f":"IF('Choix de l''instrument '!$C$3=\"Masse\",AND('Choix de l''instrument '!$D$3>=Masse!G31,G31<>\"\"),\"\")","v":""}]
[null,null,null,null,null,null,null,null,null,null,null,null,null,{"$f":"IF('Choix de l''instrument '!$C$3=\"Masse\",AND('Choix de l''instrument '!$D$3>=Masse!G32,G32<>\"\"),\"\")","v":""}]
[null,null,null,null,null,null,null,null,null,null,null,null,null,{"$f":"IF('Choix de l''instrument '!$C$3=\"Masse\",AND('Choix de l''instrument '!$D$3>=Masse!G33,G33<>\"\"),\"\")","v":""}]
[null,null,null,null,null,null,null,null,null,null,null,null,null,{"$f":"IF('Choix de l''instrument '!$C$3=\"Masse\",AND('Choix de l''instrument '!$D$3>=Masse!G34,G34<>\"\"),\"\")","v":""}]
[null,null,null,null,null,null,null,null,null,null,null,null,null,{"$f":"IF('Choix de l''instrument '!$C$3=\"Masse\",AND('Choix de l''instrument '!$D$3>=Masse!G35,G35<>\"\"),\"\")","v":""}]
[null,null,null,null,null,null,null,null,null,null,null,null,null,{"$f":"IF('Choix de l''instrument '!$C$3=\"Masse\",AND('Choix de l''instrument '!$D$3>=Masse!G36,G36<>\"\"),\"\")","v":""}]
[null,null,null,null,null,null,null,null,null,null,null,null,null,{"$f":"IF('Choix de l''instrument '!$C$3=\"Masse\",AND('Choix de l''instrument '!$D$3>=Masse!G37,G37<>\"\"),\"\")","v":""}]
[null,null,null,null,null,null,null,null,null,null,null,null,null,{"$f":"IF('Choix de l''instrument '!$C$3=\"Masse\",AND('Choix de l''instrument '!$D$3>=Masse!G38,G38<>\"\"),\"\")","v":""}]
[null,null,null,null,null,null,null,null,null,null,null,null,null,{"$f":"IF('Choix de l''instrument '!$C$3=\"Masse\",AND('Choix de l''instrument '!$D$3>=Masse!G39,G39<>\"\"),\"\")","v":""}]
[null,null,null,null,null,null,null,null,null,null,null,null,null,{"$f":"IF('Choix de l''instrument '!$C$3=\"Masse\",AND('Choix de l''instrument '!$D$3>=Masse!G40,G40<>\"\"),\"\")","v":""}]
[null,null,null,null,null,null,null,null,null,null,null,null,null,{"$f":"IF('Choix de l''instrument '!$C$3=\"Masse\",AND('Choix de l''instrument '!$D$3>=Masse!G41,G41<>\"\"),\"\")","v":""}]
[null,null,null,null,null,null,null,null,null,null,null,null,null,{"$f":"IF('Choix de l''instrument '!$C$3=\"Masse\",AND('Choix de l''instrument '!$D$3>=Masse!G42,G42<>\"\"),\"\")","v":""}]
[null,null,null,null,null,null,null,null,null,null,null,null,null,{"$f":"IF('Choix de l''instrument '!$C$3=\"Masse\",AND('Choix de l''instrument '!$D$3>=Masse!G43,G43<>\"\"),\"\")","v":""}]
[null,null,null,null,null,null,null,null,null,null,null,null,null,{"$f":"IF('Choix de l''instrument '!$C$3=\"Masse\",AND('Choix de l''instrument '!$D$3>=Masse!G44,G44<>\"\"),\"\")","v":""}]
[null,null,null,null,null,null,null,null,null,null,null,null,null,{"$f":"IF('Choix de l''instrument '!$C$3=\"Masse\",AND('Choix de l''instrument '!$D$3>=Masse!G45,G45<>\"\"),\"\")","v":""}]
[null,null,null,null,null,null,null,null,null,null,null,null,null,{"$f":"IF('Choix de l''instrument '!$C$3=\"Masse\",AND('Choix de l''instrument '!$D$3>=Masse!G46,G46<>\"\"),\"\")","v":""}]
[null,null,null,null,null,null,null,null,null,null,null,null,null,{"$f":"IF('Choix de l''instrument '!$C$3=\"Masse\",AND('Choix de l''instrument '!$D$3>=Masse!G47,G47<>\"\"),\"\")","v":""}]
[null,null,null,null,null,null,null,null,null,null,null,null,null,{"$f":"IF('Choix de l''instrument '!$C$3=\"Masse\",AND('Choix de l''instrument '!$D$3>=Masse!G48,G48<>\"\"),\"\")","v":""}]
[null,null,null,null,null,null,null,null,null,null,null,null,null,{"$f":"IF('Choix de l''instrument '!$C$3=\"Masse\",AND('Choix de l''instrument '!$D$3>=Masse!G49,G49<>\"\"),\"\")","v":""}]
[null,null,null,null,null,null,null,null,null,null,null,null,null,{"$f":"IF('Choix de l''instrument '!$C$3=\"Masse\",AND('Choix de l''instrument '!$D$3>=Masse!G50,G50<>\"\"),\"\")","v":""}]
[null,null,null,null,null,null,null,null,null,null,null,null,null,{"$f":"IF('Choix de l''instrument '!$C$3=\"Masse\",AND('Choix de l''instrument '!$D$3>=Masse!G51,G51<>\"\"),\"\")","v":""}]
[null,null,null,null,null,null,null,null,null,null,null,null,null,{"$f":"IF('Choix de l''instrument '!$C$3=\"Masse\",AND('Choix de l''instrument '!$D$3>=Masse!G52,G52<>\"\"),\"\")","v":""}]
[null,null,null,null,null,null,null,null,null,null,null,null,null,{"$f":"IF('Choix de l''instrument '!$C$3=\"Masse\",AND('Choix de l''instrument '!$D$3>=Masse!G53,G53<>\"\"),\"\")","v":""}]
[null,null,null,null,null,null,null,null,null,null,null,null,null,{"$f":"IF('Choix de l''instrument '!$C$3=\"Masse\",AND('Choix de l''instrument '!$D$3>=Masse!G54,G54<>\"\"),\"\")","v":""}]
[null,null,null,null,null,null,null,null,null,null,null,null,null,{"$f":"IF('Choix de l''instrument '!$C$3=\"Masse\",AND('Choix de l''instrument '!$D$3>=Masse!G55,G55<>\"\"),\"\")","v":""}]
[null,null,null,null,null,null,null,null,null,null,null,null,null,{"$f":"IF('Choix de l''instrument '!$C$3=\"Masse\",AND('Choix de l''instrument '!$D$3>=Masse!G56,G56<>\"\"),\"\")","v":""}]
[null,null,null,null,null,null,null,null,null,null,null,null,null,{"$f":"IF('Choix de l''instrument '!$C$3=\"Masse\",AND('Choix de l''instrument '!$D$3>=Masse!G57,G57<>\"\"),\"\")","v":""}]
[null,null,null,null,null,null,null,null,null,null,null,null,null,{"$f":"IF('Choix de l''instrument '!$C$3=\"Masse\",AND('Choix de l''instrument '!$D$3>=Masse!G58,G58<>\"\"),\"\")","v":""}]
[null,null,null,null,null,null,null,null,null,null,null,null,null,{"$f":"IF('Choix de l''instrument '!$C$3=\"Masse\",AND('Choix de l''instrument '!$D$3>=Masse!G59,G59<>\"\"),\"\")","v":""}]
[null,null,null,null,null,null,null,null,null,null,null,null,null,{"$f":"IF('Choix de l''instrument '!$C$3=\"Masse\",AND('Choix de l''instrument '!$D$3>=Masse!G60,G60<>\"\"),\"\")","v":""}]
[null,null,null,null,null,null,null,null,null,null,null,null,null,{"$f":"IF('Choix de l''instrument '!$C$3=\"Masse\",AND('Choix de l''instrument '!$D$3>=Masse!G61,G61<>\"\"),\"\")","v":""}]
[null,null,null,null,null,null,null,null,null,null,null,null,null,{"$f":"IF('Choix de l''instrument '!$C$3=\"Masse\",AND('Choix de l''instrument '!$D$3>=Masse!J62,J62<>\"\"),\"\")","v":""}]
[null,null,null,null,null,null,null,null,null,null,null,null,null,{"$f":"IF('Choix de l''instrument '!$C$3=\"Masse\",AND('Choix de l''instrument '!$D$3>=Masse!J63,J63<>\"\"),\"\")","v":""}]
[null,null,null,null,null,null,null,null,null,null,null,null,null,{"$f":"IF('Choix de l''instrument '!$C$3=\"Masse\",AND('Choix de l''instrument '!$D$3>=Masse!J64,J64<>\"\"),\"\")","v":""}]
[null,null,null,null,null,null,null,null,null,null,null,null,null,{"$f":"IF('Choix de l''instrument '!$C$3=\"Masse\",AND('Choix de l''instrument '!$D$3>=Masse!J65,J65<>\"\"),\"\")","v":""}]
[null,null,null,null,null,null,null,null,null,null,null,null,null,{"$f":"IF('Choix de l''instrument '!$C$3=\"Masse\",AND('Choix de l''instrument '!$D$3>=Masse!J66,J66<>\"\"),\"\")","v":""}]
[null,null,null,null,null,null,null,null,null,null,null,null,null,{"$f":"IF('Choix de l''instrument '!$C$3=\"Masse\",AND('Choix de l''instrument '!$D$3>=Masse!J67,J67<>\"\"),\"\")","v":""}]
[null,null,null,null,null,null,null,null,null,null,null,null,null,{"$f":"IF('Choix de l''instrument '!$C$3=\"Masse\",AND('Choix de l''instrument '!$D$3>=Masse!J68,J68<>\"\"),\"\")","v":""}]
[null,null,null,null,null,null,null,null,null,null,null,null,null,{"$f":"IF('Choix de l''instrument '!$C$3=\"Masse\",AND('Choix de l''instrument '!$D$3>=Masse!J69,J69<>\"\"),\"\")","v":""}]
[null,null,null,null,null,null,null,null,null,null,null,null,null,{"$f":"IF('Choix de l''instrument '!$C$3=\"Masse\",AND('Choix de l''instrument '!$D$3>=Masse!J70,J70<>\"\"),\"\")","v":""}]
[null,null,null,null,null,null,null,null,null,null,null,null,null,{"$f":"IF('Choix de l''instrument '!$C$3=\"Masse\",AND('Choix de l''instrument '!$D$3>=Masse!J71,J71<>\"\"),\"\")","v":""}]
[null,null,null,null,null,null,null,null,null,null,null,null,null,{"$f":"IF('Choix de l''instrument '!$C$3=\"Masse\",AND('Choix de l''instrument '!$D$3>=Masse!J72,J72<>\"\"),\"\")","v":""}]
[null,null,null,null,null,null,null,null,null,null,null,null,null,{"$f":"IF('Choix de l''instrument '!$C$3=\"Masse\",AND('Choix de l''instrument '!$D$3>=Masse!J73,J73<>\"\"),\"\")","v":""}]
[null,null,null,null,null,null,null,null,null,null,null,null,null,{"$f":"IF('Choix de l''instrument '!$C$3=\"Masse\",AND('Choix de l''instrument '!$D$3>=Masse!J74,J74<>\"\"),\"\")","v":""}]
[null,null,null,null,null,null,null,null,null,null,null,null,null,{"$f":"IF('Choix de l''instrument '!$C$3=\"Masse\",AND('Choix de l''instrument '!$D$3>=Masse!J75,J75<>\"\"),\"\")","v":""}]
[null,null,null,null,null,null,null,null,null,null,null,null,null,{"$f":"IF('Choix de l''instrument '!$C$3=\"Masse\",AND('Choix de l''instrument '!$D$3>=Masse!J76,J76<>\"\"),\"\")","v":""}]
[null,null,null,null,null,null,null,null,null,null,null,null,null,{"$f":"IF('Choix de l''instrument '!$C$3=\"Masse\",AND('Choix de l''instrument '!$D$3>=Masse!J77,J77<>\"\"),\"\")","v":""}]
[null,null,null,null,null,null,null,null,null,null,null,null,null,{"$f":"IF('Choix de l''instrument '!$C$3=\"Masse\",AND('Choix de l''instrument '!$D$3>=Masse!J78,J78<>\"\"),\"\")","v":""}]
[null,null,null,null,null,null,null,null,null,null,null,null,null,{"$f":"IF('Choix de l''instrument '!$C$3=\"Masse\",AND('Choix de l''instrument '!$D$3>=Masse!J79,J79<>\"\"),\"\")","v":""}]
[null,null,null,null,null,null,null,null,null,null,null,null,null,{"$f":"IF('Choix de l''instrument '!$C$3=\"Masse\",AND('Choix de l''instrument '!$D$3>=Masse!J80,J80<>\"\"),\"\")","v":""}]
[null,null,null,null,null,null,null,null,null,null,null,null,null,{"$f":"IF('Choix de l''instrument '!$C$3=\"Masse\",AND('Choix de l''instrument '!$D$3>=Masse!J81,J81<>\"\"),\"\")","v":""}]
[null,null,null,null,null,null,null,null,null,null,null,null,null,{"$f":"IF('Choix de l''instrument '!$C$3=\"Masse\",AND('Choix de l''instrument '!$D$3>=Masse!J82,J82<>\"\"),\"\")","v":""}]
[null,null,null,null,null,null,null,null,null,null,null,null,null,{"$f":"IF('Choix de l''instrument '!$C$3=\"Masse\",AND('Choix de l''instrument '!$D$3>=Masse!J83,J83<>\"\"),\"\")","v":""}]
[null,null,null,null,null,null,null,null,null,null,null,null,null,{"$f":"IF('Choix de l''instrument '!$C$3=\"Masse\",AND('Choix de l''instrument '!$D$3>=Masse!J84,J84<>\"\"),\"\")","v":""}]
[null,null,null,null,null,null,null,null,null,null,null,null,null,{"$f":"IF('Choix de l''instrument '!$C$3=\"Masse\",AND('Choix de l''instrument '!$D$3>=Masse!J85,J85<>\"\"),\"\")","v":""}]
[null,null,null,null,null,null,null,null,null,null,null,null,null,{"$f":"IF('Choix de l''instrument '!$C$3=\"Masse\",AND('Choix de l''instrument '!$D$3>=Masse!J86,J86<>\"\"),\"\")","v":""}]
[null,null,null,null,null,null,null,null,null,null,null,null,null,{"$f":"IF('Choix de l''instrument '!$C$3=\"Masse\",AND('Choix de l''instrument '!$D$3>=Masse!J87,J87<>\"\"),\"\")","v":""}]
[null,null,null,null,null,null,null,null,null,null,null,null,null,{"$f":"IF('Choix de l''instrument '!$C$3=\"Masse\",AND('Choix de l''instrument '!$D$3>=Masse!J88,J88<>\"\"),\"\")","v":""}]
[null,null,null,null,null,null,null,null,null,null,null,null,null,{"$f":"IF('Choix de l''instrument '!$C$3=\"Masse\",AND('Choix de l''instrument '!$D$3>=Masse!J89,J89<>\"\"),\"\")","v":""}]
[null,null,null,null,null,null,null,null,null,null,null,null,null,{"$f":"IF('Choix de l''instrument '!$C$3=\"Masse\",AND('Choix de l''instrument '!$D$3>=Masse!J90,J90<>\"\"),\"\")","v":""}]
[null,null,null,null,null,null,null,null,null,null,null,null,null,{"$f":"IF('Choix de l''instrument '!$C$3=\"Masse\",AND('Choix de l''instrument '!$D$3>=Masse!J91,J91<>\"\"),\"\")","v":""}]
[null,null,null,null,null,null,null,null,null,null,null,null,null,{"$f":"IF('Choix de l''instrument '!$C$3=\"Masse\",AND('Choix de l''instrument '!$D$3>=Masse!J92,J92<>\"\"),\"\")","v":""}]
[null,null,null,null,null,null,null,null,null,null,null,null,null,{"$f":"IF('Choix de l''instrument '!$C$3=\"Masse\",AND('Choix de l''instrument '!$D$3>=Masse!J93,J93<>\"\"),\"\")","v":""}]
[null,null,null,null,null,null,null,null,null,null,null,null,null,{"$f":"IF('Choix de l''instrument '!$C$3=\"Masse\",AND('Choix de l''instrument '!$D$3>=Masse!J94,J94<>\"\"),\"\")","v":""}]
[null,null,null,null,null,null,null,null,null,null,null,null,null,{"$f":"IF('Choix de l''instrument '!$C$3=\"Masse\",AND('Choix de l''instrument '!$D$3>=Masse!J95,J95<>\"\"),\"\")","v":""}]
[null,null,null,null,null,null,null,null,null,null,null,null,null,{"$f":"IF('Choix de l''instrument '!$C$3=\"Masse\",AND('Choix de l''instrument '!$D$3>=Masse!J96,J96<>\"\"),\"\")","v":""}]
[null,null,null,null,null,null,null,null,null,null,null,null,null,{"$f":"IF('Choix de l''instrument '!$C$3=\"Masse\",AND('Choix de l''instrument '!$D$3>=Masse!J97,J97<>\"\"),\"\")","v":""}]
[null,null,null,null,null,null,null,null,null,null,null,null,null,{"$f":"IF('Choix de l''instrument '!$C$3=\"Masse\",AND('Choix de l''instrument '!$D$3>=Masse!J98,J98<>\"\"),\"\")","v":""}]
[null,null,null,null,null,null,null,null,null,null,null,null,null,{"$f":"IF('Choix de l''instrument '!$C$3=\"Masse\",AND('Choix de l''instrument '!$D$3>=Masse!J99,J99<>\"\"),\"\")","v":""}]
[null,null,null,null,null,null,null,null,null,null,null,null,null,{"$f":"IF('Choix de l''instrument '!$C$3=\"Masse\",AND('Choix de l''instrument '!$D$3>=Masse!J100,J100<>\"\"),\"\")","v":""}]
[null,null,null,null,null,null,null,null,null,null,null,null,null,{"$f":"IF('Choix de l''instrument '!$C$3=\"Masse\",AND('Choix de l''instrument '!$D$3>=Masse!J101,J101<>\"\"),\"\")","v":""}]

{"sheet":"Angle_mesure","index":6,"n_rows":101,"n_cols":16,"rows_kept":101,"cut":false,"hidden":false,"merged":[]}
["Angle"]
["Angle",null,null,null,null,null,"résolution g",null,null,null,null,null,null,"Résultat critère IT"]
["DIM-0138","Rapporteur d'angle","Production / 8401 / Magasin Outillage","-360 / 360 Degré",null,"Afficher",0.01,null,null,null,null,null,null,{"$f":"IF('Choix de l''instrument '!$C$3=\"Angle_mesure\",AND('Choix de l''instrument '!$D$3>=Angle_mesure!G3,G3<>\"\"),\"\")","v":""}]
["THE.026","Rapporteur d'angle","Technique / 7245 / Prototype",null,null,"Afficher",0.01,null,null,null,null,null,null,{"$f":"IF('Choix de l''instrument '!$C$3=\"Angle_mesure\",AND('Choix de l''instrument '!$D$3>=Angle_mesure!G4,G4<>\"\"),\"\")","v":""},"=NBVAL(A:A)","=NB.SI(N3:N100;Vrai)"]
[]
[]
[]
[]
[]
[]
[]
[]
[]
[]
[]
[]
[]
[]
[]
[]
[]
[]
[]
[]
[]
[]
[]
[]
[]
[]
[]
[]
[]
[]
[]
[]
[]
[]
[]
[]
[]
[]
[]
[]
[]
[]
[]
[]
[]
[]
[]
[]
[]
[]
[]
[]
[]
[]
[]
[]
[]
[]
[]
[]
[]
[]
[]
[]
[]
[]
[]
[]
[]
[]
[]
[]
[]
[]
[]
[]
[]
[]
[]
[]
[]
[]
[]
[]
[]
[]
[]
[]
[]
[]
[]
[]
[]
[]
[]
[]
[null,null,null,null,null,null,null,null,null,null,null,null,null,{"$f":"IF('Choix de l''instrument '!$C$3=\"Masse\",AND('Choix de l''instrument '!$D$3>=Masse!J101,J101<>\"\"),\"\")","v":""}]

{"sheet":"Aspect_avec_mesure","index":7,"n_rows":15,"n_cols":7,"rows_kept":15,"cut":false,"hidden":false,"merged":[]}
[]
[]
["OPT-0021","Microscope de mesure HIROX","Technique / 7410 / Process Tubes",null,null,"Afficher",1E-4]
["OPT-0035","Microscope de mesure","Production / 8346 / Contrôle spéciaux",null,null,"Afficher",1E-4]
["CF.200","Microscope de mesure","Production / 8346 / Laboratoire Ctrl. Spcx",null,null,"Afficher"]
["CF.317","Microscope de mesure","Production / 8346 / Laboratoire Ctrl. Spcx",null,null,"Afficher"]
["OPT-0034","Microscope de mesure","Production / 8346 / Contrôle spéciaux",null,null,"Afficher"]
["SQ.009","Loupe graduée","Production / 8346 / Laboratoire Ctrl. Spcx",null,null,"Afficher"]
["SQ.011","Loupe graduée","Production / 8513 / Contrôle Final Pièces","0 / 20 mm",null,"Afficher"]
["TR.021","Loupe graduée","Production / 8510 / Tours de reprise","0 / 20 mm",null,"Afficher"]
["TR.022","Loupe graduée","Production / 8510 / Tours de reprise","0 / 20 mm",null,"Afficher"]
["MICRO-243","Microscope de mesure","Production / 8508",null,null,"Afficher"]
["MICRO-243/1","Microscope de mesure","Production / 8508 / Tour Cathode",null,null,"Afficher"]
["LOU-001","Loupe graduée","Production / 7700",null,null,"Afficher"]
["LOU-002","Loupe graduée","Production / 8414 IMP / Contrôle tubes implants",null,null,"Afficher"]

{"sheet":"Aspect_sans_mesure","index":8,"n_rows":29,"n_cols":6,"rows_kept":29,"cut":false,"hidden":false,"merged":[]}
[]
[]
["BIN-001","Binoculaire","Production / 8513 / Contrôle Final Pièces",null,null,"Afficher"]
["CF.190","Binoculaire","Production / 8507 / Micro Assemblage",null,null,"Afficher"]
["CF.323","Binoculaire","Production / 8513 / Contrôle Final Pièces",null,null,"Afficher"]
["CF.403","Binoculaire","Technique / 7245 / Prototype",null,null,"Afficher"]
["CF.459","Binoculaire","Production / 8515 / Laboratoire",null,null,"Afficher"]
["ED.121","Binoculaire","Production / 8518 / Aiguilles",null,null,"Afficher"]
["OPT-0012","Binoculaire","Production / 8414 / Controles Tubes Implants",null,null,"Afficher"]
["OPT-0013","Binoculaire","Technique / 7700 / Armoire Prototype P1 E",null,null,"Afficher"]
["OPT-0024","Binoculaire","Production / 8414 DIV / Contrôle Tubes Divers",null,null,"Afficher"]
["M.292","Caméra","Technique / 7300 / Maintenance",null,null,"Afficher"]
["CE.185","Dynascope","Production / 8414 IMP / Contrôle tubes implants",null,null,"Afficher"]
["CE.221","Dynascope","Production / 8414 IMP",null,null,"Afficher"]
["DYN-001","Dynascope","Production / 8400 / Etirage Bancs droits",null,null,"Afficher"]
["DYN-002","Dynascope","Production / 8400 / Etirage Bancs droits",null,null,"Afficher"]
["EN.092","Dynascope","Production / 8414 IMP",null,null,"Afficher"]
["THE.101","Dynascope","Technique / 7245 / Prototype",null,null,"Afficher"]
["THE.132","Dynascope","Production / 8414 IMP / Contrôle tubes implants",null,null,"Afficher"]
["OPT-0027","Evocam","Production / 8414 IMP",null,null,"Afficher"]
["OPT-0028","Evocam","Production / 8414 IMP",null,null,"Afficher"]
["OPT-0029","Evocam","Production / 8414 IMP",null,null,"Afficher"]
["OPT-0032","Evocam","Production / 8414 IMP",null,null,"Afficher"]
["OPT-0033","Evocam","Production / 8414 IMP",null,null,"Afficher"]
["CF.038","Microscope","Production / 8510 / Tour de Reprise",48,null,"Afficher"]
["M.115","Microscope","Technique / 7300 / Mécanique",null,null,"Afficher"]
["MICRO-001","Microscope","Production / 8552 / Presses Automatiques",null,null,"Afficher"]
["SQ.013","Dynascope","Technique / 7700 / Armoire Prototype P1 B",null,null,"Afficher"]
["CAT.073","Microscope","Production / 7700",null,null,"Afficher"]

{"sheet":"Couple","index":9,"n_rows":18,"n_cols":6,"rows_kept":18,"cut":false,"hidden":false,"merged":[]}
[]
[]
["EC.025","Clé dynamométrique à lecture directe","Production / 8404 / Soudure","27 / 135 N.m",null,"Afficher"]
["DYN-0003","Tournevis dynamométrique à déclenchement","Production / 8507 / Micro Assemblage","4 / 20 cN.m",null,"Afficher"]
["DYN-0004","Tournevis dynamométrique à déclenchement","Production / 8507 / Micro Assemblage","4 / 20 cN.m",null,"Afficher"]
["SQ.115","Tournevis dynamométrique à déclenchement","Production / 8414 IMP","0,3 / 1,2 N.m",null,"Afficher"]
["DYN-0005","Tournevis dynamométrique numérique","Technique / 7510 / Process BU transformation","20 / 100 cN.m",null,"Afficher"]
["DYN-0001","Clé dynamométrique à déclenchement","Technique / 7700 / Armoire BOTT JM","0,5 / 2,5 N.m",null,"Afficher"]
["DYN-0002","Clé dynamométrique à déclenchement","Technique / 7700 / Armoire BOTT JM","2 / 10 N.m",null,"Afficher"]
["DYN-0006","Clé dynamométrique à déclenchement","Technique / 7700 / Armoire BOTT LM","0,5 / 2,5 N.m",null,"Afficher"]
["DYN-0007","Clé dynamométrique à déclenchement","Technique / 7700 / Armoire BOTT LM","2 / 10 N.m",null,"Afficher"]
["SQ.049","Clé dynamométrique à déclenchement","Technique / 7700 / Armoire BOTT JM","0,2 / 2 N.m",null,"Afficher"]
["THE.118","Clé dynamométrique à déclenchement","Technique / 7700 / Armoire BOTT JM","0,2 / 2 N.m",null,"Afficher"]
["SQ.115/1","Tournevis dynamométrique à déclenchement","Technique / 7700 / Armoire BOTT JM","0,3 / 1,2 N.m",null,"Afficher"]
["TDYN-003","Tournevis dynamométrique à déclenchement","Technique / 7700 / Armoire BOTT JM","4 / 20 cN.m",null,"Afficher"]
["TDYN-114","Tournevis dynamométrique à déclenchement","Technique / 7700","4 / 20 cN.m",null,"Afficher"]
["CAT.139","Tournevis dynamométrique à déclenchement","Technique / 7700 / Zone \"A expédier\"","10 / 20 cN.m",null,"Afficher"]
["TDYN-001","Tournevis dynamométrique à lecture directe","Technique / 7700 / Zone \"A expédier\"","4 / 20 cN.m",null,"Afficher"]

{"sheet":"Débit_capteur","index":10,"n_rows":10,"n_cols":6,"rows_kept":10,"cut":false,"hidden":false,"merged":[]}
[]
[]
["POMP-001","Pompe","Technique / 7700 / Zone \"A expédier\"",null,null,"Afficher"]
["CAP-233","Capteur de débit",null,null,null,"Afficher"]
["DEB-0004","Pompe","Production / 8515 / Laboratoire",null,null,"Afficher"]
["DEB 004","Débimètre","Technique / 7245","0 / 160 l/min",null,"Afficher"]
["DEB-0001","Débimètre","Production / 8414DIV / Contrôle tube divers","0,01 / 10 ml/min",null,"Afficher"]
["DEB-0002","Débimètre","Technique / 7700 / Armoire SATURNE","0,01 / 10 ml/min",null,"Afficher"]
["DEB-009","Débimètre","Production / 8414DIV / Contrôle tube divers","0,01 / 10 ml/min",null,"Afficher"]
["DEB-011","Débimètre","Technique / 7245 / Prototype","0 / 150",null,"Afficher"]

{"sheet":"Débit_générateur","index":11,"n_rows":0,"n_cols":0,"rows_kept":0,"cut":false,"hidden":false,"merged":[]}

{"sheet":"Débit_quantifié","index":12,"n_rows":0,"n_cols":0,"rows_kept":0,"cut":false,"hidden":false,"merged":[]}

{"sheet":"Densité","index":13,"n_rows":17,"n_cols":6,"rows_kept":17,"cut":false,"hidden":false,"merged":[]}
[]
[]
["DEN-0008","Densimètre","Production / 8515 / Laboratoire","1,000 / 1,200",null,"Afficher"]
["DEN-0011","Densimètre","Production / 8515 / Laboratoire","1,400 / 1,500",null,"Afficher"]
["DEN-0012","Densimètre","Production / 8513 / Contrôle Final Pièces","1,700 / 1,800",null,"Afficher"]
["DEN-0014","Densimètre","Production / 8515 / Laboratoire","1,700 / 1,800",null,"Afficher"]
["DEN-0004","Densimètre","Production / 8515 / Production laboratoire","1,4 / 1,5",null,"Afficher"]
["DEN-0005","Densimètre","Production / 8515 / Production laboratoire","1,7 / 1,8",null,"Afficher"]
["DEN-0006","Densimètre","Production / 8515 / Production laboratoire","1,7 / 1,8",null,"Afficher"]
["DEN-0009","Densimètre","Technique / 7700 / Armoire BOTT IM","1,000 / 1,200",null,"Afficher"]
["DEN-0010","Densimètre","Technique / 7700 / Armoire BOTT IM","1,400 / 1,500",null,"Afficher"]
["DEN-0002","Densimètre","Production / 7700","1600 / 1700",null,"Afficher"]
["DEN-0015","Densimètre","Technique / 7700 / Armoire BOTT JM","1,700 / 1,800",null,"Afficher"]
["DEN-0016","Densimètre","Technique / 7700 / Armoire BOTT JM","1,700 / 1,800",null,"Afficher"]
["DEN-0017","Densimètre","Technique / 7700 / Armoire BOTT JM","1,700 / 1,800",null,"Afficher"]
["DENS-115","Densimètre","Production / 8513 / Contrôle Final Pièces","1,4 / 1,50",null,"Afficher"]
["ENV.021","Densimètre","Technique / 7700 / Armoire BOTT LG","1,2 / 1,4",null,"Afficher"]

{"sheet":"Détection_gaz","index":14,"n_rows":10,"n_cols":6,"rows_kept":10,"cut":false,"hidden":false,"merged":[]}
[]
[]
["DET-0001","Détecteur de gaz","Technique / 7700 / Armoire Métrologie M3 C",null,null,"Afficher"]
["DET-0004","Détecteur de gaz","Administratif / Environnement",null,null,"Afficher"]
["DET-0005","Détecteur de gaz","Administratif",null,null,"Afficher"]
["DET-0006","Détecteur de gaz","Technique / 7700",null,null,"Afficher"]
["DET-0007","Détecteur de gaz","Technique / 7700",null,null,"Afficher"]
["DET-0008","Détecteur de gaz","Technique / 7700",null,null,"Afficher"]
["DET-0003","Détecteur de gaz","Technique / 7300 / Maintenance",null,null,"Afficher"]
["DET-001","Détecteur de gaz","Technique / 7700 / Armoire SATURNE",null,null,"Afficher"]

{"sheet":"Dimensionnel_Epaisseur","index":15,"n_rows":50,"n_cols":6,"rows_kept":50,"cut":false,"hidden":false,"merged":[]}
[]
[]
["CF.375","Machine à mesurer par vision","Production / 8509 / Tronconnage ",null,null,"Afficher"]
["CF.280","Machine à mesurer sans contact","Production / 8513 / Contrôle Final Pièces",null,null,"Afficher"]
["CT.112","Tridimensionnelle","Production / 8401 / attelier",null,null,"Afficher"]
["CF.449","Projecteur de profils","Production / 8513 / Contrôle Final Pièces",null,null,"Afficher"]
["CF.460","Projecteur de profils","Production / 8414 DIV / Contrôle Tubes Divers",null,null,"Afficher"]
["OPT-0001","Projecteur de profils","Technique / 7245 / Prototype",null,null,"Afficher"]
["OPT-0006","Projecteur de profils","Production / 8507 / micro assemblage",null,null,"Afficher"]
["OPT-0017","Projecteur de profils","Production / 8510 / Tour de Reprise",null,null,"Afficher"]
["OPT-0020","Projecteur de profils","Production / 8513 / Contrôle Final Pièces",null,null,"Afficher"]
["CAT.084","Machine à mesurer par vision","Production / 8510",null,null,"Afficher"]
["EC.126A","Capteur Heidenhain","Technique / 7700 / Zone \"A expédier\"",null,null,"Afficher"]
["ED.182","Capteur Heidenhain","Technique / 7700 / Zone \"A expédier\"",null,null,"Afficher"]
["CAP-002","Capteur Heidenhain","Production / 8507 / Micro Assemblage",null,null,"Afficher"]
["CAP-003","Capteur Heidenhain","Production / 8401 / Local PCA","0 / 12 mm",null,"Afficher"]
["CAP-004","Capteur Heidenhain","Production / 8414 IMP / contrôle tube implant","0 / 12 mm",null,"Afficher"]
["CAP-005","Capteur Heidenhain","Production / 8401 / SAT","0 / 12 mm",null,"Afficher"]
["CAP-007","Capteur Heidenhain","Production / 8403 / Bull-blocks",null,null,"Afficher"]
["CAP-123","Capteur Heidenhain","Production / 8401 / Local PCA","0 / 12 mm",null,"Afficher"]
["CAP-197","Capteur Heidenhain","Production / 8401 / 30 T","0 / 12 mm",null,"Afficher"]
["CE.166","Capteur Heidenhain","Production / 8414 IMP / contrôle tube implant",null,null,"Afficher"]
["DIM-0097","Capteur Heidenhain","Production / 8401 / Etirage Banc Droit","0 / 12 mm",null,"Afficher"]
["DIM-0098","Capteur Heidenhain","Production / 8414 DIV / Contrôle Tubes Divers",null,null,"Afficher"]
["DIM-0111","Capteur Heidenhain","Production / 8403 / Bull-blocks","0 / 12 mm",null,"Afficher"]
["ED.163A","Capteur Heidenhain","Production / 8414 IMP / Local PCA",null,null,"Afficher"]
["EN.103A","Capteur Heidenhain","Production / 8401 / Etirage Banc Droit",null,null,"Afficher"]
["SQ.070A","Capteur Heidenhain","Production / 8414 DIV / Contrôle Tubes Divers",null,null,"Afficher"]
["DIM-0100","Mesureur d'épaisseur","Production / 8401 / 30 T","0 / 30 mm",null,"Afficher"]
["DIM-0101","Mesureur d'épaisseur","Production / 8401 / 5T","0 / 30 mm",null,"Afficher"]
["CAP-006","Capteur Heidenhain","Production / 8507 / Micro-Assemblage","0 / 12 mm",null,"Afficher"]
["DIM-0102","Mesureur d'épaisseur","Production / 8401 / 10 T","0 / 30 mm",null,"Afficher"]
["DIM-0043","Sonde","Production / 8400 / Etirage Bancs droits",null,null,"Afficher"]
["CF.373A","Capteur Heidenhain","Production / 8401 / Local PCA",null,null,"Afficher"]
["ED.120A","Capteur Heidenhain","Production / 8513 / Contrôle Final Pièces","0 / 12 mm",null,"Afficher"]
["EN.103B","Capteur Heidenhain","Production / 8414 IMP / contrôle tube implant",null,null,"Afficher"]
["CAP-001","Capteur Heidenhain","Technique / 7700 / Armoire \"A EXPEDIER\"",null,null,"Afficher"]
["CAP-198","Capteur Heidenhain","Technique / 7700 / Armoire TERRE",null,null,"Afficher"]
["CF.372A","Capteur Heidenhain","Technique / 7700 / Armoire TERRE",null,null,"Afficher"]
["DIM-0095","Capteur Heidenhain","Technique / 7700 / Armoire \"A EXPEDIER\"","0 / 12 mm",null,"Afficher"]
["EN.104A","Capteur Heidenhain","Technique / Métrologie / Métrologie",null,null,"Afficher"]
["DIM-0106","Micromètre à touche sphérique","Technique / 7700 / Armoire BOTT FM","25 / 50 mm",null,"Afficher"]
["EN.128","Micromètre à touche sphérique","Technique / 7700 / Armoire BoTT CD","0 / 25 mm",null,"Afficher"]
["CE.234","Mesureur d'épaisseur","Production / 8400 / Etirage Bancs droits",null,null,"Afficher"]
["DIM-0052","Mesureur d'épaisseur","Technique / 7410",null,null,"Afficher"]
["SQ.088","Mesureur d'épaisseur","Production / 8401",null,null,"Afficher"]
["DIM-0149","Mesureur d'épaisseur","Technique / 7700 / Bureau de Laurent SENEE","0 / 30 mm",null,"Afficher"]
["MEP-001","Mesureur d'épaisseur","Production / 7700",null,null,"Afficher"]
["MEP-002","Mesureur d'épaisseur","Technique / 7700",null,null,"Afficher"]
["MES-216","Mesureur d'épaisseur","Technique / 7700",null,null,"Afficher"]

{"sheet":"Dimensionnel_sans_contact_2D","index":16,"n_rows":13,"n_cols":8,"rows_kept":13,"cut":false,"hidden":false,"merged":[]}
[]
[]
[null,null,"CF.375","Machine à mesurer par vision","Production / 8509 / Tronconnage",null,null,"Afficher"]
[null,null,"CF.280","Machine à mesurer sans contact","Production / 8513 / Contrôle Final Pièces",null,null,"Afficher"]
[null,null,"CF.449","Projecteur de profils","Production / 8513 / Contrôle Final Pièces",null,null,"Afficher"]
[null,null,"CF.460","Projecteur de profils","Production / 8414 DIV / Contrôle Tubes Divers",null,null,"Afficher"]
[null,null,"OPT-0001","Projecteur de profils","Technique / 7245 / Prototype",null,null,"Afficher"]
[null,null,"OPT-0006","Projecteur de profils","Production / 8507 / micro assemblage",null,null,"Afficher"]
[null,null,"OPT-0017","Projecteur de profils","Production / 8510 / Tour de Reprise",null,null,"Afficher"]
[null,null,"OPT-0020","Projecteur de profils","Production / 8513 / Contrôle Final Pièces",null,null,"Afficher"]
[null,null,"OPT-0018","Projecteur de profils","Technique / 7700",null,null,"Afficher"]
[null,null,"CAT.084","Machine à mesurer par vision","Production / 8510",null,null,"Afficher"]
[null,null,"DIM-0133","Dimensionnel","Production / 8400",null,null,"Afficher"]

{"sheet":"Dimensions_avec_contact_3D","index":17,"n_rows":3,"n_cols":6,"rows_kept":3,"cut":false,"hidden":false,"merged":[]}
[]
[]
["CT.112","Tridimensionnelle","Production / 8401 / attelier",null,null,"Afficher"]

{"sheet":"Dimensions_sans_contact_2D","index":18,"n_rows":0,"n_cols":0,"rows_kept":0,"cut":false,"hidden":false,"merged":[]}

{"sheet":"Dureté_Hv_Hrc","index":19,"n_rows":4,"n_cols":6,"rows_kept":4,"cut":false,"hidden":false,"merged":[]}
[]
[]
["DUR-0001","Durometre","Production / 8346 / Contrôle spéciaux",null,null,"Afficher"]
["M.170","Testeur de dureté 'ROCKWELL'","Technique / 7300 / Mécanique",null,null,"Afficher"]

{"sheet":"Dureté_Shore_A","index":20,"n_rows":3,"n_cols":6,"rows_kept":3,"cut":false,"hidden":false,"merged":[]}
[]
[]
["DUR-0002","Duromètre","Technique / 7410 / Process Tubes","0 / 100 ShA",null,"Afficher"]

{"sheet":"Electricité_Conductivité","index":21,"n_rows":7,"n_cols":6,"rows_kept":7,"cut":false,"hidden":false,"merged":[]}
[]
[]
["CF.053","Conductimètre","Technique / 7700 / Armoire BOTT KM",null,null,"Afficher"]
["CF.457","Contrôleur de conductivite","Production / 7700",null,null,"Afficher"]
["SON-002","Sonde de conductivité LR 325/01","Production / 7700",null,null,"Afficher"]
["ELE-0004","Cellules universelles de mesure de conductivité","Production / 8509 / Tronconnage",null,null,"Afficher"]
["ELE-0003","Conductimètre","Production / 8509 / Tronconnage",null,null,"Afficher"]

{"sheet":"Electricité_Courant","index":22,"n_rows":22,"n_cols":6,"rows_kept":22,"cut":false,"hidden":false,"merged":[]}
[]
[]
["CAT.096","Multimètre","Production / 8507 / Micro Assemblage",null,null,"Afficher"]
["ELE-0007","Multimètre","Technique / 7300 / Maintenance",null,null,"Afficher"]
["ELE-0008","Multimètre","Technique / 7300 / Maintenance",null,null,"Afficher"]
["ELE-0009","Multimètre","Production / 8513 / Contrôle Final Pièces",null,null,"Afficher"]
["ELE-0012","Multimètre","Technique / 7300 / Maintenance",null,null,"Afficher"]
["M.256","Multimètre","Technique / 7300 / maintenance",null,null,"Afficher"]
["MUL-001","Multimètre","Technique / 7300 / Maintenance","FLUKE T5-600",null,"Afficher"]
["MUL-002","Multimètre","Technique / 7300 / Maintenance","T5-600",null,"Afficher"]
["THE.146","Multimètre","Technique / 7312 / Maintenance",null,null,"Afficher"]
["TEST-001","Testeur","Technique / 7300 / Maintenance","T 150",null,"Afficher"]
["CF.385","Multimètre","Technique / 7700 / Armoire proto P2F",null,null,"Afficher"]
["MUL-003","Multimètre","Technique / 7700 / Armoire proto P2D",null,null,"Afficher"]
["CAT.109","Multimètre","Technique / 7700 / Zone \"A expédier\"",null,null,"Afficher"]
["ELE-0010","Multimètre","Technique / 7312 / Maintenance",null,null,"Afficher"]
["MUL-005","Multimètre","Technique / 7300 / Maintenance","T5 - 1000",null,"Afficher"]
["MUL-006","Multimètre","Technique / 7300 / Maintenance","T5-600",null,"Afficher"]
["SQ.129","Multimètre","Technique / 7700 / Zone \"A expédier\"",null,null,"Afficher"]
["MES-0022","Mesureur",null,null,null,"Afficher"]
["AMP-126","Ampèremètre","Technique / 7700 / Armoire BOTT KD",null,null,"Afficher"]
["ELE-0005","Pince ampèremétrique","Technique / 7300 / maintenance","fkuke 376",null,"Afficher"]

{"sheet":"Electricité_Résistance","index":23,"n_rows":23,"n_cols":6,"rows_kept":23,"cut":false,"hidden":false,"merged":[]}
[]
[]
["CAT.096","Multimètre","Production / 8507 / Micro Assemblage",null,null,"Afficher"]
["ELE-0007","Multimètre","Technique / 7300 / Maintenance",null,null,"Afficher"]
["ELE-0008","Multimètre","Technique / 7300 / Maintenance",null,null,"Afficher"]
["ELE-0009","Multimètre","Production / 8513 / Contrôle Final Pièces",null,null,"Afficher"]
["ELE-0012","Multimètre","Technique / 7300 / Maintenance",null,null,"Afficher"]
["M.256","Multimètre","Technique / 7300 / maintenance",null,null,"Afficher"]
["MUL-001","Multimètre","Technique / 7300 / Maintenance","FLUKE T5-600",null,"Afficher"]
["MUL-002","Multimètre","Technique / 7300 / Maintenance","T5-600",null,"Afficher"]
["THE.146","Multimètre","Technique / 7312 / Maintenance",null,null,"Afficher"]
["TEST-001","Testeur","Technique / 7300 / Maintenance","T 150",null,"Afficher"]
["CF.385","Multimètre","Technique / 7700 / Armoire proto P2F",null,null,"Afficher"]
["MUL-003","Multimètre","Technique / 7700 / Armoire proto P2D",null,null,"Afficher"]
["CAT.109","Multimètre","Technique / 7700 / Zone \"A expédier\"",null,null,"Afficher"]
["ELE-0010","Multimètre","Technique / 7312 / Maintenance",null,null,"Afficher"]
["MUL-005","Multimètre","Technique / 7300 / Maintenance","T5 - 1000",null,"Afficher"]
["MUL-006","Multimètre","Technique / 7300 / Maintenance","T5-600",null,"Afficher"]
["SQ.129","Multimètre","Technique / 7700 / Zone \"A expédier\"",null,null,"Afficher"]
["MES-0022","Mesureur",null,null,null,"Afficher"]
["CAT.142","Mégohmmètre","Production / 8507 / Micro Assemblage",null,null,"Afficher"]
["MEG-001","Mégohmmètre","Technique / 7700",null,null,"Afficher"]
["ELE-0011","Ohmmètre","Production / 8507 / Micro Assemblage",null,null,"Afficher"]

{"sheet":"Electricité_Rotophase","index":24,"n_rows":0,"n_cols":0,"rows_kept":0,"cut":false,"hidden":false,"merged":[]}

{"sheet":"Electricité_Statique","index":25,"n_rows":3,"n_cols":6,"rows_kept":3,"cut":false,"hidden":false,"merged":[]}
[]
[]
["CAT.170","Mesureur d'électricité statique","Technique / 7700",null,null,"Afficher"]

{"sheet":"Electrique_Puissance","index":26,"n_rows":21,"n_cols":6,"rows_kept":21,"cut":false,"hidden":false,"merged":[]}
[]
[]
["CAT.096","Multimètre","Production / 8507 / Micro Assemblage",null,null,"Afficher"]
["ELE-0007","Multimètre","Technique / 7300 / Maintenance",null,null,"Afficher"]
["ELE-0008","Multimètre","Technique / 7300 / Maintenance",null,null,"Afficher"]
["ELE-0009","Multimètre","Production / 8513 / Contrôle Final Pièces",null,null,"Afficher"]
["ELE-0012","Multimètre","Technique / 7300 / Maintenance",null,null,"Afficher"]
["M.256","Multimètre","Technique / 7300 / maintenance",null,null,"Afficher"]
["MUL-001","Multimètre","Technique / 7300 / Maintenance","FLUKE T5-600",null,"Afficher"]
["MUL-002","Multimètre","Technique / 7300 / Maintenance","T5-600",null,"Afficher"]
["THE.146","Multimètre","Technique / 7312 / Maintenance",null,null,"Afficher"]
["TEST-001","Testeur","Technique / 7300 / Maintenance","T 150",null,"Afficher"]
["CF.385","Multimètre","Technique / 7700 / Armoire proto P2F",null,null,"Afficher"]
["MUL-003","Multimètre","Technique / 7700 / Armoire proto P2D",null,null,"Afficher"]
["CAT.109","Multimètre","Technique / 7700 / Zone \"A expédier\"",null,null,"Afficher"]
["ELE-0010","Multimètre","Technique / 7312 / Maintenance",null,null,"Afficher"]
["MUL-005","Multimètre","Technique / 7300 / Maintenance","T5 - 1000",null,"Afficher"]
["MUL-006","Multimètre","Technique / 7300 / Maintenance","T5-600",null,"Afficher"]
["SQ.129","Multimètre","Technique / 7700 / Zone \"A expédier\"",null,null,"Afficher"]
["MES-0022","Mesureur",null,null,null,"Afficher"]
["WAT-084","Wattmètre","Technique / 7700 / Zone \"A expédier\"",null,null,"Afficher"]

{"sheet":"Epaisseur","index":27,"n_rows":0,"n_cols":0,"rows_kept":0,"cut":false,"hidden":false,"merged":[]}

{"sheet":"Epaisseur_par_micromètre","index":28,"n_rows":0,"n_cols":0,"rows_kept":0,"cut":false,"hidden":false,"merged":[]}

{"sheet":"Epaisseur_Ultrason","index":29,"n_rows":0,"n_cols":0,"rows_kept":0,"cut":false,"hidden":false,"merged":[]}

{"sheet":"Etalonnage_Epaisseur","index":30,"n_rows":0,"n_cols":0,"rows_kept":0,"cut":false,"hidden":false,"merged":[]}

{"sheet":"Etalonnage_Rugosité","index":31,"n_rows":0,"n_cols":0,"rows_kept":0,"cut":false,"hidden":false,"merged":[]}

{"sheet":"Etalonnage_Dureté","index":32,"n_rows":0,"n_cols":0,"rows_kept":0,"cut":false,"hidden":false,"merged":[]}

{"sheet":"Etalonnage_Fuite","index":33,"n_rows":0,"n_cols":0,"rows_kept":0,"cut":false,"hidden":false,"merged":[]}

{"sheet":"Etalonnage_Instrument_optique","index":34,"n_rows":0,"n_cols":0,"rows_kept":0,"cut":false,"hidden":false,"merged":[]}

{"sheet":"Etalonnage_Mesure_étalon","index":35,"n_rows":0,"n_cols":0,"rows_kept":0,"cut":false,"hidden":false,"merged":[]}

{"sheet":"Etalonnage_Micromètre","index":36,"n_rows":0,"n_cols":0,"rows_kept":0,"cut":false,"hidden":false,"merged":[]}

{"sheet":"Etalonnage_Perte_de_charge","index":37,"n_rows":0,"n_cols":0,"rows_kept":0,"cut":false,"hidden":false,"merged":[]}

{"sheet":"Etalonnage_Pesage","index":38,"n_rows":0,"n_cols":0,"rows_kept":0,"cut":false,"hidden":false,"merged":[]}

{"sheet":"Etalonnage_Pression","index":39,"n_rows":0,"n_cols":0,"rows_kept":0,"cut":false,"hidden":false,"merged":[]}

{"sheet":"Etalonnage_Projecteur","index":40,"n_rows":0,"n_cols":0,"rows_kept":0,"cut":false,"hidden":false,"merged":[]}

{"sheet":"Filetage","index":41,"n_rows":61,"n_cols":6,"rows_kept":61,"cut":false,"hidden":false,"merged":[]}
[]
[]
["BF-003","Bague filetée","Technique / 7700 / Armoire BOTT EDB","BFE M 3 x 050 - 6g",null,"Afficher"]
["BF-004","Bague filetée","Technique / 7700 / Armoire BOTT EDB","BFNEP M 3 x 050 - 6g",null,"Afficher"]
["CAL-0128","Bague filetée","Technique / 7700","BFE UNF 1/4 x 28 - 2A",null,"Afficher"]
["CAL-0129","Bague filetée","Technique / 7700","BFNEP UNF 1/4 x 28 - 2A",null,"Afficher"]
["CAL-0130","Bague filetée","Technique / 7700","BFE M x 2,5 - 6g",null,"Afficher"]
["CAL-0131","Bague filetée","Technique / 7700","BFNEP M 2,5 x - 6g",null,"Afficher"]
["CAL-0132","Bague filetée","Technique / 7700","BFNEP M 5 x 0,5 - 6g",null,"Afficher"]
["CAL-0133","Bague filetée","Technique / 7700","BFE M x 3 - 6g",null,"Afficher"]
["CAL-0134","Bague filetée","Technique / 7700","BFE M 16 x 1,5 - 6h",null,"Afficher"]
["CAL-0136","Bague filetée","Technique / 7700","BFE 8 g6",null,"Afficher"]
["CAL-0146","Bague filetée","Technique / 7700","BFNEP 5 g6",null,"Afficher"]
["CAL-0147","Bague filetée","Technique / 7700","BFNEP M x 5 - 6g",null,"Afficher"]
["CAL-0157","Bague filetée","Technique / 7700","BFE M x 4 - 6g",null,"Afficher"]
["CAL-0164","Bague filetée","Technique / 7700 / Armoire BOTT EM","BFNEP M 23x1,00 6E",null,"Afficher"]
["CAL-0165","Bague filetée","Technique / 7700 / Armoire BOTT EM","BFE M 23x1,00 6E",null,"Afficher"]
["CF.026A","Bague filetée","Production / 7700","BFE M 8 x 1 - 6g",null,"Afficher"]
["CF.156","Bague filetée","Production / 8513 / BOTT EGF","BFNEP M 10 x 0,75 - 6g",null,"Afficher"]
["CF.156A","Bague filetée","Production / 7700","BFE M 10 x 0,75 - 6g",null,"Afficher"]
["CF.183","Bague filetée","Technique / 7700 / Armoire BOTT BG","BFE M 5 x 0,8 - 6g",null,"Afficher"]
["CF.184","Bague filetée","Technique / 7700 / Metrologie","BFE UNF 1/4 x 28 - 2A",null,"Afficher"]
["CF.199","Bague filetée","Technique / 7700 / Armoire BOTT BG","BFE M 5 x 0,8 - 6g",null,"Afficher"]
["CF.210","Bague filetée","Technique / 7700 / Armoire BOTT BG","BFNEP M 8 x 1,25 - 6g",null,"Afficher"]
["CF.217","Bague filetée","Production / 7700","BFE M10X1-6g",null,"Afficher"]
["CF.224","Bague filetée","Technique / 7700 / Armoire BOTT BG","BFE M 1,6 x 0,35 - 6g",null,"Afficher"]
["CF.229A","Bague filetée","Production / 7700","BFE M 10 x 1 - 6g",null,"Afficher"]
["CF.230","Bague filetée","Technique / 7700 / Armoire BOTT BG","BFNEP M 10 x 1 - 6g",null,"Afficher"]
["CF.415","Bague filetée","Technique / 7700 / Armoire BOTT EDB","BFE M 8 x 1,25 - 6g",null,"Afficher"]
["M.200","Bague filetée","Technique / 7700 / Armoire BOTT EM","BFE M12X1-6G",null,"Afficher"]
["SQ.101","Bague filetée","Technique / 7700 / Armoire Bott DD","BFE UNF 24 x 3/8 - 2A",null,"Afficher"]
["SQ.102","Bague filetée","Technique / 7700 / Armoire Bott DD","BFE UNF 24 x 3/8 - 2A",null,"Afficher"]
["SQ.103","Bague filetée","Technique / 7700 / Armoire Bott DD","BFE 1,35 x 0,35 - 6g",null,"Afficher"]
["SQ.104","Bague filetée","Technique / 7700 / Armoire Bott DD","BFNEP 1,35 x 0,35 - 6g",null,"Afficher"]
["TC.096","Bague filetée","Technique / 7700 / Armoire BOTT EGA","BFE M 5 x 0,8 - 6g",null,"Afficher"]
["TC.097","Bague filetée","Technique / 7700 / Armoire BOTT EG","BFNEP M 5 x 0,8 - 6g",null,"Afficher"]
["THE.067","Bague filetée","Technique / 7700 / Armoire BOTT EGF","BFE M 3 x 0,35 - 6g",null,"Afficher"]
["THE.080","Bague filetée","Technique / 7700 / Armoire BOTT EGA","BFNEP M 5 x 0,8 - 6g",null,"Afficher"]
["THE.086","Bague filetée","Technique / 7700 / Armoire BOTT EGF","BFNEP M 3 x 0,5 - 6g",null,"Afficher"]
["THE.111","Bague filetée","Technique / 7700 / Armoire BOTT EG","BFE M 4 x 0,35 - 6g",null,"Afficher"]
["THE.116","Bague filetée","Technique / 7700 / Armoire BOTT EM","BFE M 12 x 1 - 6g",null,"Afficher"]
["THE.119","Bague filetée","Technique / 7700 / Armoire BOTT DM","BFE M 3 x 0,5 - 6g",null,"Afficher"]
["THE.121","Bague filetée","Technique / 7700 / Armoire BOTT EDB","BFE M 14 x 2 - 6g",null,"Afficher"]
["THE.124","Bague filetée","Technique / 7700 / Armoire BOTT EDB","BFE M 6 x 1 - 6g",null,"Afficher"]
["THE.125","Bague filetée","Technique / 7700 / Armoire BOTT EDB","BFE UNF 6 x 40 - 2A",null,"Afficher"]
["THE.130","Bague filetée","Technique / 7700 / Armoire BOTT EDB","BFE M 12 x 1 - 6h",null,"Afficher"]
["THE.145","Bague filetée","Technique / 7700 / Armoire BOTT EDB","BFE UNF 1/4 x 28 - 2A",null,"Afficher"]
["THE.201","Bague filetée","Technique / 7700 / Armoire BOTT EGA","BFE M 4 x 0,35 - 6g",null,"Afficher"]
["THE.202","Bague filetée","Technique / 7700 / Armoire BOTT EGA","BFNEP M 4 x 0,35 - 6g",null,"Afficher"]
["THE.203","Bague filetée","Technique / 7700 / Armoire BOTT EGB","BFE M 14 x 1,5 - 6g",null,"Afficher"]
["BF-001","Bague filetée","Production / 8513 / Contrôle Final Pièces","BFE M 23 x 1 - 6e",null,"Afficher"]
["BF-002","Bague filetée","Production / 8513 / Contrôle Final Pièces","BFNEP M 23 x 1 - 6e",null,"Afficher"]
["CAL-0074","Bague filetée","Production / 8513 / Contrôle Final Pièces","BFE M4*0,35-6g",null,"Afficher"]
["CAL-0075","Bague filetée","Production / 8513 / Contrôle Final Pièces","BFE M4*0,35-6g",null,"Afficher"]
["CAL-0088","Bague filetée","Technique / 7245 / Prototype","BFE 0-80 UNF-2A",null,"Afficher"]
["CF.251","Bague filetée","Production / 8513 / Contrôle Final Pièces","BFNEP M 23 x 1 - 6g",null,"Afficher"]
["CF.252","Bague filetée","Production / 8513 / Contrôle Final Pièces","BFE M 23 x 1 - 6g",null,"Afficher"]
["CF.253","Bague filetée","Production / 8513 / Contrôle Final Pièces","BFE M 6 x 1 - 6g",null,"Afficher"]
["CF.404","Bague filetée","Production / 8513 / Contrôle Final Pièces","BFE M 14 x 1,5 - 6h",null,"Afficher"]
["CF.405","Bague filetée","Production / 8513 / Contrôle Final Pièces","BFE M 14 x 1,5 - 6h",null,"Afficher"]
["M.048A","Bague filetée","Technique / 7300 / Mécanique","BFE M 40 x 1,5 - 6g",null,"Afficher"]

{"sheet":"Force","index":42,"n_rows":51,"n_cols":6,"rows_kept":51,"cut":false,"hidden":false,"merged":[]}
[]
[]
["CDF-001","Capteur de force","Technique / 7400 / Process tube","10000 daN",null,"Afficher"]
["CDF-003","Capteur de force","Technique / 7400 / Process tube","0 / 20000 daN",null,"Afficher"]
["CF.331A","Capteur de force","Production / 8346 / Laboratoire Ctrl. Spcx","0 / 1 kN",null,"Afficher"]
["CF.435","Capteur de force","Production / 8346","0 / 50 kN",null,"Afficher"]
["FOR-0002","Capteur de force","Production / 8346 / Laboratoire Ctrl. Spcx","0 / 50 kN",null,"Afficher"]
["FOR-0005","Capteur de force","Production / 8346 / Laboratoire Ctrl. Spcx","0 / 50 kN",null,"Afficher"]
["FOR-0006","Capteur de force","Production / 8346 / Laboratoire Ctrl. Spcx","0 / 10 kN",null,"Afficher"]
["FOR-0007","Capteur de force","Production / 8346 / Laboratoire Ctrl. Spcx","0 / 10 kN",null,"Afficher"]
["FOR-0010","Capteur de force","Production / 8346 / Laboratoire Ctrl. Spcx","0 / 10 kN",null,"Afficher"]
["FOR-0012","Capteur de force","Production / 8346 / Laboratoire Ctrl. Spcx","0 / 500 N",null,"Afficher"]
["MET-0105","Capteur de force","Technique / 7700 / Armoire Métrologie M1 A","500 / 7500 kg",null,"Afficher"]
["MET-0106","Capteur de force","Technique / 7700 / Armoire Métrologie M1 A","0 / 100 kN",null,"Afficher"]
["SQ.076","Capteur de force","Technique / 7400 / Process tube","0 / 1000 daN",null,"Afficher"]
["SQ.077A","Capteur de force","Technique / 7400 / Process tube","0 / 3500 daN",null,"Afficher"]
["SQ.106","Capteur de force","Technique / 7400 / Process tube","0 / 50 daN",null,"Afficher"]
["SQ.106A","Capteur de force","Technique / 7400 / Process tube","0 / 40 daN",null,"Afficher"]
["SQ.107B","Capteur de force","Technique / 7400 / Process tube","0 / 20 daN",null,"Afficher"]
["SQ.107C","Capteur de force","Technique / 7400 / Process tube","0 / 3500 daN",null,"Afficher"]
["SQ.139","Capteur de force","Technique / 7410","0 / 3500 daN",null,"Afficher"]
["SQ.139A","Capteur de force","Technique / 7400 / Process tube","0 / 3500 daN",null,"Afficher"]
["CP.076","Dynamomètre","Production / 8507 / Micro Assemblage","0 / 20 kg",null,"Afficher"]
["CF.330A","Extensomètre","Production / 8346 / Laboratoire Ctrl. Spcx",null,null,"Afficher"]
["CF.456","Extensomètre","Production / 8346 / Laboratoire Ctrl. Spcx",null,null,"Afficher"]
["EXT-240","Extensomètre","Production / 8346 / Laboratoire Ctrl. Spcx",null,null,"Afficher"]
["FOR-0001","Extensomètre","Production / 8346",{"$f":"-5 / 5","v":-1},null,"Afficher"]
["FOR-0003","Extensomètre","Production / 8346 / controle speciaux",null,null,"Afficher"]
["FOR-0004","Extensomètre","Production / 8346 / controle speciaux",null,null,"Afficher"]
["FOR-0008","Extensomètre","Production / 8346 / Laboratoire Ctrl. Spcx","0 / 10 kN",null,"Afficher"]
["MACH-244","Machine d'essai de traction","Production / 8346","0 / 50 kN",null,"Afficher"]
["CF.120","Machine d'essai de traction/compression","Production / 8346 / Laboratoire Ctrl. Spcx","0 / 10 kN",null,"Afficher"]
["CF.328","Machine d'essai de traction/compression","Production / 8346 / Laboratoire Ctrl. Spcx","0 / 30 kN",null,"Afficher"]
["FOR-0009","Machine d'essai de traction/compression","Production / 8346 / Laboratoire Ctrl. Spcx","0 / 10 kN",null,"Afficher"]
["SQ.107","Capteur de force","Technique / 7400 / Process tube","0 / 50 daN",null,"Afficher"]
["SQ.107A","Capteur de force","Technique / 7400 / Process tube","0 / 50 daN",null,"Afficher"]
["CF.381","Capteur de force","Production / 8346 / Laboratoire Ctrl. Spcx","0 / 30 kN",null,"Afficher"]
["CF.450","Capteur de force","Production / 8346 / Laboratoire Ctrl. Spcx","± 0 / 500 N",null,"Afficher"]
["CDF-002","Capteur de force","Technique / 7700 / Armoire BOTT JD",null,null,"Afficher"]
["CF.120C","Capteur de force","Production / 8346 / Laboratoire Ctrl. Spcx","0 / 10 kN",null,"Afficher"]
["CF.416","Capteur de force","Production / 7700","0 / 1 kN",null,"Afficher"]
["CF.450A","Capteur de force","Production / 8346 / Laboratoire Ctrl. Spcx","0 / 500 N",null,"Afficher"]
["CMF-001 /1","Capteur de force","Technique / 7300 / Mécanique","0 / 5000 daN",null,"Afficher"]
["FOR-0011","Capteur de force","Production / 8346 / Laboratoire Ctrl. Spcx","0 / 10 kN",null,"Afficher"]
["FOR-0018","Capteur de force","Production / 7410 / process","0 / 10000 daN",null,"Afficher"]
["FOR-0019","Capteur de force","Production / 7410 / process","0 / 20000 daN",null,"Afficher"]
["CMF-001","Chaîne de mesure de force","Technique / 7300 / Mécanique","0 / 5000 daN",null,"Afficher"]
["CF.329","Capteur de force","Production / 8414 / Contrôle laboratoire spéciaux","0 / 10 kN",null,"Afficher"]
["DYN-0008","Dynamomètre","Technique / 7700 / Armoire BOTT JM","30 / 300 N",null,"Afficher"]
["DYN-005","Dynamomètre","Technique / 7700 / Armoire BOTT JM","30 / 300 N",null,"Afficher"]
["FOR-0016","Dynamomètre","Technique / 7700 / Armoire BOTT KG","0 / 500 N",null,"Afficher"]

{"sheet":"Force_Jauge_de_Contrainte","index":43,"n_rows":13,"n_cols":6,"rows_kept":13,"cut":false,"hidden":false,"merged":[]}
[]
[]
["DYN-004","Dynamomètre","Production / 8553 / PRESSE C/C","30 / 300 N",null,"Afficher"]
["DYN-003","Dynamomètre","Production / 8553 / PRESSE AUTOMATIQUE","30 / 300 N",null,"Afficher"]
["SQ.025A","Dynamomètre","Production / 8507 / Micro Assemblage","0 / 50 kgf",null,"Afficher"]
["SQ.062","Dynamomètre","Production / 8513 / Contrôle Final Pièces","0 / 50 kg",null,"Afficher"]
["CF.246","Dynamomètre","Technique / 7410 / Process Tubes",null,null,"Afficher"]
["FOR-0017","Dynamomètre","Technique / 7700 / Armoire BOTT LM","0 / 50 kg",null,"Afficher"]
["FOR-0013","Jauge de contrainte","Technique / 7700 / Bureau de Laurent SENEE","500 kg",null,"Afficher"]
["FOR-0014","Jauge de contrainte","Technique / 7700 / Bureau de Laurent SENEE","200 kg",null,"Afficher"]
["DYN-0008","Dynamomètre","Technique / 7700 / Armoire BOTT JM","30 / 300 N",null,"Afficher"]
["DYN-005","Dynamomètre","Technique / 7700 / Armoire BOTT JM","30 / 300 N",null,"Afficher"]
["FOR-0016","Dynamomètre","Technique / 7700 / Armoire BOTT KG","0 / 500 N",null,"Afficher"]

{"sheet":"Fréquence","index":44,"n_rows":3,"n_cols":6,"rows_kept":3,"cut":false,"hidden":false,"merged":[]}
[]
[]
["THZ-0002","Vibromètre","Technique / 7700 / Armoire Métrologie M3 A",null,null,"Afficher"]

{"sheet":"Fuite","index":45,"n_rows":4,"n_cols":6,"rows_kept":4,"cut":false,"hidden":false,"merged":[]}
[]
[]
["PRE-0001","Testeur d'etanchéité","Production / 8507 / Micro Assemblage","0 / 5000 Pa",null,"Afficher"]
["PRE-0008","Testeur d'etanchéité","Production / 8507 / Micro Assemblage","0 / 5000 Pa",null,"Afficher"]

{"sheet":"Géométrie","index":46,"n_rows":32,"n_cols":6,"rows_kept":32,"cut":false,"hidden":false,"merged":[]}
[]
[]
["CF.375","Machine à mesurer par vision","Production / 8509 / Tronconnage",null,null,"Afficher"]
["CF.280","Machine à mesurer sans contact","Production / 8513 / Contrôle Final Pièces",null,null,"Afficher"]
["CF.449","Projecteur de profils","Production / 8513 / Contrôle Final Pièces",null,null,"Afficher"]
["CF.460","Projecteur de profils","Production / 8414 DIV / Contrôle Tubes Divers",null,null,"Afficher"]
["OPT-0001","Projecteur de profils","Technique / 7245 / Prototype",null,null,"Afficher"]
["OPT-0006","Projecteur de profils","Production / 8507 / micro assemblage",null,null,"Afficher"]
["OPT-0017","Projecteur de profils","Production / 8510 / Tour de Reprise",null,null,"Afficher"]
["OPT-0020","Projecteur de profils","Production / 8513 / Contrôle Final Pièces",null,null,"Afficher"]
["OPT-0018","Projecteur de profils","Technique / 7700",null,null,"Afficher"]
["CAT.084","Machine à mesurer par vision","Production / 8510",null,null,"Afficher"]
["CF.073","Comparateur à levier","Technique / 7245 / Prototype","± 1,5 / 1,5",null,"Afficher"]
["CPL-004","Comparateur à levier","Technique / 7300 / Mécanique","0 / 5 mm",null,"Afficher"]
["CPL-005","Comparateur à levier","Technique / 7300 / Mécanique","0 / 5 mm",null,"Afficher"]
["CPL-006","Comparateur à levier","Technique / 7300 / Mécanique","0 / 5 mm",null,"Afficher"]
["CPL-007","Comparateur à levier","Technique / 7245 / Prototype","0 / 1,6 mm",null,"Afficher"]
["CPL-087","Comparateur à levier","Production / 8510 / Tour de Reprise","0 / 10 mm",null,"Afficher"]
["DIM-0013","Comparateur à levier","Production / 8510 / Tour de Reprise","0 / 1 mm",null,"Afficher"]
["DIM-0051","Comparateur à levier","Production / 8404 / Soudure",null,null,"Afficher"]
["DIM-0108","Comparateur à levier","Technique / 7300 / Mécanique","0 / 5 mm",null,"Afficher"]
["M.094","Comparateur à levier","Production / 8552 / Presses Automatiques","0 / 0,2 mm",null,"Afficher"]
["M.102","Comparateur à levier","Technique / 7311 / Maintenance mécanique chaudron","± 0 / 0,8 mm",null,"Afficher"]
["M.222","Comparateur à levier","Technique / 7300 / Mécanique","0 / 0,8 mm",null,"Afficher"]
["M.286","Comparateur à levier","Technique / 7300 / Mécanique","0 / 0,8 mm",null,"Afficher"]
["MET-0081","Comparateur à levier","Technique / 7700 / table en marbre","0 / 0,2 mm",null,"Afficher"]
["ED.166","Comparateur à bras de palpage pour mesure d'intérieur","Technique / 7700 / Armoire BOTT CG",null,null,"Afficher"]
["CPL-002","Comparateur à levier","Technique / 7700 / Armoire BOTT CG","0 / 0,4 mm",null,"Afficher"]
["DIM-0063","Comparateur à levier","Technique / 7700 / Armoire BOTT CG",null,null,"Afficher"]
["DIM-0075","Comparateur à levier","Technique / 7700 / Armoire BOTT CG","0 / 1,5 mm",null,"Afficher"]
["MET-0092","Comparateur à levier","Technique / 7700 / METRO armoire bott - CG","0,2 mm avec touche de 0,5 mm",null,"Afficher"]
["CT.112","Tridimensionnelle","Production / 8401 / attelier",null,null,"Afficher"]

{"sheet":"Hauteur","index":47,"n_rows":105,"n_cols":6,"rows_kept":105,"cut":false,"hidden":false,"merged":[]}
[]
[]
["CF.375","Machine à mesurer par vision","Production / 8509 / Tronconnage",null,null,"Afficher"]
["CF.280","Machine à mesurer sans contact","Production / 8513 / Contrôle Final Pièces",null,null,"Afficher"]
["CF.449","Projecteur de profils","Production / 8513 / Contrôle Final Pièces",null,null,"Afficher"]
["CF.460","Projecteur de profils","Production / 8414 DIV / Contrôle Tubes Divers",null,null,"Afficher"]
["OPT-0001","Projecteur de profils","Technique / 7245 / Prototype",null,null,"Afficher"]
["OPT-0006","Projecteur de profils","Production / 8507 / micro assemblage",null,null,"Afficher"]
["OPT-0017","Projecteur de profils","Production / 8510 / Tour de Reprise",null,null,"Afficher"]
["OPT-0020","Projecteur de profils","Production / 8513 / Contrôle Final Pièces",null,null,"Afficher"]
["OPT-0018","Projecteur de profils","Technique / 7700",null,null,"Afficher"]
["CAT.084","Machine à mesurer par vision","Production / 8510",null,null,"Afficher"]
["CAT.014","Jauge de profondeur à coulisseau","Technique / 7700 / Zone \"A expédier\"","0 / 200 mm",null,"Afficher"]
["MET-0056","Colonne","Technique / 7700 / Metrologie",null,null,"Afficher"]
["MET-0100","Comparateur à tige rentrante","Production / 8513 / Contrôle Final Pièces","0 / 15 mm",null,"Afficher"]
["MET-0101","Comparateur à tige rentrante","Production / 8513 / Contrôle Final Pièces","0 / 15 mm",null,"Afficher"]
["CAT.090","Comparateur à tige rentrante radiale","Sous-traitant","0 / 12 mm",null,"Afficher"]
["CP.059","Comparateur à tige rentrante radiale","Production / 8507 / Micro Assemblage","0 / 12,7 mm",null,"Afficher"]
["CP.061","Comparateur à tige rentrante radiale","Production / 8553 / PRESSE C/C","0 / 50 mm",null,"Afficher"]
["CP.062","Comparateur à tige rentrante radiale","Production / 8513 / Contrôle Final Pièces","0 / 50 mm",null,"Afficher"]
["CTR-001","Comparateur à tige rentrante radiale","Production / 8553 / PRESSE C/C","0 / 50 mm",null,"Afficher"]
["CTR-002","Comparateur à tige rentrante radiale","Production / 8508 / Tour Cathode","0 / 30 mm",null,"Afficher"]
["CTR-003","Comparateur à tige rentrante radiale","Production / 8508 / Tour Cathode","0 / 30 mm",null,"Afficher"]
["CTR-004","Comparateur à tige rentrante radiale","Production / 8553 / PRESSE C/C","50 / 100 mm",null,"Afficher"]
["CTR-005","Comparateur à tige rentrante radiale","Production / 8553 / PRESSE C/C","0 / 50 mm",null,"Afficher"]
["CTR-006","Comparateur à tige rentrante radiale","Technique / 7410 / Process Tubes","0 / 50 mm",null,"Afficher"]
["CTR-007","Comparateur à tige rentrante radiale","Production / 8510 / Tour de Reprise","0 / 12,7 mm",null,"Afficher"]
["ED.246","Comparateur à tige rentrante radiale","Production / 8414DIV / Contrôle tube divers","0 / 12 mm",null,"Afficher"]
["M.206","Comparateur à tige rentrante radiale","Technique / 7300 / Mécanique","0 / 10 mm",null,"Afficher"]
["M.291","Comparateur à tige rentrante radiale","Technique / 7300 / Mécanique","0 / 10 mm",null,"Afficher"]
["TC.045","Comparateur à tige rentrante radiale","Production / 8508 / Tour Cathode","0 / 10 mm",null,"Afficher"]
["TR.011","Comparateur à tige rentrante radiale","Production / 8510 / Tours de reprise","0 / 30 mm",null,"Afficher"]
["TR.053","Comparateur à tige rentrante radiale","Production / 8518 / Aiguilles","0 / 12 mm",null,"Afficher"]
["COMP-001","Comparateur electronique","Technique","0 / 12 mm",null,"Afficher"]
["CE.009","Comparateur mécanique à cadran","Production / 8508 / Tour Cathode","0 / 10 mm",null,"Afficher"]
["CE.052","Comparateur mécanique à cadran","Technique / 7700 / Armoire BOTT CG","0 / 12 mm",null,"Afficher"]
["CF.015","Comparateur mécanique à cadran","Production / 8507 / Micro Assemblage","0 / 10 mm",null,"Afficher"]
["CF.018","Comparateur mécanique à cadran","Production / 8513 / Contrôle Final Pièces","0 / 10 mm",null,"Afficher"]
["CF.047","Comparateur mécanique à cadran","Production / 8507 / Micro Assemblage","0 / 10 mm",null,"Afficher"]
["CF.050","Comparateur mécanique à cadran","Production / 8508 / Tour Cathode","0 / 10 mm",null,"Afficher"]
["CF.081","Comparateur mécanique à cadran","Production / 8513 / Contrôle Final Pièces","0 / 5 mm",null,"Afficher"]
["CF.098","Comparateur mécanique à cadran","Production / 8552 / Presse Automatique","0 / 10 mm",null,"Afficher"]
["COMP-002","Comparateur mécanique à cadran","Production / 8404 / Soudure","0 / 5 mm",null,"Afficher"]
["COMP-003","Comparateur mécanique à cadran","Production / 8404 / Soudure","0 / 5 mm",null,"Afficher"]
["COMP-004","Comparateur mécanique à cadran","Production / 8404 / Soudure","0 / 5 mm",null,"Afficher"]
["COMP-005","Comparateur mécanique à cadran","Production / 8404 / Soudure","0 / 5 mm",null,"Afficher"]
["COMP-006","Comparateur mécanique à cadran","Production / 8404 / Soudure","0 / 30 mm",null,"Afficher"]
["COMP-007","Comparateur mécanique à cadran","Production / 8404 / Soudure","0 / 30 mm",null,"Afficher"]
["COMP-010","Comparateur mécanique à cadran","Technique / 7300 / Mécanique","0 / 10 mm",null,"Afficher"]
["COMP-011","Comparateur mécanique à cadran","Technique / 7300 / Mécanique","0 / 100 mm",null,"Afficher"]
["COMP-086","Comparateur mécanique à cadran","Production / 8404 / Soudure","0 / 5 mm",null,"Afficher"]
["COMP-088","Comparateur mécanique à cadran","Technique / 7410 / Process Tubes","0 / 5 mm",null,"Afficher"]
["COMP-206","Comparateur mécanique à cadran","Production / 8518 / Aiguilles","0 / 12,7 mm",null,"Afficher"]
["CP.012","Comparateur mécanique à cadran","Production / 8510 / Tours de reprise","0 / 10 mm",null,"Afficher"]
["CP.074","Comparateur mécanique à cadran","Production / 8508 / Tour Cathode","0 / 5 mm",null,"Afficher"]
["DIM-0017","Comparateur mécanique à cadran","Production / 8508 / Tour Cathode","0 / 100 mm",null,"Afficher"]
["DIM-0022","Comparateur mécanique à cadran","Production / 8509 / Tronconnage","0 / 12 mm",null,"Afficher"]
["DIM-0027","Comparateur mécanique à cadran","Production / 8553 / PRESSE C/C","0 / 5",null,"Afficher"]
["DIM-0146","Comparateur mécanique à cadran","Technique / 7510 / Process BU transformation","0 / 0,14",null,"Afficher"]
["DIM-0147","Comparateur mécanique à cadran","Technique / 7510 / Process BU transformation","0 / 0,5",null,"Afficher"]
["EN.004","Comparateur mécanique à cadran","Production / 8508 / Tour Cathode","0 / 10 mm",null,"Afficher"]
["M.043","Comparateur mécanique à cadran","Production / 8507 / Micro Assemblage","0 / 10 mm",null,"Afficher"]
["M.194","Comparateur mécanique à cadran","Technique / 7300 / Mécanique","0 / 10 mm",null,"Afficher"]
["PA.028","Comparateur mécanique à cadran","Production / 8552 / Presse Automatique","0 / 20 mm",null,"Afficher"]
["TC.005","Comparateur mécanique à cadran","Production / 8513 / Contrôle Final Pièces","0 / 10 mm",null,"Afficher"]
["TC.012","Comparateur mécanique à cadran","Production / 8508 / Tour Cathode","0 / 10 mm",null,"Afficher"]
["TC.042","Comparateur mécanique à cadran","Production / 8508 / Tour Cathode","0 / 10 mm",null,"Afficher"]
["TC.091","Comparateur mécanique à cadran","Production / 8552 / Presse Automatique","0 / 10 mm",null,"Afficher"]
["TC.101","Comparateur mécanique à cadran","Production / 8508 / Tour Cathode","0 / 20 mm",null,"Afficher"]
["TC.102","Comparateur mécanique à cadran","Production / 8508 / Tour Cathode","0 / 20 mm",null,"Afficher"]
["TC.103","Comparateur mécanique à cadran","Production / 8508 / Tour Cathode","0 / 20 mm",null,"Afficher"]
["TC.104","Comparateur mécanique à cadran","Production / 8508 / Tour Cathode","0 / 20 mm",null,"Afficher"]
["THE.005","Comparateur mécanique à cadran","Technique / 7245 / Prototype","0 / 10 mm",null,"Afficher"]
["THE.076","Comparateur mécanique à cadran","Technique / 7245 / Prototype","0 / 12 mm",null,"Afficher"]
["TR.010","Comparateur mécanique à cadran","Production / 8510 / Tour de Reprise","0 / 10 mm",null,"Afficher"]
["DIM-0076","Comparateur numerique à tige rentrante","Production / 8507 / Micro Assemblage","12,7 mm - 0,01mm",null,"Afficher"]
["MET-0059","Comparateur numerique à tige rentrante","Technique / 7700 / Armoire colonne de mesure","0 / 12,7 mm",null,"Afficher"]
["SQ.097","Comparateur numerique à tige rentrante","Production / 8508 / Tour Cathode","0 / 12 mm",null,"Afficher"]
["JDP-001","Jauge de profondeur","Technique / 7300 / Mécanique","0 / 150 mm",null,"Afficher"]
["JDP-081","Jauge de profondeur","Production / 8507 / Micro Assemblage","0/150mm",null,"Afficher"]
["JDP-082","Jauge de profondeur","Technique / 7311 / Mecanique","0 / 150",null,"Afficher"]
["CF.133","Jauge de profondeur à coulisseau","Technique / 7300 / Mécanique","0 / 200 mm",null,"Afficher"]
["DIM-0046","Jauge de profondeur à coulisseau","Technique / 7410 / Process Tubes","0/150",null,"Afficher"]
["M.181","Jauge de profondeur à coulisseau","Technique / 7311 / Mecanique","0 / 150 mm",null,"Afficher"]
["M.287","Jauge de profondeur à coulisseau","Technique / 7300 / Mécanique","0 / 150 mm",null,"Afficher"]
["THE.011","Jauge de profondeur à coulisseau","Technique / 7245 / Prototype","0 / 200 mm",null,"Afficher"]
["M.201","Jauge de profondeur à vis","Technique / 7300 / TT904","0 / 25 mm",null,"Afficher"]
["DIM-0121","Trusquin","Production / 7700","0 / 200 mm",null,"Afficher"]
["M.246","Trusquin","Technique / 7300 / Mécanique","0 / 300 mm",null,"Afficher"]
["SQ.035","Comparateur mécanique à cadran","Production / 8509 / Tronconnage","0 / 12 mm",null,"Afficher"]
["TC.039","Comparateur mécanique à cadran","Production / 8508 / Tour Cathode","0 / 10 mm",null,"Afficher"]
["DIM-0099","Comparateur à tige rentrante","Technique / 7700 / Armoire BOTT CG",null,null,"Afficher"]
["MET-0099","Comparateur à tige rentrante","Technique / 7700","0 / 15 mm",null,"Afficher"]
["DIM-0028","Comparateur à tige rentrante radiale","Technique / 7700 / Armoire BOTT CG",null,null,"Afficher"]
["CAT.070","Comparateur mécanique à cadran","Technique / Métrologie / Métrologie","0 / 5 mm",null,"Afficher"]
["CF.012","Comparateur mécanique à cadran","Technique / 7700 / Armoire BOTT CG","0 / 10 mm",null,"Afficher"]
["CF.017","Comparateur mécanique à cadran","Technique / 7700 / Armoire BOTT CM","0 / 10 mm",null,"Afficher"]
["CF.082","Comparateur mécanique à cadran","Technique / 7700 / Armoire BOTT BG","0 / 5 mm",null,"Afficher"]
["CF.388","Comparateur mécanique à cadran","Technique / 7700 / Armoire BOTT CM","0 / 50 mm",null,"Afficher"]
["COMP-008","Comparateur mécanique à cadran","Technique / 7700","0 / 10 mm",null,"Afficher"]
["EN.075","Comparateur mécanique à cadran","Technique / 7700 / Armoire BOTT BG","0 / 5 mm",null,"Afficher"]
["SQ.098","Comparateur mécanique à cadran","Technique / 7700 / Armoire BOTT FM","0 / 12 mm",null,"Afficher"]
["THE.022","Jauge de profondeur à coulisseau","Technique / 7700 / Armoire BOTT DG","0 / 150 mm",null,"Afficher"]
["TC.044","Comparateur à tige rentrante radiale","Technique / 7300 / maintenance","0 / 10 mm",null,"Afficher"]
["COMP-250","Comparateur mécanique à cadran","Production / 8510 / Tours de reprise","0 / 10 mm",null,"Afficher"]

{"sheet":"ø_exter","index":48,"n_rows":396,"n_cols":6,"rows_kept":396,"cut":false,"hidden":false,"merged":[]}
[]
[]
["OPT-0004","Micromètre laser","Production / 8414DIV","0,3 / 30 mm",null,"Afficher"]
["OPT-0009","Micromètre laser","Production / 8401 / Etirage Banc Droit","0,3 / 30 mm",null,"Afficher"]
["OPT-0014","Micromètre laser","Production / 8401 / FFR","0 / 25 mm",null,"Afficher"]
["OPT-0026","Micromètre laser","Production / 8401 / PCA","0 / 25 mm",null,"Afficher"]
["BL-154/2","Bague lisse","Production / 8513 / Contrôle Final Pièces","BLE 6,3350",null,"Afficher"]
["ETA-0256","Bague lisse étalon","Production / 8510 / Tour de Reprise","BLR 10 classe B1",null,"Afficher"]
["M.033A","Bague lisse étalon","Technique / 7700 / Zone \"A expédier\"","52 mm",null,"Afficher"]
["MES-004/E","Bague lisse étalon","Production / 8400 / Etirage Bancs droits","6,4 mm",null,"Afficher"]
["BL-001","Bague lisse","Production / 8513 / Contrôle Final Pièces","BLE 1,925",null,"Afficher"]
["BL-003","Bague lisse","Production / 8513 / Contrôle Final Pièces","BLE 1,875",null,"Afficher"]
["BL-012","Bague lisse","Production / 8513 / Contrôle Final Pièces","BLE 6,312 -0,003 / 0,003",null,"Afficher"]
["BL-013","Bague lisse","Production / 8513 / Contrôle Final Pièces","BLE 6,315 -0,003 / 0,003",null,"Afficher"]
["BL-106","Bague lisse","Production / 8513 / Contrôle Final Pièces","BLE 6,335 -0,003 / 0,003",null,"Afficher"]
["BL-152/1","Bague lisse","Production / 8513 / Contrôle Final Pièces","BLE 6,312",null,"Afficher"]
["BL-153/1","Bague lisse","Production / 8513 / Contrôle Final Pièces","BLNEP 6,3148",null,"Afficher"]
["BL-153/2","Bague lisse","Production / 8513 / Contrôle Final Pièces","BLNEP 6,3155",null,"Afficher"]
["BL-155/1","Bague lisse","Production / 8513 / Contrôle Final Pièces","BLE 6,3370",null,"Afficher"]
["BL-155/2","Bague lisse","Production / 8513 / Contrôle Final Pièces","BLE 6,3370",null,"Afficher"]
["BL-252","Bague lisse","Production / 8513 / Contrôle Final Pièces","BLE 4.5785",null,"Afficher"]
["CAL-0033","Bague lisse","Production / 7700","BLNEP 7,085 0 / 0,015 (Qualité )",null,"Afficher"]
["CAL-0036","Bague lisse","Production / 8507 / Micro Assemblage","BLE 9,1 0 / 0 (Qualité )",null,"Afficher"]
["CAL-0058","Bague lisse","Production / 8553 / PRESSE C/C","BLE 2,40 0,025",null,"Afficher"]
["CAL-0076","Bague lisse","Production / 8513 / Contrôle Final Pièces","BLE 1,051 -0,002/0",null,"Afficher"]
["CAL-0077","Bague lisse","Production / 8513 / Contrôle Final Pièces","BLNEP 2,4 -0,025 / 0,025",null,"Afficher"]
["CAL-0089","Bague lisse","Production / 8513 / Contrôle Final Pièces","BLNEP 3,620",null,"Afficher"]
["CAL-0093","Bague lisse","Production / 8513 / Contrôle Final Pièces","BLNEP 3,630",null,"Afficher"]
["CAL-0098","Bague lisse","Production / 8510 / Tour de Reprise","BLE 2,670 / 0,0154",null,"Afficher"]
["CAL-0190","Bague lisse","Production / 8553 / PRESSE C/C","BLE 1,925 +/- 0,001",null,"Afficher"]
["CAL-0191","Bague lisse","Technique / 7700 / Armoire BOTT EGA","BLE 1,64 +/- 0,001",null,"Afficher"]
["CAT.159","Bague lisse","Production / 8507 / Micro Assemblage","BLE 1,9 -0,003 / 0 (Qualité )",null,"Afficher"]
["CF.114","Bague lisse","Production / 8513 / Contrôle Final Pièces","BLE 6,225 -0,05 / 0 (Qualité )",null,"Afficher"]
["CF.144","Bague lisse","Production / 8513 / Contrôle Final Pièces","BLNEP 3,625",null,"Afficher"]
["CF.222","Bague lisse","Production / 8513 / Contrôle Final Pièces","BLE 7,1 -0,015 / 0",null,"Afficher"]
["CF.358","Bague lisse","Production / 8513 / Contrôle Final Pièces","BLNEP 3,62",null,"Afficher"]
["CF.394","Bague lisse","Production / 8513 / Contrôle Final Pièces","BLNEP 1,586 0 / 0,024",null,"Afficher"]
["CF.464","Bague lisse","Production / 8513 / Contrôle Final Pièces","BLE 2,51 -0,005 / 0,005",null,"Afficher"]
["CF.465","Bague lisse","Production / 8513 / Contrôle Final Pièces","BLNEP",null,"Afficher"]
["ETA-0015","Bague lisse","Production / 8515 / Production laboratoire","BLE 3,68",null,"Afficher"]
["ETA-0402","Bague lisse","Production / 8403 / Bull-blocks","BLE 3,63",null,"Afficher"]
["ETA-0403","Bague lisse","Production / 8403 / Bull-blocks","BLNEP 3,63",null,"Afficher"]
["PCC.004","Bague lisse","Production / 8553 / PRESSE C/C","BLE 3,625 -0,005 / 0 (Qualité )",null,"Afficher"]
["TEM-0013","Bague lisse","Production / 8403 / Bull-blocks","BLNEP 3,63 0/0,02",null,"Afficher"]
["THE.106","Bague lisse","Production / 8513 / Contrôle Final Pièces","BLE 3,195 -0,002 / 0",null,"Afficher"]
["THE.140","Bague lisse","Production / 8513 / Contrôle Final Pièces","BLE 1,90",null,"Afficher"]
["THE.147","Bague lisse","Technique / 7245 / Prototype","BLE 21,800 -0,005 / 0,005",null,"Afficher"]
["THE.148","Bague lisse","Technique / 7245 / Prototype","BLE 21,8 -0,002 / 0",null,"Afficher"]
["BLET-004","Bague lisse étalon","Production / 8401 / Magasin Outillage","25 mm",null,"Afficher"]
["CAL-0471","Bague lisse étalon","Production / 8401 / Ext local PCA","4,4 mm",null,"Afficher"]
["CAL-0478","Bague lisse étalon","Production / 8401","4,39 mm",null,"Afficher"]
["CAL-0479","Bague lisse étalon","Production / 8401","4,41 mm",null,"Afficher"]
["CAL-10001","Bague lisse étalon","Production / 7700","7,0984 mm",null,"Afficher"]
["CF.283","Bague lisse étalon","Production / 8513 / Contrôle Final Pièces","1,85",null,"Afficher"]
["CF.284","Bague lisse étalon","Production / 8513 / Contrôle Final Pièces","1,9",null,"Afficher"]
["CF.314","Bague lisse étalon","Production / 8513 / Contrôle Final Pièces","1,15",null,"Afficher"]
["CF.466A","Bague lisse étalon","Production / 8513 / Contrôle Final Pièces","7 mm",null,"Afficher"]
["ED.241A","Bague lisse étalon","Production / 8401 / Magasin Outillages","30,001 mm",null,"Afficher"]
["ETA-0255","Bague lisse étalon","Technique / 7300 / Mécanique","BLR 10 classe B1",null,"Afficher"]
["ETA-0257","Bague lisse étalon","Technique / 7430 / Méthode BU tubes","BLR 10 classe B1",null,"Afficher"]
["ETA-0258","Bague lisse étalon","Technique / 7245 / Prototype","BLR 10 classe B1",null,"Afficher"]
["ETA-0432","Bague lisse étalon","Production / 8513 / Contrôle Final Pièces","BLE 5,000",null,"Afficher"]
["ETA-0434","Bague lisse étalon","Production / 8510 / Tour de Reprise","BLE 5,000",null,"Afficher"]
["M.024A","Bague lisse étalon","Technique / 7300 / Mécanique","10,999 mm",null,"Afficher"]
["M.024B","Bague lisse étalon","Technique / 7300 / Mécanique","9,999 mm",null,"Afficher"]
["M.030A","Bague lisse étalon","Technique / 7300 / Mécanique","34,990 mm",null,"Afficher"]
["M.031A","Bague lisse étalon","Technique / 7300 / Mécanique","24,993 mm",null,"Afficher"]
["M.073B","Bague lisse étalon","Technique / 7300 / Mécanique","16,989 mm",null,"Afficher"]
["M.074","Bague lisse étalon","Technique / 7300 / Mécanique","8,001 mm",null,"Afficher"]
["M.090A","Bague lisse étalon","Technique / 7300 / Mécanique","6,001 mm",null,"Afficher"]
["M.104B","Bague lisse étalon","Technique / 7300","39,999 mm",null,"Afficher"]
["MES-002 /E","Bague lisse étalon","Production / 8513 / Contrôle Final Pièces","6,4 mm",null,"Afficher"]
["MES-003 /E","Bague lisse étalon","Production / 8403 / Etirage Couronnes","6,41 mm",null,"Afficher"]
["CE.175","Micromètre laser","Production / 8518 / Aiguilles",null,null,"Afficher"]
["CE.220","Micromètre laser","Production / 8401 / 30 T",null,null,"Afficher"]
["OPT-0003","Micromètre laser","Production / 8508 / Tour Cathode","0,3 / 30 mm",null,"Afficher"]
["OPT-0008","Micromètre laser","Production / 8513 / Contrôle Final Pièces","0 / 30 mm",null,"Afficher"]
["OPT-0010","Micromètre laser","Production / 8401 / Magasin Outillage","0,5 / 35 mm",null,"Afficher"]
["OPT-0011","Micromètre laser","Production / 8553 / PRESSE C/C","0 / 30 mm",null,"Afficher"]
["OPT-0016","Micromètre laser","Production / 8414 IMP / Local PCA","0 / 25 mm",null,"Afficher"]
["OPT-0022","Micromètre laser","Production / 8414 IMP / contrôle tube implant","0,3 / 30 mm",null,"Afficher"]
["OPT-0023","Micromètre laser","Production / 8414 IMP / contrôle tube implant","65 mm",null,"Afficher"]
["OPT-0030","Micromètre laser","Production / 8401 / 10 T","0 / 30 mm",null,"Afficher"]
["CAT.089","Micromètre optique","Production / 8507 / Micro Assemblage",null,null,"Afficher"]
["CAT.127","Micromètre optique","Production / 8507 / Micro Assemblage",null,null,"Afficher"]
["ED.243","Micromètre optique","Production / 8400 / Etirage Bancs droits","0 / 25 mm",null,"Afficher"]
["MIC-002","Micromètre optique","Production / 8400 / Etirage Bancs droits","0,3 / 30 mm",null,"Afficher"]
["MIC-003","Micromètre optique","Production / 8414DIV / Contrôle tubes divers","0,3 / 30 mm",null,"Afficher"]
["BLET-003","Bague lisse étalon","Technique / 7700 / Zone \"A expédier\"","3,65 mm",null,"Afficher"]
["CF.237","Bague lisse","Production / 8513 / Contrôle Final Pièces",null,null,"Afficher"]
["CF.261","Bague lisse étalon","Production / 8507 / Micro Assemblage","6,333 mm",null,"Afficher"]
["CF.262","Bague lisse étalon","Production / 8507 / Micro Assemblage","6,333mm",null,"Afficher"]
["CE.212","Micromètre laser","Production / 8403 / Bull-blocks",null,null,"Afficher"]
["EC.129","Micromètre laser","Production / 8404 / Soudure",null,null,"Afficher"]
["EC.130","Micromètre laser","Production / 8404 / Soudure",null,null,"Afficher"]
["OPT-0002","Micromètre laser","Production / 8403 / Etirage Couronnes",null,null,"Afficher"]
["CAL-0054","Bague lisse","Production / 7700","BLE 2,00 0 / 0,05",null,"Afficher"]
["CAL-0453","Bague lisse",null,null,null,"Afficher"]
["DIM-0029","Bague lisse","Technique / 7700","BLE 2,9210",null,"Afficher"]
["DIM-0030","Bague lisse","Technique / 7700","BLNEP 2,9210",null,"Afficher"]
["DIM-0031","Bague lisse","Technique / 7700","BLE 4,470",null,"Afficher"]
["DIM-0032","Bague lisse","Technique / 7700","BLNEP 4,470",null,"Afficher"]
["DIM-10000","Bague lisse","Production / 7700 / Métrologie","BLE 1,051 -0,002/0",null,"Afficher"]
["OPT-0015","Micromètre laser","Production / 8403 / Bull-blocks","0 / 25 mm",null,"Afficher"]
["PCC.014","Bague lisse étalon","Production / 8553 / PRESSE C/C","1,875 mm",null,"Afficher"]
["CF.163","Bague lisse étalon","Production / 8513 / Contrôle Final Pièces","6,17 mm",null,"Afficher"]
["EN.116A","Bague lisse étalon","Production / 8401 / Magasin Outillages","9,999 mm",null,"Afficher"]
["EN.127","Bague lisse étalon","Production / 8401 / Magasin Outillages","12,000 mm",null,"Afficher"]
["OPT-0019","Micromètre laser","Production / 8414 DIV / Contrôle Tubes Divers","0,3 / 30 mm",null,"Afficher"]
["MIC-001","Micromètre optique","Production / 8402 / Etirage NiTi","0,3 / 30 mm",null,"Afficher"]
["MIC-124","Micromètre optique","Production / 8403 / Bull-blocks","0,3 / 30 mm",null,"Afficher"]
["BL-002","Bague lisse","Production / 8513 / Contrôle Final Pièces","BLE 21,800 -0,002 / 0,002",null,"Afficher"]
["BL-006","Bague lisse","Technique / Métrologie / Métrologie","BLE 7,0987 -0,023 / 0",null,"Afficher"]
["BL-009","Bague lisse","Technique / 7700","BLNEP 3,62 h9",null,"Afficher"]
["BL-010","Bague lisse","Technique / 7700","BLE 3,689 0 / 0 (Qualité )",null,"Afficher"]
["BL-014","Bague lisse","Technique / 7700","BLNEP 2,4 -0,025 / 0,045",null,"Afficher"]
["BL-015","Bague lisse","Technique / 7700","BLE 2,4 -0,025 / 0,045",null,"Afficher"]
["BL-151","Bague lisse","Technique / 7700","BLE 1.610",null,"Afficher"]
["BL-152","Bague lisse","Technique / 7700","BLE 1.610",null,"Afficher"]
["BL-152/2","Bague lisse","Technique / 7700 / Armoire BOTT EGD","BLE 6,312",null,"Afficher"]
["BL-154/1","Bague lisse","Technique / 7700 / Armoire BOTT EGD","BLE 6,3349",null,"Afficher"]
["BL-156/1","Bague lisse","Technique / 7700","BLE 6.324",null,"Afficher"]
["BL-156/2","Bague lisse","Technique / 7700","BLE 6,3137",null,"Afficher"]
["BL-253","Bague lisse","Production / 7700","BLE 1,610",null,"Afficher"]
["BLET-006","Bague lisse","Technique / 7700","BLNEP 1,9 -0,025 / 0,025",null,"Afficher"]
["CAL-0012","Bague lisse","Technique / 7700","BLNEP 6,110 -0,02 / 0,02 (Qualité )",null,"Afficher"]
["CAL-0016","Bague lisse","Production / 7700","BLE 7,0987 -0,023/0",null,"Afficher"]
["CAL-0017","Bague lisse","Production / 7700","BLE 7,0987 -0,023/0",null,"Afficher"]
["CAL-0031","Bague lisse","Technique / 7700 / Armoire BOTT EDE","BLE 7,085 0 / 0,015",null,"Afficher"]
["CAL-0032","Bague lisse","Technique / 7700","BLE 7,085 0 / 0,015",null,"Afficher"]
["CAL-0034","Bague lisse","Technique / 7700 / Armoire BOTT EGE","BLNEP 7,085 0 / 0,015 (Qualité )",null,"Afficher"]
["CAL-0035","Bague lisse","Technique / 7700 / Armoire BoTT EGF","BLE 8,9000",null,"Afficher"]
["CAL-0055","Bague lisse","Technique / 7700 / Armoire BOTT EGA","BLE 2,00 0 / 0,05",null,"Afficher"]
["CAL-0060","Bague lisse","Production / 7700","BLE 7,0758",null,"Afficher"]
["CAL-0063","Bague lisse","Production / 7700","BLNEP 6.3358",null,"Afficher"]
["CAL-0064","Bague lisse","Production / 7700","BLE 6,3366",null,"Afficher"]
["CAL-0066","Bague lisse","Technique / 7700 / Armoire Bott DD","BLE 9,1 0 / 0 (Qualité )",null,"Afficher"]
["CAL-0067","Bague lisse","Technique / 7700 / Armoire Bott DD","BLE 9,1 0 / 0 (Qualité )",null,"Afficher"]
["CAL-0084","Bague lisse","Technique / 7700","BLE 3,65 0 / 0",null,"Afficher"]
["CAL-0090","Bague lisse","Technique / 7700 / Armoire BOTT EGB","BLNEP 3,620",null,"Afficher"]
["CAL-0091","Bague lisse","Technique / 7700 / Armoire BOTT EGB","BLNEP 3,620",null,"Afficher"]
["CAL-0092","Bague lisse","Technique / 7700 / Armoire BOTT EGB","BLNEP 3,620",null,"Afficher"]
["CAL-0094","Bague lisse","Technique / 7700 / Armoire BOTT EGA","BLE 1,90",null,"Afficher"]
["CAL-0095","Bague lisse","Production / 7700","BLE 2.00",null,"Afficher"]
["CAL-0096","Bague lisse","Production","BLE 3,63",null,"Afficher"]
["CAL-0101","Bague lisse","Production / 7700","BLNEP 2,00 +/- 0,05",null,"Afficher"]
["CAL-0103","Bague lisse","Production / 7700 / armoire BOTT EGD","BLE 6,379",null,"Afficher"]
["CAL-0104","Bague lisse","Production / 7700","BLE 3,680",null,"Afficher"]
["CAL-0105","Bague lisse","Production / 7700","BLE 6,400",null,"Afficher"]
["CAL-0107","Bague lisse","Technique / 7700","BLE 3,63 0/+0,02",null,"Afficher"]
["CAL-0121","Bague lisse","Technique / 7700","BLE 5,537",null,"Afficher"]
["CAL-0122","Bague lisse","Technique / 7700","BLNEP 5,537",null,"Afficher"]
["CAL-0123","Bague lisse","Technique / 7700","BLE 5,94",null,"Afficher"]
["CAL-0124","Bague lisse","Technique / 7700","BLNEP 5,94",null,"Afficher"]
["CAL-0125","Bague lisse","Technique / 7700","BLE 6,17",null,"Afficher"]
["CAL-0126","Bague lisse","Technique / 7700","BLE 6,17",null,"Afficher"]
["CAL-0135","Bague lisse","Technique / 7700","BLE 5,542 0/-10",null,"Afficher"]
["CAL-0137","Bague lisse","Technique / 7700","BLNEP 1,70",null,"Afficher"]
["CAL-0138","Bague lisse","Technique / 7700","BLE 7,140",null,"Afficher"]
["CAL-0139","Bague lisse","Technique / 7700","BLE 6,255 0/-0,05",null,"Afficher"]
["CAL-0140","Bague lisse","Technique / 7700","BLE 6,255 0/-0,05",null,"Afficher"]
["CAL-0141","Bague lisse","Technique / 7700","BLE 2,553",null,"Afficher"]
["CAL-0142","Bague lisse","Technique / 7700","BLNEP 10 -20/-5",null,"Afficher"]
["CAL-0143","Bague lisse","Technique / 7700","BLE 1,90 -25/+25",null,"Afficher"]
["CAL-0144","Bague lisse","Technique / 7700","BLE 7,5 0/+0,020",null,"Afficher"]
["CAL-0145","Bague lisse","Technique / 7700","BLNEP 7,5 0/+0,020",null,"Afficher"]
["CAL-0148","Bague lisse","Technique / 7700","BLE 3,655 0/-0,030",null,"Afficher"]
["CAL-0149","Bague lisse","Technique / 7700","BLE 2,6416 0/+0,0154",null,"Afficher"]
["CAL-0150","Bague lisse","Technique / 7700","BLNEP 5,94 k5",null,"Afficher"]
["CAL-0151","Bague lisse","Technique / 7700","BLE 3,655 0/-0,030",null,"Afficher"]
["CAL-0152","Bague lisse","Technique / 7700","BLE 4,70 s6",null,"Afficher"]
["CAL-0153","Bague lisse","Technique / 7700","BLE 1,40 0/-0,02",null,"Afficher"]
["CAL-0154","Bague lisse","Technique / 7700","BLNEP 1,40 0/-0,02",null,"Afficher"]
["CAL-0155","Bague lisse","Technique / 7700","BLNEP 4,70 s6",null,"Afficher"]
["CAL-0156","Bague lisse","Technique / 7700","BLNEP 4,72 j6",null,"Afficher"]
["CAL-0438","Bague lisse","Technique / 7700 / Armoire BOTT EGC","5,542 0/-10",null,"Afficher"]
["CAL-0440","Bague lisse","Technique / 7700 / Armoire BOTT EDA","BLE 1,64 +/- 0,001",null,"Afficher"]
["CAL-0441","Bague lisse","Technique / 7700 / Armoire BOTT EDA","BLE 1,64 +/- 0,001",null,"Afficher"]
["CAL-0442","Bague lisse","Technique / 7700 / Armoire BOTT EGB","BLE 3,630 / 0,03",null,"Afficher"]
["CF.003","Bague lisse","Technique / 7700","BLE 6,975",null,"Afficher"]
["CF.115","Bague lisse","Technique / 7700","BLNEP 6,175 0 / 0,05 (Qualité )",null,"Afficher"]
["CF.162","Bague lisse","Technique / 7700","BLNEP 6.11",null,"Afficher"]
["CF.269","Bague lisse","Technique / 7700","BLE 7,1 -0,01 / 0",null,"Afficher"]
["CF.275","Bague lisse","Production / 7700","BLE 9,3 -0,1/0",null,"Afficher"]
["CF.282","Bague lisse","Technique / 7700 / Metrologie","BLNEP 4.72",null,"Afficher"]
["CF.340A","Bague lisse","Technique / 7700 / Armoire BOTT DD","BLE 4.72",null,"Afficher"]
["CF.340B","Bague lisse","Technique / 7700 / Armoire BOTT DD","BLE 4.72",null,"Afficher"]
["CF.352","Bague lisse","Technique / 7700 / Armoire BOTT EGD","BLE 3,68 -0,03 / 0 (Qualité )",null,"Afficher"]
["CF.369","Bague lisse","Technique / 7700","BLE 4.7",null,"Afficher"]
["CF.370","Bague lisse","Technique / 7700","BLNEP 4.7",null,"Afficher"]
["CF.378","Bague lisse","Technique / 7700 / Armoire Botte emplacement EG","BLE 10 -0,02 / -0,005 (Qualité )",null,"Afficher"]
["CF.379","Bague lisse","Technique / 7700 / Armoire Botte emplacement EG","BLNEP 10 -0,02 / -0,005 (Qualité )",null,"Afficher"]
["CF.386 /1","Bague lisse","Technique / 7700","BLE 1,70",null,"Afficher"]
["CF.392","Bague lisse","Technique / 7700","BLE 3,22 -0,03/0,03",null,"Afficher"]
["CF.393","Bague lisse","Production / 7700","BLE 1,586 0 / 0,024",null,"Afficher"]
["CF.422","Bague lisse","Production / 7700","BLE 3.76",null,"Afficher"]
["CP.011A","Bague lisse","Technique / 7700 / Armoire BOTT EGC","BLE 5,3 a",null,"Afficher"]
["CP.035","Bague lisse","Technique / 7700 / Armoire BoTT EGF","BLNEP 13,20",null,"Afficher"]
["CP.036","Bague lisse","Technique / 7700 / Armoire BoTT EGF","BLE 13,20",null,"Afficher"]
["CP.052","Bague lisse","Technique / 7700 / Metrologie","BLE 1.40",null,"Afficher"]
["CP.053","Bague lisse","Technique / 7700 / Metrologie","BLNEP 1.40",null,"Afficher"]
["DIM-0026","Bague lisse","Technique / 7700","BLE 4,58",null,"Afficher"]
["DIM-0064","Bague lisse","Production / 7700 / armoire BOTT EGA","BLE 1,70",null,"Afficher"]
["EC.114","Bague lisse","Technique / Métrologie / Métrologie","BLNEP 3,640 -0,002 / 0,002",null,"Afficher"]
["EC.117","Bague lisse","Technique / 7700 / Armoire BOTT AG","BLE 3,64 mm 0 / 0,02",null,"Afficher"]
["EC.118","Bague lisse","Technique / Métrologie / Métrologie","BLNEP 3,64 mm 0 / 0,02",null,"Afficher"]
["ED.245","Bague lisse","Technique / Métrologie / Métrologie","BLE 3,75",null,"Afficher"]
["ED.245A","Bague lisse","Technique / Métrologie / Métrologie","BLE 2,44/1,14",null,"Afficher"]
["ED.245B","Bague lisse","Technique / Métrologie / Métrologie","BLNEP 2,51/1,18",null,"Afficher"]
["ETA-0006","Bague lisse","Technique / Métrologie / Métrologie","BLE 1,74",null,"Afficher"]
["ETA-0007","Bague lisse","Technique / 7700 / Armoire BOTT EGA","BLNEP 1,70",null,"Afficher"]
["ETA-0014","Bague lisse","Technique / Métrologie / Métrologie","BLE 9,58 +/-0,005",null,"Afficher"]
["SQ.085","Bague lisse","Technique / 7700","BLE 1.61",null,"Afficher"]
["TC.007","Bague lisse","Technique / 7700 / Armoire BOTT ED","BLE 3.982",null,"Afficher"]
["TC.092","Bague lisse","Technique / 7700 / Armoire BOTT EGD","BLE 6,160 0 / 0",null,"Afficher"]
["TC.093","Bague lisse","Technique / 7700 / Armoire BOTT EGD","BLNEP 6,110 -0,02 / 0,02 (Qualité )",null,"Afficher"]
["THE.105","Bague lisse","Technique / 7700 / Armoire BOTT ED","BLE 8,96 -0,002 / 0",null,"Afficher"]
["TR.031","Bague lisse","Technique / 7700 / Armoire BOTT EGA","BLE 1,12 -0,01/0",null,"Afficher"]
["TR.032","Bague lisse","Technique / 7700 / Armoire BOTT EGA","BLE 1,62 -0,01/0",null,"Afficher"]
["TR.033","Bague lisse","Technique / 7700 / Armoire BOTT EGB","BLE 2,12 -0,01/0",null,"Afficher"]
["BLET-001","Bague lisse étalon","Technique / 7700 / Armoire BOTT EM","3,63 mm",null,"Afficher"]
["BLET-002","Bague lisse étalon","Technique / 7700","3,639 mm",null,"Afficher"]
["BLET-007","Bague lisse étalon","Technique / 7700 / Armoire BOTT EGA","1,90 mm",null,"Afficher"]
["CAL-10000","Bague lisse étalon","Production / 7700","7,0984 mm",null,"Afficher"]
["CE.072A","Bague lisse étalon","Technique / 7700 / Armoire BOTT DD","5,999",null,"Afficher"]
["CF.028A","Bague lisse étalon","Technique / 7700","5,3",null,"Afficher"]
["CF.285","Bague lisse étalon","Production / 7700","1,61",null,"Afficher"]
["CF.286","Bague lisse étalon","Technique / 7700 / Armoire BOTT EGC","4,055",null,"Afficher"]
["ED.013A","Bague lisse étalon","Technique / 7700 / Armoire BOTT DD","5,999 mm",null,"Afficher"]
["EN.115A","Bague lisse étalon","Technique / 7700 / Armoire BOTT EGF","19,998 mm",null,"Afficher"]
["EN.117A","Bague lisse étalon","Technique / 7700 / Armoire BOTT EG","16,002 mm",null,"Afficher"]
["ETA-0040","Bague lisse étalon","Technique / Métrologie","BLE 49,998",null,"Afficher"]
["ETA-0262","Bague lisse étalon","Technique / 7700","6,030 mm",null,"Afficher"]
["ETA-0263","Bague lisse étalon","Technique / 7700","6,16 mm",null,"Afficher"]
["ETA-0264","Bague lisse étalon","Technique / 7700","9,971 mm",null,"Afficher"]
["ETA-0265","Bague lisse étalon","Technique / 7700","13,12 mm",null,"Afficher"]
["ETA-0266","Bague lisse étalon","Technique / 7700","3,689 mm",null,"Afficher"]
["ETA-0267","Bague lisse étalon","Technique / 7700","4,400 mm",null,"Afficher"]
["ETA-0268","Bague lisse étalon","Technique / 7700","6,115 mm",null,"Afficher"]
["ETA-0270","Bague lisse étalon","Technique / 7700","1,61 mm",null,"Afficher"]
["ETA-0271","Bague lisse étalon","Technique / 7700","3,689 mm",null,"Afficher"]
["ETA-0272","Bague lisse étalon","Technique / 7700","1,57 mm",null,"Afficher"]
["ETA-0430","Bague lisse étalon","Technique / 7700 / Armoire BOTT EGB","BLE 4,999",null,"Afficher"]
["ETA-0431","Bague lisse étalon","Technique / 7700 / Armoire BOTT EGB","BLE 4,999",null,"Afficher"]
["ETA-0433","Bague lisse étalon","Technique / 7700 / Armoire BOTT EGC","BLE 5,000",null,"Afficher"]
["ETA-0435","Bague lisse étalon","Technique / 7700 / Armoire BOTT EGB","BLE 5,000",null,"Afficher"]
["ETA-0436","Bague lisse étalon","Technique / 7700 / Armoire BOTT EGB","BLE 5,000",null,"Afficher"]
["ETA-0437","Bague lisse étalon","Technique / 7700 / Armoire BOTT EGB","BLE 5,000",null,"Afficher"]
["ETA-0438","Bague lisse étalon","Technique / 7700 / Armoire BOTT EGB","BLE 5,000",null,"Afficher"]
["ETA-0439","Bague lisse étalon","Technique / 7700 / Armoire BOTT EGB","BLE 5,001",null,"Afficher"]
["MES-001 /E","Bague lisse étalon","Technique / 7700 / Armoire BOTT EM","6,400 mm",null,"Afficher"]
["MET-0094","Bague lisse étalon","Technique / 7700 / Armoire BOTT EGA","1,852 mm",null,"Afficher"]
["MET-0095","Bague lisse étalon","Technique / 7700","15,3934 mm",null,"Afficher"]
["MET-0096","Bague lisse étalon","Technique / 7700","17,1646 mm",null,"Afficher"]
["SQ.100","Bague lisse étalon","Technique / 7700","7,5",null,"Afficher"]
["SQ.108A","Bague lisse étalon","Technique / 7700","45 mm",null,"Afficher"]
["OPT-0005","Micromètre laser","Technique / 7700 / Armoire Métrologie M1 B",null,null,"Afficher"]
["OPT-0007","Micromètre laser","Production / 7700","0 / 30 mm",null,"Afficher"]
["OPT-0025","Micromètre laser","Technique / 7700 / Table des prototypes","0 / 50 mm",null,"Afficher"]
["OPT-0031","Micromètre laser","Technique / 7700 / Zone \"A expédier\"","0 / 30 mm",null,"Afficher"]
["CF.228","Micromètre optique","Technique / 7700 / Zone \"A expédier\"",null,null,"Afficher"]
["CAT.117","Pied à coulisse","Technique / 7700 / Armoire BOTT DG","0 / 200 mm",null,"Afficher"]
["CE.051","Pied à coulisse","Technique / 7700 / Armoire BOTT IM","0 / 150 mm",null,"Afficher"]
["CE.251","Pied à coulisse","Technique / 7700 / Armoire proto P3A","0 / 500 mm",null,"Afficher"]
["CF.040","Pied à coulisse","Technique / 7700 / Armoire proto P2A","0 / 1000 mm",null,"Afficher"]
["CF.478","Pied à coulisse","Technique / 7700 / Armoire proto P2A","0 / 600 mm",null,"Afficher"]
["DIM-0068","Pied à coulisse","Technique / 7700 / Armoire BOTT FM","0 / 200 mm",null,"Afficher"]
["DIM-0078","Pied à coulisse","Technique / 7700 / Armoire BOTT FM","0 / 200 mm",null,"Afficher"]
["DIM-0079","Pied à coulisse","Technique / 7700 / Armoire BOTT FD","0 / 200 mm",null,"Afficher"]
["DIM-0112","Pied à coulisse","Technique / 7700 / Armoire BOTT IM","0 / 150 mm",null,"Afficher"]
["DIM-0115","Pied à coulisse","Technique / 7700 / Armoire BOTT IM","0 / 150 mm",null,"Afficher"]
["DIM-0116","Pied à coulisse","Technique / 7700 / Armoire BOTT IM","0 / 150 mm",null,"Afficher"]
["DIM-0117","Pied à coulisse","Technique / 7700 / Armoire BOTT IM","0 / 150 mm",null,"Afficher"]
["DIM-0118","Pied à coulisse","Technique / 7700 / Armoire BOTT DG","0 / 150 mm",null,"Afficher"]
["M.077","Pied à coulisse","Technique / 7300 / Mécanique","0 / 150 mm",null,"Afficher"]
["M.250","Pied à coulisse","Technique / 7700","0 / 150 mm",null,"Afficher"]
["PAC-008","Pied à coulisse","Technique / 7700 / Armoire BOTT FM","0 / 200 mm",null,"Afficher"]
["PAC-208","Pied à coulisse","Technique / 7700 / Armoire Métrologie M1","0 / 1000 mm",null,"Afficher"]
["THE.019","Pied à coulisse","Technique / 7700 / Armoire Métrologie M1","0 / 500 mm",null,"Afficher"]
["THE.023","Pied à coulisse","Technique / 7700 / Armoire BOTT DG","0 / 150 mm",null,"Afficher"]
["THE.055","Pied à coulisse","Technique / 7245 / Prototype","0 / 300 mm",null,"Afficher"]
["THE.122","Pied à coulisse","Technique / 7700","0 / 150 mm",null,"Afficher"]
["THE.123","Pied à coulisse","Technique / 7700 / Armoire BoTT IM","0 / 200 mm",null,"Afficher"]
["DIM-0057","Micromètre d'extérieur à vis","Technique / 7700 / Zone \"A expédier\"","0 / 25 mm",null,"Afficher"]
["SQ.036","Micromètre d'extérieur à vis","Technique / 7700 / Zone \"A expédier\"","0 / 25 mm",null,"Afficher"]
["DIM-0037","Micromètre d'extérieur à vis","Production / 8400 / étirage","0 / 25 mm",null,"Afficher"]
["EN.123","Micromètre d'extérieur à vis","Production / 8400 / Etirage Bancs droits","0 / 25 mm",null,"Afficher"]
["MEXT-032","Micromètre d'extérieur à vis","Production / 8400 / Etirage Bancs droits","0 / 25 mm",null,"Afficher"]
["EN.017","Micromètre d'extérieur à vis","Production / 8400 / Etirage Bancs droits","0 / 25 mm",null,"Afficher"]
["CAT.040","Pied à coulisse","Production / 8507 / Micro Assemblage","0 / 300 mm",null,"Afficher"]
["CAT.078","Pied à coulisse","Production / 8507 / Micro Assemblage","0 / 200 mm",null,"Afficher"]
["CAT.080","Pied à coulisse","Production / 8510 / Tour de Reprise","0 / 200 mm",null,"Afficher"]
["CAT.146","Pied à coulisse","Production / 8507 / Micro Assemblage","0 / 200 mm",null,"Afficher"]
["CAT.148","Pied à coulisse","Production / 8507 / Micro Assemblage","0 / 200 mm",null,"Afficher"]
["CAT.149","Pied à coulisse","Production / 8507 / Micro Assemblage","0 / 200 mm",null,"Afficher"]
["CE.237","Pied à coulisse","Production / 8509 / Tronconnage","0 / 500 mm",null,"Afficher"]
["CE.243","Pied à coulisse","Production / 8414DIV / Contrôle Final Tubes","0 / 300 mm",null,"Afficher"]
["CE.259","Pied à coulisse","Production / 8414IMP","0 / 300 mm",null,"Afficher"]
["CF.054","Pied à coulisse","Technique / 7300 / Mécanique","0 / 150 mm",null,"Afficher"]
["CF.061","Pied à coulisse","Technique / 7245 / Prototype","0 / 500 mm",null,"Afficher"]
["CF.087","Pied à coulisse","Production / 8513 / Contrôle Final Pièces","0 / 200 mm",null,"Afficher"]
["CP.069","Pied à coulisse","Production / 8553 / PRESSE C/C","0 / 150 mm",null,"Afficher"]
["DIM-0015","Pied à coulisse","Technique / 7245 / Prototype","0 / 200 mm",null,"Afficher"]
["DIM-0021","Pied à coulisse","Technique / 7300","0 / 150 mm",null,"Afficher"]
["DIM-0048","Pied à coulisse","Production / 7410 / process","0 / 600 mm",null,"Afficher"]
["DIM-0066","Pied à coulisse","Technique / 7320 / bureau d'étude","0 / 200 mm",null,"Afficher"]
["DIM-0080","Pied à coulisse","Technique / 7510 / Process","0 / 200 mm",null,"Afficher"]
["DIM-0081","Pied à coulisse","Technique / 7510 / Process BU transformation","0 / 200 mm",null,"Afficher"]
["DIM-0082","Pied à coulisse","Technique / 7300 / Maintenance","0 / 200 mm",null,"Afficher"]
["DIM-0083","Pied à coulisse","Technique / 7320 / bureau d'étude","0 / 200 mm",null,"Afficher"]
["DIM-0105","Pied à coulisse","Production / 8510 / Tour de Reprise","0 / 500 mm",null,"Afficher"]
["DIM-0113","Pied à coulisse","Technique / 7410","0 / 150 mm",null,"Afficher"]
["DIM-0148","Pied à coulisse","Technique / 7320 / bureau d'étude","0 / 1000 mm",null,"Afficher"]
["EC.128","Pied à coulisse","Production / 8513 / controle final piece","0 / 150 mm",null,"Afficher"]
["M.038","Pied à coulisse","Technique / 7300 / Mécanique","0 / 300 mm",null,"Afficher"]
["M.072","Pied à coulisse","Technique / 7300","0 / 500 mm",null,"Afficher"]
["M.269","Pied à coulisse","Technique / 7300 / maintenance mécanique","0 / 150 mm",null,"Afficher"]
["M.279","Pied à coulisse","Technique / 7300 / Mécanique","0 / 150 mm",null,"Afficher"]
["M.296","Pied à coulisse","Technique / 7300 / Maintenance","0 / 150 mm",null,"Afficher"]
["PA.024","Pied à coulisse","Production / 8552 / Presses Automatiques","0 / 200 mm",null,"Afficher"]
["PAC-001","Pied à coulisse","Production / 8513 / Contrôle Final Pièces","0 / 200 mm",null,"Afficher"]
["PAC-002","Pied à coulisse","Production / 8513 / Contrôle Final Pièces","0 / 200 mm",null,"Afficher"]
["PAC-003","Pied à coulisse","Production / 8401 / Magasin Outillages","0 / 200 mm",null,"Afficher"]
["PAC-004","Pied à coulisse","Production / 8510 / Tours de reprise","0 / 200 mm",null,"Afficher"]
["PAC-005","Pied à coulisse","Production / 8401 / VUCICEVIC","0 / 200 mm",null,"Afficher"]
["PAC-006","Pied à coulisse","Technique / 7300 / Mécanique","0 / 200 mm",null,"Afficher"]
["PAC-007","Pied à coulisse","Production / 8401 / Etirage Banc Droit","0 / 200 mm",null,"Afficher"]
["PAC-009","Pied à coulisse","Production / 8346 / Laboratoire Ctrl. Spcx","0 / 300 mm",null,"Afficher"]
["PAC-010","Pied à coulisse","Technique / 7245 / Prototype",null,null,"Afficher"]
["PAC-011","Pied à coulisse","Production / 8404 / Soudure","0 / 200 mm",null,"Afficher"]
["PAC-012","Pied à coulisse","Production / 8414","0 / 1000 mm",null,"Afficher"]
["PAC-013","Pied à coulisse","Production / 8509 / Tronconnage","0 / 200 mm",null,"Afficher"]
["PAC-014","Pied à coulisse","Production / 8553 / Presses Coup/Coup","0 / 200 mm",null,"Afficher"]
["PAC-015","Pied à coulisse","Production / 8401 / Magasin Outillages","0 / 300 mm",null,"Afficher"]
["PAC-017","Pied à coulisse","Production / 8553 / PRESSE C/C","0 / 200 mm",null,"Afficher"]
["PAC-018","Pied à coulisse","Production / 8515 / Production laboratoire","0 / 200 mm",null,"Afficher"]
["PAC-019","Pied à coulisse","Production / 8513 / Contrôle Final Pièces","0 / 200 mm",null,"Afficher"]
["PAC-020","Pied à coulisse","Production / 8513 / Contrôle Final Pièces","0 / 200 mm",null,"Afficher"]
["PAC-021","Pied à coulisse","Production / 8513 / Contrôle Final Pièces","0 / 200 mm",null,"Afficher"]
["PAC-024","Pied à coulisse","Production / 8400 / Etirage Bancs droits","0 / 200 mm",null,"Afficher"]
["PAC-025","Pied à coulisse","Production / 8400 / Etirage Bancs droits","0 / 200 mm",null,"Afficher"]
["PAC-026","Pied à coulisse","Production / 8016 / magasin tubes","0 / 200 mm",null,"Afficher"]
["PAC-027","Pied à coulisse","Technique / 7300 / Mécanique","0 / 200 mm",null,"Afficher"]
["PAC-033","Pied à coulisse","Production / 8444","0 / 200 mm",null,"Afficher"]
["PAC-034","Pied à coulisse","Technique / 7300 / Maintenance","0 / 150 mm",null,"Afficher"]
["PAC-035","Pied à coulisse","Production / 8513 / Contrôle Final Pièces","0 / 200 mm",null,"Afficher"]
["PAC-036","Pied à coulisse","Technique / 7300","0 / 200 mm",null,"Afficher"]
["PAC-037","Pied à coulisse","Technique / 7320 / Bureau d'étude","0 / 200 mm",null,"Afficher"]
["PAC-038","Pied à coulisse","Production / 8507 / Micro Assemblage","0 / 200 mm",null,"Afficher"]
["PAC-039","Pied à coulisse","Production / 8401 / Magasin Outillages","0 / 200 mm",null,"Afficher"]
["PAC-041","Pied à coulisse","Production / 8509 / Tronconnage","0 / 200 mm",null,"Afficher"]
["PAC-107","Pied à coulisse","Technique / 7300 / mecanique","0 / 300 mm",null,"Afficher"]
["PAC-110","Pied à coulisse","Production / 8507 / Micro Assemblage","0 / 200 mm",null,"Afficher"]
["PAC-118","Pied à coulisse","Technique / 7300","0 / 200 mm",null,"Afficher"]
["PAC-119","Pied à coulisse","Production / 8507 / Micro Assemblage","0 / 200 mm",null,"Afficher"]
["PAC-207","Pied à coulisse","Production / 8513 / Contrôle Final Pièces","0 / 600 mm",null,"Afficher"]
["PAC-237","Pied à coulisse","Production / 8509 / Tronconnage","0 / 1000 mm",null,"Afficher"]
["PCC.016","Pied à coulisse","Production / 8553 / Presses Coup/Coup","0 / 200 mm",null,"Afficher"]
["SQ.037","Pied à coulisse","Production / 8400 / Etirage Bancs droits","0 / 150 mm",null,"Afficher"]
["TC.099","Pied à coulisse","Production / 8508 / Tour Cathode","0 / 150 mm",null,"Afficher"]
["TC.100","Pied à coulisse","Production / 8508 / Tour Cathode","0 / 150 mm",null,"Afficher"]
["THE.001","Pied à coulisse","Technique / 7300 / Maintenance","0 / 150 mm",null,"Afficher"]
["THE.141","Pied à coulisse","Technique / 7245 / Prototype","0 / 200 mm",null,"Afficher"]
["THE.142","Pied à coulisse","Technique / 7245 / Prototype","0 / 200 mm",null,"Afficher"]
["TR.035","Pied à coulisse","Production / 8510 / Tours de reprise","0 / 200 mm",null,"Afficher"]
["TR.051","Pied à coulisse","Production / 8510 / Tour de Reprise","0 / 1000 mm",null,"Afficher"]
["TR.052","Pied à coulisse","Production / 8510 / Tour de Reprise","0 / 200 mm",null,"Afficher"]
["PAC-023","Pied à coulisse","Technique / 7700","0 / 600 mm",null,"Afficher"]
["CAT.117","Pied à coulisse","Technique / 7700 / Armoire BOTT DG","0 / 200 mm",null,"Afficher"]
["CE.051","Pied à coulisse","Technique / 7700 / Armoire BOTT IM","0 / 150 mm",null,"Afficher"]
["CE.251","Pied à coulisse","Technique / 7700 / Armoire proto P3A","0 / 500 mm",null,"Afficher"]
["CF.040","Pied à coulisse","Technique / 7700 / Armoire proto P2A","0 / 1000 mm",null,"Afficher"]
["CF.478","Pied à coulisse","Technique / 7700 / Armoire proto P2A","0 / 600 mm",null,"Afficher"]
["DIM-0068","Pied à coulisse","Technique / 7700 / Armoire BOTT FM","0 / 200 mm",null,"Afficher"]
["DIM-0078","Pied à coulisse","Technique / 7700 / Armoire BOTT FM","0 / 200 mm",null,"Afficher"]
["DIM-0079","Pied à coulisse","Technique / 7700 / Armoire BOTT FD","0 / 200 mm",null,"Afficher"]
["DIM-0112","Pied à coulisse","Technique / 7700 / Armoire BOTT IM","0 / 150 mm",null,"Afficher"]
["DIM-0115","Pied à coulisse","Technique / 7700 / Armoire BOTT IM","0 / 150 mm",null,"Afficher"]
["DIM-0116","Pied à coulisse","Technique / 7700 / Armoire BOTT IM","0 / 150 mm",null,"Afficher"]
["DIM-0117","Pied à coulisse","Technique / 7700 / Armoire BOTT IM","0 / 150 mm",null,"Afficher"]
["DIM-0118","Pied à coulisse","Technique / 7700 / Armoire BOTT DG","0 / 150 mm",null,"Afficher"]
["M.077","Pied à coulisse","Technique / 7300 / Mécanique","0 / 150 mm",null,"Afficher"]
["M.250","Pied à coulisse","Technique / 7700","0 / 150 mm",null,"Afficher"]
["PAC-008","Pied à coulisse","Technique / 7700 / Armoire BOTT FM","0 / 200 mm",null,"Afficher"]
["PAC-208","Pied à coulisse","Technique / 7700 / Armoire Métrologie M1","0 / 1000 mm",null,"Afficher"]
["THE.019","Pied à coulisse","Technique / 7700 / Armoire Métrologie M1","0 / 500 mm",null,"Afficher"]
["THE.023","Pied à coulisse","Technique / 7700 / Armoire BOTT DG","0 / 150 mm",null,"Afficher"]
["THE.055","Pied à coulisse","Technique / 7245 / Prototype","0 / 300 mm",null,"Afficher"]
["THE.122","Pied à coulisse","Technique / 7700","0 / 150 mm",null,"Afficher"]
["THE.123","Pied à coulisse","Technique / 7700 / Armoire BoTT IM","0 / 200 mm",null,"Afficher"]
["DIM-0057","Micromètre d'extérieur à vis","Technique / 7700 / Zone \"A expédier\"","0 / 25 mm",null,"Afficher"]
["SQ.036","Micromètre d'extérieur à vis","Technique / 7700 / Zone \"A expédier\"","0 / 25 mm",null,"Afficher"]
["DIM-0037","Micromètre d'extérieur à vis","Production / 8400 / étirage","0 / 25 mm",null,"Afficher"]
["EN.123","Micromètre d'extérieur à vis","Production / 8400 / Etirage Bancs droits","0 / 25 mm",null,"Afficher"]
["MEXT-032","Micromètre d'extérieur à vis","Production / 8400 / Etirage Bancs droits","0 / 25 mm",null,"Afficher"]
["EN.017","Micromètre d'extérieur à vis","Production / 8400 / Etirage Bancs droits","0 / 25 mm",null,"Afficher"]

{"sheet":"ø_exter_longueur","index":49,"n_rows":306,"n_cols":6,"rows_kept":306,"cut":false,"hidden":false,"merged":[]}
[]
[]
["CF.375","Machine à mesurer par vision","Production / 8509 / Tronconnage",null,null,"Afficher"]
["CF.280","Machine à mesurer sans contact","Production / 8513 / Contrôle Final Pièces",null,null,"Afficher"]
["CF.449","Projecteur de profils","Production / 8513 / Contrôle Final Pièces",null,null,"Afficher"]
["CF.460","Projecteur de profils","Production / 8414 DIV / Contrôle Tubes Divers",null,null,"Afficher"]
["OPT-0001","Projecteur de profils","Technique / 7245 / Prototype",null,null,"Afficher"]
["OPT-0006","Projecteur de profils","Production / 8507 / micro assemblage",null,null,"Afficher"]
["OPT-0017","Projecteur de profils","Production / 8510 / Tour de Reprise",null,null,"Afficher"]
["OPT-0020","Projecteur de profils","Production / 8513 / Contrôle Final Pièces",null,null,"Afficher"]
["OPT-0018","Projecteur de profils","Technique / 7700",null,null,"Afficher"]
["CAT.084","Machine à mesurer par vision","Production / 8510",null,null,"Afficher"]
["MEXT-040","Micromètre d'extérieur à vis","Production / 8403 / Bull-blocks","0 / 25 mm",null,"Afficher"]
["MIC 004","Micromètre d'extérieur à vis","Production / 8403 / Etirage Couronnes","0 / 25 mm",null,"Afficher"]
["CAT.024","Micromètre d'extérieur à vis","Technique / 7700 / Armoire BOTT CM","0 / 25 mm",null,"Afficher"]
["CE.023","Micromètre d'extérieur à vis","Technique / 7700 / Armoire BOTT FM","0 / 25 mm",null,"Afficher"]
["CE.106","Micromètre d'extérieur à vis","Technique / 7700 / Armoire BoTT CD","0 / 25 mm",null,"Afficher"]
["CE.192","Micromètre d'extérieur à vis","Technique / 7700 / Armoire BOTT FM","0 / 25 mm",null,"Afficher"]
["CF.130","Micromètre d'extérieur à vis","Technique / 7700 / Armoire BOTT CM","0 / 25 mm",null,"Afficher"]
["CP.018","Micromètre d'extérieur à vis","Technique / 7700 / Armoire BoTT CD","50 / 75 mm",null,"Afficher"]
["DIM-0005","Micromètre d'extérieur à vis","Technique / 7700 / Armoire BOTT CM","0 / 25 mm",null,"Afficher"]
["DIM-0006","Micromètre d'extérieur à vis","Technique / 7700 / Armoire BOTT FM","0 / 25 mm",null,"Afficher"]
["DIM-0055","Micromètre d'extérieur à vis","Technique / 7700 / Armoire BOTT IM","0 / 25 mm",null,"Afficher"]
["DIM-0085","Micromètre d'extérieur à vis","Technique / 7700 / Armoire BoTT IG","0 / 25 mm 1µ",null,"Afficher"]
["DIM-0086","Micromètre d'extérieur à vis","Technique / 7700 / Armoire BoTT IG","0 / 25 mm 1µ",null,"Afficher"]
["DIM-0087","Micromètre d'extérieur à vis","Technique / 7700 / Armoire BOTT IM","0 / 25 mm 1µ",null,"Afficher"]
["DIM-0093","Micromètre d'extérieur à vis","Technique / 7700 / Armoire BOTT IM","0 / 25 mm 1µ",null,"Afficher"]
["DIM-0119","Micromètre d'extérieur à vis","Technique / 7700 / Armoire BOTT FM","25 / 50 mm",null,"Afficher"]
["DIM-0120","Micromètre d'extérieur à vis","Technique / 7700 / Armoire BOTT FM","25 / 50 mm",null,"Afficher"]
["DIM-0135","Micromètre d'extérieur à vis","Technique / 7700 / Armoire BOTT KM","25 / 55 mm",null,"Afficher"]
["ED.148","Micromètre d'extérieur à vis","Technique / 7700 / Armoire BOTT IM","0 / 25 mm",null,"Afficher"]
["ED.150","Micromètre d'extérieur à vis","Technique / 7700 / Armoire BOTT IM","0 / 30 mm",null,"Afficher"]
["ED.201","Micromètre d'extérieur à vis","Technique / 7700 / Armoire BOTT CM","0 / 25 mm",null,"Afficher"]
["ED.275","Micromètre d'extérieur à vis","Technique / 7700 / Armoire BOTT FM","0 / 25 mm",null,"Afficher"]
["EN.078","Micromètre d'extérieur à vis","Technique / 7700 / Armoire BOTT CM","0 / 25 mm",null,"Afficher"]
["M.008","Micromètre d'extérieur à vis","Technique / 7700 / Armoire BOTT IM","0 / 25 mm",null,"Afficher"]
["M.087","Micromètre d'extérieur à vis","Technique / 7700 / Armoire BOTT CM","0 / 25 mm",null,"Afficher"]
["MEXT-001","Micromètre d'extérieur à vis","Technique / 7700 / Armoire BOTT FD","25 / 50 mm",null,"Afficher"]
["MEXT-002","Micromètre d'extérieur à vis","Technique / 7700 / Armoire BOTT CM","25 / 50 mm",null,"Afficher"]
["MEXT-003","Micromètre d'extérieur à vis","Technique / 7700 / Armoire BOTT CM","25 / 50 mm",null,"Afficher"]
["MEXT-009","Micromètre d'extérieur à vis","Technique / 7700 / Armoire BOTT FM","25 / 50 mm",null,"Afficher"]
["MEXT-010","Micromètre d'extérieur à vis","Production / 7700","0 / 25 mm",null,"Afficher"]
["MEXT-011","Micromètre d'extérieur à vis","Technique / 7700 / Armoire BOTT CM","0 / 25 mm",null,"Afficher"]
["MEXT-019","Micromètre d'extérieur à vis","Technique / 7700 / Armoire BOTT FM","0 / 25 mm",null,"Afficher"]
["MEXT-022","Micromètre d'extérieur à vis","Technique / 7700 / Armoire BOTT ED","0 / 25 mm",null,"Afficher"]
["SQ.048","Micromètre d'extérieur à vis","Technique / 7700 / Armoire BoTT CD","0 / 25 mm",null,"Afficher"]
["TC.006","Micromètre d'extérieur à vis","Technique / 7700","0 / 25 mm",null,"Afficher"]
["TC.028","Micromètre d'extérieur à vis","Technique / 7700 / Armoire BoTT CD","50 / 75 mm",null,"Afficher"]
["TC.037","Micromètre d'extérieur à vis","Technique / 7700 / Armoire BOTT CG","75 / 100 mm",null,"Afficher"]
["THE.013","Micromètre d'extérieur à vis","Technique / 7700 / Armoire BOTT CG","0 / 25 mm",null,"Afficher"]
["THE.015","Micromètre d'extérieur à vis","Technique / 7700 / Armoire BoTT IG","25 / 50 mm",null,"Afficher"]
["THE.016","Micromètre d'extérieur à vis","Technique / 7700 / Armoire BoTT IG","50 / 75 mm",null,"Afficher"]
["THE.017","Micromètre d'extérieur à vis","Technique / 7700 / Armoire BoTT IG","75 / 100 mm",null,"Afficher"]
["THE.110","Micromètre d'extérieur à vis","Technique / 7700 / Armoire BoTT IG","0 / 25 mm",null,"Afficher"]
["CAT.023","Micromètre d'extérieur à vis","Production / 8509 / Tronconnage","0 / 25 mm",null,"Afficher"]
["CAT.097","Micromètre d'extérieur à vis","Production / 8507 / Micro Assemblage","0 / 25 mm",null,"Afficher"]
["CAT.172","Micromètre d'extérieur à vis","Production / 8552 / Presse Automatique","25 / 50 mm",null,"Afficher"]
["CE.001","Micromètre d'extérieur à vis","Technique / 7400 / Ingénierie","0 / 25 mm",null,"Afficher"]
["CE.007","Micromètre d'extérieur à vis","Production / 8509 / Tronconnage","0 / 25 mm",null,"Afficher"]
["CE.088","Micromètre d'extérieur à vis","Production / 8507 / Micro Assemblage","0 / 25 mm",null,"Afficher"]
["CE.191","Micromètre d'extérieur à vis","Production / 8401 / Magasin Outillages","0 / 25 mm",null,"Afficher"]
["CE.206","Micromètre d'extérieur à vis","Technique / 7410","0 / 25 mm",null,"Afficher"]
["CF.008","Micromètre d'extérieur à vis","Production / 8508 / Tour Cathode","50 / 75 mm",null,"Afficher"]
["CF.441","Micromètre d'extérieur à vis","Production / 8401 / Magasin Outillage","0 / 25 mm",null,"Afficher"]
["CP.009","Micromètre d'extérieur à vis","Production / 8509 / Tronconnage","0 / 25 mm",null,"Afficher"]
["CP.072","Micromètre d'extérieur à vis","Production / 8508 / Tour Cathode","0 / 25 mm",null,"Afficher"]
["CP.073","Micromètre d'extérieur à vis","Production / 8553 / PRESSE C/C","0 / 25 mm",null,"Afficher"]
["DIM-0003","Micromètre d'extérieur à vis","Production / 8509 / Tronconnage","± 25 / 50 mm",null,"Afficher"]
["DIM-0011","Micromètre d'extérieur à vis","Production / 8346 / Laboratoire Ctrl. Spcx","25 / 50 mm",null,"Afficher"]
["DIM-0012","Micromètre d'extérieur à vis","Production / 8509 / Tronconnage","25 / 55 mm",null,"Afficher"]
["DIM-0016","Micromètre d'extérieur à vis","Production / 8401 / Magasin Outillage","0 / 25 mm",null,"Afficher"]
["DIM-0018","Micromètre d'extérieur à vis","Production / 8400 / Etirage Bancs droits","0 / 25 mm",null,"Afficher"]
["DIM-0019","Micromètre d'extérieur à vis","Technique / 7245 / Prototype","0 / 25 mm",null,"Afficher"]
["DIM-0020","Micromètre d'extérieur à vis","Technique / 7300","0 / 25 mm",null,"Afficher"]
["DIM-0034","Micromètre d'extérieur à vis","Technique / 7410","0 / 25 mm",null,"Afficher"]
["DIM-0035","Micromètre d'extérieur à vis","Production / 8400 / Etirage Bancs droits","0 / 25 mm",null,"Afficher"]
["DIM-0036","Micromètre d'extérieur à vis","Production / 8552 / Presse Automatique","0 / 25 mm",null,"Afficher"]
["DIM-0038","Micromètre d'extérieur à vis","Production / 8403 / Bull-blocks","0 / 25 mm",null,"Afficher"]
["DIM-0039","Micromètre d'extérieur à vis","Production / 8403 / Bull-blocks","0 / 25 mm",null,"Afficher"]
["DIM-0041","Micromètre d'extérieur à vis","Production / 8552 / Presse Automatique","0 / 25 mm",null,"Afficher"]
["DIM-0045","Micromètre d'extérieur à vis","Production / 8513 / Contrôle Final Pièces","0 / 25 mm",null,"Afficher"]
["DIM-0047","Micromètre d'extérieur à vis","Production / 8403 / Bull-blocks","0 / 25 mm",null,"Afficher"]
["DIM-0054","Micromètre d'extérieur à vis","Production / 8401 / Magasin Outillage","0 / 25 mm",null,"Afficher"]
["DIM-0056","Micromètre d'extérieur à vis","Technique / 8518 / Production aiguille","0 / 25 mm",null,"Afficher"]
["DIM-0059","Micromètre d'extérieur à vis","Production / 8401 / Magasin Outillage","0 / 25 mm",null,"Afficher"]
["DIM-0069","Micromètre d'extérieur à vis","Production / 8507","0 / 25 mm",null,"Afficher"]
["DIM-0070","Micromètre d'extérieur à vis","Production / 8346 / Contrôle spéciaux","0 / 25 mm",null,"Afficher"]
["DIM-0071","Micromètre d'extérieur à vis","Production / 8553 / PRESSE AUTOMATIQUE","0 / 25 mm",null,"Afficher"]
["DIM-0088","Micromètre d'extérieur à vis","Production / 8016 / magasin tubes","0 / 25 mm 1µ",null,"Afficher"]
["DIM-0089","Micromètre d'extérieur à vis","Production / 8518 / Aiguilles","0 / 25 mm 1µ",null,"Afficher"]
["DIM-0090","Micromètre d'extérieur à vis","Technique / 7300 / Mécanique","0 / 25 mm 1µ",null,"Afficher"]
["DIM-0091","Micromètre d'extérieur à vis","Production / 8513 / Contrôle Final Pièces","0 / 25 mm 1µ",null,"Afficher"]
["DIM-0092","Micromètre d'extérieur à vis","Technique / 7245 / Prototype","0 / 25 mm 1µ",null,"Afficher"]
["DIM-0107","Micromètre d'extérieur à vis","Production / 8414 IMP / contrôle tube implant","0 / 25 mm",null,"Afficher"]
["DIM-0123","Micromètre d'extérieur à vis","Production / 8401 / 30 T","0 / 25 mm",null,"Afficher"]
["DIM-0125","Micromètre d'extérieur à vis","Production / 8403 / Bull-blocks","0 / 25 mm",null,"Afficher"]
["DIM-0126","Micromètre d'extérieur à vis","Production / 8444 / Interopérations","0 / 25 mm",null,"Afficher"]
["DIM-0127","Micromètre d'extérieur à vis","Production / 8444 / Interopérations","0 / 25 mm",null,"Afficher"]
["DIM-0128","Micromètre d'extérieur à vis","Production / 8401 / Etirage Banc Droit","0 / 25 mm",null,"Afficher"]
["DIM-0129","Micromètre d'extérieur à vis","Production / 8401 / Etirage Banc Droit","0 / 25 mm",null,"Afficher"]
["DIM-0130","Micromètre d'extérieur à vis","Production / 8401 / Magasin Outillage","0 / 25 mm",null,"Afficher"]
["DIM-0131","Micromètre d'extérieur à vis","Technique / 7320 / bureau d'étude","0 / 25 mm",null,"Afficher"]
["DIM-0137","Micromètre d'extérieur à vis","Production / 8508 / Tour Cathode","0 / 25 mm",null,"Afficher"]
["DIM-0139","Micromètre d'extérieur à vis","Production / 8401","0 / 25 mm",null,"Afficher"]
["DIM-0140","Micromètre d'extérieur à vis","Production / 8401","0 / 25 mm",null,"Afficher"]
["DIM-0141","Micromètre d'extérieur à vis","Production / 8401","0 / 25 mm",null,"Afficher"]
["DIM-0142","Micromètre d'extérieur à vis","Production / 8401 / Magasin Outillage","0 / 25 mm",null,"Afficher"]
["EC.009","Micromètre d'extérieur à vis","Production / 8404 / Soudure","0 / 25 mm",null,"Afficher"]
["EC.108","Micromètre d'extérieur à vis","Production / 8403 / Bull-blocks","0 / 25 mm",null,"Afficher"]
["ED.010","Micromètre d'extérieur à vis","Production / 8400 / Etirage Bancs droits","0 / 25 mm",null,"Afficher"]
["ED.012","Micromètre d'extérieur à vis","Production / 8513 / Contrôle Final Pièces","0 / 25 mm",null,"Afficher"]
["ED.111","Micromètre d'extérieur à vis","Technique / 7300 / Mécanique","0 / 25 mm",null,"Afficher"]
["ED.153","Micromètre d'extérieur à vis","Production / 8510 / Tours de reprise","0 / 25 mm",null,"Afficher"]
["ED.227","Micromètre d'extérieur à vis","Production / 8400 / Etirage Bancs droits","0 / 25 mm",null,"Afficher"]
["ED.233","Micromètre d'extérieur à vis","Production / 8401 / Etirage Banc Droit",null,null,"Afficher"]
["ED.266","Micromètre d'extérieur à vis","Production / 8400 / Etirage Bancs droits","0 / 25 mm",null,"Afficher"]
["ED.273","Micromètre d'extérieur à vis","Technique / 7700","0 / 25 mm",null,"Afficher"]
["EN.016","Micromètre d'extérieur à vis","Technique / 7300 / Mécanique","0 / 25 mm",null,"Afficher"]
["EN.125","Micromètre d'extérieur à vis","Technique / 7400 / Process tube","0 / 25 mm",null,"Afficher"]
["EN.143","Micromètre d'extérieur à vis","Production / 8400 / Etirage Bancs droits","0 / 25 mm",null,"Afficher"]
["EN.153","Micromètre d'extérieur à vis","Production / 8401 / Etirage Banc Droit","0 / 25 mm",null,"Afficher"]
["EN.157","Micromètre d'extérieur à vis","Production / 8400 / Etirage Bancs droits","0 / 25 mm",null,"Afficher"]
["M.022","Micromètre d'extérieur à vis","Technique / 7300 / Mécanique","75 / 100 mm",null,"Afficher"]
["M.023","Micromètre d'extérieur à vis","Technique / 7300","100 / 200 mm",null,"Afficher"]
["M.082","Micromètre d'extérieur à vis","Technique / 7300 / Mécanique","0 / 25 mm",null,"Afficher"]
["M.083","Micromètre d'extérieur à vis","Technique / 7300 / Mécanique","25 / 50 mm",null,"Afficher"]
["M.084","Micromètre d'extérieur à vis","Technique / 7300 / Mécanique","50 / 75 mm",null,"Afficher"]
["M.089","Micromètre d'extérieur à vis","Technique / 7300 / Mécanique","0 / 25 mm",null,"Afficher"]
["M.095","Micromètre d'extérieur à vis","Technique / 7300 / Mécanique","0 / 50 mm",null,"Afficher"]
["M.098","Micromètre d'extérieur à vis","Technique / 7300 / Mécanique","50 / 75 mm",null,"Afficher"]
["M.184B","Micromètre d'extérieur à vis","Technique / 7300 / Mécanique","0 / 25 mm",null,"Afficher"]
["M.259","Micromètre d'extérieur à vis","Technique / 7300 / Mécanique","75 / 100 mm",null,"Afficher"]
["M.282","Micromètre d'extérieur à vis","Technique / 7300","0 / 25 mm",null,"Afficher"]
["MEXT-005","Micromètre d'extérieur à vis","Technique / 7245 / Prototype","0 / 25 mm",null,"Afficher"]
["MEXT-006","Micromètre d'extérieur à vis","Technique / 7300 / Mécanique","0 / 25 mm",null,"Afficher"]
["MEXT-007","Micromètre d'extérieur à vis","Production / 8401 / Magasin Outillage","0 / 25 mm",null,"Afficher"]
["MEXT-008","Micromètre d'extérieur à vis","Production / 8513 / Contrôle Final Pièces","25 / 50 mm",null,"Afficher"]
["MEXT-014","Micromètre d'extérieur à vis","Technique / 7410","0 / 25 mm",null,"Afficher"]
["MEXT-015","Micromètre d'extérieur à vis","Production / 8400 / Etirage Bancs droits","0 / 25 mm",null,"Afficher"]
["MEXT-018","Micromètre d'extérieur à vis","Production / 8510 / Tours de reprise","0 / 25 mm",null,"Afficher"]
["MEXT-021","Micromètre d'extérieur à vis","Production / 8401 / Magasin Outillages","0 / 25 mm",null,"Afficher"]
["MEXT-023","Micromètre d'extérieur à vis","Production / 8513 / Contrôle Final Pièces","0 / 25 mm",null,"Afficher"]
["MEXT-024","Micromètre d'extérieur à vis","Production / 8513 / Contrôle Final Pièces","0 / 25 mm",null,"Afficher"]
["MEXT-025","Micromètre d'extérieur à vis","Production / 8513 / Contrôle Final Pièces","0 / 25 mm",null,"Afficher"]
["MEXT-026","Micromètre d'extérieur à vis","Production / 8513 / Contrôle Final Pièces","0 / 25 mm",null,"Afficher"]
["MEXT-027","Micromètre d'extérieur à vis","Production / 8513 / Contrôle Final Pièces","0 / 25 mm",null,"Afficher"]
["MEXT-029","Micromètre d'extérieur à vis","Production / 8401 / Magasin Outillage","25 / 50 mm",null,"Afficher"]
["MEXT-030","Micromètre d'extérieur à vis","Production / 8414DIV / Contrôle tube divers","0 / 25 mm",null,"Afficher"]
["MEXT-031","Micromètre d'extérieur à vis","Production / 8401 / Etirage Banc Droit","0 / 25 mm",null,"Afficher"]
["MEXT-033","Micromètre d'extérieur à vis","Technique / 8401 / étirage","0 / 25",null,"Afficher"]
["MEXT-034","Micromètre d'extérieur à vis","Production / 8403 / Bull-blocks","0 / 25",null,"Afficher"]
["MEXT-035","Micromètre d'extérieur à vis","Production / 8016 / magasin tubes","0 / 25",null,"Afficher"]
["MEXT-037","Micromètre d'extérieur à vis","Production / 8490 / Magasin Outillage","0 / 25 mm",null,"Afficher"]
["MEXT-038","Micromètre d'extérieur à vis","Production / 8513 / Contrôle Final Pièces","0 / 25 mm",null,"Afficher"]
["MEXT-039","Micromètre d'extérieur à vis","Production / 8403 / Bull-blocks","0 / 25 mm",null,"Afficher"]
["MEXT-130","Micromètre d'extérieur à vis","Production / 8401 / Magasin Outillages","25 / 50 mm",null,"Afficher"]
["PA.001","Micromètre d'extérieur à vis","Production / 8552 / Presse Automatique","0 / 25 mm",null,"Afficher"]
["PA.010","Micromètre d'extérieur à vis","Production / 8552 / Presse Automatique","0 / 25 mm",null,"Afficher"]
["PA.014","Micromètre d'extérieur à vis","Production / 8552 / Presse Automatique","0 / 25 mm",null,"Afficher"]
["PA.021","Micromètre d'extérieur à vis","Production / 8552 / Presse Automatique","0 / 25 mm",null,"Afficher"]
["PA.022","Micromètre d'extérieur à vis","Production / 8552 / Presse Automatique","0 / 25 mm",null,"Afficher"]
["PA.027","Micromètre d'extérieur à vis","Production / 8552 / Presse Automatique","0 / 25 mm",null,"Afficher"]
["SQ.003","Micromètre d'extérieur à vis","Production / 8404 / Soudure","0 / 25 mm",null,"Afficher"]
["SQ.028","Micromètre d'extérieur à vis","Production / 8552 / Presse Automatique","0 / 25 nm",null,"Afficher"]
["SQ.122","Micromètre d'extérieur à vis","Administratif / 8016 / Magasin Tubes","0 / 25 mm",null,"Afficher"]
["SQ.131","Micromètre d'extérieur à vis","Production / 8016","0 / 25 mm",null,"Afficher"]
["TC.015","Micromètre d'extérieur à vis","Production / 8508 / Tour Cathode","0 / 25 mm",null,"Afficher"]
["TC.020","Micromètre d'extérieur à vis","Production / 8508 / Tour Cathode","25 / 50 mm",null,"Afficher"]
["THE.006","Micromètre d'extérieur à vis","Technique / 7300 / Mécanique","0 / 25 mm",null,"Afficher"]
["THE.009","Micromètre d'extérieur à vis","Production / 8553 / PRESSE C/C","0 / 25 mm",null,"Afficher"]
["THE.206","Micromètre d'extérieur à vis","Production / 8401 / Magasin Outillages","25 / 50 mm",null,"Afficher"]
["CAT.117","Pied à coulisse","Technique / 7700 / Armoire BOTT DG","0 / 200 mm",null,"Afficher"]
["CE.051","Pied à coulisse","Technique / 7700 / Armoire BOTT IM","0 / 150 mm",null,"Afficher"]
["CE.251","Pied à coulisse","Technique / 7700 / Armoire proto P3A","0 / 500 mm",null,"Afficher"]
["CF.040","Pied à coulisse","Technique / 7700 / Armoire proto P2A","0 / 1000 mm",null,"Afficher"]
["CF.478","Pied à coulisse","Technique / 7700 / Armoire proto P2A","0 / 600 mm",null,"Afficher"]
["DIM-0068","Pied à coulisse","Technique / 7700 / Armoire BOTT FM","0 / 200 mm",null,"Afficher"]
["DIM-0078","Pied à coulisse","Technique / 7700 / Armoire BOTT FM","0 / 200 mm",null,"Afficher"]
["DIM-0079","Pied à coulisse","Technique / 7700 / Armoire BOTT FD","0 / 200 mm",null,"Afficher"]
["DIM-0112","Pied à coulisse","Technique / 7700 / Armoire BOTT IM","0 / 150 mm",null,"Afficher"]
["DIM-0115","Pied à coulisse","Technique / 7700 / Armoire BOTT IM","0 / 150 mm",null,"Afficher"]
["DIM-0116","Pied à coulisse","Technique / 7700 / Armoire BOTT IM","0 / 150 mm",null,"Afficher"]
["DIM-0117","Pied à coulisse","Technique / 7700 / Armoire BOTT IM","0 / 150 mm",null,"Afficher"]
["DIM-0118","Pied à coulisse","Technique / 7700 / Armoire BOTT DG","0 / 150 mm",null,"Afficher"]
["M.077","Pied à coulisse","Technique / 7300 / Mécanique","0 / 150 mm",null,"Afficher"]
["M.250","Pied à coulisse","Technique / 7700","0 / 150 mm",null,"Afficher"]
["PAC-008","Pied à coulisse","Technique / 7700 / Armoire BOTT FM","0 / 200 mm",null,"Afficher"]
["PAC-208","Pied à coulisse","Technique / 7700 / Armoire Métrologie M1","0 / 1000 mm",null,"Afficher"]
["THE.019","Pied à coulisse","Technique / 7700 / Armoire Métrologie M1","0 / 500 mm",null,"Afficher"]
["THE.023","Pied à coulisse","Technique / 7700 / Armoire BOTT DG","0 / 150 mm",null,"Afficher"]
["THE.055","Pied à coulisse","Technique / 7245 / Prototype","0 / 300 mm",null,"Afficher"]
["THE.122","Pied à coulisse","Technique / 7700","0 / 150 mm",null,"Afficher"]
["THE.123","Pied à coulisse","Technique / 7700 / Armoire BoTT IM","0 / 200 mm",null,"Afficher"]
["DIM-0057","Micromètre d'extérieur à vis","Technique / 7700 / Zone \"A expédier\"","0 / 25 mm",null,"Afficher"]
["SQ.036","Micromètre d'extérieur à vis","Technique / 7700 / Zone \"A expédier\"","0 / 25 mm",null,"Afficher"]
["DIM-0037","Micromètre d'extérieur à vis","Production / 8400 / étirage","0 / 25 mm",null,"Afficher"]
["EN.123","Micromètre d'extérieur à vis","Production / 8400 / Etirage Bancs droits","0 / 25 mm",null,"Afficher"]
["MEXT-032","Micromètre d'extérieur à vis","Production / 8400 / Etirage Bancs droits","0 / 25 mm",null,"Afficher"]
["EN.017","Micromètre d'extérieur à vis","Production / 8400 / Etirage Bancs droits","0 / 25 mm",null,"Afficher"]
["CAT.040","Pied à coulisse","Production / 8507 / Micro Assemblage","0 / 300 mm",null,"Afficher"]
["CAT.078","Pied à coulisse","Production / 8507 / Micro Assemblage","0 / 200 mm",null,"Afficher"]
["CAT.080","Pied à coulisse","Production / 8510 / Tour de Reprise","0 / 200 mm",null,"Afficher"]
["CAT.146","Pied à coulisse","Production / 8507 / Micro Assemblage","0 / 200 mm",null,"Afficher"]
["CAT.148","Pied à coulisse","Production / 8507 / Micro Assemblage","0 / 200 mm",null,"Afficher"]
["CAT.149","Pied à coulisse","Production / 8507 / Micro Assemblage","0 / 200 mm",null,"Afficher"]
["CE.237","Pied à coulisse","Production / 8509 / Tronconnage","0 / 500 mm",null,"Afficher"]
["CE.243","Pied à coulisse","Production / 8414DIV / Contrôle Final Tubes","0 / 300 mm",null,"Afficher"]
["CE.259","Pied à coulisse","Production / 8414IMP","0 / 300 mm",null,"Afficher"]
["CF.054","Pied à coulisse","Technique / 7300 / Mécanique","0 / 150 mm",null,"Afficher"]
["CF.061","Pied à coulisse","Technique / 7245 / Prototype","0 / 500 mm",null,"Afficher"]
["CF.087","Pied à coulisse","Production / 8513 / Contrôle Final Pièces","0 / 200 mm",null,"Afficher"]
["CP.069","Pied à coulisse","Production / 8553 / PRESSE C/C","0 / 150 mm",null,"Afficher"]
["DIM-0015","Pied à coulisse","Technique / 7245 / Prototype","0 / 200 mm",null,"Afficher"]
["DIM-0021","Pied à coulisse","Technique / 7300","0 / 150 mm",null,"Afficher"]
["DIM-0048","Pied à coulisse","Production / 7410 / process","0 / 600 mm",null,"Afficher"]
["DIM-0066","Pied à coulisse","Technique / 7320 / bureau d'étude","0 / 200 mm",null,"Afficher"]
["DIM-0080","Pied à coulisse","Technique / 7510 / Process","0 / 200 mm",null,"Afficher"]
["DIM-0081","Pied à coulisse","Technique / 7510 / Process BU transformation","0 / 200 mm",null,"Afficher"]
["DIM-0082","Pied à coulisse","Technique / 7300 / Maintenance","0 / 200 mm",null,"Afficher"]
["DIM-0083","Pied à coulisse","Technique / 7320 / bureau d'étude","0 / 200 mm",null,"Afficher"]
["DIM-0105","Pied à coulisse","Production / 8510 / Tour de Reprise","0 / 500 mm",null,"Afficher"]
["DIM-0113","Pied à coulisse","Technique / 7410","0 / 150 mm",null,"Afficher"]
["DIM-0148","Pied à coulisse","Technique / 7320 / bureau d'étude","0 / 1000 mm",null,"Afficher"]
["EC.128","Pied à coulisse","Production / 8513 / controle final piece","0 / 150 mm",null,"Afficher"]
["M.038","Pied à coulisse","Technique / 7300 / Mécanique","0 / 300 mm",null,"Afficher"]
["M.072","Pied à coulisse","Technique / 7300","0 / 500 mm",null,"Afficher"]
["M.269","Pied à coulisse","Technique / 7300 / maintenance mécanique","0 / 150 mm",null,"Afficher"]
["M.279","Pied à coulisse","Technique / 7300 / Mécanique","0 / 150 mm",null,"Afficher"]
["M.296","Pied à coulisse","Technique / 7300 / Maintenance","0 / 150 mm",null,"Afficher"]
["PA.024","Pied à coulisse","Production / 8552 / Presses Automatiques","0 / 200 mm",null,"Afficher"]
["PAC-001","Pied à coulisse","Production / 8513 / Contrôle Final Pièces","0 / 200 mm",null,"Afficher"]
["PAC-002","Pied à coulisse","Production / 8513 / Contrôle Final Pièces","0 / 200 mm",null,"Afficher"]
["PAC-003","Pied à coulisse","Production / 8401 / Magasin Outillages","0 / 200 mm",null,"Afficher"]
["PAC-004","Pied à coulisse","Production / 8510 / Tours de reprise","0 / 200 mm",null,"Afficher"]
["PAC-005","Pied à coulisse","Production / 8401 / VUCICEVIC","0 / 200 mm",null,"Afficher"]
["PAC-006","Pied à coulisse","Technique / 7300 / Mécanique","0 / 200 mm",null,"Afficher"]
["PAC-007","Pied à coulisse","Production / 8401 / Etirage Banc Droit","0 / 200 mm",null,"Afficher"]
["PAC-009","Pied à coulisse","Production / 8346 / Laboratoire Ctrl. Spcx","0 / 300 mm",null,"Afficher"]
["PAC-010","Pied à coulisse","Technique / 7245 / Prototype",null,null,"Afficher"]
["PAC-011","Pied à coulisse","Production / 8404 / Soudure","0 / 200 mm",null,"Afficher"]
["PAC-012","Pied à coulisse","Production / 8414","0 / 1000 mm",null,"Afficher"]
["PAC-013","Pied à coulisse","Production / 8509 / Tronconnage","0 / 200 mm",null,"Afficher"]
["PAC-014","Pied à coulisse","Production / 8553 / Presses Coup/Coup","0 / 200 mm",null,"Afficher"]
["PAC-015","Pied à coulisse","Production / 8401 / Magasin Outillages","0 / 300 mm",null,"Afficher"]
["PAC-017","Pied à coulisse","Production / 8553 / PRESSE C/C","0 / 200 mm",null,"Afficher"]
["PAC-018","Pied à coulisse","Production / 8515 / Production laboratoire","0 / 200 mm",null,"Afficher"]
["PAC-019","Pied à coulisse","Production / 8513 / Contrôle Final Pièces","0 / 200 mm",null,"Afficher"]
["PAC-020","Pied à coulisse","Production / 8513 / Contrôle Final Pièces","0 / 200 mm",null,"Afficher"]
["PAC-021","Pied à coulisse","Production / 8513 / Contrôle Final Pièces","0 / 200 mm",null,"Afficher"]
["PAC-024","Pied à coulisse","Production / 8400 / Etirage Bancs droits","0 / 200 mm",null,"Afficher"]
["PAC-025","Pied à coulisse","Production / 8400 / Etirage Bancs droits","0 / 200 mm",null,"Afficher"]
["PAC-026","Pied à coulisse","Production / 8016 / magasin tubes","0 / 200 mm",null,"Afficher"]
["PAC-027","Pied à coulisse","Technique / 7300 / Mécanique","0 / 200 mm",null,"Afficher"]
["PAC-033","Pied à coulisse","Production / 8444","0 / 200 mm",null,"Afficher"]
["PAC-034","Pied à coulisse","Technique / 7300 / Maintenance","0 / 150 mm",null,"Afficher"]
["PAC-035","Pied à coulisse","Production / 8513 / Contrôle Final Pièces","0 / 200 mm",null,"Afficher"]
["PAC-036","Pied à coulisse","Technique / 7300","0 / 200 mm",null,"Afficher"]
["PAC-037","Pied à coulisse","Technique / 7320 / Bureau d'étude","0 / 200 mm",null,"Afficher"]
["PAC-038","Pied à coulisse","Production / 8507 / Micro Assemblage","0 / 200 mm",null,"Afficher"]
["PAC-039","Pied à coulisse","Production / 8401 / Magasin Outillages","0 / 200 mm",null,"Afficher"]
["PAC-041","Pied à coulisse","Production / 8509 / Tronconnage","0 / 200 mm",null,"Afficher"]
["PAC-107","Pied à coulisse","Technique / 7300 / mecanique","0 / 300 mm",null,"Afficher"]
["PAC-110","Pied à coulisse","Production / 8507 / Micro Assemblage","0 / 200 mm",null,"Afficher"]
["PAC-118","Pied à coulisse","Technique / 7300","0 / 200 mm",null,"Afficher"]
["PAC-119","Pied à coulisse","Production / 8507 / Micro Assemblage","0 / 200 mm",null,"Afficher"]
["PAC-207","Pied à coulisse","Production / 8513 / Contrôle Final Pièces","0 / 600 mm",null,"Afficher"]
["PAC-237","Pied à coulisse","Production / 8509 / Tronconnage","0 / 1000 mm",null,"Afficher"]
["PCC.016","Pied à coulisse","Production / 8553 / Presses Coup/Coup","0 / 200 mm",null,"Afficher"]
["SQ.037","Pied à coulisse","Production / 8400 / Etirage Bancs droits","0 / 150 mm",null,"Afficher"]
["TC.099","Pied à coulisse","Production / 8508 / Tour Cathode","0 / 150 mm",null,"Afficher"]
["TC.100","Pied à coulisse","Production / 8508 / Tour Cathode","0 / 150 mm",null,"Afficher"]
["THE.001","Pied à coulisse","Technique / 7300 / Maintenance","0 / 150 mm",null,"Afficher"]
["THE.141","Pied à coulisse","Technique / 7245 / Prototype","0 / 200 mm",null,"Afficher"]
["THE.142","Pied à coulisse","Technique / 7245 / Prototype","0 / 200 mm",null,"Afficher"]
["TR.035","Pied à coulisse","Production / 8510 / Tours de reprise","0 / 200 mm",null,"Afficher"]
["TR.051","Pied à coulisse","Production / 8510 / Tour de Reprise","0 / 1000 mm",null,"Afficher"]
["TR.052","Pied à coulisse","Production / 8510 / Tour de Reprise","0 / 200 mm",null,"Afficher"]
["PAC-023","Pied à coulisse","Technique / 7700","0 / 600 mm",null,"Afficher"]
["CAT.117","Pied à coulisse","Technique / 7700 / Armoire BOTT DG","0 / 200 mm",null,"Afficher"]
["CE.051","Pied à coulisse","Technique / 7700 / Armoire BOTT IM","0 / 150 mm",null,"Afficher"]
["CE.251","Pied à coulisse","Technique / 7700 / Armoire proto P3A","0 / 500 mm",null,"Afficher"]
["CF.040","Pied à coulisse","Technique / 7700 / Armoire proto P2A","0 / 1000 mm",null,"Afficher"]
["CF.478","Pied à coulisse","Technique / 7700 / Armoire proto P2A","0 / 600 mm",null,"Afficher"]
["DIM-0068","Pied à coulisse","Technique / 7700 / Armoire BOTT FM","0 / 200 mm",null,"Afficher"]
["DIM-0078","Pied à coulisse","Technique / 7700 / Armoire BOTT FM","0 / 200 mm",null,"Afficher"]
["DIM-0079","Pied à coulisse","Technique / 7700 / Armoire BOTT FD","0 / 200 mm",null,"Afficher"]
["DIM-0112","Pied à coulisse","Technique / 7700 / Armoire BOTT IM","0 / 150 mm",null,"Afficher"]
["DIM-0115","Pied à coulisse","Technique / 7700 / Armoire BOTT IM","0 / 150 mm",null,"Afficher"]
["DIM-0116","Pied à coulisse","Technique / 7700 / Armoire BOTT IM","0 / 150 mm",null,"Afficher"]
["DIM-0117","Pied à coulisse","Technique / 7700 / Armoire BOTT IM","0 / 150 mm",null,"Afficher"]
["DIM-0118","Pied à coulisse","Technique / 7700 / Armoire BOTT DG","0 / 150 mm",null,"Afficher"]
["M.077","Pied à coulisse","Technique / 7300 / Mécanique","0 / 150 mm",null,"Afficher"]
["M.250","Pied à coulisse","Technique / 7700","0 / 150 mm",null,"Afficher"]
["PAC-008","Pied à coulisse","Technique / 7700 / Armoire BOTT FM","0 / 200 mm",null,"Afficher"]
["PAC-208","Pied à coulisse","Technique / 7700 / Armoire Métrologie M1","0 / 1000 mm",null,"Afficher"]
["THE.019","Pied à coulisse","Technique / 7700 / Armoire Métrologie M1","0 / 500 mm",null,"Afficher"]
["THE.023","Pied à coulisse","Technique / 7700 / Armoire BOTT DG","0 / 150 mm",null,"Afficher"]
["THE.055","Pied à coulisse","Technique / 7245 / Prototype","0 / 300 mm",null,"Afficher"]
["THE.122","Pied à coulisse","Technique / 7700","0 / 150 mm",null,"Afficher"]
["THE.123","Pied à coulisse","Technique / 7700 / Armoire BoTT IM","0 / 200 mm",null,"Afficher"]
["DIM-0057","Micromètre d'extérieur à vis","Technique / 7700 / Zone \"A expédier\"","0 / 25 mm",null,"Afficher"]
["SQ.036","Micromètre d'extérieur à vis","Technique / 7700 / Zone \"A expédier\"","0 / 25 mm",null,"Afficher"]
["DIM-0037","Micromètre d'extérieur à vis","Production / 8400 / étirage","0 / 25 mm",null,"Afficher"]
["EN.123","Micromètre d'extérieur à vis","Production / 8400 / Etirage Bancs droits","0 / 25 mm",null,"Afficher"]
["MEXT-032","Micromètre d'extérieur à vis","Production / 8400 / Etirage Bancs droits","0 / 25 mm",null,"Afficher"]
["EN.017","Micromètre d'extérieur à vis","Production / 8400 / Etirage Bancs droits","0 / 25 mm",null,"Afficher"]

{"sheet":"ø_exter_ø_inter_longueur","index":50,"n_rows":0,"n_cols":0,"rows_kept":0,"cut":false,"hidden":false,"merged":[]}

{"sheet":"ø_inter","index":51,"n_rows":555,"n_cols":6,"rows_kept":555,"cut":false,"hidden":false,"merged":[]}
[]
[]
["DIM-0143","Mesureur pneumatique","Production / 8552 / Presse Automatique","6 / 8 mm",null,"Afficher"]
["M.050","Micromètre d'intérieur 2 touches","Technique / 7300 / Mécanique","30 / 35 mm",null,"Afficher"]
["M.050A","Micromètre d'intérieur 2 touches","Technique / 7300 / Mécanique","35 / 40 mm",null,"Afficher"]
["M.050B","Micromètre d'intérieur 2 touches","Technique / 7300 / Mécanique","40 / 50 mm",null,"Afficher"]
["M.229","Micromètre d'intérieur 2 touches","Technique / 7700 / Zone \"A expédier\"","75 / 100 mm",null,"Afficher"]
["M.230","Micromètre d'intérieur 2 touches","Technique / 7300 / Mécanique","50 / 75 mm",null,"Afficher"]
["M.232","Micromètre d'intérieur 2 touches","Technique / 7300 / Mécanique","100 / 125 mm",null,"Afficher"]
["CF.466","Micromètre d'intérieur à 3 touches","Production / 8513 / Contrôle Final Pièces","6 / 8 mm",null,"Afficher"]
["DIM-0004","Micromètre d'intérieur à 3 touches","Technique / 7430 / Méthode BU tubes","10 / 12 mm",null,"Afficher"]
["EC.134","Micromètre d'intérieur à 3 touches","Production / 8513 / Contrôle Final Pièces","6 / 8 mm",null,"Afficher"]
["ED.241","Micromètre d'intérieur à 3 touches","Production / 8401 / Magasin Outillages","25 / 30 mm",null,"Afficher"]
["EN.115","Micromètre d'intérieur à 3 touches","Production / 8401 / Magasin Outillages","20 / 25 mm",null,"Afficher"]
["EN.116","Micromètre d'intérieur à 3 touches","Production / 8401 / Magasin Outillages","10 / 12 mm",null,"Afficher"]
["EN.117","Micromètre d'intérieur à 3 touches","Production / 8401 / Magasin Outillages","12 / 16 mm",null,"Afficher"]
["EN.118","Micromètre d'intérieur à 3 touches","Production / 8401 / Magasin Outillages","16 / 20 mm",null,"Afficher"]
["EN.161","Micromètre d'intérieur à 3 touches","Production / 8401 / Magasin Outillages","30 / 40 mm",null,"Afficher"]
["M.024","Micromètre d'intérieur à 3 touches","Technique / 7700 / Zone \"A étalonner en interne\"","10 / 12 mm",null,"Afficher"]
["M.027","Micromètre d'intérieur à 3 touches","Technique / 7300 / Mécanique","11 / 14 mm",null,"Afficher"]
["M.028","Micromètre d'intérieur à 3 touches","Technique / 7300 / Mécanique","14 / 17 mm",null,"Afficher"]
["M.030","Micromètre d'intérieur à 3 touches","Technique / 7300 / Mécanique","30 / 35 mm",null,"Afficher"]
["M.031","Micromètre d'intérieur à 3 touches","Technique / 7300 / Mécanique","25 / 30 mm",null,"Afficher"]
["M.032","Micromètre d'intérieur à 3 touches","Technique / 7300 / Mécanique","20 / 25 mm",null,"Afficher"]
["M.033","Micromètre d'intérieur à 3 touches","Technique / 7300 / Mécanique","50 / 60 mm",null,"Afficher"]
["M.075","Micromètre d'intérieur à 3 touches","Technique / 7300 / Mécanique","8 / 10 mm",null,"Afficher"]
["M.076","Micromètre d'intérieur à 3 touches","Technique / 7300 / Mécanique","10 / 12 mm",null,"Afficher"]
["M.090","Micromètre d'intérieur à 3 touches","Technique / 7300 / Mécanique","6 / 8 mm",null,"Afficher"]
["M.104A","Micromètre d'intérieur à 3 touches","Technique / 7300 / Mécanique","35 / 40 mm",null,"Afficher"]
["M.224","Micromètre d'intérieur à 3 touches","Technique / 7300 / Mécanique","16 / 20 mm",null,"Afficher"]
["M.225","Micromètre d'intérieur à 3 touches","Technique / 7300 / Mécanique","40 / 50 mm",null,"Afficher"]
["MINT3-002","Micromètre d'intérieur à 3 touches","Technique / 7300 / Mécanique","20 / 25 mm",null,"Afficher"]
["MINT3-003","Micromètre d'intérieur à 3 touches","Technique / 7300 / Mécanique","25 / 30 mm",null,"Afficher"]
["MINT3-004","Micromètre d'intérieur à 3 touches","Technique / 7300 / Mécanique","30 / 35 mm",null,"Afficher"]
["MINT3-005","Micromètre d'intérieur à 3 touches","Technique / 7300 / Mécanique","35 / 40 mm",null,"Afficher"]
["SQ.006","Micromètre d'intérieur à 3 touches","Technique / 7300 / Mécanique","6 / 8 mm",null,"Afficher"]
["DIM-0049","Pied à coulisse pour mesure intérieure","Technique / 7410","0 / 200 mm",null,"Afficher"]
["CAL-0007","Tampon lisse","Production / 8414DIV / Contrôle tube divers","TLNEP",null,"Afficher"]
["CAL-0008","Tampon lisse","Production / 8414DIV / Contrôle tube divers","TLE 3,315",null,"Afficher"]
["CAL-0022","Tampon lisse","Production / 8403 / Bull-blocks","TLE 0,6350",null,"Afficher"]
["CAL-0023","Tampon lisse","Production / 8403 / Bull-blocks","TLE 0,6400",null,"Afficher"]
["CAL-0024","Tampon lisse","Production / 8403 / Bull-blocks","TLE 0,645",null,"Afficher"]
["CAL-0028","Tampon lisse","Production / 8403 / Bull-blocks","TLE 0,6350",null,"Afficher"]
["CAL-0029","Tampon lisse","Production / 8403 / Bull-blocks","TLE 0,6400",null,"Afficher"]
["CAL-0030","Tampon lisse","Production / 8403 / Bull-blocks","TLE 0,645",null,"Afficher"]
["CAL-0081","Tampon lisse","Production / 8513 / Contrôle Final Pièces","TLE 1,4100 0 / 0 (Qualité )",null,"Afficher"]
["CAL-0082","Tampon lisse","Production / 8513 / Contrôle Final Pièces","TLE 1,4100 0 / 0 (Qualité )",null,"Afficher"]
["CAL-0159","Tampon lisse","Production / 8513 / Contrôle Final Pièces","TLE 4,02",null,"Afficher"]
["CAL-0160","Tampon lisse","Production / 8513 / Contrôle Final Pièces","TLNEP 4,06",null,"Afficher"]
["CAL-0169","Tampon lisse","Production / 8414DIV / Contrôle tubes divers","TLE 0,168",null,"Afficher"]
["CAL-0172","Tampon lisse","Production / 8414 DIV / Contrôle Tubes Divers","TLE 0,172",null,"Afficher"]
["CAL-0176","Tampon lisse","Production / 8414 DIV","TLE 0,175",null,"Afficher"]
["CAL-0178","Tampon lisse","Production / 8414DIV / Contrôle tubes divers","TLE 0,178",null,"Afficher"]
["CAL-0181","Tampon lisse","Production / 8414 DIV / Contrôle Tubes Divers","TLE 0,182",null,"Afficher"]
["CAL-0184","Tampon lisse","Production / 8414DIV / Contrôle tubes divers","TLE 0,185",null,"Afficher"]
["CAL-0298","Tampon lisse","Production / 8414 DIV / Contrôle Tubes Divers","TLD 0,483 / 0,488",null,"Afficher"]
["CAL-0300","Tampon lisse","Technique / 8414DIV","TLE 0,500",null,"Afficher"]
["CAL-0302","Tampon lisse","Production / 8414 DIV / Contrôle Tubes Divers","TLD 0,604 / 0,609",null,"Afficher"]
["CAL-0304","Tampon lisse","Production / 8414 DIV / Contrôle Tubes Divers","TLD 1,382 / 1,387",null,"Afficher"]
["CAL-0306","Tampon lisse","Production / 8414 DIV / Contrôle Tubes Divers","TLD 0,585 / 0,590",null,"Afficher"]
["CAL-0308","Tampon lisse","Production / 8414 DIV","TLE 1,340",null,"Afficher"]
["CAL-0310","Tampon lisse","Production / 8414 DIV","TLE 0,520",null,"Afficher"]
["CAL-0312","Tampon lisse","Production / 8414 DIV","TLE 1,397",null,"Afficher"]
["CAL-0314","Tampon lisse","Production / 8414 DIV / Contrôle Tubes Divers","TLD 1,320 / 1,325",null,"Afficher"]
["CAL-0316","Tampon lisse","Production / 8414 DIV / Contrôle Tubes Divers","TLD 1,320 / 1,325",null,"Afficher"]
["CAL-0318","Tampon lisse","Production / 8414 DIV","TLE 0,597",null,"Afficher"]
["CAL-0320","Tampon lisse","Production / 8414 DIV","TLE 1,676",null,"Afficher"]
["CAL-0322","Tampon lisse","Production / 8414 DIV / Contrôle Tubes Divers","TLD 1,407 / 1,412",null,"Afficher"]
["CAL-0324","Tampon lisse","Production / 8414 DIV / Contrôle Tubes Divers","TLD 1,683 / 1,688",null,"Afficher"]
["CAL-0326","Tampon lisse","Production / 8414 DIV / Contrôle Tubes Divers","TLD 0,528 / 0,533",null,"Afficher"]
["CAL-0328","Tampon lisse","Production / 8414 DIV / Contrôle Tubes Divers","TLD 1,355 / 1,360",null,"Afficher"]
["CAL-0330","Tampon lisse","Production / 8414 DIV","TLE 2,413",null,"Afficher"]
["CAL-0332","Tampon lisse","Production / 8414 DIV","TLE 2,921",null,"Afficher"]
["CAL-0334","Tampon lisse","Production / 8414 DIV","TLE 2,311",null,"Afficher"]
["CAL-0336","Tampon lisse","Production / 8414 DIV / Contrôle Tubes Divers","TLD 2,420 / 2,425",null,"Afficher"]
["CAL-0338","Tampon lisse","Production / 8414 DIV / Contrôle Tubes Divers","TLD 2,909 / 2,914",null,"Afficher"]
["CAL-0340","Tampon lisse","Production / 8414 DIV / Contrôle Tubes Divers","TLD 2,928 / 2,933",null,"Afficher"]
["CAL-0342","Tampon lisse","Production / 8414 DIV / Contrôle Tubes Divers","TLD 2,299 / 2,304",null,"Afficher"]
["CAL-0344","Tampon lisse","Production / 8414 DIV / Contrôle Tubes Divers","TLD 2,318 / 2,323",null,"Afficher"]
["CAL-0346","Tampon lisse","Production / 8414 DIV / Contrôle Tubes Divers","TLD 1,320 / 1,325",null,"Afficher"]
["CAL-0348","Tampon lisse","Production / 8414 DIV","TLE 5,600",null,"Afficher"]
["CAL-0350","Tampon lisse","Technique / 8414DIV","TLE 5,605",null,"Afficher"]
["CAL-0352","Tampon lisse","Production / 8414 IMP","TLE 5,610",null,"Afficher"]
["CAL-0354","Tampon lisse","Production / 8414 DIV","TLE 5,615",null,"Afficher"]
["CAL-0356","Tampon lisse","Production / 8414 DIV","TLE 5,625",null,"Afficher"]
["CAL-0358","Tampon lisse","Production / 8414 DIV / Contrôle Tubes Divers","TLD 3,366 / 3,371",null,"Afficher"]
["CAL-0360","Tampon lisse","Production / 8414 DIV / Contrôle Tubes Divers","TLD 3,379/ 3,384",null,"Afficher"]
["CAL-0362","Tampon lisse","Production / 8414 DIV / Contrôle Tubes Divers","TLD 3,544/ 3,549",null,"Afficher"]
["CAL-0364","Tampon lisse","Production / 8414 DIV / Contrôle Tubes Divers","TLD 3,785/ 3,790",null,"Afficher"]
["CAL-0366","Tampon lisse","Production / 8414 DIV","TLD 3,424/ 3,429",null,"Afficher"]
["CAL-0368","Tampon lisse","Production / 8414 DIV","TLD 3,385 /3,390",null,"Afficher"]
["CAL-0370","Tampon lisse","Production / 8414 DIV","TLD 3,563/3,568",null,"Afficher"]
["CAL-0372","Tampon lisse","Production / 8414 DIV","TLD 3,804/3,809",null,"Afficher"]
["CAL-0374","Tampon lisse","Production / 8414 DIV","TLD 3,378",null,"Afficher"]
["CAL-0376","Tampon lisse","Production / 8414 DIV","TLE 3,400",null,"Afficher"]
["CAL-0378","Tampon lisse","Production / 8414 DIV","TLE 3,410",null,"Afficher"]
["CAL-0380","Tampon lisse","Production / 8414 DIV","TLE 3,556",null,"Afficher"]
["CAL-0382","Tampon lisse","Production / 8414 DIV","TLE 3,797",null,"Afficher"]
["CAL-0390","Tampon lisse","Production / 8414 DIV / Contrôle Tubes Divers","5,620",null,"Afficher"]
["CAL-0392","Tampon lisse","Production / 8414 DIV / Contrôle Tubes Divers","TLE 5,600",null,"Afficher"]
["CAL-0394","Tampon lisse","Production / 8414 DIV / Contrôle Tubes Divers","TLE 5,720",null,"Afficher"]
["CAL-0396","Tampon lisse","Production / 8414 DIV / Contrôle Tubes Divers","TLE 4,600",null,"Afficher"]
["CAL-0398","Tampon lisse","Production / 8414 DIV / Contrôle Tubes Divers","TLE 5,710",null,"Afficher"]
["CAL-0400","Tampon lisse","Production / 8414 DIV / Contrôle Tubes Divers","TLE 4,070",null,"Afficher"]
["CAL-0402","Tampon lisse","Production / 8414 DIV / Contrôle Tubes Divers","TLE 4,039/4,044",null,"Afficher"]
["CAL-0404","Tampon lisse","Production / 8414 DIV / Contrôle Tubes Divers","TLE 5,588/5,593",null,"Afficher"]
["CAL-0406","Tampon lisse","Production / 8414 DIV / Contrôle Tubes Divers","TLE 5,690/5,695",null,"Afficher"]
["CAL-0408","Tampon lisse","Technique / 8414DIV","TLE 8,077",null,"Afficher"]
["CAL-0412","Tampon lisse","Technique / 8414DIV","TLE 7,030",null,"Afficher"]
["CAL-0414","Tampon lisse","Technique / 8414DIV","TLE 7,050",null,"Afficher"]
["CAL-0416","Tampon lisse","Technique / 8414DIV","TLE 6,470",null,"Afficher"]
["CAL-0418","Tampon lisse","Technique / 8414DIV","TLE 7,020",null,"Afficher"]
["CAL-0420","Tampon lisse","Technique / 8414DIV","TLE 6,490",null,"Afficher"]
["CAL-0422","Tampon lisse","Technique / 8414DIV","TLE 6,510",null,"Afficher"]
["CAL-0424","Tampon lisse","Technique / 8414DIV","TLE 6,530",null,"Afficher"]
["CAL-0446","Tampon lisse","Technique / 7700","TLE 0.200 0 / 0",null,"Afficher"]
["CAL-0447","Tampon lisse","Technique / 7700","TLE 0.300 0 / 0",null,"Afficher"]
["CAL-0448","Tampon lisse","Technique / 7700","TLE 0.600 0 / 0",null,"Afficher"]
["CAL-0449","Tampon lisse","Technique / 7700","TLE 0.900 0 / 0",null,"Afficher"]
["CAL-0450","Tampon lisse","Technique / 7700","TLE 1,7 0 / 0",null,"Afficher"]
["CAL-0451","Tampon lisse","Technique / 7700","TLE 1,2 0 / 0",null,"Afficher"]
["CAL-0454","Tampon lisse","Production / 8414 DIV / Contrôle Tubes Divers","TLE 0.165",null,"Afficher"]
["CAL-0455","Tampon lisse","Production / 8414 DIV / Contrôle Tubes Divers","TLE 0.166",null,"Afficher"]
["CAL-0456","Tampon lisse","Production / 8414 DIV / Contrôle Tubes Divers","TLE 0.167",null,"Afficher"]
["CAL-0457","Tampon lisse","Production / 8414 DIV / Contrôle Tubes Divers","TLE 0.168",null,"Afficher"]
["CAL-0458","Tampon lisse","Production / 8414 DIV / Contrôle Tubes Divers","TLE 0.169",null,"Afficher"]
["CAL-0459","Tampon lisse","Production / 8414 DIV / Contrôle Tubes Divers","TLE 0.170",null,"Afficher"]
["CAL-0460","Tampon lisse","Production / 8414 DIV / Contrôle Tubes Divers","TLE 0.171",null,"Afficher"]
["CAL-0461","Tampon lisse","Production / 8414 DIV / Contrôle Tubes Divers","TLE 0.172",null,"Afficher"]
["CAL-0462","Tampon lisse","Production / 8414 DIV / Contrôle Tubes Divers","TLE 0.173",null,"Afficher"]
["CAL-0463","Tampon lisse","Production / 8414 DIV / Contrôle Tubes Divers","TLE 0.174",null,"Afficher"]
["DIM-0002","Tampon lisse","Production / 8518","TLE 1,295 mini",null,"Afficher"]
["CAL-0384","Tampon lisse double","Production / 8414 DIV","TLE 4,084/4,089",null,"Afficher"]
["CAL-0386","Tampon lisse double","Production / 8414 DIV","5,633/5,638",null,"Afficher"]
["CAL-0388","Tampon lisse double","Production / 8414 DIV","5,735/5,740",null,"Afficher"]
["CAL-0426","Tampon lisse double","Technique / 8414DIV","6,452 / 6,457",null,"Afficher"]
["CAL-0428","Tampon lisse double","Technique / 8414DIV","7,011 / 7,016",null,"Afficher"]
["CAL-0431","Tampon lisse double","Technique / 8414DIV","8,065 / 8,070",null,"Afficher"]
["CAL-0432","Tampon lisse double","Technique / 8414DIV","6,547 / 6,552",null,"Afficher"]
["CAL-0434","Tampon lisse double","Technique / 8414DIV","8,084 / 8,089",null,"Afficher"]
["CAL-0436","Tampon lisse double","Technique / 8414DIV","7,056 / 7,061",null,"Afficher"]
["CAL-0474","Tampon lisse double","Technique / 7700 / Armoire BOTT DD","2,03 / 2,06",null,"Afficher"]
["CAL-0113","longueur 350 mm","Technique / 7700 / Bureau de Lucas MELEARD","0,83 mm",null,"Afficher"]
["CAL-0117","longueur 350 mm","Technique / 7700 / Bureau de Lucas MELEARD","1,63 mm",null,"Afficher"]
["CAL-0119","longueur 350 mm","Technique / 7700 / Bureau de Lucas MELEARD","1,57 mm",null,"Afficher"]
["CAL-0175","Tampon lisse","Technique / 7700 / Bureau de Lucas MELEARD","TLE 0,175",null,"Afficher"]
["CAL-0443","Jeu de tampons","Production / 8507 / Micro Assemblage","TLE 0.1-->1,90 0 / 0,01",null,"Afficher"]
["CAL-0444","Jeu de tampons","Technique / 7200","0.11-->0.250 0 / 0",null,"Afficher"]
["EC.127","Jeu de tampons","Production / 8404 / Soudure","7,35 mm à 7,65 mm",null,"Afficher"]
["ED.094","Jeu de tampons","Production / 8403 / Bull-blocks",null,null,"Afficher"]
["ED.114","Jeu de tampons","Production / 8401 / Magasin Outillages","7,00 mm à 7,99 mm",null,"Afficher"]
["ED.115","Jeu de tampons","Production / 8401 / Magasin Outillages","8,00 mm à 8,99 mm",null,"Afficher"]
["ED.116","Jeu de tampons","Production / 8401 / Magasin Outillages","9,00 mm à 9,99 mm",null,"Afficher"]
["ED.143","Jeu de tampons","Production / 8518 / Aiguilles","1,00 mm à 0,60 mm",null,"Afficher"]
["ED.212","Jeu de tampons","Production / 8401 / Magasin Outillages","10,47 mm à 19,05 mm",null,"Afficher"]
["ED.216","Jeu de tampons","Production / 8401 / Magasin Outillages","19,07 mm à 10,51 mm",null,"Afficher"]
["ED.268","Jeu de tampons","Production / 8400 / Etirage Bancs droits","0,165 mm à 0,269 mm",null,"Afficher"]
["ED.271","Jeu de tampons","Production / 8400 / Etirage Bancs droits","0,165 mm à 0,270 mm",null,"Afficher"]
["EN.008","Jeu de tampons","Production / 8404 / Soudure",null,null,"Afficher"]
["EN.105","Jeu de tampons","Production / 8402 / Etirage NiTi","1,00 mm à 1,99 mm",null,"Afficher"]
["EN.106","Jeu de tampons","Production / 8402 / Etirage NiTi","2,00 mm à 2,99 mm",null,"Afficher"]
["EN.107","Jeu de tampons","Production / 8402 / Etirage NiTi","3,00 mm à 3,99 mm",null,"Afficher"]
["EN.154","Jeu de tampons","Production / 8402 / Etirage NiTi","4,12 mm à 4,29 mm",null,"Afficher"]
["EN.179","Jeu de tampons","Production / 8402 / Etirage NiTi","8,24 mm à 8,35 mm",null,"Afficher"]
["EN.180","Jeu de tampons","Production / 8402 / Etirage NiTi","4,81 mm à 6,95 mm",null,"Afficher"]
["EN.181A","Jeu de tampons","Production / 8402 / Etirage NiTi","0,10 mm à 0,70 mm",null,"Afficher"]
["TR.046","Jeu de tampons","Production / 8518 / Aiguilles","0,10 mm à 0,99 mm",null,"Afficher"]
["TR.047","Jeu de tampons","Production / 8518 / Aiguilles","1,00 mm à 1,99 mm",null,"Afficher"]
["CAT.017","Jeu de tampons lisses étalons","Production / 8509 / Tronconnage","3,00 mm à 3,99 mm",null,"Afficher"]
["CAT.019","Jeu de tampons lisses étalons","Production / 8509 / Tronconnage","0,10 mm à 0,49 mm",null,"Afficher"]
["CAT.020","Jeu de tampons lisses étalons","Production / 8509 / Tronconnage","1,00 mm à 1,99 mm",null,"Afficher"]
["CAT.021","Jeu de tampons lisses étalons","Production / 8509 / Tronconnage","2,00 mm à 2,99 mm",null,"Afficher"]
["CAT.034","Jeu de tampons lisses étalons","Production / 8507 / Micro Assemblage","2,00 mm à 2,99 mm",null,"Afficher"]
["CAT.058","Jeu de tampons lisses étalons","Technique / 7700 / Armoire BOTT EM","0,10 mm à 1,09 mm",null,"Afficher"]
["CAT.059","Jeu de tampons lisses étalons","Production / 8507 / Micro Assemblage","1,10 mm à 2,09 mm",null,"Afficher"]
["CAT.060","Jeu de tampons lisses étalons","Production / 8507 / Micro Assemblage","3,00 mm à 3,99 mm",null,"Afficher"]
["CE.015","Jeu de tampons lisses étalons","Production / 8414DIV / Contrôle Final Tubes","6,00 mm à 6,99 mm",null,"Afficher"]
["CE.016","Jeu de tampons lisses étalons","Production / 8414DIV / Contrôle tube divers","7,00 mm à 7,99 mm",null,"Afficher"]
["CE.026","Jeu de tampons lisses étalons","Production / 8414DIV / Contrôle Final Tubes","0,10 mm à 0,99 mm",null,"Afficher"]
["CE.027","Jeu de tampons lisses étalons","Production / 8414DIV / Contrôle Final Tubes","1,00 mm à 1,99 mm",null,"Afficher"]
["CE.028","Jeu de tampons lisses étalons","Production / 8414DIV / Contrôle Final Tubes","2,00 mm à 2,99 mm",null,"Afficher"]
["CE.029","Jeu de tampons lisses étalons","Production / 8414DIV / Contrôle Final Tubes","3,00 mm à 3,99 mm",null,"Afficher"]
["CE.030","Jeu de tampons lisses étalons","Production / 8414DIV / Contrôle Final Tubes","4,00 mm à 4,99 mm",null,"Afficher"]
["CE.031","Jeu de tampons lisses étalons","Production / 8414DIV","5,00 mm à 5,99 mm",null,"Afficher"]
["CE.049","Jeu de tampons lisses étalons","Production / 8414DIV / Contrôle Final Tubes","8,00 mm à 8,99 mm",null,"Afficher"]
["CE.144","Jeu de tampons lisses étalons","Production / 8401 / Magasin Outillages","0,10 mm à 0,99 mm",null,"Afficher"]
["CE.145","Jeu de tampons lisses étalons","Production / 8401 / Magasin Outillages","1,00 mm à 1,99 mm",null,"Afficher"]
["CE.146","Jeu de tampons lisses étalons","Production / 8401 / Magasin Outillages","2,00 mm à 2,99 mm",null,"Afficher"]
["CE.147","Jeu de tampons lisses étalons","Production / 8401 / Magasin Outillages","3,00 mm à 3,99 mm",null,"Afficher"]
["CE.148","Jeu de tampons lisses étalons","Production / 8401 / Magasin Outillages","4,00 mm à 4,99 mm",null,"Afficher"]
["CE.149","Jeu de tampons lisses étalons","Production / 8401 / Magasin Outillages","5,00 mm à 5,99 mm",null,"Afficher"]
["CE.150","Jeu de tampons lisses étalons","Production / 8401 / Magasin Outillages","6,00 mm à 6,99 mm",null,"Afficher"]
["CF.075","Jeu de tampons lisses étalons","Production / 8513 / Contrôle Final Pièces","0,10 mm à 0,99 mm",null,"Afficher"]
["CF.076","Jeu de tampons lisses étalons","Production / 8513 / Contrôle Final Pièces","1,00 mm à 1,99 mm",null,"Afficher"]
["CF.077","Jeu de tampons lisses étalons","Production / 8513 / Contrôle Final Pièces","2,00 mm à 2,99 mm",null,"Afficher"]
["CF.078","Jeu de tampons lisses étalons","Production / 8513 / Contrôle Final Pièces","3,00 mm à 3,99 mm",null,"Afficher"]
["CF.079","Jeu de tampons lisses étalons","Production / 8513 / Contrôle Final Pièces","4,00 MM à 4,99 MM",null,"Afficher"]
["CF.080","Jeu de tampons lisses étalons","Production / 8513 / Contrôle Final Pièces","5,00 mm à 5,99 mm",null,"Afficher"]
["CF.427","Jeu de tampons lisses étalons","Production / 8513 / Contrôle Final Pièces","6,00 mm à 6,99 mm",null,"Afficher"]
["CF.428","Jeu de tampons lisses étalons","Production / 8513 / Contrôle Final Pièces","7,00 mm à 7,99 mm",null,"Afficher"]
["CF.429","Jeu de tampons lisses étalons","Production / 8513 / Contrôle Final Pièces","8,00 mm à 8,99 mm",null,"Afficher"]
["CF.430","Jeu de tampons lisses étalons","Production / 8513 / Contrôle Final Pièces","9,00 mm à 9,99 mm",null,"Afficher"]
["CP.001","Jeu de tampons lisses étalons","Production / 8553 / Presses Coup/Coup","0,10 mm à 0,99 mm",null,"Afficher"]
["CP.002","Jeu de tampons lisses étalons","Production / 8553 / Presses Coup/Coup","2,00 mm à 2,99 mm",null,"Afficher"]
["CP.003","Jeu de tampons lisses étalons","Production / 8553 / Presses Coup/Coup","1,00 mm à 1,99 mm",null,"Afficher"]
["CP.004","Jeu de tampons lisses étalons","Production / 8553 / Presses Coup/Coup","3,00 mm à 3,99 mm",null,"Afficher"]
["ED.069","Jeu de tampons lisses étalons","Technique / 7700","0,0115 mm à 0,0605 mm",null,"Afficher"]
["ETA-0461","Jeu de tampons lisses étalons","Production / 8403 / Bull-blocks","0,7mm à1,49mm",null,"Afficher"]
["ETA-0462","Jeu de tampons lisses étalons","Production / 8403 / Bull-blocks","1,50mm à2,30mm",null,"Afficher"]
["JDTLE-001","Jeu de tampons lisses étalons","Production / 8509 / Tronconnage","0,50 mm à 0,99 mm",null,"Afficher"]
["JDTLE-002","Jeu de tampons lisses étalons","Production / 8509 / Tronconnage","1,030 mm à 1,050 mm",null,"Afficher"]
["JDTLE-003","Jeu de tampons lisses étalons",null,"30 mm à 30 mm",null,"Afficher"]
["JDTLE-004","Jeu de tampons lisses étalons","Production / 8403 / Etirage Couronnes","0,50 mm à 3,99 mm",null,"Afficher"]
["JDTLE-005","Jeu de tampons lisses étalons","Production / 8403 / Etirage Couronnes","4,00 mm à 6,09 mm",null,"Afficher"]
["JDTLE-006","Jeu de tampons lisses étalons","Production / 8414DIV / Contrôle tubes divers","0,188 à 0,248",null,"Afficher"]
["JDTLE-007","Jeu de tampons lisses étalons","Production / 7700","0,188 à 0,248",null,"Afficher"]
["JDTLE-008","Jeu de tampons lisses étalons","Production / 8414DIV / controle tubes divers","0,160 mm à 0,180 mm",null,"Afficher"]
["M.052","Jeu de tampons lisses étalons","Technique / 7300 / Mécanique","0,50 mm à 1,00 mm",null,"Afficher"]
["M.053","Jeu de tampons lisses étalons","Technique / 7300 / Mécanique","1,01 mm à 2,00 mm",null,"Afficher"]
["M.054","Jeu de tampons lisses étalons","Technique / 7300 / Mécanique","2,01 mm à 3,00 mm",null,"Afficher"]
["M.055","Jeu de tampons lisses étalons","Technique / 7300 / Mécanique","3,01 mm à 4,00 mm",null,"Afficher"]
["M.056","Jeu de tampons lisses étalons","Technique / 7300 / Mécanique","4,01 mm à 5,00 mm",null,"Afficher"]
["M.057","Jeu de tampons lisses étalons","Technique / 7300 / Mécanique","5,01 mm à 6,00 mm",null,"Afficher"]
["TC.050","Jeu de tampons lisses étalons","Production / 8508 / Tour Cathode","3,00 mm à 3,99 mm",null,"Afficher"]
["TC.051","Jeu de tampons lisses étalons","Production / 8508 / Tour Cathode","4,00 mm à 4,99 mm",null,"Afficher"]
["TC.052","Jeu de tampons lisses étalons","Production / 8508 / Tour Cathode","0,10 mm à 0,49 mm",null,"Afficher"]
["TC.052A","Jeu de tampons lisses étalons","Production / 8508 / Tour Cathode","0,50 mm à 0,99 mm",null,"Afficher"]
["TC.053","Jeu de tampons lisses étalons","Production / 8508 / Tour Cathode","1,00 mm à 1,99 mm",null,"Afficher"]
["TC.054","Jeu de tampons lisses étalons","Production / 8508 / Tour Cathode","2,00 mm à 2,99 mm",null,"Afficher"]
["TC.055","Jeu de tampons lisses étalons","Production / 8508 / Tour Cathode","0,10 mm à 0,99 mm",null,"Afficher"]
["TC.056","Jeu de tampons lisses étalons","Production / 8508 / Tour Cathode","1,00 mm à 1,99 mm",null,"Afficher"]
["TC.057","Jeu de tampons lisses étalons","Production / 8508 / Tour Cathode","2,00 mm à 2,99 mm",null,"Afficher"]
["THE.068","Jeu de tampons lisses étalons","Technique / 7245 / Prototype","0,10 mm à 0,49 mm",null,"Afficher"]
["THE.069","Jeu de tampons lisses étalons","Technique / 7245 / Prototype","2,00 mm à 2,99 mm",null,"Afficher"]
["THE.070","Jeu de tampons lisses étalons","Technique / 7245 / Prototype","0,50 mm à 0,99 mm",null,"Afficher"]
["THE.071","Jeu de tampons lisses étalons","Technique / 7245 / Prototype","1,00 mm à 1,99 mm",null,"Afficher"]
["DIM-0144","Mesureur pneumatique","Technique / 7700 / Armoire Métrologie M2 C","6 / 8 mm",null,"Afficher"]
["ED.092","Mesureur pneumatique","Production / 8401 / Ext local PCA",null,null,"Afficher"]
["MES-001","Mesureur pneumatique","Production / 8400 / Etirage Bancs droits","6 / 8 mm",null,"Afficher"]
["MES-002","Mesureur pneumatique","Production / 8513 / Contrôle Final Pièces","6 / 8 mm",null,"Afficher"]
["MES-003","Mesureur pneumatique","Production / 8403 / Etirage Couronnes","6 / 8 mm",null,"Afficher"]
["CAL-0003","Tampon lisse","Production / 8414 DIV / Contrôle tubes divers","TLE 1,17",null,"Afficher"]
["CAL-0020","Tampon lisse","Production / 8513 / Contrôle Final Pièces","TLE 0,889",null,"Afficher"]
["CAL-0021","Tampon lisse","Production / 8513 / Contrôle Final Pièces","TLE 0,889",null,"Afficher"]
["CF.292","Tampon lisse","Production / 8513 / Contrôle Final Pièces","TLD 4,115 -0,051 / 0,051",null,"Afficher"]
["CF.297","Tampon lisse","Production / 8513 / Contrôle Final Pièces","TLD 3,099 -0,051 / 0,051",null,"Afficher"]
["CF.312","Tampon lisse","Production / 8513 / Contrôle Final Pièces","TLD 4,115 -0,051 / 0,051",null,"Afficher"]
["CF.462","Tampon lisse","Production / 8513 / Contrôle Final Pièces","TLE 1,99",null,"Afficher"]
["CF.463","Tampon lisse","Production / 8513 / Contrôle Final Pièces",null,null,"Afficher"]
["THE.063","Tampon lisse","Technique / 7245 / Prototype","TLD 14 H7",null,"Afficher"]
["TL-001","Tampon lisse","Production / 8513 / Contrôle Final Pièces","TLD 6.000 / 6.030 mm",null,"Afficher"]
["TL-002","Tampon lisse","Production / 8513 / Contrôle Final Pièces","TLD 6.000 / 6.030 mm",null,"Afficher"]
["TL-003","Tampon lisse","Production / 8401 / Magasin Outillages","TLD 1,785 / 1,805 mm",null,"Afficher"]
["TL-004","Tampon lisse","Production / 8513 / Contrôle Final Pièces","TLE 2.692 mm",null,"Afficher"]
["TL-005","Tampon lisse","Production / 8513 / Contrôle Final Pièces","TLE 2,692 mm 0 / 0 (Qualité )",null,"Afficher"]
["TL-006","Tampon lisse","Production / 8509 / Tronconnage","TLD 12,02/ 12,06",null,"Afficher"]
["TL-007","Tampon lisse","Production / 8509 / Tronconnage","TLE 8,005",null,"Afficher"]
["TL-008","Tampon lisse","Production / 8509 / Tronconnage","TLD 16,5/ 16,52",null,"Afficher"]
["TL-009","Tampon lisse","Production / 8509 / Tronconnage","TLD 16,5/ 16,52",null,"Afficher"]
["TL-010","Tampon lisse","Production / 8509 / Tronconnage","TLD 3,667/ 3,680",null,"Afficher"]
["TL-011","Tampon lisse","Production / 8509 / Tronconnage","TLD 4,585/ 4,595",null,"Afficher"]
["TL-012","Tampon lisse","Production / 8509 / Tronconnage","TLD 3,670/ 3,683",null,"Afficher"]
["TL-013","Tampon lisse","Production / 8509 / Tronconnage","TLD 1,505 / 1,515 mm",null,"Afficher"]
["TL-014","Tampon lisse","Production / 8509 / Tronconnage","TLD 4,585/ 4,595",null,"Afficher"]
["TL-015","Tampon lisse","Production / 8509 / Tronconnage","TLD 3,670/ 3,683",null,"Afficher"]
["TL-016","Tampon lisse","Production / 8509 / Tronconnage","TLD 1,3/ 1,325",null,"Afficher"]
["TL-017","Tampon lisse","Production / 8509 / Tronconnage","TLE 2,015",null,"Afficher"]
["TL-018","Tampon lisse","Production / 8509 / Tronconnage","TLE 1,84",null,"Afficher"]
["TL-019","Tampon lisse","Production / 8509 / Tronconnage","TLD 1,843/ 1,854",null,"Afficher"]
["TL-020","Tampon lisse","Production / 8414DIV / Contrôle tube divers","TLD Ø 5.816 mm / 5.840 mm 0 / 0",null,"Afficher"]
["TL-021","Tampon lisse","Production / 8400 / Etirage Bancs droits","TLD Ø 5.816 mm / 5.840 mm 0 / 0",null,"Afficher"]
["TL-022","Tampon lisse","Production / 8513 / Contrôle Final Pièces","TLE Ø 1.505 mm -0,0004 / 0,0004",null,"Afficher"]
["TL-023","Tampon lisse","Production / 8513 / Contrôle Final Pièces","TLE Ø 1.505 mm -0,0004 / 0,0004",null,"Afficher"]
["TL-024","Tampon lisse","Production / 8513 / Contrôle Final Pièces","TLE Ø 1.515 mm -0,0004 / 0,0004",null,"Afficher"]
["TL-025","Tampon lisse","Production / 8513 / Contrôle Final Pièces","TLE Ø 1.515 mm -0,0004 / 0,0004",null,"Afficher"]
["TL-026","Tampon lisse","Production / 8414DIV / Contrôle tube divers","TLD",null,"Afficher"]
["TL-027","Tampon lisse","Production / 8400 / Etirage Bancs droits","TLD",null,"Afficher"]
["TL-028","Tampon lisse","Production / 8401 / Magasin Outillages","TLD",null,"Afficher"]
["TL-029","Tampon lisse","Production / 8401 / Magasin Outillages","TLD",null,"Afficher"]
["TL-030","Tampon lisse","Production / 8414DIV / Contrôle tube divers","TLD",null,"Afficher"]
["TL-031","Tampon lisse","Production / 8414DIV / Contrôle tube divers","TLD",null,"Afficher"]
["TL-033","Tampon lisse","Production / 8513 / Contrôle Final Pièces","TLE 6,865",null,"Afficher"]
["TL-034","Tampon lisse","Production / 8513 / Contrôle Final Pièces","TLE 14,020",null,"Afficher"]
["TL-035","Tampon lisse","Production / 8513 / Contrôle Final Pièces","TLE 14,020",null,"Afficher"]
["TL-036","Tampon lisse","Production / 8553 / Presses Coup/Coup","TLD 13,40",null,"Afficher"]
["TL-037","Tampon lisse","Production / 8513 / Contrôle Final Pièces","TLE 0,8",null,"Afficher"]
["TL-038","Tampon lisse","Technique / 7700 / Armoire BOTT EM","TLE 0,8",null,"Afficher"]
["TL-039","Tampon lisse","Technique / 7700","TLD 1,42 mm - 1,62 mm",null,"Afficher"]
["TL-040","Tampon lisse","Technique / 7410 / Process Tubes","TLD 0,813 / 0,833 0 / 0",null,"Afficher"]
["TL-041","Tampon lisse","Technique / 7410 / Process Tubes","TLE 0,175 -0,0004 / 0,0004",null,"Afficher"]
["TL-042","Tampon lisse","Technique / 7410 / Process Tubes","TLE 0,175 -0,0004 / 0,0004",null,"Afficher"]
["TL-043","Tampon lisse","Technique / 7410 / Process Tubes","TLE 0,165 -0,0004 / 0,0004",null,"Afficher"]
["TL-044","Tampon lisse","Technique / 7410 / Process Tubes","TLE 0,165 -0,0004 / 0,0004",null,"Afficher"]
["TL-045","Tampon lisse","Production / 8552 / Presses Automatiques","TLD 6,4 -0,035 / 0,035",null,"Afficher"]
["TL-046","Tampon lisse","Production / 8513 / Contrôle Final Pièces","TLE 3,2150",null,"Afficher"]
["TL-047","Tampon lisse","Production / 8513 / Contrôle Final Pièces","TLE 3,2275",null,"Afficher"]
["TL-234","Tampon lisse","Production / 8513 / Contrôle Final Pièces","TLE 6,35",null,"Afficher"]
["TL-235","Tampon lisse","Production / 8513 / Contrôle Final Pièces","TLE 6,35",null,"Afficher"]
["CF.042","Tampon lisse étalon","Production / 8513 / Contrôle Final Pièces","9,60",null,"Afficher"]
["EC.085A","Tampon lisse étalon","Production / 8403 / Etirage Couronnes","2,505",null,"Afficher"]
["TLET-001","Tampon lisse étalon","Production / 8518 / Aiguilles","0,365",null,"Afficher"]
["TLET-006","Tampon lisse étalon","Production / 8508 / Tour Cathode",null,null,"Afficher"]
["TLET-008","Tampon lisse étalon","Production / 8508 / Tour Cathode",null,null,"Afficher"]
["TLET-009","Tampon lisse étalon","Production / 8508 / Tour Cathode",null,null,"Afficher"]
["TLET-010","Tampon lisse étalon","Production / 8508 / Tour Cathode",null,null,"Afficher"]
["TLET-011","Tampon lisse étalon","Production / 8508 / Tour Cathode",null,null,"Afficher"]
["TLET-007","Tampon lisse étalon étagé","Production / 8513 / Contrôle Final Pièces",null,null,"Afficher"]
["DIM-0065","4,400 mm","Production / 8414DIV / Contrôle Final Tubes","4,40 +/- 4 micron",null,"Afficher"]
["CAL-0001","Tampon lisse",null,"TLD",null,"Afficher"]
["CAL-0470","Tampon lisse double","Technique / 7200","2,03 / 2,06",null,"Afficher"]
["ETA-10000","Tampon lisse étalon","Technique / 7430 / Méthode BU tubes","0,331 mm",null,"Afficher"]
["DIM-0040","Alésomètre","Technique / 7700 / Armoire BOTT CG","6-8 mm",null,"Afficher"]
["JDPE-005","Jeu de piges étalons","Technique / 7700 / Armoire BOTT EM","2 mm à 6 mm",null,"Afficher"]
["CAL-0114","longueur 350 mm","Technique / 7700 / Armoire BoTT AD","0,83 mm",null,"Afficher"]
["CAL-0116","longueur 350 mm","Technique / 7700 / Armoire BoTT AD","0,77 mm",null,"Afficher"]
["CAL-0118","longueur 350 mm","Technique / 7700 / Armoire BoTT AD","1,63 mm",null,"Afficher"]
["CAL-0120","longueur 350 mm","Technique / 7700 / Armoire BoTT AD","1,57 mm",null,"Afficher"]
["CF.106/1","Micromètre d'intérieur 2 touches","Technique / 7700 / Armoire BOTT JM",null,null,"Afficher"]
["CF.106/2","Micromètre d'intérieur 2 touches","Technique / 7700 / Armoire BOTT JM",null,null,"Afficher"]
["CF.143","Micromètre d'intérieur 2 touches","Technique / 7700 / Armoire BOTT CG","5 / 30 mm",null,"Afficher"]
["CE.072","Micromètre d'intérieur à 3 touches","Technique / 7700 / Armoire BOTT CM","6 / 8 mm",null,"Afficher"]
["CE.205","Micromètre d'intérieur à vis","Technique / 7700 / Armoire BOTT FM","0 / 25 mm",null,"Afficher"]
["CAL-0002","Tampon lisse","Technique / 7700 / Armoire BOTT AM","TLE 5,031",null,"Afficher"]
["CAL-0006","Tampon lisse","Technique / 7700 / Armoire BOTT EDA","TLNEP",null,"Afficher"]
["CAL-0009","Tampon lisse","Production / 7700","TLE 3,315",null,"Afficher"]
["CAL-0019","Tampon lisse","Production / 7700","TLE 1,30",null,"Afficher"]
["CAL-0025","Tampon lisse","Technique / 7700 / Armoire BOTT EGA","TLE 0,6350",null,"Afficher"]
["CAL-0026","Tampon lisse","Technique / 7700 / Armoire BOTT EGA","TLE 0,6400",null,"Afficher"]
["CAL-0027","Tampon lisse","Technique / 7700 / Armoire BOTT EGA","TLE 0,645",null,"Afficher"]
["CAL-0037","Tampon lisse","Technique / 7700 / Armoire BOTT GD","TLE 0,0049 pouce 0 / 0 (Qualité )",null,"Afficher"]
["CAL-0038","Tampon lisse","technique / 7700 / Armoire BOTT GD","TLE 0,0049 pouce 0 / 0 (Qualité )",null,"Afficher"]
["CAL-0039","Tampon lisse","technique / 7700 / Armoire BOTT GD","TLE 0,0050 pouce 0 / 0 (Qualité )",null,"Afficher"]
["CAL-0040","Tampon lisse","technique / 7700 / Armoire BOTT GD","TLE 0,0050 pouce 0 / 0 (Qualité )",null,"Afficher"]
["CAL-0041","Tampon lisse","technique / 7700 / Armoire BOTT GD","TLE 0,0051 pouce 0 / 0 (Qualité )",null,"Afficher"]
["CAL-0042","Tampon lisse","technique / 7700 / Armoire BOTT GD","TLE 0,0051 pouce 0 / 0 (Qualité )",null,"Afficher"]
["CAL-0043","Tampon lisse","technique / 7700 / Armoire BOTT GD","TLE 0,0056 pouce 0 / 0 (Qualité )",null,"Afficher"]
["CAL-0044","Tampon lisse","technique / 7700 / Armoire BOTT GD","TLE 0,0056 pouce 0 / 0 (Qualité )",null,"Afficher"]
["CAL-0045","Tampon lisse","technique / 7700 / Armoire BOTT GD","TLE 0,0071 pouce 0 / 0 (Qualité )",null,"Afficher"]
["CAL-0046","Tampon lisse","technique / 7700 / Armoire BOTT GD","TLE 0,0071 pouce 0 / 0 (Qualité )",null,"Afficher"]
["CAL-0047","Tampon lisse","technique / 7700 / Armoire BOTT GD","TLE 0,0072 pouce 0 / 0 (Qualité )",null,"Afficher"]
["CAL-0048","Tampon lisse","technique / 7700 / Armoire BOTT GD","TLE 0,0072 pouce 0 / 0 (Qualité )",null,"Afficher"]
["CAL-0049","Tampon lisse","technique / 7700 / Armoire BOTT GD","TLE 0,0073 pouce 0 / 0 (Qualité )",null,"Afficher"]
["CAL-0050","Tampon lisse","technique / 7700 / Armoire BOTT GD","TLE 0,0073 pouce 0 / 0 (Qualité )",null,"Afficher"]
["CAL-0051","Tampon lisse","technique / 7700 / Armoire BOTT GD","TLE 0,0078 pouce 0 / 0 (Qualité )",null,"Afficher"]
["CAL-0052","Tampon lisse","technique / 7700 / Armoire BOTT GD","TLE 0,0078 pouce 0 / 0 (Qualité )",null,"Afficher"]
["CAL-0083","Tampon lisse","Production / 7700","TLE 1,4100 0 / 0 (Qualité )",null,"Afficher"]
["CAL-0170","Tampon lisse","Technique / 7700 / Armoire BOTT ED","TLE 0,168",null,"Afficher"]
["CAL-0171","Tampon lisse","Technique / 7700 / Armoire BOTT ED","TLE 0,168",null,"Afficher"]
["CAL-0173","Tampon lisse","Technique / 7700 / Armoire BOTT ED","TLE 0,172",null,"Afficher"]
["CAL-0174","Tampon lisse","Technique / 7700 / Armoire BOTT ED","TLE 0,172",null,"Afficher"]
["CAL-0177","Tampon lisse","Technique / 7700 / Armoire BOTT ED","TLE 0,175",null,"Afficher"]
["CAL-0179","Tampon lisse","Technique / 7700 / Armoire BOTT ED","TLE 0,178",null,"Afficher"]
["CAL-0180","Tampon lisse","Technique / 7700 / Armoire BOTT ED","TLE 0,178",null,"Afficher"]
["CAL-0182","Tampon lisse","Technique / 7700 / Armoire BOTT ED","TLE 0,182",null,"Afficher"]
["CAL-0183","Tampon lisse","Technique / 7700 / Armoire BOTT ED","TLE 0,182",null,"Afficher"]
["CAL-0185","Tampon lisse","Technique / 7700 / Armoire BOTT ED","TLE 0,185",null,"Afficher"]
["CAL-0186","Tampon lisse","Technique / 7700 / Armoire BOTT ED","TLE 0,185",null,"Afficher"]
["CAL-0193","Tampon lisse","Technique / 7700 / Bureau de Laurent SENEE","TLE 1,660",null,"Afficher"]
["CAL-0194","Tampon lisse","Technique / 7700 / Bureau de Laurent SENEE","TLE 1,660",null,"Afficher"]
["CAL-0195","Tampon lisse","Technique / 7700 / Armoire Métrologie M1 B","TLE 1,670",null,"Afficher"]
["CAL-0196","Tampon lisse","Technique / 7700 / Bureau de Laurent SENEE","TLE 1,670",null,"Afficher"]
["CAL-0197","Tampon lisse","Technique / 7700 / Bureau de Laurent SENEE","TLE 1,670",null,"Afficher"]
["CAL-0199","Tampon lisse","Technique / 7700 / Bureau de Laurent SENEE","TLE 1,665",null,"Afficher"]
["CAL-0200","Tampon lisse","Technique / 7700 / Bureau de Laurent SENEE","TLE 1,665",null,"Afficher"]
["CAL-0201","Tampon lisse","Technique / 7700 / Armoire Métrologie M1 B","TLE 1,675",null,"Afficher"]
["CAL-0202","Tampon lisse","Technique / 7700 / Bureau de Laurent SENEE","TLE 1,675",null,"Afficher"]
["CAL-0203","Tampon lisse","Technique / 7700 / Bureau de Laurent SENEE","TLE 1,675",null,"Afficher"]
["CAL-0204","Tampon lisse","Technique / 7700 / Armoire Métrologie M1 B","TLE 1,680",null,"Afficher"]
["CAL-0205","Tampon lisse","Technique / 7700 / Bureau de Laurent SENEE","TLE 1,680",null,"Afficher"]
["CAL-0206","Tampon lisse","Technique / 7700 / Bureau de Laurent SENEE","TLE 1,680",null,"Afficher"]
["CAL-0207","Tampon lisse","Technique / 7700 / Armoire Métrologie M1 B","TLE 1,685",null,"Afficher"]
["CAL-0208","Tampon lisse","Technique / 7700 / Bureau de Laurent SENEE","TLE 1,685",null,"Afficher"]
["CAL-0209","Tampon lisse","Technique / 7700 / Bureau de Laurent SENEE","TLE 1,685",null,"Afficher"]
["CAL-0210","Tampon lisse","Technique / 7700 / Armoire Métrologie M1 B","TLE 1,690",null,"Afficher"]
["CAL-0211","Tampon lisse","Technique / 7700 / Bureau de Laurent SENEE","TLE 1,690",null,"Afficher"]
["CAL-0212","Tampon lisse","Technique / 7700 / Bureau de Laurent SENEE","TLE 1,690",null,"Afficher"]
["CAL-0213","Tampon lisse","Technique / 7700 / Bureau de Laurent SENEE","TLE 1,690",null,"Afficher"]
["CAL-0214","Tampon lisse","Technique / 7700 / Bureau de Laurent SENEE","TLE 1,690",null,"Afficher"]
["CAL-0215","Tampon lisse","Technique / 7700 / Bureau de Laurent SENEE","TLE 1,690",null,"Afficher"]
["CAL-0216","Tampon lisse","Technique / 7700 / Armoire Métrologie M1 B","TLE 3,360",null,"Afficher"]
["CAL-0217","Tampon lisse","Technique / 7700 / Bureau de Laurent SENEE","TLE 3,360",null,"Afficher"]
["CAL-0218","Tampon lisse","Technique / 7700 / Bureau de Laurent SENEE","TLE 3,360",null,"Afficher"]
["CAL-0219","Tampon lisse","Technique / 7700 / Armoire Métrologie M1 B","TLE 3,365",null,"Afficher"]
["CAL-0220","Tampon lisse","Technique / 7700 / Bureau de Laurent SENEE","TLE 3,365",null,"Afficher"]
["CAL-0221","Tampon lisse","Technique / 7700 / Bureau de Laurent SENEE","TLE 3,365",null,"Afficher"]
["CAL-0222","Tampon lisse","Technique / 7700 / Armoire Métrologie M1 B","TLE 3,370",null,"Afficher"]
["CAL-0223","Tampon lisse","Technique / 7700 / Bureau de Laurent SENEE","TLE 3,370",null,"Afficher"]
["CAL-0224","Tampon lisse","Technique / 7700 / Bureau de Laurent SENEE","TLE 3,370",null,"Afficher"]
["CAL-0225","Tampon lisse","Technique / 7700 / Armoire Métrologie M1 B","TLE 3,375",null,"Afficher"]
["CAL-0226","Tampon lisse","Technique / 7700 / Bureau de Laurent SENEE","TLE 3,375",null,"Afficher"]
["CAL-0227","Tampon lisse","Technique / 7700 / Bureau de Laurent SENEE","TLE 3,375",null,"Afficher"]
["CAL-0228","Tampon lisse","Technique / 7700 / Armoire Métrologie M1 B","TLE 3,380",null,"Afficher"]
["CAL-0229","Tampon lisse","Technique / 7700 / Bureau de Laurent SENEE","TLE 3,380",null,"Afficher"]
["CAL-0230","Tampon lisse","Technique / 7700 / Bureau de Laurent SENEE","TLE 3,380",null,"Afficher"]
["CAL-0231","Tampon lisse","Technique / 7700 / Armoire Métrologie M1 B","TLE 3,385",null,"Afficher"]
["CAL-0232","Tampon lisse","Technique / 7700 / Bureau de Laurent SENEE","TLE 3,385",null,"Afficher"]
["CAL-0233","Tampon lisse","Technique / 7700 / Bureau de Laurent SENEE","TLE 3,385",null,"Afficher"]
["CAL-0234","Tampon lisse","Technique / 7700 / Armoire Métrologie M1 B","TLE 3,390",null,"Afficher"]
["CAL-0235","Tampon lisse","Technique / 7700 / Bureau de Laurent SENEE","TLE 3,390",null,"Afficher"]
["CAL-0236","Tampon lisse","Technique / 7700 / Bureau de Laurent SENEE","TLE 3,390",null,"Afficher"]
["CAL-0237","Tampon lisse","Technique / 7700 / Armoire Métrologie M1 B","TLE 3,395",null,"Afficher"]
["CAL-0238","Tampon lisse","Technique / 7700 / Bureau de Laurent SENEE","TLE 3,395",null,"Afficher"]
["CAL-0239","Tampon lisse","Technique / 7700 / Bureau de Laurent SENEE","TLE 3,395",null,"Afficher"]
["CAL-0240","Tampon lisse","Technique / 7700 / Armoire Métrologie M1 B","TLE 7,015",null,"Afficher"]
["CAL-0241","Tampon lisse","Technique / 7700 / Bureau de Laurent SENEE","TLE 7,015",null,"Afficher"]
["CAL-0242","Tampon lisse","Technique / 7700 / Bureau de Laurent SENEE","TLE 7,015",null,"Afficher"]
["CAL-0243","Tampon lisse","Technique / 7700 / Armoire Métrologie M1 B","TLE 7,025",null,"Afficher"]
["CAL-0244","Tampon lisse","Technique / 7700 / Bureau de Laurent SENEE","TLE 7,025",null,"Afficher"]
["CAL-0245","Tampon lisse","Technique / 7700 / Bureau de Laurent SENEE","TLE 7,025",null,"Afficher"]
["CAL-0246","Tampon lisse","Technique / 7700 / Armoire Métrologie M1 B","TLE 7,030",null,"Afficher"]
["CAL-0247","Tampon lisse","Technique / 7700 / Bureau de Laurent SENEE","TLE 7,030",null,"Afficher"]
["CAL-0248","Tampon lisse","Technique / 7700 / Bureau de Laurent SENEE","TLE 7,030",null,"Afficher"]
["CAL-0249","Tampon lisse","Technique / 7700 / Armoire Métrologie M1 B","TLE 7,050",null,"Afficher"]
["CAL-0250","Tampon lisse","Technique / 7700 / Bureau de Laurent SENEE","TLE 7,050",null,"Afficher"]
["CAL-0251","Tampon lisse","Technique / 7700 / Bureau de Laurent SENEE","TLE 7,050",null,"Afficher"]
["CAL-0252","Tampon lisse","Technique / 7700 / Armoire Métrologie M1 B","TLE 8,065",null,"Afficher"]
["CAL-0253","Tampon lisse","Technique / 7700 / Bureau de Laurent SENEE","TLE 8,065",null,"Afficher"]
["CAL-0254","Tampon lisse","Technique / 7700 / Bureau de Laurent SENEE","TLE 8,065",null,"Afficher"]
["CAL-0255","Tampon lisse","Technique / 7700 / Armoire Métrologie M1 B","TLE 7,055",null,"Afficher"]
["CAL-0256","Tampon lisse","Technique / 7700 / Bureau de Laurent SENEE","TLE 7,055",null,"Afficher"]
["CAL-0257","Tampon lisse","Technique / 7700 / Bureau de Laurent SENEE","TLE 7,055",null,"Afficher"]
["CAL-0258","Tampon lisse","Technique / 7700 / Armoire Métrologie M1 B","TLE 7,065",null,"Afficher"]
["CAL-0259","Tampon lisse","Technique / 7700 / Bureau de Laurent SENEE","TLE 7,065",null,"Afficher"]
["CAL-0260","Tampon lisse","Technique / 7700 / Bureau de Laurent SENEE","TLE 7,065",null,"Afficher"]
["CAL-0261","Tampon lisse","Technique / 7700 / Armoire Métrologie M1 B","TLE 7,045",null,"Afficher"]
["CAL-0262","Tampon lisse","Technique / 7700 / Bureau de Laurent SENEE","TLE 7,045",null,"Afficher"]
["CAL-0263","Tampon lisse","Technique / 7700 / Bureau de Laurent SENEE","TLE 7,045",null,"Afficher"]
["CAL-0264","Tampon lisse","Technique / 7700 / Armoire Métrologie M1 B","TLE 7,060",null,"Afficher"]
["CAL-0265","Tampon lisse","Technique / 7700 / Bureau de Laurent SENEE","TLE 7,060",null,"Afficher"]
["CAL-0266","Tampon lisse","Technique / 7700 / Bureau de Laurent SENEE","TLE 7,060",null,"Afficher"]
["CAL-0267","Tampon lisse","Technique / 7700 / Armoire Métrologie M1 B","TLE 8,060",null,"Afficher"]
["CAL-0268","Tampon lisse","Technique / 7700 / Bureau de Laurent SENEE","TLE 8,060",null,"Afficher"]
["CAL-0269","Tampon lisse","Technique / 7700 / Bureau de Laurent SENEE","TLE 8,060",null,"Afficher"]
["CAL-0270","Tampon lisse","Technique / 7700 / Armoire Métrologie M1 B","TLE 8,080",null,"Afficher"]
["CAL-0271","Tampon lisse","Technique / 7700 / Bureau de Laurent SENEE","TLE 8,080",null,"Afficher"]
["CAL-0272","Tampon lisse","Technique / 7700 / Bureau de Laurent SENEE","TLE 8,080",null,"Afficher"]
["CAL-0273","Tampon lisse","Technique / 7700 / Armoire Métrologie M1 B","TLE 7,010",null,"Afficher"]
["CAL-0274","Tampon lisse","Technique / 7700 / Bureau de Laurent SENEE","TLE 7,010",null,"Afficher"]
["CAL-0275","Tampon lisse","Technique / 7700 / Bureau de Laurent SENEE","TLE 7,010",null,"Afficher"]
["CAL-0276","Tampon lisse","Technique / 7700 / Armoire Métrologie M1 B","TLE 8,085",null,"Afficher"]
["CAL-0277","Tampon lisse","Technique / 7700 / Bureau de Laurent SENEE","TLE 8,085",null,"Afficher"]
["CAL-0278","Tampon lisse","Technique / 7700 / Bureau de Laurent SENEE","TLE 8,085",null,"Afficher"]
["CAL-0279","Tampon lisse","Technique / 7700 / Armoire Métrologie M1 B","TLE 8,075",null,"Afficher"]
["CAL-0280","Tampon lisse","Technique / 7700 / Bureau de Laurent SENEE","TLE 8,075",null,"Afficher"]
["CAL-0281","Tampon lisse","Technique / 7700 / Bureau de Laurent SENEE","TLE 8,075",null,"Afficher"]
["CAL-0282","Tampon lisse","Technique / 7700 / Armoire Métrologie M1 B","TLE 8,070",null,"Afficher"]
["CAL-0283","Tampon lisse","Technique / 7700 / Bureau de Laurent SENEE","TLE 8,070",null,"Afficher"]
["CAL-0284","Tampon lisse","Technique / 7700 / Bureau de Laurent SENEE","TLE 8,070",null,"Afficher"]
["CAL-0285","Tampon lisse","Technique / 7700 / Armoire Métrologie M1 B","TLE 7,040",null,"Afficher"]
["CAL-0286","Tampon lisse","Technique / 7700 / Bureau de Laurent SENEE","TLE 7,040",null,"Afficher"]
["CAL-0287","Tampon lisse","Technique / 7700 / Bureau de Laurent SENEE","TLE 7,040",null,"Afficher"]
["CAL-0288","Tampon lisse","Technique / 7700 / Armoire Métrologie M1 B","TLE 8,090",null,"Afficher"]
["CAL-0289","Tampon lisse","Technique / 7700 / Bureau de Laurent SENEE","TLE 8,090",null,"Afficher"]
["CAL-0290","Tampon lisse","Technique / 7700 / Bureau de Laurent SENEE","TLE 8,090",null,"Afficher"]
["CAL-0291","Tampon lisse","Technique / 7700 / Armoire Métrologie M1 B","TLE 7,035",null,"Afficher"]
["CAL-0292","Tampon lisse","Technique / 7700 / Bureau de Laurent SENEE","TLE 7,035",null,"Afficher"]
["CAL-0293","Tampon lisse","Technique / 7700 / Bureau de Laurent SENEE","TLE 7,035",null,"Afficher"]
["CAL-0294","Tampon lisse","Technique / 7700 / Armoire Métrologie M1 B","TLE 7,020",null,"Afficher"]
["CAL-0295","Tampon lisse","Technique / 7700 / Bureau de Laurent SENEE","TLE 7,020",null,"Afficher"]
["CAL-0296","Tampon lisse","Technique / 7700 / Bureau de Laurent SENEE","TLE 7,020",null,"Afficher"]
["CAL-0299","Tampon lisse","Technique / 7700 / Armoire Métrologie M1 B","TLD 0,483 / 0,488",null,"Afficher"]
["CAL-0301","Tampon lisse","Technique / 7700 / Armoire Métrologie M1 B","TLE 0,500",null,"Afficher"]
["CAL-0303","Tampon lisse","Technique / 7700 / Armoire Métrologie M1 B","TLD 0,604 / 0,609",null,"Afficher"]
["CAL-0305","Tampon lisse","Technique / 7700 / Armoire Métrologie M1 B","TLD 1,382 / 1,387",null,"Afficher"]
["CAL-0307","Tampon lisse","Technique / 7700 / Armoire Métrologie M1 B","TLD 0,585 / 0,590",null,"Afficher"]
["CAL-0309","Tampon lisse","Technique / 7700 / Armoire Métrologie M1 B","TLE 1,340",null,"Afficher"]
["CAL-0311","Tampon lisse","Technique / 7700 / Armoire Métrologie M1 B","TLE 0,520",null,"Afficher"]
["CAL-0313","Tampon lisse","Technique / 7700 / Armoire Métrologie M1 B","TLE 1,397",null,"Afficher"]
["CAL-0315","Tampon lisse","Technique / 7700 / Armoire Métrologie M1 B","TLD 1,320 / 1,325",null,"Afficher"]
["CAL-0317","Tampon lisse","Technique / 7700 / Armoire Métrologie M1 B","TLD 1,664 / 1,669",null,"Afficher"]
["CAL-0319","Tampon lisse","Technique / 7700 / Armoire Métrologie M1 B","TLE 0,597",null,"Afficher"]
["CAL-0321","Tampon lisse","Technique / 7700 / Armoire Métrologie M1 B","TLE 1,676",null,"Afficher"]
["CAL-0323","Tampon lisse","Technique / 7700 / Armoire Métrologie M1 B","TLD 1,407 / 1,412",null,"Afficher"]
["CAL-0325","Tampon lisse","Technique / 7700 / Armoire Métrologie M1 B","TLD 1,683 / 1,688",null,"Afficher"]
["CAL-0327","Tampon lisse","Technique / 7700 / Armoire Métrologie M1 B","TLD 1,528 / 1,533",null,"Afficher"]
["CAL-0329","Tampon lisse","Technique / 7700 / Armoire Métrologie M1 B","TLD 1,355 / 1,360",null,"Afficher"]
["CAL-0331","Tampon lisse","Technique / 7700 / Armoire Métrologie M1 B","TLE 2,413",null,"Afficher"]
["CAL-0333","Tampon lisse","Technique / 7700 / Armoire Métrologie M1 B","TLE 2,921",null,"Afficher"]
["CAL-0335","Tampon lisse","Technique / 7700 / Armoire Métrologie M1 B","TLE 2,311",null,"Afficher"]
["CAL-0337","Tampon lisse","Technique / 7700 / Armoire Métrologie M1 B","TLD 2,420 / 2,425",null,"Afficher"]
["CAL-0339","Tampon lisse","Technique / 7700 / Armoire Métrologie M1 B","TLD 2,909 / 2,914",null,"Afficher"]
["CAL-0341","Tampon lisse","Technique / 7700 / Armoire Métrologie M1 B","TLD 2,928 / 2,933",null,"Afficher"]
["CAL-0343","Tampon lisse","Technique / 7700 / Armoire Métrologie M1 B","TLD 2,299 / 2,304",null,"Afficher"]
["CAL-0345","Tampon lisse","Technique / 7700 / Armoire Métrologie M1 B","TLD 2,318 / 2,323",null,"Afficher"]
["CAL-0347","Tampon lisse","Technique / 7700 / Armoire Métrologie M1 B","TLD 2,401 / 2,406",null,"Afficher"]
["CAL-0349","Tampon lisse","Technique / 7700 / Armoire Métrologie M1 B","TLE 5,600",null,"Afficher"]
["CAL-0351","Tampon lisse","Technique / 7700 / Armoire Métrologie M1 B","TLE 5,605",null,"Afficher"]
["CAL-0353","Tampon lisse","Technique / 7700 / Armoire Métrologie M1 B","TLE 5,610",null,"Afficher"]
["CAL-0355","Tampon lisse","Technique / 7700 / Armoire Métrologie M1 B","TLE 5,615",null,"Afficher"]
["CAL-0357","Tampon lisse","Technique / 7700 / Armoire Métrologie M1 B","TLE 5,625",null,"Afficher"]
["CAL-0359","Tampon lisse","Technique / 7700 / Armoire Métrologie M1 B","TLD 3,366 / 3,371",null,"Afficher"]
["CAL-0361","Tampon lisse","Technique / 7700 / Armoire Métrologie M1 B","TLD 3,379/ 3,384",null,"Afficher"]
["CAL-0363","Tampon lisse","Technique / 7700 / Armoire Métrologie M1 B","TLD 3,544/ 3,549",null,"Afficher"]
["CAL-0365","Tampon lisse","Technique / 7700 / Armoire Métrologie M1 B","TLD 3,785/ 3,790",null,"Afficher"]
["CAL-0367","Tampon lisse","Technique / 7700 / Armoire Métrologie M1 B","TLD 3,424/ 3,429",null,"Afficher"]
["CAL-0369","Tampon lisse","Technique / 7700 / Armoire Métrologie M1 B","TLD 3,385 /3,390",null,"Afficher"]
["CAL-0371","Tampon lisse","Technique / 7700 / Armoire Métrologie M1 B","TLD 3,563/3,568",null,"Afficher"]
["CAL-0373","Tampon lisse","Technique / 7700 / Armoire Métrologie M1 B","TLD 3,804/3,809",null,"Afficher"]
["CAL-0375","Tampon lisse","Technique / 7700 / Armoire Métrologie M1 B","TLD 3,378",null,"Afficher"]
["CAL-0377","Tampon lisse","Technique / 7700 / Armoire Métrologie M1 B","TLE 3,400",null,"Afficher"]
["CAL-0379","Tampon lisse","Technique / 7700 / Armoire Métrologie M1 B","TLE 3,410",null,"Afficher"]
["CAL-0381","Tampon lisse","Technique / 7700 / Armoire Métrologie M1 B","TLE 3,556",null,"Afficher"]
["CAL-0383","Tampon lisse","Technique / 7700 / Armoire Métrologie M1 B","TLE 3,797",null,"Afficher"]
["CAL-0391","Tampon lisse","Technique / 7700 / Armoire Métrologie M1 B","5,620",null,"Afficher"]
["CAL-0393","Tampon lisse","Technique / 7700 / Armoire Métrologie M1 B","TLE 5,600",null,"Afficher"]
["CAL-0395","Tampon lisse","Technique / 7700 / Armoire Métrologie M1 B","TLE 5,720",null,"Afficher"]
["CAL-0397","Tampon lisse","Technique / 7700 / Armoire Métrologie M1 B","TLE 4,600",null,"Afficher"]
["CAL-0399","Tampon lisse","Technique / 7700 / Armoire Métrologie M1 B","TLE 5,710",null,"Afficher"]
["CAL-0401","Tampon lisse","Technique / 7700 / Armoire Métrologie M1 B","TLE 4,070",null,"Afficher"]
["CAL-0403","Tampon lisse","Technique / 7700 / Armoire Métrologie M1 B","TLE 4,039/4,044",null,"Afficher"]
["CAL-0405","Tampon lisse","Technique / 7700 / Armoire Métrologie M1 B","TLE 5,588/5,593",null,"Afficher"]
["CAL-0407","Tampon lisse","Technique / 7700 / Armoire Métrologie M1 B","TLE 5,690/5,695",null,"Afficher"]
["CAL-0409","Tampon lisse","Technique / 7700 / Armoire Métrologie M1 B","TLE 8,077",null,"Afficher"]
["CAL-0411","Tampon lisse","Technique / 7700 / Armoire Métrologie M1 B","TLE 7,040",null,"Afficher"]
["CAL-0413","Tampon lisse","Technique / 7700 / Armoire Métrologie M2 B","TLE 7,030",null,"Afficher"]
["CAL-0415","Tampon lisse","Technique / 7700 / Armoire Métrologie M1 B","TLE 7,050",null,"Afficher"]
["CAL-0417","Tampon lisse","Technique / 7700 / Armoire Métrologie M1 B","TLE 6,470",null,"Afficher"]
["CAL-0419","Tampon lisse","Technique / 7700 / Armoire Métrologie M1 B","TLE 7,020",null,"Afficher"]
["CAL-0421","Tampon lisse","Technique / 7700 / Armoire Métrologie M1 B","TLE 6,490",null,"Afficher"]
["CAL-0423","Tampon lisse","Technique / 7700 / Armoire Métrologie M1 B","TLE 6,510",null,"Afficher"]
["CAL-0425","Tampon lisse","Technique / 7700 / Armoire Métrologie M1 B","TLE 6,530",null,"Afficher"]
["CAL-0385","Tampon lisse double","Technique / 7700 / Armoire Métrologie M1 B","TLE 4,084/4,089",null,"Afficher"]
["CAL-0387","Tampon lisse double","Technique / 7700 / Armoire Métrologie M1 B","5,633/5,638",null,"Afficher"]
["CAL-0389","Tampon lisse double","Technique / 7700 / Armoire Métrologie M1 B","5,735/5,740",null,"Afficher"]
["CAL-0427","Tampon lisse double","Technique / 7700 / Armoire Métrologie M1 B","6,452 / 6,457",null,"Afficher"]
["CAL-0429","Tampon lisse double","Technique / 7700 / Armoire Métrologie M1 B","7,011 / 7,016",null,"Afficher"]
["CAL-0430","Tampon lisse double","Technique / 7700 / Bureau de Laurent SENEE","8,065 / 8,070",null,"Afficher"]
["CAL-0433","Tampon lisse double","Technique / 7700 / Bureau de Laurent SENEE","6,547 / 6,552",null,"Afficher"]
["CAL-0435","Tampon lisse double","Technique / 7700 / Armoire Métrologie M1 B","8,084 / 8,089",null,"Afficher"]
["CAL-0437","Tampon lisse double","Technique / 7700 / Armoire Métrologie M1 B","7,056 / 7,061",null,"Afficher"]
["ETA-0209","Tampon lisse étalon","Technique / 7430 / Méthode BU tubes","0,325 mm",null,"Afficher"]
["ETA-0210","Tampon lisse étalon","Technique / 7430 / Méthode BU tubes","0,326 mm",null,"Afficher"]
["ETA-0211","Tampon lisse étalon","Technique / 7430 / Méthode BU tubes","0,327 mm",null,"Afficher"]
["ETA-0212","Tampon lisse étalon","Technique / 7430 / Méthode BU tubes","0,328 mm",null,"Afficher"]
["ETA-0213","Tampon lisse étalon","Technique / 7430 / Méthode BU tubes","0,329 mm",null,"Afficher"]
["ETA-0214","Tampon lisse étalon","Technique / 7430 / Méthode BU tubes","0,330 mm",null,"Afficher"]
["ETA-0215","Tampon lisse étalon","Technique / 7430 / Méthode BU tubes","0,331 mm",null,"Afficher"]
["ETA-0216","Tampon lisse étalon","Technique / 7430 / Méthode BU tubes","0,332 mm",null,"Afficher"]
["ETA-0217","Tampon lisse étalon","Technique / 7430 / Méthode BU tubes","0,333 mm",null,"Afficher"]
["ETA-0218","Tampon lisse étalon","Technique / 7700 / Armoire BOTT GD","0,334 mm",null,"Afficher"]
["TLET-002","Tampon lisse étalon","Technique / Métrologie","0,365",null,"Afficher"]
["TLET-003","Tampon lisse étalon","Technique / Métrologie","0,365",null,"Afficher"]
["TLET-004","Tampon lisse étalon","Technique / 7700 / Armoire BOTT EM","0,413 mm",null,"Afficher"]
["TLET-005","Tampon lisse étalon","Technique / 7700 / Armoire BOTT EM","0,413 mm",null,"Afficher"]
["CAL-0410","Tampon lisse","Technique / 8414DIV","TLE 7,040",null,"Afficher"]
["CF.375","Machine à mesurer par vision","Production / 8509 / Tronconnage",null,null,"Afficher"]
["CF.280","Machine à mesurer sans contact","Production / 8513 / Contrôle Final Pièces",null,null,"Afficher"]
["CF.449","Projecteur de profils","Production / 8513 / Contrôle Final Pièces",null,null,"Afficher"]
["CF.460","Projecteur de profils","Production / 8414 DIV / Contrôle Tubes Divers",null,null,"Afficher"]
["OPT-0001","Projecteur de profils","Technique / 7245 / Prototype",null,null,"Afficher"]
["OPT-0006","Projecteur de profils","Production / 8507 / micro assemblage",null,null,"Afficher"]
["OPT-0017","Projecteur de profils","Production / 8510 / Tour de Reprise",null,null,"Afficher"]
["OPT-0020","Projecteur de profils","Production / 8513 / Contrôle Final Pièces",null,null,"Afficher"]
["OPT-0018","Projecteur de profils","Technique / 7700",null,null,"Afficher"]
["CAT.084","Machine à mesurer par vision","Production / 8510",null,null,"Afficher"]

{"sheet":"ø_inter_exter_longueur","index":52,"n_rows":0,"n_cols":0,"rows_kept":0,"cut":false,"hidden":false,"merged":[]}

{"sheet":"Longueur","index":53,"n_rows":20,"n_cols":6,"rows_kept":20,"cut":false,"hidden":false,"merged":[]}
[]
[]
["DIM-0145","Régle digitale","Production / 8507 / Micro Assemblage","0 / 150 mm",null,"Afficher"]
["DIM-0074","Reglet","Production / 8414DIV / Contrôle tube divers","3000 mm",null,"Afficher"]
["DIM-0008","Réglet","Production / 8509 / Tronconnage","0 / 3000 mm",null,"Afficher"]
["DIM-0133","Dimensionnel","Production / 8400",null,null,"Afficher"]
["BMIC-001","Butée micrométrique","Technique / 7700 / Armoire BOTT CG","0 / 25 mm",null,"Afficher"]
["SQ.027","Règle graduée","Technique / 7700 / Armoire BOTT GG","0 / 50 mm",null,"Afficher"]
["DIM-0072","Reglet","Production / 7700","3000 mm",null,"Afficher"]
["DIM-0073","Reglet","Production / 7700 / Métrologie","3000 mm",null,"Afficher"]
["CF.375","Machine à mesurer par vision","Production / 8509 / Tronconnage",null,null,"Afficher"]
["CF.280","Machine à mesurer sans contact","Production / 8513 / Contrôle Final Pièces",null,null,"Afficher"]
["CF.449","Projecteur de profils","Production / 8513 / Contrôle Final Pièces",null,null,"Afficher"]
["CF.460","Projecteur de profils","Production / 8414 DIV / Contrôle Tubes Divers",null,null,"Afficher"]
["OPT-0001","Projecteur de profils","Technique / 7245 / Prototype",null,null,"Afficher"]
["OPT-0006","Projecteur de profils","Production / 8507 / micro assemblage",null,null,"Afficher"]
["OPT-0017","Projecteur de profils","Production / 8510 / Tour de Reprise",null,null,"Afficher"]
["OPT-0020","Projecteur de profils","Production / 8513 / Contrôle Final Pièces",null,null,"Afficher"]
["OPT-0018","Projecteur de profils","Technique / 7700",null,null,"Afficher"]
["CAT.084","Machine à mesurer par vision","Production / 8510",null,null,"Afficher"]

{"sheet":"Lumière","index":54,"n_rows":4,"n_cols":6,"rows_kept":4,"cut":false,"hidden":false,"merged":[]}
[]
[]
["CHI-0003","Mesureur de Brillance","Technique / 7510 / Process BU transformation",null,null,"Afficher"]
["SQ.086","Luxmètre","Technique / 7700",null,null,"Afficher"]

{"sheet":"Physico_chimique","index":55,"n_rows":7,"n_cols":6,"rows_kept":7,"cut":false,"hidden":false,"merged":[]}
[]
[]
["PH-132","pH-mètre","Technique / 7510",null,null,"Afficher"]
["ENV.010","pH-mètre","Technique / 7700 / Armoire BOTT KM",null,null,"Afficher"]
["PH-001","pH-mètre","Production / 7700",null,null,"Afficher"]
["PH-227","pH-mètre","Technique / 7510 / Process BU transformation",null,null,"Afficher"]
["SDP-226","Sonde de pH","Technique / 7300 / Station d'épuration.",null,null,"Afficher"]

{"sheet":"Pression","index":56,"n_rows":101,"n_cols":16,"rows_kept":101,"cut":false,"hidden":false,"merged":[]}
["PRESSION"]
["Pression",null,null,null,null,null,"résolution g","Incertitude g","Justesse g","IT mini détectable g","Capacité mini g","Capacité Maxi g",null,"Résultat critère IT"]
["CDP-001","Capteur de pression","Production / 7700","0 / 400 bar",null,"Afficher",null,null,null,null,null,null,null,{"$f":"IF('Choix de l''instrument '!$C$3=\"Pression\",AND('Choix de l''instrument '!$D$3>=Pression!G3,G3<>\"\"),\"\")","v":""}]
["CDP-002","Capteur de pression","Technique / 7700 / Zone \"A étalonner en interne\"","0 / 400 bar",null,"Afficher",null,null,null,null,null,null,null,{"$f":"IF('Choix de l''instrument '!$C$3=\"Pression\",AND('Choix de l''instrument '!$D$3>=Pression!G4,G4<>\"\"),\"\")","v":""},"=NBVAL(A:A)","=NB.SI(N3:N100;Vrai)"]
["PRE-0003","Capteur de pression","Production / 8414DIV / Contrôle tube divers","0 / 400 bar",null,"Afficher",null,null,null,null,null,null,null,{"$f":"IF('Choix de l''instrument '!$C$3=\"Pression\",AND('Choix de l''instrument '!$D$3>=Pression!G5,G5<>\"\"),\"\")","v":""}]
["CE.245A","Manomètre","Production / 8515 / Laboratoire",null,null,"Afficher",null,null,null,null,null,null,null,{"$f":"IF('Choix de l''instrument '!$C$3=\"Pression\",AND('Choix de l''instrument '!$D$3>=Pression!G6,G6<>\"\"),\"\")","v":""}]
["MAN-007","Manomètre","Technique / 7245 / Prototype","0 / 10 bar",null,"Afficher",null,null,null,null,null,null,null,{"$f":"IF('Choix de l''instrument '!$C$3=\"Pression\",AND('Choix de l''instrument '!$D$3>=Pression!G7,G7<>\"\"),\"\")","v":""}]
["CDP-006","Capteur de pression","Technique / 7245 / Prototype","0 / 60 bar",null,"Afficher",null,null,null,null,null,null,null,{"$f":"IF('Choix de l''instrument '!$C$3=\"Pression\",AND('Choix de l''instrument '!$D$3>=Pression!G8,G8<>\"\"),\"\")","v":""}]
["MAN-003","Manomètre","Technique / 7245 / Prototype","0 / 60 bar",null,"Afficher",null,null,null,null,null,null,null,{"$f":"IF('Choix de l''instrument '!$C$3=\"Pression\",AND('Choix de l''instrument '!$D$3>=Pression!G9,G9<>\"\"),\"\")","v":""}]
["PRE-0005","Manomètre","Production / 8403 / Bull-blocks","0 / 10 bar",null,"Afficher",null,null,null,null,null,null,null,{"$f":"IF('Choix de l''instrument '!$C$3=\"Pression\",AND('Choix de l''instrument '!$D$3>=Pression!G10,G10<>\"\"),\"\")","v":""}]
["PRE-0006","Manomètre","Production / 8403 / Bull-blocks","0 / 10 bar",null,"Afficher",null,null,null,null,null,null,null,{"$f":"IF('Choix de l''instrument '!$C$3=\"Pression\",AND('Choix de l''instrument '!$D$3>=Pression!G11,G11<>\"\"),\"\")","v":""}]
["ELE-0013","Capteur de pression","Production / 7700","0 / 400 bar",null,"Afficher",null,null,null,null,null,null,null,{"$f":"IF('Choix de l''instrument '!$C$3=\"Pression\",AND('Choix de l''instrument '!$D$3>=Pression!G12,G12<>\"\"),\"\")","v":""}]
["MAN-001","Manomètre","Production / 8403 / Bull-blocks","0 / 10 bar",null,"Afficher",null,null,null,null,null,null,null,{"$f":"IF('Choix de l''instrument '!$C$3=\"Pression\",AND('Choix de l''instrument '!$D$3>=Pression!G13,G13<>\"\"),\"\")","v":""}]
["MAN-002","Manomètre","Production / 8403 / Bull-blocks","0 / 10 bar",null,"Afficher",null,null,null,null,null,null,null,{"$f":"IF('Choix de l''instrument '!$C$3=\"Pression\",AND('Choix de l''instrument '!$D$3>=Pression!G14,G14<>\"\"),\"\")","v":""}]
["PRES-001","Système de contrôle de pression pneumatique","Production / 8346",null,null,"Afficher",null,null,null,null,null,null,null,{"$f":"IF('Choix de l''instrument '!$C$3=\"Pression\",AND('Choix de l''instrument '!$D$3>=Pression!G15,G15<>\"\"),\"\")","v":""}]
["CDP-001/B","Boîtier indicateur pression","Production / 7700",null,null,"Afficher",null,null,null,null,null,null,null,{"$f":"IF('Choix de l''instrument '!$C$3=\"Pression\",AND('Choix de l''instrument '!$D$3>=Pression!G16,G16<>\"\"),\"\")","v":""}]
["MAN-004","Manomètre","Technique / 7700 / Armoire BoTT JM","0 / 10 bar",null,"Afficher",null,null,null,null,null,null,null,{"$f":"IF('Choix de l''instrument '!$C$3=\"Pression\",AND('Choix de l''instrument '!$D$3>=Pression!G17,G17<>\"\"),\"\")","v":""}]
["MAN-005","Manomètre","Technique / 7700","0 / 60 bar",null,"Afficher",null,null,null,null,null,null,null,{"$f":"IF('Choix de l''instrument '!$C$3=\"Pression\",AND('Choix de l''instrument '!$D$3>=Pression!G18,G18<>\"\"),\"\")","v":""}]
["MAN-006","Manomètre","Technique / Métrologie / Métrologie","0 / 400 bar",null,"Afficher",null,null,null,null,null,null,null,{"$f":"IF('Choix de l''instrument '!$C$3=\"Pression\",AND('Choix de l''instrument '!$D$3>=Pression!G19,G19<>\"\"),\"\")","v":""}]
["P18","Balance","Administratif / 8016 / Magasin Tubes","1 / 600 kg",null,"Afficher",null,null,null,null,null,null,null,{"$f":"IF('Choix de l''instrument '!$C$3=\"Pression\",AND('Choix de l''instrument '!$D$3>=Pression!G20,G20<>\"\"),\"\")","v":""}]
["P19","Balance","Production / 8510 / Tour de Reprise","0,001 / 15 kg",null,"Afficher",null,null,null,null,null,null,null,{"$f":"IF('Choix de l''instrument '!$C$3=\"Pression\",AND('Choix de l''instrument '!$D$3>=Pression!G21,G21<>\"\"),\"\")","v":""}]
["P20","Balance","Administratif / 8016 / Magasin Tubes","10 / 22000 g",null,"Afficher",null,null,null,null,null,null,null,{"$f":"IF('Choix de l''instrument '!$C$3=\"Pression\",AND('Choix de l''instrument '!$D$3>=Pression!G22,G22<>\"\"),\"\")","v":""}]
["P21","Balance","Production / 8414IMP / contrôle tube implant","50 / 22000 g",null,"Afficher",null,null,null,null,null,null,null,{"$f":"IF('Choix de l''instrument '!$C$3=\"Pression\",AND('Choix de l''instrument '!$D$3>=Pression!G23,G23<>\"\"),\"\")","v":""}]
["P22","Balance","Production / 8513 / Contrôle Final Pièces","0,01 / 610 g",null,"Afficher",null,null,null,null,null,null,null,{"$f":"IF('Choix de l''instrument '!$C$3=\"Pression\",AND('Choix de l''instrument '!$D$3>=Pression!G24,G24<>\"\"),\"\")","v":""}]
["P23","Balance","Production / 8414 IMP / Laboratoire + local Tubes Impl","1 / 810 g",null,"Afficher",null,null,null,null,null,null,null,{"$f":"IF('Choix de l''instrument '!$C$3=\"Pression\",AND('Choix de l''instrument '!$D$3>=Pression!G25,G25<>\"\"),\"\")","v":""}]
["P24","Balance","Production / 8016 / magasin tubes","1 / 22000 g",null,"Afficher",null,null,null,null,null,null,null,{"$f":"IF('Choix de l''instrument '!$C$3=\"Pression\",AND('Choix de l''instrument '!$D$3>=Pression!G26,G26<>\"\"),\"\")","v":""}]
["P25","Balance","Production / 8346","1 / 610 g",null,"Afficher",null,null,null,null,null,null,null,{"$f":"IF('Choix de l''instrument '!$C$3=\"Pression\",AND('Choix de l''instrument '!$D$3>=Pression!G27,G27<>\"\"),\"\")","v":""}]
["P26","Balance","Administratif / 8016 / Magasin Tubes","1 / 610 g",null,"Afficher",null,null,null,null,null,null,null,{"$f":"IF('Choix de l''instrument '!$C$3=\"Pression\",AND('Choix de l''instrument '!$D$3>=Pression!G28,G28<>\"\"),\"\")","v":""}]
["P27","Balance","Production / 8016 / Magasin Pièces","0,5 / 2100 g",null,"Afficher",null,null,null,null,null,null,null,{"$f":"IF('Choix de l''instrument '!$C$3=\"Pression\",AND('Choix de l''instrument '!$D$3>=Pression!G29,G29<>\"\"),\"\")","v":""}]
["P28","Balance","Administratif / 8016 / Magasin Tubes","2 / 300 kg",null,"Afficher",null,null,null,null,null,null,null,{"$f":"IF('Choix de l''instrument '!$C$3=\"Pression\",AND('Choix de l''instrument '!$D$3>=Pression!G30,G30<>\"\"),\"\")","v":""}]
["P29","Balance","Production / 8346","0,01 / 210 g",null,"Afficher",null,null,null,null,null,null,null,{"$f":"IF('Choix de l''instrument '!$C$3=\"Pression\",AND('Choix de l''instrument '!$D$3>=Pression!G31,G31<>\"\"),\"\")","v":""}]
["P30","Balance","Production / 8444 / Interopérations","1 / 22000 g",null,"Afficher",null,null,null,null,null,null,null,{"$f":"IF('Choix de l''instrument '!$C$3=\"Pression\",AND('Choix de l''instrument '!$D$3>=Pression!G32,G32<>\"\"),\"\")","v":""}]
["P31","Balance","Production / 8414DIV / Contrôle Final Tubes","50 / 62000 g",null,"Afficher",null,null,null,null,null,null,null,{"$f":"IF('Choix de l''instrument '!$C$3=\"Pression\",AND('Choix de l''instrument '!$D$3>=Pression!G33,G33<>\"\"),\"\")","v":""}]
["P32","Balance","Production / 8414IMP / Local PCA","50 / 34100 g",null,"Afficher",null,null,null,null,null,null,null,{"$f":"IF('Choix de l''instrument '!$C$3=\"Pression\",AND('Choix de l''instrument '!$D$3>=Pression!G34,G34<>\"\"),\"\")","v":""}]
["P33","Balance","Technique / 7245 / Prototype","100 / 31000 mg",null,"Afficher",null,null,null,null,null,null,null,{"$f":"IF('Choix de l''instrument '!$C$3=\"Pression\",AND('Choix de l''instrument '!$D$3>=Pression!G35,G35<>\"\"),\"\")","v":""}]
["P34","Balance","Production / 8016 / magasin pièce","500 / 210000 mg",null,"Afficher",null,null,null,null,null,null,null,{"$f":"IF('Choix de l''instrument '!$C$3=\"Pression\",AND('Choix de l''instrument '!$D$3>=Pression!G36,G36<>\"\"),\"\")","v":""}]
["P35","Balance","Production / 8400 / Etirage Bancs droits","10 / 2000 g",null,"Afficher",null,null,null,null,null,null,null,{"$f":"IF('Choix de l''instrument '!$C$3=\"Pression\",AND('Choix de l''instrument '!$D$3>=Pression!G37,G37<>\"\"),\"\")","v":""}]
["P36","Balance","Production / 8515 / Production laboratoire","1 / 6200 g",null,"Afficher",null,null,null,null,null,null,null,{"$f":"IF('Choix de l''instrument '!$C$3=\"Pression\",AND('Choix de l''instrument '!$D$3>=Pression!G38,G38<>\"\"),\"\")","v":""}]
["P37","Balance","Production / 8403 / Redressage Couronnes","200 / 60000 g",null,"Afficher",null,null,null,null,null,null,null,{"$f":"IF('Choix de l''instrument '!$C$3=\"Pression\",AND('Choix de l''instrument '!$D$3>=Pression!G39,G39<>\"\"),\"\")","v":""}]
["P38","Balance","Production / 8414IMP","1 / 34100 g",null,"Afficher",null,null,null,null,null,null,null,{"$f":"IF('Choix de l''instrument '!$C$3=\"Pression\",AND('Choix de l''instrument '!$D$3>=Pression!G40,G40<>\"\"),\"\")","v":""}]
["P39","Balance","Production / 8404 / Soudure","1 / 150 kg",null,"Afficher",null,null,null,null,null,null,null,{"$f":"IF('Choix de l''instrument '!$C$3=\"Pression\",AND('Choix de l''instrument '!$D$3>=Pression!G41,G41<>\"\"),\"\")","v":""}]
["P40","Balance","Production / 8444 / Interopérations","100 / 30000 g",null,"Afficher",null,null,null,null,null,null,null,{"$f":"IF('Choix de l''instrument '!$C$3=\"Pression\",AND('Choix de l''instrument '!$D$3>=Pression!G42,G42<>\"\"),\"\")","v":""}]
["P41","Balance","Production / 8414IMP",null,null,"Afficher",null,null,null,null,null,null,null,{"$f":"IF('Choix de l''instrument '!$C$3=\"Pression\",AND('Choix de l''instrument '!$D$3>=Pression!G43,G43<>\"\"),\"\")","v":""}]
["P42","Balance","Production / 8507 / Micro Assemblage","0,2 / 30 kg",null,"Afficher",null,null,null,null,null,null,null,{"$f":"IF('Choix de l''instrument '!$C$3=\"Pression\",AND('Choix de l''instrument '!$D$3>=Pression!G44,G44<>\"\"),\"\")","v":""}]
["P43","Balance","Production / 8515 / Laboratoire",null,null,"Afficher",null,null,null,null,null,null,null,{"$f":"IF('Choix de l''instrument '!$C$3=\"Pression\",AND('Choix de l''instrument '!$D$3>=Pression!G45,G45<>\"\"),\"\")","v":""}]
["P44","Balance","Production / 8414DIV / Contrôle tube divers","20 / 3000 g",null,"Afficher",null,null,null,null,null,null,null,{"$f":"IF('Choix de l''instrument '!$C$3=\"Pression\",AND('Choix de l''instrument '!$D$3>=Pression!G46,G46<>\"\"),\"\")","v":""}]
["P45","Balance","Production / 8403 / Etirage Couronnes","0 / 300 kg",null,"Afficher",null,null,null,null,null,null,null,{"$f":"IF('Choix de l''instrument '!$C$3=\"Pression\",AND('Choix de l''instrument '!$D$3>=Pression!G47,G47<>\"\"),\"\")","v":""}]
["P46","Balance","Production / 8552 / Presse Automatique",null,null,"Afficher",null,null,null,null,null,null,null,{"$f":"IF('Choix de l''instrument '!$C$3=\"Pression\",AND('Choix de l''instrument '!$D$3>=Pression!G48,G48<>\"\"),\"\")","v":""}]
["P47","Balance","Production / 8404 / Soudure","10 / 30000 g",null,"Afficher",null,null,null,null,null,null,null,{"$f":"IF('Choix de l''instrument '!$C$3=\"Pression\",AND('Choix de l''instrument '!$D$3>=Pression!G49,G49<>\"\"),\"\")","v":""}]
["P48","Balance","Production / 8403 / Bull-blocks","0,2 / 60 kg",null,"Afficher",null,null,null,null,null,null,null,{"$f":"IF('Choix de l''instrument '!$C$3=\"Pression\",AND('Choix de l''instrument '!$D$3>=Pression!G50,G50<>\"\"),\"\")","v":""}]
["P49","Balance","Production / 8346 / Contrôle SPECIAUX","0,1 / 1000 g",null,"Afficher",null,null,null,null,null,null,null,{"$f":"IF('Choix de l''instrument '!$C$3=\"Pression\",AND('Choix de l''instrument '!$D$3>=Pression!G51,G51<>\"\"),\"\")","v":""}]
["P50","Balance","Production / 8403 / TT904",null,null,"Afficher",null,null,null,null,null,null,null,{"$f":"IF('Choix de l''instrument '!$C$3=\"Pression\",AND('Choix de l''instrument '!$D$3>=Pression!G52,G52<>\"\"),\"\")","v":""}]
["P51","Balance","Production / 8509 / Tronconnage","20 g/ 30000 g",null,"Afficher",null,null,null,null,null,null,null,{"$f":"IF('Choix de l''instrument '!$C$3=\"Pression\",AND('Choix de l''instrument '!$D$3>=Pression!G53,G53<>\"\"),\"\")","v":""}]
["P52","Balance","Production / 8016 / magasin pièce",null,null,"Afficher",null,null,null,null,null,null,null,{"$f":"IF('Choix de l''instrument '!$C$3=\"Pression\",AND('Choix de l''instrument '!$D$3>=Pression!G54,G54<>\"\"),\"\")","v":""}]
["P53","Balance","Technique / 7245 / Prototype","5 / 24100 g",null,"Afficher",null,null,null,null,null,null,null,{"$f":"IF('Choix de l''instrument '!$C$3=\"Pression\",AND('Choix de l''instrument '!$D$3>=Pression!G55,G55<>\"\"),\"\")","v":""}]
["P54","Balance","Production / 8016 / magasin tubes","5 / 24100 g",null,"Afficher",null,null,null,null,null,null,null,{"$f":"IF('Choix de l''instrument '!$C$3=\"Pression\",AND('Choix de l''instrument '!$D$3>=Pression!G56,G56<>\"\"),\"\")","v":""}]
["P55","Balance","Production / 8403 / Laboratoire","20 / 30000 g",null,"Afficher",null,null,null,null,null,null,null,{"$f":"IF('Choix de l''instrument '!$C$3=\"Pression\",AND('Choix de l''instrument '!$D$3>=Pression!G57,G57<>\"\"),\"\")","v":""}]
["P56","Balance","Technique / 7700","0,02 / 620 g",null,"Afficher",null,null,null,null,null,null,null,{"$f":"IF('Choix de l''instrument '!$C$3=\"Pression\",AND('Choix de l''instrument '!$D$3>=Pression!G58,G58<>\"\"),\"\")","v":""}]
["P57","Balance","Technique / 7700","50 / 34100 g",null,"Afficher",null,null,null,null,null,null,null,{"$f":"IF('Choix de l''instrument '!$C$3=\"Pression\",AND('Choix de l''instrument '!$D$3>=Pression!G59,G59<>\"\"),\"\")","v":""}]
["P58","Balance","Technique / 7700 / Bureau de Laurent SENEE","0,01 / 120 g",null,"Afficher",null,null,null,null,null,null,null,{"$f":"IF('Choix de l''instrument '!$C$3=\"Pression\",AND('Choix de l''instrument '!$D$3>=Pression!G60,G60<>\"\"),\"\")","v":""}]
["P59","Balance","Production / 8404 / Soudure","10 / 30000 g",null,"Afficher",null,null,null,null,null,null,null,{"$f":"IF('Choix de l''instrument '!$C$3=\"Pression\",AND('Choix de l''instrument '!$D$3>=Pression!G61,G61<>\"\"),\"\")","v":""}]
[null,null,null,null,null,null,null,null,null,null,null,null,null,{"$f":"IF('Choix de l''instrument '!$C$3=\"Pression\",AND('Choix de l''instrument '!$D$3>=Pression!G62,G62<>\"\"),\"\")","v":""}]
[null,null,null,null,null,null,null,null,null,null,null,null,null,{"$f":"IF('Choix de l''instrument '!$C$3=\"Pression\",AND('Choix de l''instrument '!$D$3>=Pression!G63,G63<>\"\"),\"\")","v":""}]
[null,null,null,null,null,null,null,null,null,null,null,null,null,{"$f":"IF('Choix de l''instrument '!$C$3=\"Masse\",AND('Choix de l''instrument '!$D$3>=Masse!J64,J64<>\"\"),\"\")","v":""}]
[null,null,null,null,null,null,null,null,null,null,null,null,null,{"$f":"IF('Choix de l''instrument '!$C$3=\"Masse\",AND('Choix de l''instrument '!$D$3>=Masse!J65,J65<>\"\"),\"\")","v":""}]
[null,null,null,null,null,null,null,null,null,null,null,null,null,{"$f":"IF('Choix de l''instrument '!$C$3=\"Masse\",AND('Choix de l''instrument '!$D$3>=Masse!J66,J66<>\"\"),\"\")","v":""}]
[null,null,null,null,null,null,null,null,null,null,null,null,null,{"$f":"IF('Choix de l''instrument '!$C$3=\"Masse\",AND('Choix de l''instrument '!$D$3>=Masse!J67,J67<>\"\"),\"\")","v":""}]
[null,null,null,null,null,null,null,null,null,null,null,null,null,{"$f":"IF('Choix de l''instrument '!$C$3=\"Masse\",AND('Choix de l''instrument '!$D$3>=Masse!J68,J68<>\"\"),\"\")","v":""}]
[null,null,null,null,null,null,null,null,null,null,null,null,null,{"$f":"IF('Choix de l''instrument '!$C$3=\"Masse\",AND('Choix de l''instrument '!$D$3>=Masse!J69,J69<>\"\"),\"\")","v":""}]
[null,null,null,null,null,null,null,null,null,null,null,null,null,{"$f":"IF('Choix de l''instrument '!$C$3=\"Masse\",AND('Choix de l''instrument '!$D$3>=Masse!J70,J70<>\"\"),\"\")","v":""}]
[null,null,null,null,null,null,null,null,null,null,null,null,null,{"$f":"IF('Choix de l''instrument '!$C$3=\"Masse\",AND('Choix de l''instrument '!$D$3>=Masse!J71,J71<>\"\"),\"\")","v":""}]
[null,null,null,null,null,null,null,null,null,null,null,null,null,{"$f":"IF('Choix de l''instrument '!$C$3=\"Masse\",AND('Choix de l''instrument '!$D$3>=Masse!J72,J72<>\"\"),\"\")","v":""}]
[null,null,null,null,null,null,null,null,null,null,null,null,null,{"$f":"IF('Choix de l''instrument '!$C$3=\"Masse\",AND('Choix de l''instrument '!$D$3>=Masse!J73,J73<>\"\"),\"\")","v":""}]
[null,null,null,null,null,null,null,null,null,null,null,null,null,{"$f":"IF('Choix de l''instrument '!$C$3=\"Masse\",AND('Choix de l''instrument '!$D$3>=Masse!J74,J74<>\"\"),\"\")","v":""}]
[null,null,null,null,null,null,null,null,null,null,null,null,null,{"$f":"IF('Choix de l''instrument '!$C$3=\"Masse\",AND('Choix de l''instrument '!$D$3>=Masse!J75,J75<>\"\"),\"\")","v":""}]
[null,null,null,null,null,null,null,null,null,null,null,null,null,{"$f":"IF('Choix de l''instrument '!$C$3=\"Masse\",AND('Choix de l''instrument '!$D$3>=Masse!J76,J76<>\"\"),\"\")","v":""}]
[null,null,null,null,null,null,null,null,null,null,null,null,null,{"$f":"IF('Choix de l''instrument '!$C$3=\"Masse\",AND('Choix de l''instrument '!$D$3>=Masse!J77,J77<>\"\"),\"\")","v":""}]
[null,null,null,null,null,null,null,null,null,null,null,null,null,{"$f":"IF('Choix de l''instrument '!$C$3=\"Masse\",AND('Choix de l''instrument '!$D$3>=Masse!J78,J78<>\"\"),\"\")","v":""}]
[null,null,null,null,null,null,null,null,null,null,null,null,null,{"$f":"IF('Choix de l''instrument '!$C$3=\"Masse\",AND('Choix de l''instrument '!$D$3>=Masse!J79,J79<>\"\"),\"\")","v":""}]
[null,null,null,null,null,null,null,null,null,null,null,null,null,{"$f":"IF('Choix de l''instrument '!$C$3=\"Masse\",AND('Choix de l''instrument '!$D$3>=Masse!J80,J80<>\"\"),\"\")","v":""}]
[null,null,null,null,null,null,null,null,null,null,null,null,null,{"$f":"IF('Choix de l''instrument '!$C$3=\"Masse\",AND('Choix de l''instrument '!$D$3>=Masse!J81,J81<>\"\"),\"\")","v":""}]
[null,null,null,null,null,null,null,null,null,null,null,null,null,{"$f":"IF('Choix de l''instrument '!$C$3=\"Masse\",AND('Choix de l''instrument '!$D$3>=Masse!J82,J82<>\"\"),\"\")","v":""}]
[null,null,null,null,null,null,null,null,null,null,null,null,null,{"$f":"IF('Choix de l''instrument '!$C$3=\"Masse\",AND('Choix de l''instrument '!$D$3>=Masse!J83,J83<>\"\"),\"\")","v":""}]
[null,null,null,null,null,null,null,null,null,null,null,null,null,{"$f":"IF('Choix de l''instrument '!$C$3=\"Masse\",AND('Choix de l''instrument '!$D$3>=Masse!J84,J84<>\"\"),\"\")","v":""}]
[null,null,null,null,null,null,null,null,null,null,null,null,null,{"$f":"IF('Choix de l''instrument '!$C$3=\"Masse\",AND('Choix de l''instrument '!$D$3>=Masse!J85,J85<>\"\"),\"\")","v":""}]
[null,null,null,null,null,null,null,null,null,null,null,null,null,{"$f":"IF('Choix de l''instrument '!$C$3=\"Masse\",AND('Choix de l''instrument '!$D$3>=Masse!J86,J86<>\"\"),\"\")","v":""}]
[null,null,null,null,null,null,null,null,null,null,null,null,null,{"$f":"IF('Choix de l''instrument '!$C$3=\"Masse\",AND('Choix de l''instrument '!$D$3>=Masse!J87,J87<>\"\"),\"\")","v":""}]
[null,null,null,null,null,null,null,null,null,null,null,null,null,{"$f":"IF('Choix de l''instrument '!$C$3=\"Masse\",AND('Choix de l''instrument '!$D$3>=Masse!J88,J88<>\"\"),\"\")","v":""}]
[null,null,null,null,null,null,null,null,null,null,null,null,null,{"$f":"IF('Choix de l''instrument '!$C$3=\"Masse\",AND('Choix de l''instrument '!$D$3>=Masse!J89,J89<>\"\"),\"\")","v":""}]
[null,null,null,null,null,null,null,null,null,null,null,null,null,{"$f":"IF('Choix de l''instrument '!$C$3=\"Masse\",AND('Choix de l''instrument '!$D$3>=Masse!J90,J90<>\"\"),\"\")","v":""}]
[null,null,null,null,null,null,null,null,null,null,null,null,null,{"$f":"IF('Choix de l''instrument '!$C$3=\"Masse\",AND('Choix de l''instrument '!$D$3>=Masse!J91,J91<>\"\"),\"\")","v":""}]
[null,null,null,null,null,null,null,null,null,null,null,null,null,{"$f":"IF('Choix de l''instrument '!$C$3=\"Masse\",AND('Choix de l''instrument '!$D$3>=Masse!J92,J92<>\"\"),\"\")","v":""}]
[null,null,null,null,null,null,null,null,null,null,null,null,null,{"$f":"IF('Choix de l''instrument '!$C$3=\"Masse\",AND('Choix de l''instrument '!$D$3>=Masse!J93,J93<>\"\"),\"\")","v":""}]
[null,null,null,null,null,null,null,null,null,null,null,null,null,{"$f":"IF('Choix de l''instrument '!$C$3=\"Masse\",AND('Choix de l''instrument '!$D$3>=Masse!J94,J94<>\"\"),\"\")","v":""}]
[null,null,null,null,null,null,null,null,null,null,null,null,null,{"$f":"IF('Choix de l''instrument '!$C$3=\"Masse\",AND('Choix de l''instrument '!$D$3>=Masse!J95,J95<>\"\"),\"\")","v":""}]
[null,null,null,null,null,null,null,null,null,null,null,null,null,{"$f":"IF('Choix de l''instrument '!$C$3=\"Masse\",AND('Choix de l''instrument '!$D$3>=Masse!J96,J96<>\"\"),\"\")","v":""}]
[null,null,null,null,null,null,null,null,null,null,null,null,null,{"$f":"IF('Choix de l''instrument '!$C$3=\"Masse\",AND('Choix de l''instrument '!$D$3>=Masse!J97,J97<>\"\"),\"\")","v":""}]
[null,null,null,null,null,null,null,null,null,null,null,null,null,{"$f":"IF('Choix de l''instrument '!$C$3=\"Masse\",AND('Choix de l''instrument '!$D$3>=Masse!J98,J98<>\"\"),\"\")","v":""}]
[null,null,null,null,null,null,null,null,null,null,null,null,null,{"$f":"IF('Choix de l''instrument '!$C$3=\"Masse\",AND('Choix de l''instrument '!$D$3>=Masse!J99,J99<>\"\"),\"\")","v":""}]
[null,null,null,null,null,null,null,null,null,null,null,null,null,{"$f":"IF('Choix de l''instrument '!$C$3=\"Masse\",AND('Choix de l''instrument '!$D$3>=Masse!J100,J100<>\"\"),\"\")","v":""}]
[null,null,null,null,null,null,null,null,null,null,null,null,null,{"$f":"IF('Choix de l''instrument '!$C$3=\"Masse\",AND('Choix de l''instrument '!$D$3>=Masse!J101,J101<>\"\"),\"\")","v":""}]

{"sheet":"Propreté_surface","index":57,"n_rows":101,"n_cols":16,"rows_kept":101,"cut":false,"hidden":false,"merged":[]}
["SON"]
["Son",null,null,null,null,null,"résolution g","Incertitude g","Justesse g","IT mini détectable g","Capacité mini g","Capacité Maxi g",null,"Résultat critère IT"]
["DIM-0009","Mesureur d'état de surface par fluorescence","Technique / 7410 / Process Tubes",null,null,"Afficher",null,null,null,null,null,null,null,{"$f":"IF('Choix de l''instrument '!$C$3=\"Propreté_surface\",AND('Choix de l''instrument '!$D$3>=Propreté_surface!G3,G3<>\"\"),\"\")","v":""}]
["DIM-0010","Mesureur d'état de surface par fluorescence","Technique / 7410",null,null,"Afficher",null,null,null,null,null,null,null,{"$f":"IF('Choix de l''instrument '!$C$3=\"Propreté_surface\",AND('Choix de l''instrument '!$D$3>=Propreté_surface!G4,G4<>\"\"),\"\")","v":""},"=NBVAL(A:A)","=NB.SI(N3:N100;Vrai)"]
[null,null,null,null,null,null,null,null,null,null,null,null,null,{"$f":"IF('Choix de l''instrument '!$C$3=\"Propreté_surface\",AND('Choix de l''instrument '!$D$3>=Propreté_surface!G5,G5<>\"\"),\"\")","v":""}]
[null,null,null,null,null,null,null,null,null,null,null,null,null,{"$f":"IF('Choix de l''instrument '!$C$3=\"Propreté_surface\",AND('Choix de l''instrument '!$D$3>=Propreté_surface!G6,G6<>\"\"),\"\")","v":""}]
[null,null,null,null,null,null,null,null,null,null,null,null,null,{"$f":"IF('Choix de l''instrument '!$C$3=\"Propreté_surface\",AND('Choix de l''instrument '!$D$3>=Propreté_surface!G7,G7<>\"\"),\"\")","v":""}]
[null,null,null,null,null,null,null,null,null,null,null,null,null,{"$f":"IF('Choix de l''instrument '!$C$3=\"Propreté_surface\",AND('Choix de l''instrument '!$D$3>=Propreté_surface!G8,G8<>\"\"),\"\")","v":""}]
[null,null,null,null,null,null,null,null,null,null,null,null,null,{"$f":"IF('Choix de l''instrument '!$C$3=\"Propreté_surface\",AND('Choix de l''instrument '!$D$3>=Propreté_surface!G9,G9<>\"\"),\"\")","v":""}]
[null,null,null,null,null,null,null,null,null,null,null,null,null,{"$f":"IF('Choix de l''instrument '!$C$3=\"Propreté_surface\",AND('Choix de l''instrument '!$D$3>=Propreté_surface!G10,G10<>\"\"),\"\")","v":""}]
[null,null,null,null,null,null,null,null,null,null,null,null,null,{"$f":"IF('Choix de l''instrument '!$C$3=\"Propreté_surface\",AND('Choix de l''instrument '!$D$3>=Propreté_surface!G11,G11<>\"\"),\"\")","v":""}]
[null,null,null,null,null,null,null,null,null,null,null,null,null,{"$f":"IF('Choix de l''instrument '!$C$3=\"Propreté_surface\",AND('Choix de l''instrument '!$D$3>=Propreté_surface!G12,G12<>\"\"),\"\")","v":""}]
[null,null,null,null,null,null,null,null,null,null,null,null,null,{"$f":"IF('Choix de l''instrument '!$C$3=\"Propreté_surface\",AND('Choix de l''instrument '!$D$3>=Propreté_surface!G13,G13<>\"\"),\"\")","v":""}]
[null,null,null,null,null,null,null,null,null,null,null,null,null,{"$f":"IF('Choix de l''instrument '!$C$3=\"Propreté_surface\",AND('Choix de l''instrument '!$D$3>=Propreté_surface!G14,G14<>\"\"),\"\")","v":""}]
[null,null,null,null,null,null,null,null,null,null,null,null,null,{"$f":"IF('Choix de l''instrument '!$C$3=\"Propreté_surface\",AND('Choix de l''instrument '!$D$3>=Propreté_surface!G15,G15<>\"\"),\"\")","v":""}]
[null,null,null,null,null,null,null,null,null,null,null,null,null,{"$f":"IF('Choix de l''instrument '!$C$3=\"Propreté_surface\",AND('Choix de l''instrument '!$D$3>=Propreté_surface!G16,G16<>\"\"),\"\")","v":""}]
[null,null,null,null,null,null,null,null,null,null,null,null,null,{"$f":"IF('Choix de l''instrument '!$C$3=\"Propreté_surface\",AND('Choix de l''instrument '!$D$3>=Propreté_surface!G17,G17<>\"\"),\"\")","v":""}]
[null,null,null,null,null,null,null,null,null,null,null,null,null,{"$f":"IF('Choix de l''instrument '!$C$3=\"Propreté_surface\",AND('Choix de l''instrument '!$D$3>=Propreté_surface!G18,G18<>\"\"),\"\")","v":""}]
[null,null,null,null,null,null,null,null,null,null,null,null,null,{"$f":"IF('Choix de l''instrument '!$C$3=\"Propreté_surface\",AND('Choix de l''instrument '!$D$3>=Propreté_surface!G19,G19<>\"\"),\"\")","v":""}]
[null,null,null,null,null,null,null,null,null,null,null,null,null,{"$f":"IF('Choix de l''instrument '!$C$3=\"Propreté_surface\",AND('Choix de l''instrument '!$D$3>=Propreté_surface!G20,G20<>\"\"),\"\")","v":""}]
[null,null,null,null,null,null,null,null,null,null,null,null,null,{"$f":"IF('Choix de l''instrument '!$C$3=\"Propreté_surface\",AND('Choix de l''instrument '!$D$3>=Propreté_surface!G21,G21<>\"\"),\"\")","v":""}]
[null,null,null,null,null,null,null,null,null,null,null,null,null,{"$f":"IF('Choix de l''instrument '!$C$3=\"Propreté_surface\",AND('Choix de l''instrument '!$D$3>=Propreté_surface!G22,G22<>\"\"),\"\")","v":""}]
[null,null,null,null,null,null,null,null,null,null,null,null,null,{"$f":"IF('Choix de l''instrument '!$C$3=\"Propreté_surface\",AND('Choix de l''instrument '!$D$3>=Propreté_surface!G23,G23<>\"\"),\"\")","v":""}]
[null,null,null,null,null,null,null,null,null,null,null,null,null,{"$f":"IF('Choix de l''instrument '!$C$3=\"Propreté_surface\",AND('Choix de l''instrument '!$D$3>=Propreté_surface!G24,G24<>\"\"),\"\")","v":""}]
[null,null,null,null,null,null,null,null,null,null,null,null,null,{"$f":"IF('Choix de l''instrument '!$C$3=\"Propreté_surface\",AND('Choix de l''instrument '!$D$3>=Propreté_surface!G25,G25<>\"\"),\"\")","v":""}]
[null,null,null,null,null,null,null,null,null,null,null,null,null,{"$f":"IF('Choix de l''instrument '!$C$3=\"Propreté_surface\",AND('Choix de l''instrument '!$D$3>=Propreté_surface!G26,G26<>\"\"),\"\")","v":""}]
[null,null,null,null,null,null,null,null,null,null,null,null,null,{"$f":"IF('Choix de l''instrument '!$C$3=\"Propreté_surface\",AND('Choix de l''instrument '!$D$3>=Propreté_surface!G27,G27<>\"\"),\"\")","v":""}]
[null,null,null,null,null,null,null,null,null,null,null,null,null,{"$f":"IF('Choix de l''instrument '!$C$3=\"Propreté_surface\",AND('Choix de l''instrument '!$D$3>=Propreté_surface!G28,G28<>\"\"),\"\")","v":""}]
[null,null,null,null,null,null,null,null,null,null,null,null,null,{"$f":"IF('Choix de l''instrument '!$C$3=\"Propreté_surface\",AND('Choix de l''instrument '!$D$3>=Propreté_surface!G29,G29<>\"\"),\"\")","v":""}]
[null,null,null,null,null,null,null,null,null,null,null,null,null,{"$f":"IF('Choix de l''instrument '!$C$3=\"Propreté_surface\",AND('Choix de l''instrument '!$D$3>=Propreté_surface!G30,G30<>\"\"),\"\")","v":""}]
[null,null,null,null,null,null,null,null,null,null,null,null,null,{"$f":"IF('Choix de l''instrument '!$C$3=\"Propreté_surface\",AND('Choix de l''instrument '!$D$3>=Propreté_surface!G31,G31<>\"\"),\"\")","v":""}]
[null,null,null,null,null,null,null,null,null,null,null,null,null,{"$f":"IF('Choix de l''instrument '!$C$3=\"Propreté_surface\",AND('Choix de l''instrument '!$D$3>=Propreté_surface!G32,G32<>\"\"),\"\")","v":""}]
[null,null,null,null,null,null,null,null,null,null,null,null,null,{"$f":"IF('Choix de l''instrument '!$C$3=\"Propreté_surface\",AND('Choix de l''instrument '!$D$3>=Propreté_surface!G33,G33<>\"\"),\"\")","v":""}]
[null,null,null,null,null,null,null,null,null,null,null,null,null,{"$f":"IF('Choix de l''instrument '!$C$3=\"Propreté_surface\",AND('Choix de l''instrument '!$D$3>=Propreté_surface!G34,G34<>\"\"),\"\")","v":""}]
[null,null,null,null,null,null,null,null,null,null,null,null,null,{"$f":"IF('Choix de l''instrument '!$C$3=\"Propreté_surface\",AND('Choix de l''instrument '!$D$3>=Propreté_surface!G35,G35<>\"\"),\"\")","v":""}]
[null,null,null,null,null,null,null,null,null,null,null,null,null,{"$f":"IF('Choix de l''instrument '!$C$3=\"Propreté_surface\",AND('Choix de l''instrument '!$D$3>=Propreté_surface!G36,G36<>\"\"),\"\")","v":""}]
[null,null,null,null,null,null,null,null,null,null,null,null,null,{"$f":"IF('Choix de l''instrument '!$C$3=\"Propreté_surface\",AND('Choix de l''instrument '!$D$3>=Propreté_surface!G37,G37<>\"\"),\"\")","v":""}]
[null,null,null,null,null,null,null,null,null,null,null,null,null,{"$f":"IF('Choix de l''instrument '!$C$3=\"Propreté_surface\",AND('Choix de l''instrument '!$D$3>=Propreté_surface!G38,G38<>\"\"),\"\")","v":""}]
[null,null,null,null,null,null,null,null,null,null,null,null,null,{"$f":"IF('Choix de l''instrument '!$C$3=\"Propreté_surface\",AND('Choix de l''instrument '!$D$3>=Propreté_surface!G39,G39<>\"\"),\"\")","v":""}]
[null,null,null,null,null,null,null,null,null,null,null,null,null,{"$f":"IF('Choix de l''instrument '!$C$3=\"Propreté_surface\",AND('Choix de l''instrument '!$D$3>=Propreté_surface!G40,G40<>\"\"),\"\")","v":""}]
[null,null,null,null,null,null,null,null,null,null,null,null,null,{"$f":"IF('Choix de l''instrument '!$C$3=\"Propreté_surface\",AND('Choix de l''instrument '!$D$3>=Propreté_surface!G41,G41<>\"\"),\"\")","v":""}]
[null,null,null,null,null,null,null,null,null,null,null,null,null,{"$f":"IF('Choix de l''instrument '!$C$3=\"Propreté_surface\",AND('Choix de l''instrument '!$D$3>=Propreté_surface!G42,G42<>\"\"),\"\")","v":""}]
[null,null,null,null,null,null,null,null,null,null,null,null,null,{"$f":"IF('Choix de l''instrument '!$C$3=\"Propreté_surface\",AND('Choix de l''instrument '!$D$3>=Propreté_surface!G43,G43<>\"\"),\"\")","v":""}]
[null,null,null,null,null,null,null,null,null,null,null,null,null,{"$f":"IF('Choix de l''instrument '!$C$3=\"Propreté_surface\",AND('Choix de l''instrument '!$D$3>=Propreté_surface!G44,G44<>\"\"),\"\")","v":""}]
[null,null,null,null,null,null,null,null,null,null,null,null,null,{"$f":"IF('Choix de l''instrument '!$C$3=\"Propreté_surface\",AND('Choix de l''instrument '!$D$3>=Propreté_surface!G45,G45<>\"\"),\"\")","v":""}]
[null,null,null,null,null,null,null,null,null,null,null,null,null,{"$f":"IF('Choix de l''instrument '!$C$3=\"Propreté_surface\",AND('Choix de l''instrument '!$D$3>=Propreté_surface!G46,G46<>\"\"),\"\")","v":""}]
[null,null,null,null,null,null,null,null,null,null,null,null,null,{"$f":"IF('Choix de l''instrument '!$C$3=\"Propreté_surface\",AND('Choix de l''instrument '!$D$3>=Propreté_surface!G47,G47<>\"\"),\"\")","v":""}]
[null,null,null,null,null,null,null,null,null,null,null,null,null,{"$f":"IF('Choix de l''instrument '!$C$3=\"Propreté_surface\",AND('Choix de l''instrument '!$D$3>=Propreté_surface!G48,G48<>\"\"),\"\")","v":""}]
[null,null,null,null,null,null,null,null,null,null,null,null,null,{"$f":"IF('Choix de l''instrument '!$C$3=\"Propreté_surface\",AND('Choix de l''instrument '!$D$3>=Propreté_surface!G49,G49<>\"\"),\"\")","v":""}]
[null,null,null,null,null,null,null,null,null,null,null,null,null,{"$f":"IF('Choix de l''instrument '!$C$3=\"Propreté_surface\",AND('Choix de l''instrument '!$D$3>=Propreté_surface!G50,G50<>\"\"),\"\")","v":""}]
[null,null,null,null,null,null,null,null,null,null,null,null,null,{"$f":"IF('Choix de l''instrument '!$C$3=\"Propreté_surface\",AND('Choix de l''instrument '!$D$3>=Propreté_surface!G51,G51<>\"\"),\"\")","v":""}]
[null,null,null,null,null,null,null,null,null,null,null,null,null,{"$f":"IF('Choix de l''instrument '!$C$3=\"Propreté_surface\",AND('Choix de l''instrument '!$D$3>=Propreté_surface!G52,G52<>\"\"),\"\")","v":""}]
[null,null,null,null,null,null,null,null,null,null,null,null,null,{"$f":"IF('Choix de l''instrument '!$C$3=\"Propreté_surface\",AND('Choix de l''instrument '!$D$3>=Propreté_surface!G53,G53<>\"\"),\"\")","v":""}]
[null,null,null,null,null,null,null,null,null,null,null,null,null,{"$f":"IF('Choix de l''instrument '!$C$3=\"Propreté_surface\",AND('Choix de l''instrument '!$D$3>=Propreté_surface!G54,G54<>\"\"),\"\")","v":""}]
[null,null,null,null,null,null,null,null,null,null,null,null,null,{"$f":"IF('Choix de l''instrument '!$C$3=\"Propreté_surface\",AND('Choix de l''instrument '!$D$3>=Propreté_surface!G55,G55<>\"\"),\"\")","v":""}]
[null,null,null,null,null,null,null,null,null,null,null,null,null,{"$f":"IF('Choix de l''instrument '!$C$3=\"Propreté_surface\",AND('Choix de l''instrument '!$D$3>=Propreté_surface!G56,G56<>\"\"),\"\")","v":""}]
[null,null,null,null,null,null,null,null,null,null,null,null,null,{"$f":"IF('Choix de l''instrument '!$C$3=\"Propreté_surface\",AND('Choix de l''instrument '!$D$3>=Propreté_surface!G57,G57<>\"\"),\"\")","v":""}]
[null,null,null,null,null,null,null,null,null,null,null,null,null,{"$f":"IF('Choix de l''instrument '!$C$3=\"Propreté_surface\",AND('Choix de l''instrument '!$D$3>=Propreté_surface!G58,G58<>\"\"),\"\")","v":""}]
[null,null,null,null,null,null,null,null,null,null,null,null,null,{"$f":"IF('Choix de l''instrument '!$C$3=\"Propreté_surface\",AND('Choix de l''instrument '!$D$3>=Propreté_surface!G59,G59<>\"\"),\"\")","v":""}]
[null,null,null,null,null,null,null,null,null,null,null,null,null,{"$f":"IF('Choix de l''instrument '!$C$3=\"Propreté_surface\",AND('Choix de l''instrument '!$D$3>=Propreté_surface!G60,G60<>\"\"),\"\")","v":""}]
[null,null,null,null,null,null,null,null,null,null,null,null,null,{"$f":"IF('Choix de l''instrument '!$C$3=\"Propreté_surface\",AND('Choix de l''instrument '!$D$3>=Propreté_surface!G61,G61<>\"\"),\"\")","v":""}]
[null,null,null,null,null,null,null,null,null,null,null,null,null,{"$f":"IF('Choix de l''instrument '!$C$3=\"Propreté_surface\",AND('Choix de l''instrument '!$D$3>=Propreté_surface!G62,G62<>\"\"),\"\")","v":""}]
[null,null,null,null,null,null,null,null,null,null,null,null,null,{"$f":"IF('Choix de l''instrument '!$C$3=\"Propreté_surface\",AND('Choix de l''instrument '!$D$3>=Propreté_surface!G63,G63<>\"\"),\"\")","v":""}]
[null,null,null,null,null,null,null,null,null,null,null,null,null,{"$f":"IF('Choix de l''instrument '!$C$3=\"Propreté_surface\",AND('Choix de l''instrument '!$D$3>=Propreté_surface!G64,G64<>\"\"),\"\")","v":""}]
[null,null,null,null,null,null,null,null,null,null,null,null,null,{"$f":"IF('Choix de l''instrument '!$C$3=\"Propreté_surface\",AND('Choix de l''instrument '!$D$3>=Propreté_surface!G65,G65<>\"\"),\"\")","v":""}]
[null,null,null,null,null,null,null,null,null,null,null,null,null,{"$f":"IF('Choix de l''instrument '!$C$3=\"Propreté_surface\",AND('Choix de l''instrument '!$D$3>=Propreté_surface!G66,G66<>\"\"),\"\")","v":""}]
[null,null,null,null,null,null,null,null,null,null,null,null,null,{"$f":"IF('Choix de l''instrument '!$C$3=\"Propreté_surface\",AND('Choix de l''instrument '!$D$3>=Propreté_surface!G67,G67<>\"\"),\"\")","v":""}]
[null,null,null,null,null,null,null,null,null,null,null,null,null,{"$f":"IF('Choix de l''instrument '!$C$3=\"Propreté_surface\",AND('Choix de l''instrument '!$D$3>=Propreté_surface!G68,G68<>\"\"),\"\")","v":""}]
[null,null,null,null,null,null,null,null,null,null,null,null,null,{"$f":"IF('Choix de l''instrument '!$C$3=\"Propreté_surface\",AND('Choix de l''instrument '!$D$3>=Propreté_surface!G69,G69<>\"\"),\"\")","v":""}]
[null,null,null,null,null,null,null,null,null,null,null,null,null,{"$f":"IF('Choix de l''instrument '!$C$3=\"Propreté_surface\",AND('Choix de l''instrument '!$D$3>=Propreté_surface!G70,G70<>\"\"),\"\")","v":""}]
[null,null,null,null,null,null,null,null,null,null,null,null,null,{"$f":"IF('Choix de l''instrument '!$C$3=\"Propreté_surface\",AND('Choix de l''instrument '!$D$3>=Propreté_surface!G71,G71<>\"\"),\"\")","v":""}]
[null,null,null,null,null,null,null,null,null,null,null,null,null,{"$f":"IF('Choix de l''instrument '!$C$3=\"Propreté_surface\",AND('Choix de l''instrument '!$D$3>=Propreté_surface!G72,G72<>\"\"),\"\")","v":""}]
[null,null,null,null,null,null,null,null,null,null,null,null,null,{"$f":"IF('Choix de l''instrument '!$C$3=\"Propreté_surface\",AND('Choix de l''instrument '!$D$3>=Propreté_surface!G73,G73<>\"\"),\"\")","v":""}]
[null,null,null,null,null,null,null,null,null,null,null,null,null,{"$f":"IF('Choix de l''instrument '!$C$3=\"Propreté_surface\",AND('Choix de l''instrument '!$D$3>=Propreté_surface!G74,G74<>\"\"),\"\")","v":""}]
[null,null,null,null,null,null,null,null,null,null,null,null,null,{"$f":"IF('Choix de l''instrument '!$C$3=\"Propreté_surface\",AND('Choix de l''instrument '!$D$3>=Propreté_surface!G75,G75<>\"\"),\"\")","v":""}]
[null,null,null,null,null,null,null,null,null,null,null,null,null,{"$f":"IF('Choix de l''instrument '!$C$3=\"Propreté_surface\",AND('Choix de l''instrument '!$D$3>=Propreté_surface!G76,G76<>\"\"),\"\")","v":""}]
[null,null,null,null,null,null,null,null,null,null,null,null,null,{"$f":"IF('Choix de l''instrument '!$C$3=\"Propreté_surface\",AND('Choix de l''instrument '!$D$3>=Propreté_surface!G77,G77<>\"\"),\"\")","v":""}]
[null,null,null,null,null,null,null,null,null,null,null,null,null,{"$f":"IF('Choix de l''instrument '!$C$3=\"Propreté_surface\",AND('Choix de l''instrument '!$D$3>=Propreté_surface!G78,G78<>\"\"),\"\")","v":""}]
[null,null,null,null,null,null,null,null,null,null,null,null,null,{"$f":"IF('Choix de l''instrument '!$C$3=\"Propreté_surface\",AND('Choix de l''instrument '!$D$3>=Propreté_surface!G79,G79<>\"\"),\"\")","v":""}]
[null,null,null,null,null,null,null,null,null,null,null,null,null,{"$f":"IF('Choix de l''instrument '!$C$3=\"Propreté_surface\",AND('Choix de l''instrument '!$D$3>=Propreté_surface!G80,G80<>\"\"),\"\")","v":""}]
[null,null,null,null,null,null,null,null,null,null,null,null,null,{"$f":"IF('Choix de l''instrument '!$C$3=\"Propreté_surface\",AND('Choix de l''instrument '!$D$3>=Propreté_surface!G81,G81<>\"\"),\"\")","v":""}]
[null,null,null,null,null,null,null,null,null,null,null,null,null,{"$f":"IF('Choix de l''instrument '!$C$3=\"Propreté_surface\",AND('Choix de l''instrument '!$D$3>=Propreté_surface!G82,G82<>\"\"),\"\")","v":""}]
[null,null,null,null,null,null,null,null,null,null,null,null,null,{"$f":"IF('Choix de l''instrument '!$C$3=\"Propreté_surface\",AND('Choix de l''instrument '!$D$3>=Propreté_surface!G83,G83<>\"\"),\"\")","v":""}]
[null,null,null,null,null,null,null,null,null,null,null,null,null,{"$f":"IF('Choix de l''instrument '!$C$3=\"Propreté_surface\",AND('Choix de l''instrument '!$D$3>=Propreté_surface!G84,G84<>\"\"),\"\")","v":""}]
[null,null,null,null,null,null,null,null,null,null,null,null,null,{"$f":"IF('Choix de l''instrument '!$C$3=\"Propreté_surface\",AND('Choix de l''instrument '!$D$3>=Propreté_surface!G85,G85<>\"\"),\"\")","v":""}]
[null,null,null,null,null,null,null,null,null,null,null,null,null,{"$f":"IF('Choix de l''instrument '!$C$3=\"Propreté_surface\",AND('Choix de l''instrument '!$D$3>=Propreté_surface!G86,G86<>\"\"),\"\")","v":""}]
[null,null,null,null,null,null,null,null,null,null,null,null,null,{"$f":"IF('Choix de l''instrument '!$C$3=\"Propreté_surface\",AND('Choix de l''instrument '!$D$3>=Propreté_surface!G87,G87<>\"\"),\"\")","v":""}]
[null,null,null,null,null,null,null,null,null,null,null,null,null,{"$f":"IF('Choix de l''instrument '!$C$3=\"Propreté_surface\",AND('Choix de l''instrument '!$D$3>=Propreté_surface!G88,G88<>\"\"),\"\")","v":""}]
[null,null,null,null,null,null,null,null,null,null,null,null,null,{"$f":"IF('Choix de l''instrument '!$C$3=\"Propreté_surface\",AND('Choix de l''instrument '!$D$3>=Propreté_surface!G89,G89<>\"\"),\"\")","v":""}]
[null,null,null,null,null,null,null,null,null,null,null,null,null,{"$f":"IF('Choix de l''instrument '!$C$3=\"Propreté_surface\",AND('Choix de l''instrument '!$D$3>=Propreté_surface!G90,G90<>\"\"),\"\")","v":""}]
[null,null,null,null,null,null,null,null,null,null,null,null,null,{"$f":"IF('Choix de l''instrument '!$C$3=\"Propreté_surface\",AND('Choix de l''instrument '!$D$3>=Propreté_surface!G91,G91<>\"\"),\"\")","v":""}]
[null,null,null,null,null,null,null,null,null,null,null,null,null,{"$f":"IF('Choix de l''instrument '!$C$3=\"Masse\",AND('Choix de l''instrument '!$D$3>=Masse!J92,J92<>\"\"),\"\")","v":""}]
[null,null,null,null,null,null,null,null,null,null,null,null,null,{"$f":"IF('Choix de l''instrument '!$C$3=\"Masse\",AND('Choix de l''instrument '!$D$3>=Masse!J93,J93<>\"\"),\"\")","v":""}]
[null,null,null,null,null,null,null,null,null,null,null,null,null,{"$f":"IF('Choix de l''instrument '!$C$3=\"Masse\",AND('Choix de l''instrument '!$D$3>=Masse!J94,J94<>\"\"),\"\")","v":""}]
[null,null,null,null,null,null,null,null,null,null,null,null,null,{"$f":"IF('Choix de l''instrument '!$C$3=\"Masse\",AND('Choix de l''instrument '!$D$3>=Masse!J95,J95<>\"\"),\"\")","v":""}]
[null,null,null,null,null,null,null,null,null,null,null,null,null,{"$f":"IF('Choix de l''instrument '!$C$3=\"Masse\",AND('Choix de l''instrument '!$D$3>=Masse!J96,J96<>\"\"),\"\")","v":""}]
[null,null,null,null,null,null,null,null,null,null,null,null,null,{"$f":"IF('Choix de l''instrument '!$C$3=\"Masse\",AND('Choix de l''instrument '!$D$3>=Masse!J97,J97<>\"\"),\"\")","v":""}]
[null,null,null,null,null,null,null,null,null,null,null,null,null,{"$f":"IF('Choix de l''instrument '!$C$3=\"Masse\",AND('Choix de l''instrument '!$D$3>=Masse!J98,J98<>\"\"),\"\")","v":""}]
[null,null,null,null,null,null,null,null,null,null,null,null,null,{"$f":"IF('Choix de l''instrument '!$C$3=\"Masse\",AND('Choix de l''instrument '!$D$3>=Masse!J99,J99<>\"\"),\"\")","v":""}]
[null,null,null,null,null,null,null,null,null,null,null,null,null,{"$f":"IF('Choix de l''instrument '!$C$3=\"Masse\",AND('Choix de l''instrument '!$D$3>=Masse!J100,J100<>\"\"),\"\")","v":""}]
[null,null,null,null,null,null,null,null,null,null,null,null,null,{"$f":"IF('Choix de l''instrument '!$C$3=\"Masse\",AND('Choix de l''instrument '!$D$3>=Masse!J101,J101<>\"\"),\"\")","v":""}]

{"sheet":"Réctitude","index":58,"n_rows":27,"n_cols":6,"rows_kept":27,"cut":false,"hidden":false,"merged":[]}
[]
[]
["CE.265","Règle de rectitude","Production / 8414IMP","3 m",null,"Afficher"]
["REG-020","Règle de rectitude","Production / 8513 / Contrôle Final Pièces","800 mm",null,"Afficher"]
["SQ.090","Règle de rectitude","Production / 8414IMP / contrôle tube implant","1500 mm",null,"Afficher"]
["SQ.090A","Règle de rectitude","Production / 8414 IMP / Contrôle tubes implants",150,null,"Afficher"]
["CE.190","Table de rectitude","Production / 8414DIV / Contrôle tube divers",null,null,"Afficher"]
["CE.201","Table de rectitude","Production / 8414DIV / Contrôle tube divers",null,null,"Afficher"]
["CE.202","Table de rectitude","Production / 8414DIV / Contrôle tube divers",null,null,"Afficher"]
["CE.203","Table de rectitude","Production / 8414DIV / Contrôle tube divers",null,null,"Afficher"]
["CF.461","Table de rectitude","Production / 8414IMP","0 / 3 m",null,"Afficher"]
["DIM-0077","banc de rectitude","Production / 8414DIV / Contrôle Final Tubes",null,null,"Afficher"]
["ED.093","Table de rectitude","Production / 8402 / Etirage NiTi",null,null,"Afficher"]
["REG-129","Règle de rectitude","Technique / 7700 / Armoire proto P2C","1200 mm",null,"Afficher"]
["M.065B","Jauge d'épaisseur","Technique / 7300","0,04 / 1 mm",null,"Afficher"]
["M.068","Jauge d'épaisseur","Technique / 7300",null,null,"Afficher"]
["M.065","Jauge d'épaisseur","Technique / 7300","0,05 / 1 mm",null,"Afficher"]
["SQ.068","Jauge d'épaisseur","Technique / 7300 / Mécanique","0,04 / 1 mm",null,"Afficher"]
["CE.254","Jauge plate à faces parallèles","Production / 8414IMP",null,null,"Afficher"]
["JP-001","Jauge plate à faces parallèles","Production / 8509 / Tronconnage",null,null,"Afficher"]
["JP-002","Jauge plate à faces parallèles","Production / 8509 / Tronconnage",null,null,"Afficher"]
["JP-003","Jauge plate à faces parallèles","Production / BU Tubes",null,null,"Afficher"]
["JP-005","Jauge plate à faces parallèles","Production / 8346 / Laboratoire Ctrl. Spcx",null,null,"Afficher"]
["JP-008","Jauge plate à faces parallèles","Production / 8414 / Contrôle Tubes Divers",null,null,"Afficher"]
["JP-009","Jauge plate à faces parallèles","Technique / 7700",null,null,"Afficher"]
["JP-010","Jauge plate à faces parallèles","Technique / 7700",null,null,"Afficher"]
["CE.250","Longueur","Technique / 7700 / Armoire PROTO P2 C","0 / 1000 mm",null,"Afficher"]

{"sheet":"Réglage_réctitude","index":59,"n_rows":0,"n_cols":0,"rows_kept":0,"cut":false,"hidden":false,"merged":[]}

{"sheet":"Rugosité","index":60,"n_rows":8,"n_cols":6,"rows_kept":8,"cut":false,"hidden":false,"merged":[]}
[]
[]
["CF.395","Rugosimètre","Production / 8346 / Laboratoire Ctrl. Spcx",null,null,"Afficher"]
["DIM-0061","Rugosimètre","Production / 8518 / Production aiguille",null,null,"Afficher"]
["DIM-0104","Rugosimètre","Production / 8346 / Laboratoire Ctrl. Spcx",null,null,"Afficher"]
["THE.010","Rugosimètre","Production / 8553 / PRESSE C/C",null,null,"Afficher"]
["CF.267","Rugosimètre","Technique / 7700",null,null,"Afficher"]
["CF.005","Rugotest","Production / 8414DIV / Contrôle Final Tubes",null,null,"Afficher"]

{"sheet":"Son","index":61,"n_rows":101,"n_cols":16,"rows_kept":101,"cut":false,"hidden":false,"merged":[]}
["SON"]
["Son",null,null,null,null,null,"résolution g","Incertitude g","Justesse g","IT mini détectable g","Capacité mini g","Capacité Maxi g",null,"Résultat critère IT"]
["M.285","Sonomètre","Technique / 7311",null,null,"Afficher",null,null,null,null,null,null,null,{"$f":"IF('Choix de l''instrument '!$C$3=\"Son\",AND('Choix de l''instrument '!$D$3>=Son!G3,G3<>\"\"),\"\")","v":""}]
[null,null,null,null,null,null,null,null,null,null,null,null,null,{"$f":"IF('Choix de l''instrument '!$C$3=\"Son\",AND('Choix de l''instrument '!$D$3>=Son!G4,G4<>\"\"),\"\")","v":""},"=NBVAL(A:A)","=NB.SI(N3:N100;Vrai)"]
[null,null,null,null,null,null,null,null,null,null,null,null,null,{"$f":"IF('Choix de l''instrument '!$C$3=\"Son\",AND('Choix de l''instrument '!$D$3>=Son!G5,G5<>\"\"),\"\")","v":""}]
[null,null,null,null,null,null,null,null,null,null,null,null,null,{"$f":"IF('Choix de l''instrument '!$C$3=\"Son\",AND('Choix de l''instrument '!$D$3>=Son!G6,G6<>\"\"),\"\")","v":""}]
[null,null,null,null,null,null,null,null,null,null,null,null,null,{"$f":"IF('Choix de l''instrument '!$C$3=\"Son\",AND('Choix de l''instrument '!$D$3>=Son!G7,G7<>\"\"),\"\")","v":""}]
[null,null,null,null,null,null,null,null,null,null,null,null,null,{"$f":"IF('Choix de l''instrument '!$C$3=\"Son\",AND('Choix de l''instrument '!$D$3>=Son!G8,G8<>\"\"),\"\")","v":""}]
[null,null,null,null,null,null,null,null,null,null,null,null,null,{"$f":"IF('Choix de l''instrument '!$C$3=\"Son\",AND('Choix de l''instrument '!$D$3>=Son!G9,G9<>\"\"),\"\")","v":""}]
[null,null,null,null,null,null,null,null,null,null,null,null,null,{"$f":"IF('Choix de l''instrument '!$C$3=\"Son\",AND('Choix de l''instrument '!$D$3>=Son!G10,G10<>\"\"),\"\")","v":""}]
[null,null,null,null,null,null,null,null,null,null,null,null,null,{"$f":"IF('Choix de l''instrument '!$C$3=\"Son\",AND('Choix de l''instrument '!$D$3>=Son!G11,G11<>\"\"),\"\")","v":""}]
[null,null,null,null,null,null,null,null,null,null,null,null,null,{"$f":"IF('Choix de l''instrument '!$C$3=\"Son\",AND('Choix de l''instrument '!$D$3>=Son!G12,G12<>\"\"),\"\")","v":""}]
[null,null,null,null,null,null,null,null,null,null,null,null,null,{"$f":"IF('Choix de l''instrument '!$C$3=\"Son\",AND('Choix de l''instrument '!$D$3>=Son!G13,G13<>\"\"),\"\")","v":""}]
[null,null,null,null,null,null,null,null,null,null,null,null,null,{"$f":"IF('Choix de l''instrument '!$C$3=\"Son\",AND('Choix de l''instrument '!$D$3>=Son!G14,G14<>\"\"),\"\")","v":""}]
[null,null,null,null,null,null,null,null,null,null,null,null,null,{"$f":"IF('Choix de l''instrument '!$C$3=\"Son\",AND('Choix de l''instrument '!$D$3>=Son!G15,G15<>\"\"),\"\")","v":""}]
[null,null,null,null,null,null,null,null,null,null,null,null,null,{"$f":"IF('Choix de l''instrument '!$C$3=\"Son\",AND('Choix de l''instrument '!$D$3>=Son!G16,G16<>\"\"),\"\")","v":""}]
[null,null,null,null,null,null,null,null,null,null,null,null,null,{"$f":"IF('Choix de l''instrument '!$C$3=\"Son\",AND('Choix de l''instrument '!$D$3>=Son!G17,G17<>\"\"),\"\")","v":""}]
[null,null,null,null,null,null,null,null,null,null,null,null,null,{"$f":"IF('Choix de l''instrument '!$C$3=\"Son\",AND('Choix de l''instrument '!$D$3>=Son!G18,G18<>\"\"),\"\")","v":""}]
[null,null,null,null,null,null,null,null,null,null,null,null,null,{"$f":"IF('Choix de l''instrument '!$C$3=\"Son\",AND('Choix de l''instrument '!$D$3>=Son!G19,G19<>\"\"),\"\")","v":""}]
[null,null,null,null,null,null,null,null,null,null,null,null,null,{"$f":"IF('Choix de l''instrument '!$C$3=\"Son\",AND('Choix de l''instrument '!$D$3>=Son!G20,G20<>\"\"),\"\")","v":""}]
[null,null,null,null,null,null,null,null,null,null,null,null,null,{"$f":"IF('Choix de l''instrument '!$C$3=\"Son\",AND('Choix de l''instrument '!$D$3>=Son!G21,G21<>\"\"),\"\")","v":""}]
[null,null,null,null,null,null,null,null,null,null,null,null,null,{"$f":"IF('Choix de l''instrument '!$C$3=\"Son\",AND('Choix de l''instrument '!$D$3>=Son!G22,G22<>\"\"),\"\")","v":""}]
[null,null,null,null,null,null,null,null,null,null,null,null,null,{"$f":"IF('Choix de l''instrument '!$C$3=\"Son\",AND('Choix de l''instrument '!$D$3>=Son!G23,G23<>\"\"),\"\")","v":""}]
[null,null,null,null,null,null,null,null,null,null,null,null,null,{"$f":"IF('Choix de l''instrument '!$C$3=\"Son\",AND('Choix de l''instrument '!$D$3>=Son!G24,G24<>\"\"),\"\")","v":""}]
[null,null,null,null,null,null,null,null,null,null,null,null,null,{"$f":"IF('Choix de l''instrument '!$C$3=\"Son\",AND('Choix de l''instrument '!$D$3>=Son!G25,G25<>\"\"),\"\")","v":""}]
[null,null,null,null,null,null,null,null,null,null,null,null,null,{"$f":"IF('Choix de l''instrument '!$C$3=\"Son\",AND('Choix de l''instrument '!$D$3>=Son!G26,G26<>\"\"),\"\")","v":""}]
[null,null,null,null,null,null,null,null,null,null,null,null,null,{"$f":"IF('Choix de l''instrument '!$C$3=\"Son\",AND('Choix de l''instrument '!$D$3>=Son!G27,G27<>\"\"),\"\")","v":""}]
[null,null,null,null,null,null,null,null,null,null,null,null,null,{"$f":"IF('Choix de l''instrument '!$C$3=\"Son\",AND('Choix de l''instrument '!$D$3>=Son!G28,G28<>\"\"),\"\")","v":""}]
[null,null,null,null,null,null,null,null,null,null,null,null,null,{"$f":"IF('Choix de l''instrument '!$C$3=\"Son\",AND('Choix de l''instrument '!$D$3>=Son!G29,G29<>\"\"),\"\")","v":""}]
[null,null,null,null,null,null,null,null,null,null,null,null,null,{"$f":"IF('Choix de l''instrument '!$C$3=\"Son\",AND('Choix de l''instrument '!$D$3>=Son!G30,G30<>\"\"),\"\")","v":""}]
[null,null,null,null,null,null,null,null,null,null,null,null,null,{"$f":"IF('Choix de l''instrument '!$C$3=\"Son\",AND('Choix de l''instrument '!$D$3>=Son!G31,G31<>\"\"),\"\")","v":""}]
[null,null,null,null,null,null,null,null,null,null,null,null,null,{"$f":"IF('Choix de l''instrument '!$C$3=\"Son\",AND('Choix de l''instrument '!$D$3>=Son!G32,G32<>\"\"),\"\")","v":""}]
[null,null,null,null,null,null,null,null,null,null,null,null,null,{"$f":"IF('Choix de l''instrument '!$C$3=\"Son\",AND('Choix de l''instrument '!$D$3>=Son!G33,G33<>\"\"),\"\")","v":""}]
[null,null,null,null,null,null,null,null,null,null,null,null,null,{"$f":"IF('Choix de l''instrument '!$C$3=\"Son\",AND('Choix de l''instrument '!$D$3>=Son!G34,G34<>\"\"),\"\")","v":""}]
[null,null,null,null,null,null,null,null,null,null,null,null,null,{"$f":"IF('Choix de l''instrument '!$C$3=\"Son\",AND('Choix de l''instrument '!$D$3>=Son!G35,G35<>\"\"),\"\")","v":""}]
[null,null,null,null,null,null,null,null,null,null,null,null,null,{"$f":"IF('Choix de l''instrument '!$C$3=\"Son\",AND('Choix de l''instrument '!$D$3>=Son!G36,G36<>\"\"),\"\")","v":""}]
[null,null,null,null,null,null,null,null,null,null,null,null,null,{"$f":"IF('Choix de l''instrument '!$C$3=\"Son\",AND('Choix de l''instrument '!$D$3>=Son!G37,G37<>\"\"),\"\")","v":""}]
[null,null,null,null,null,null,null,null,null,null,null,null,null,{"$f":"IF('Choix de l''instrument '!$C$3=\"Son\",AND('Choix de l''instrument '!$D$3>=Son!G38,G38<>\"\"),\"\")","v":""}]
[null,null,null,null,null,null,null,null,null,null,null,null,null,{"$f":"IF('Choix de l''instrument '!$C$3=\"Son\",AND('Choix de l''instrument '!$D$3>=Son!G39,G39<>\"\"),\"\")","v":""}]
[null,null,null,null,null,null,null,null,null,null,null,null,null,{"$f":"IF('Choix de l''instrument '!$C$3=\"Son\",AND('Choix de l''instrument '!$D$3>=Son!G40,G40<>\"\"),\"\")","v":""}]
[null,null,null,null,null,null,null,null,null,null,null,null,null,{"$f":"IF('Choix de l''instrument '!$C$3=\"Son\",AND('Choix de l''instrument '!$D$3>=Son!G41,G41<>\"\"),\"\")","v":""}]
[null,null,null,null,null,null,null,null,null,null,null,null,null,{"$f":"IF('Choix de l''instrument '!$C$3=\"Son\",AND('Choix de l''instrument '!$D$3>=Son!G42,G42<>\"\"),\"\")","v":""}]
[null,null,null,null,null,null,null,null,null,null,null,null,null,{"$f":"IF('Choix de l''instrument '!$C$3=\"Son\",AND('Choix de l''instrument '!$D$3>=Son!G43,G43<>\"\"),\"\")","v":""}]
[null,null,null,null,null,null,null,null,null,null,null,null,null,{"$f":"IF('Choix de l''instrument '!$C$3=\"Son\",AND('Choix de l''instrument '!$D$3>=Son!G44,G44<>\"\"),\"\")","v":""}]
[null,null,null,null,null,null,null,null,null,null,null,null,null,{"$f":"IF('Choix de l''instrument '!$C$3=\"Son\",AND('Choix de l''instrument '!$D$3>=Son!G45,G45<>\"\"),\"\")","v":""}]
[null,null,null,null,null,null,null,null,null,null,null,null,null,{"$f":"IF('Choix de l''instrument '!$C$3=\"Son\",AND('Choix de l''instrument '!$D$3>=Son!G46,G46<>\"\"),\"\")","v":""}]
[null,null,null,null,null,null,null,null,null,null,null,null,null,{"$f":"IF('Choix de l''instrument '!$C$3=\"Son\",AND('Choix de l''instrument '!$D$3>=Son!G47,G47<>\"\"),\"\")","v":""}]
[null,null,null,null,null,null,null,null,null,null,null,null,null,{"$f":"IF('Choix de l''instrument '!$C$3=\"Son\",AND('Choix de l''instrument '!$D$3>=Son!G48,G48<>\"\"),\"\")","v":""}]
[null,null,null,null,null,null,null,null,null,null,null,null,null,{"$f":"IF('Choix de l''instrument '!$C$3=\"Son\",AND('Choix de l''instrument '!$D$3>=Son!G49,G49<>\"\"),\"\")","v":""}]
[null,null,null,null,null,null,null,null,null,null,null,null,null,{"$f":"IF('Choix de l''instrument '!$C$3=\"Son\",AND('Choix de l''instrument '!$D$3>=Son!G50,G50<>\"\"),\"\")","v":""}]
[null,null,null,null,null,null,null,null,null,null,null,null,null,{"$f":"IF('Choix de l''instrument '!$C$3=\"Son\",AND('Choix de l''instrument '!$D$3>=Son!G51,G51<>\"\"),\"\")","v":""}]
[null,null,null,null,null,null,null,null,null,null,null,null,null,{"$f":"IF('Choix de l''instrument '!$C$3=\"Son\",AND('Choix de l''instrument '!$D$3>=Son!G52,G52<>\"\"),\"\")","v":""}]
[null,null,null,null,null,null,null,null,null,null,null,null,null,{"$f":"IF('Choix de l''instrument '!$C$3=\"Son\",AND('Choix de l''instrument '!$D$3>=Son!G53,G53<>\"\"),\"\")","v":""}]
[null,null,null,null,null,null,null,null,null,null,null,null,null,{"$f":"IF('Choix de l''instrument '!$C$3=\"Son\",AND('Choix de l''instrument '!$D$3>=Son!G54,G54<>\"\"),\"\")","v":""}]
[null,null,null,null,null,null,null,null,null,null,null,null,null,{"$f":"IF('Choix de l''instrument '!$C$3=\"Son\",AND('Choix de l''instrument '!$D$3>=Son!G55,G55<>\"\"),\"\")","v":""}]
[null,null,null,null,null,null,null,null,null,null,null,null,null,{"$f":"IF('Choix de l''instrument '!$C$3=\"Son\",AND('Choix de l''instrument '!$D$3>=Son!G56,G56<>\"\"),\"\")","v":""}]
[null,null,null,null,null,null,null,null,null,null,null,null,null,{"$f":"IF('Choix de l''instrument '!$C$3=\"Son\",AND('Choix de l''instrument '!$D$3>=Son!G57,G57<>\"\"),\"\")","v":""}]
[null,null,null,null,null,null,null,null,null,null,null,null,null,{"$f":"IF('Choix de l''instrument '!$C$3=\"Son\",AND('Choix de l''instrument '!$D$3>=Son!G58,G58<>\"\"),\"\")","v":""}]
[null,null,null,null,null,null,null,null,null,null,null,null,null,{"$f":"IF('Choix de l''instrument '!$C$3=\"Son\",AND('Choix de l''instrument '!$D$3>=Son!G59,G59<>\"\"),\"\")","v":""}]
[null,null,null,null,null,null,null,null,null,null,null,null,null,{"$f":"IF('Choix de l''instrument '!$C$3=\"Son\",AND('Choix de l''instrument '!$D$3>=Son!G60,G60<>\"\"),\"\")","v":""}]
[null,null,null,null,null,null,null,null,null,null,null,null,null,{"$f":"IF('Choix de l''instrument '!$C$3=\"Son\",AND('Choix de l''instrument '!$D$3>=Son!G61,G61<>\"\"),\"\")","v":""}]
[null,null,null,null,null,null,null,null,null,null,null,null,null,{"$f":"IF('Choix de l''instrument '!$C$3=\"Son\",AND('Choix de l''instrument '!$D$3>=Son!G62,G62<>\"\"),\"\")","v":""}]
[null,null,null,null,null,null,null,null,null,null,null,null,null,{"$f":"IF('Choix de l''instrument '!$C$3=\"Son\",AND('Choix de l''instrument '!$D$3>=Son!G63,G63<>\"\"),\"\")","v":""}]
[null,null,null,null,null,null,null,null,null,null,null,null,null,{"$f":"IF('Choix de l''instrument '!$C$3=\"Son\",AND('Choix de l''instrument '!$D$3>=Son!G64,G64<>\"\"),\"\")","v":""}]
[null,null,null,null,null,null,null,null,null,null,null,null,null,{"$f":"IF('Choix de l''instrument '!$C$3=\"Son\",AND('Choix de l''instrument '!$D$3>=Son!G65,G65<>\"\"),\"\")","v":""}]
[null,null,null,null,null,null,null,null,null,null,null,null,null,{"$f":"IF('Choix de l''instrument '!$C$3=\"Son\",AND('Choix de l''instrument '!$D$3>=Son!G66,G66<>\"\"),\"\")","v":""}]
[null,null,null,null,null,null,null,null,null,null,null,null,null,{"$f":"IF('Choix de l''instrument '!$C$3=\"Son\",AND('Choix de l''instrument '!$D$3>=Son!G67,G67<>\"\"),\"\")","v":""}]
[null,null,null,null,null,null,null,null,null,null,null,null,null,{"$f":"IF('Choix de l''instrument '!$C$3=\"Son\",AND('Choix de l''instrument '!$D$3>=Son!G68,G68<>\"\"),\"\")","v":""}]
[null,null,null,null,null,null,null,null,null,null,null,null,null,{"$f":"IF('Choix de l''instrument '!$C$3=\"Son\",AND('Choix de l''instrument '!$D$3>=Son!G69,G69<>\"\"),\"\")","v":""}]
[null,null,null,null,null,null,null,null,null,null,null,null,null,{"$f":"IF('Choix de l''instrument '!$C$3=\"Son\",AND('Choix de l''instrument '!$D$3>=Son!G70,G70<>\"\"),\"\")","v":""}]
[null,null,null,null,null,null,null,null,null,null,null,null,null,{"$f":"IF('Choix de l''instrument '!$C$3=\"Son\",AND('Choix de l''instrument '!$D$3>=Son!G71,G71<>\"\"),\"\")","v":""}]
[null,null,null,null,null,null,null,null,null,null,null,null,null,{"$f":"IF('Choix de l''instrument '!$C$3=\"Son\",AND('Choix de l''instrument '!$D$3>=Son!G72,G72<>\"\"),\"\")","v":""}]
[null,null,null,null,null,null,null,null,null,null,null,null,null,{"$f":"IF('Choix de l''instrument '!$C$3=\"Son\",AND('Choix de l''instrument '!$D$3>=Son!G73,G73<>\"\"),\"\")","v":""}]
[null,null,null,null,null,null,null,null,null,null,null,null,null,{"$f":"IF('Choix de l''instrument '!$C$3=\"Masse\",AND('Choix de l''instrument '!$D$3>=Masse!J74,J74<>\"\"),\"\")","v":""}]
[null,null,null,null,null,null,null,null,null,null,null,null,null,{"$f":"IF('Choix de l''instrument '!$C$3=\"Masse\",AND('Choix de l''instrument '!$D$3>=Masse!J75,J75<>\"\"),\"\")","v":""}]
[null,null,null,null,null,null,null,null,null,null,null,null,null,{"$f":"IF('Choix de l''instrument '!$C$3=\"Masse\",AND('Choix de l''instrument '!$D$3>=Masse!J76,J76<>\"\"),\"\")","v":""}]
[null,null,null,null,null,null,null,null,null,null,null,null,null,{"$f":"IF('Choix de l''instrument '!$C$3=\"Masse\",AND('Choix de l''instrument '!$D$3>=Masse!J77,J77<>\"\"),\"\")","v":""}]
[null,null,null,null,null,null,null,null,null,null,null,null,null,{"$f":"IF('Choix de l''instrument '!$C$3=\"Masse\",AND('Choix de l''instrument '!$D$3>=Masse!J78,J78<>\"\"),\"\")","v":""}]
[null,null,null,null,null,null,null,null,null,null,null,null,null,{"$f":"IF('Choix de l''instrument '!$C$3=\"Masse\",AND('Choix de l''instrument '!$D$3>=Masse!J79,J79<>\"\"),\"\")","v":""}]
[null,null,null,null,null,null,null,null,null,null,null,null,null,{"$f":"IF('Choix de l''instrument '!$C$3=\"Masse\",AND('Choix de l''instrument '!$D$3>=Masse!J80,J80<>\"\"),\"\")","v":""}]
[null,null,null,null,null,null,null,null,null,null,null,null,null,{"$f":"IF('Choix de l''instrument '!$C$3=\"Masse\",AND('Choix de l''instrument '!$D$3>=Masse!J81,J81<>\"\"),\"\")","v":""}]
[null,null,null,null,null,null,null,null,null,null,null,null,null,{"$f":"IF('Choix de l''instrument '!$C$3=\"Masse\",AND('Choix de l''instrument '!$D$3>=Masse!J82,J82<>\"\"),\"\")","v":""}]
[null,null,null,null,null,null,null,null,null,null,null,null,null,{"$f":"IF('Choix de l''instrument '!$C$3=\"Masse\",AND('Choix de l''instrument '!$D$3>=Masse!J83,J83<>\"\"),\"\")","v":""}]
[null,null,null,null,null,null,null,null,null,null,null,null,null,{"$f":"IF('Choix de l''instrument '!$C$3=\"Masse\",AND('Choix de l''instrument '!$D$3>=Masse!J84,J84<>\"\"),\"\")","v":""}]
[null,null,null,null,null,null,null,null,null,null,null,null,null,{"$f":"IF('Choix de l''instrument '!$C$3=\"Masse\",AND('Choix de l''instrument '!$D$3>=Masse!J85,J85<>\"\"),\"\")","v":""}]
[null,null,null,null,null,null,null,null,null,null,null,null,null,{"$f":"IF('Choix de l''instrument '!$C$3=\"Masse\",AND('Choix de l''instrument '!$D$3>=Masse!J86,J86<>\"\"),\"\")","v":""}]
[null,null,null,null,null,null,null,null,null,null,null,null,null,{"$f":"IF('Choix de l''instrument '!$C$3=\"Masse\",AND('Choix de l''instrument '!$D$3>=Masse!J87,J87<>\"\"),\"\")","v":""}]
[null,null,null,null,null,null,null,null,null,null,null,null,null,{"$f":"IF('Choix de l''instrument '!$C$3=\"Masse\",AND('Choix de l''instrument '!$D$3>=Masse!J88,J88<>\"\"),\"\")","v":""}]
[null,null,null,null,null,null,null,null,null,null,null,null,null,{"$f":"IF('Choix de l''instrument '!$C$3=\"Masse\",AND('Choix de l''instrument '!$D$3>=Masse!J89,J89<>\"\"),\"\")","v":""}]
[null,null,null,null,null,null,null,null,null,null,null,null,null,{"$f":"IF('Choix de l''instrument '!$C$3=\"Masse\",AND('Choix de l''instrument '!$D$3>=Masse!J90,J90<>\"\"),\"\")","v":""}]
[null,null,null,null,null,null,null,null,null,null,null,null,null,{"$f":"IF('Choix de l''instrument '!$C$3=\"Masse\",AND('Choix de l''instrument '!$D$3>=Masse!J91,J91<>\"\"),\"\")","v":""}]
[null,null,null,null,null,null,null,null,null,null,null,null,null,{"$f":"IF('Choix de l''instrument '!$C$3=\"Masse\",AND('Choix de l''instrument '!$D$3>=Masse!J92,J92<>\"\"),\"\")","v":""}]
[null,null,null,null,null,null,null,null,null,null,null,null,null,{"$f":"IF('Choix de l''instrument '!$C$3=\"Masse\",AND('Choix de l''instrument '!$D$3>=Masse!J93,J93<>\"\"),\"\")","v":""}]
[null,null,null,null,null,null,null,null,null,null,null,null,null,{"$f":"IF('Choix de l''instrument '!$C$3=\"Masse\",AND('Choix de l''instrument '!$D$3>=Masse!J94,J94<>\"\"),\"\")","v":""}]
[null,null,null,null,null,null,null,null,null,null,null,null,null,{"$f":"IF('Choix de l''instrument '!$C$3=\"Masse\",AND('Choix de l''instrument '!$D$3>=Masse!J95,J95<>\"\"),\"\")","v":""}]
[null,null,null,null,null,null,null,null,null,null,null,null,null,{"$f":"IF('Choix de l''instrument '!$C$3=\"Masse\",AND('Choix de l''instrument '!$D$3>=Masse!J96,J96<>\"\"),\"\")","v":""}]
[null,null,null,null,null,null,null,null,null,null,null,null,null,{"$f":"IF('Choix de l''instrument '!$C$3=\"Masse\",AND('Choix de l''instrument '!$D$3>=Masse!J97,J97<>\"\"),\"\")","v":""}]
[null,null,null,null,null,null,null,null,null,null,null,null,null,{"$f":"IF('Choix de l''instrument '!$C$3=\"Masse\",AND('Choix de l''instrument '!$D$3>=Masse!J98,J98<>\"\"),\"\")","v":""}]
[null,null,null,null,null,null,null,null,null,null,null,null,null,{"$f":"IF('Choix de l''instrument '!$C$3=\"Masse\",AND('Choix de l''instrument '!$D$3>=Masse!J99,J99<>\"\"),\"\")","v":""}]
[null,null,null,null,null,null,null,null,null,null,null,null,null,{"$f":"IF('Choix de l''instrument '!$C$3=\"Masse\",AND('Choix de l''instrument '!$D$3>=Masse!J100,J100<>\"\"),\"\")","v":""}]
[null,null,null,null,null,null,null,null,null,null,null,null,null,{"$f":"IF('Choix de l''instrument '!$C$3=\"Masse\",AND('Choix de l''instrument '!$D$3>=Masse!J101,J101<>\"\"),\"\")","v":""}]

{"sheet":"Spectrométrie","index":62,"n_rows":8,"n_cols":6,"rows_kept":8,"cut":false,"hidden":false,"merged":[]}
[]
[]
["MET-0097","Analyseur portable par fluorescence X","Production / 8414 DIV / Contrôle Tubes Divers","0 / 100 %",null,"Afficher"]
["MET-0098","Analyseur portable par fluorescence X","Production / 8414 DIV / Contrôle Tubes Divers","0 / 100 %",null,"Afficher"]
["SQ.094","Générateur de rayons X","Production / 8414DIV / Contrôle tubes divers",null,null,"Afficher"]
["MET-0104","Analyseur portable par fluorescence X","Production / 8414 DIV / Contrôle Tubes Divers","0 / 100 %",null,"Afficher"]
["ENV.012","Spectrophotomètre","Technique / 7700 / Armoire BOTT LG",null,null,"Afficher"]
["ENV.017","Spectrophotomètre","Production / 8515 / Laboratoire",null,null,"Afficher"]

{"sheet":"Taraudage","index":63,"n_rows":30,"n_cols":6,"rows_kept":30,"cut":false,"hidden":false,"merged":[]}
[]
[]
["CAL-0086","Tampon fileté","Sous-traitant","TFD UNF 1/4 x 28 - 2B",null,"Afficher"]
["CAL-0158","Tampon fileté","Production / 8513 / Contrôle Final Pièces","TFD 10-32 B2",null,"Afficher"]
["CAL-0297","Tampon fileté","Production / 8513","TFD 1/4-28UNF-2B",null,"Afficher"]
["CF.205","Tampon fileté","Production / 8513 / Contrôle Final Pièces","TFE M 6 x 0,4 - 6H",null,"Afficher"]
["CF.206","Tampon fileté","Production / 8513 / Contrôle Final Pièces","TFNEP M 6 x 0,4 - 6H",null,"Afficher"]
["CF.207","Tampon fileté","Production / 8513 / Contrôle Final Pièces","TFNEP M 6 x 0,4 - 6H",null,"Afficher"]
["CF.211","Tampon fileté","Production / 8513 / Contrôle Final Pièces","TFE M 6 x 0,4 - 6H",null,"Afficher"]
["CF.327","Tampon fileté","Production / 8513 / Contrôle Final Pièces","TFD UNF 1/4 x 28 - 2B",null,"Afficher"]
["CF.408","Tampon fileté","Production / 8513 / Contrôle Final Pièces","TFD M 3 x 0,5 - 6H",null,"Afficher"]
["CF.452","Tampon fileté","Production / 8513 / Contrôle Final Pièces","TFD UNF 10 x 32 - 2B",null,"Afficher"]
["TF-001","Tampon fileté","Production / 8513 / Contrôle Final Pièces","TFD M 6 x 0,5 - 6H",null,"Afficher"]
["TF-195","Tampon fileté","Production / 8513 / Contrôle Final Pièces","TFD UNF 5/16 x 24 - 2B",null,"Afficher"]
["THE.087","Tampon fileté","Production / 8513 / Contrôle Final Pièces","TFE M 3 x 0,5 - 6H",null,"Afficher"]
["CAL-0079","Tampon fileté","Production / 7700","TFD M6*0,5-6H 0 / 0",null,"Afficher"]
["CAL-0080","Tampon fileté","Production / 7700","TFD / M3-6H x",null,"Afficher"]
["CAL-0161","Tampon fileté","Technique / 7700 / Armoire BOTT EM","TFD 5/16-24 B2",null,"Afficher"]
["CAL-0162","Tampon fileté","Technique / 7700 / Armoire BOTT EM","TFE H M6 X 0,40 x 6",null,"Afficher"]
["CAL-0163","Tampon fileté","Technique / 7700 / Armoire BOTT EM","TFNEP H M6 X 0,40 x 6",null,"Afficher"]
["CAL-0439","Tampon fileté","Technique / 7700 / Armoire BOTT EM","TFD 1/4-28UNF-2B",null,"Afficher"]
["CF.315","Tampon fileté","Production / 7700","TFD M 18 x 1 - 6H",null,"Afficher"]
["CF.318","Tampon fileté","Production / 7700","TFD M10X1-6H",null,"Afficher"]
["TF-195/1","Tampon fileté","Technique / 7700 / Armoire BOTT ED","TFD UNF 5/16 x 24 - 2B",null,"Afficher"]
["THE.073","Tampon fileté","Technique / 7700 / Armoire BOTT EGA","TFE M 2,5 x 0,45 - 6H",null,"Afficher"]
["THE.083","Tampon fileté","Technique / 7700 / Armoire BOTT EGF","TFE M 4 x 0,35 - 6H",null,"Afficher"]
["THE.088","Tampon fileté","Technique / 7700 / Armoire BOTT EM","TFNEP M 3 x 0,5 - 6H",null,"Afficher"]
["THE.099","Tampon fileté","Technique / 7700 / Armoire BOTT DD","TFE M 4 x 0,7 - 6H",null,"Afficher"]
["THE.115","Tampon fileté","Technique / 7700 / Armoire BOTT EM","TFE M 5 x 0,8 - 6G",null,"Afficher"]
["THE.120","Tampon fileté","Technique / 7700 / Armoire BOTT ED","TFNEP M 4 x 0,35 - 6H",null,"Afficher"]

{"sheet":"Température","index":64,"n_rows":278,"n_cols":6,"rows_kept":278,"cut":false,"hidden":false,"merged":[]}
[]
[]
["REGUL-001","Régulateur","Production / 8405 / TT945",null,null,"Afficher"]
["REGUL-002","Régulateur","Production / 8405 / TT945",null,null,"Afficher"]
["REGUL-003","Régulateur","Production / 8405 / TT945",null,null,"Afficher"]
["REGUL-004","Régulateur","Production / 8405 / TT945",null,null,"Afficher"]
["REGUL-005","Régulateur","Production / 8405 / TT945",null,null,"Afficher"]
["REGUL-006","Régulateur","Production / 8405 / TT945",null,null,"Afficher"]
["TEM-0058","Thermocouple","Production / 8403 / Bull-blocks","800 / 1100 °C",null,"Afficher"]
["ED.250","Calibrateur de température","Technique / 7700 / Armoire THERMOCOUPLES",null,null,"Afficher"]
["TEM-0131","Enregistreur de température","Technique / 7700 / Bureau de Michel FAVARO","675 / 800 °C",null,"Afficher"]
["TEM-0004","Enregistreur de Température et Hygrometrie","Technique / 7700 / Bureau de Michel FAVARO",null,null,"Afficher"]
["TEM-0228","Boîtier indicateur température","Production / 8507 / Micro Assemblage","0 / 800 °C",null,"Afficher"]
["TEM-0236","Boîtier indicateur température","Technique / 7510 / Process BU transformation","700° C",null,"Afficher"]
["ED.251","Enregistreur de température","Production / 8405 / TT945",null,null,"Afficher"]
["TEM-0229","Pyromètre optique","Production / 8507 / Micro Assemblage",null,null,"Afficher"]
["TEM-0230","Pyromètre optique","Production / 8507 / Micro Assemblage",null,null,"Afficher"]
["MET-0053","Sonde de température","Production / 8401 / Magasin Outillage","-5 / 30 °C",null,"Afficher"]
["TC-063","Thermocouple","Production / 8405 / TT942","1000 / 1100 °C",null,"Afficher"]
["TEM-0057","Thermocouple","Production / 8402 / Titane","575 / 1100 °C",null,"Afficher"]
["TEM-0060","Thermocouple","Production / 8405 / TT943","850 / 1050 °C",null,"Afficher"]
["TEM-0110","Thermocouple","Production / 8405 / TT945","1050 / 1150 °C",null,"Afficher"]
["TEM-0215","Thermocouple","Production / 8405 / TT945","1100 / 1175 °C",null,"Afficher"]
["TEM-0234","Thermocouple","Technique / 7510 / Process BU transformation","700° C",null,"Afficher"]
["TEM-107","Thermocouple","Production / 8405 / TT945","1050 / 1150 °C",null,"Afficher"]
["CAT.082","Thermomètre","Production / 8507 / Micro Assemblage",null,null,"Afficher"]
["SQ.105","Thermomètre","Production / 8401 / Magasin Outillage",null,null,"Afficher"]
["TEM-0056","Thermomètre","Production / 8402 / Titane",null,null,"Afficher"]
["TEM-0063","Thermomètre","Production / 8405 / TT943",null,null,"Afficher"]
["TEM-0064","Thermomètre","Production / 8403 / Bull-blocks",null,null,"Afficher"]
["TEM-0070","Thermomètre","Production / 8405 / TT942",null,null,"Afficher"]
["TEM-0113","Thermomètre","Production / 8507 / Micro Assemblage","-50 / 80 °C",null,"Afficher"]
["THM-108","Thermomètre","Production / 8414 DIV / Contrôle Tubes Divers","0 / 120 °C",null,"Afficher"]
["THM-196/1","Thermomètre","Production / 8507 / Micro Assemblage","0,1 / 90,0 °C",null,"Afficher"]
["TEM-0069","Thermomètre à pique","Technique / 7700 / Armoire BOTT JG","-20 / 120 °C",null,"Afficher"]
["TEM-0107","Thermomètre","Production / 8414 NiTi",null,null,"Afficher"]
["TC-014","Thermocouple","Production / 8405 / Four GELF TT 945",null,null,"Afficher"]
["TC-016","Thermocouple","Production / 8405 / Four GELF TT 945",null,null,"Afficher"]
["TC-022","Thermocouple","Production / 8405 / TT945","950 / 1175 °C",null,"Afficher"]
["TC-058","Thermocouple","Production / 8444 / Interopérations",null,null,"Afficher"]
["TC-059","Thermocouple","Production / 8444 / Interopérations",null,null,"Afficher"]
["TC-060","Thermocouple","Technique / 7700 / ARMOIRE STOCK A MAINTENANCE (à l'atelier)","950 / 1175 °C",null,"Afficher"]
["TC-218","Thermocouple","Production / 8405 / TT945","0 / 1600 °C",null,"Afficher"]
["TC-219","Thermocouple","Technique / 7700 / ARMOIRE STOCK A MAINTENANCE (à l'atelier)","950 / 1175 °C",null,"Afficher"]
["TC-220","Thermocouple","Technique / 7700 / ARMOIRE STOCK A MAINTENANCE (à l'atelier)","950 / 1175 °C",null,"Afficher"]
["TC-245","Thermocouple","Production / 8405 / Four GELF TT 945","0 / 1500 °C",null,"Afficher"]
["TEM-0006","Thermocouple","Production / 8507 / Micro Assemblage","-200 / 1100 °C",null,"Afficher"]
["TEM-0014","Thermocouple","Production / 8405 / TT945","1050 / 1175 °C",null,"Afficher"]
["TEM-0015","Thermocouple","Technique / 7700 / ARMOIRE STOCK A MAINTENANCE (à l'atelier)","1050 / 1175 °C",null,"Afficher"]
["TEM-0016","Thermocouple","Technique / 7700 / ARMOIRE STOCK A MAINTENANCE (à l'atelier)","1050 / 1175 °C",null,"Afficher"]
["TEM-0017","Thermocouple","Production / 8405 / Four GELF TT 945","1050 / 1175 °C",null,"Afficher"]
["TEM-0018","Thermocouple","Production / 8405 / TT945","1050 / 1175 °C",null,"Afficher"]
["TEM-0019","Thermocouple","Technique / 7700 / ARMOIRE STOCK A MAINTENANCE (à l'atelier)","1050 / 1175 °C",null,"Afficher"]
["TEM-0022","Thermocouple","Production / 8405 / Four GELF TT 945","1050 / 1175 °C",null,"Afficher"]
["TEM-0023","Thermocouple","Production / 8405 / Four GELF TT 945","1050 / 1175 °C",null,"Afficher"]
["TEM-0024","Thermocouple","Technique / 7700 / ARMOIRE STOCK A MAINTENANCE (à l'atelier)","1050 / 1175 °C",null,"Afficher"]
["TEM-0114","Thermocouple","Technique / 7700 / Armoire THERMOCOUPLES","950 / 1175 °C",null,"Afficher"]
["TEM-0115","Thermocouple","Technique / 7700 / Armoire THERMOCOUPLES","950 / 1175 °C",null,"Afficher"]
["TEM-0116","Thermocouple","Technique / 7700 / Armoire THERMOCOUPLES","950 / 1175 °C",null,"Afficher"]
["TEM-0117","Thermocouple","Technique / 7700 / Armoire THERMOCOUPLES","950 / 1175 °C",null,"Afficher"]
["TEM-0118","Thermocouple","Technique / 7700 / Armoire THERMOCOUPLES","950 / 1175 °C",null,"Afficher"]
["TEM-0119","Thermocouple","Technique / 7700 / Armoire THERMOCOUPLES","950 / 1175 °C",null,"Afficher"]
["TEM-0120","Thermocouple","Technique / 7700 / Armoire THERMOCOUPLES","950 / 1175 °C",null,"Afficher"]
["TEM-0121","Thermocouple","Technique / 7700 / Armoire THERMOCOUPLES","950 / 1175 °C",null,"Afficher"]
["TEM-0122","Thermocouple","Technique / 7700 / Armoire THERMOCOUPLES","950 / 1175 °C",null,"Afficher"]
["TEM-0123","Thermocouple","Technique / 7700 / Armoire THERMOCOUPLES","950 / 1175 °C",null,"Afficher"]
["TEM-0124","Thermocouple","Technique / 7700 / Armoire THERMOCOUPLES","950 / 1175 °C",null,"Afficher"]
["TEM-0125","Thermocouple","Technique / 7700 / Armoire THERMOCOUPLES","950 / 1175 °C",null,"Afficher"]
["TEM-0126","Thermocouple","Technique / 7700 / Armoire THERMOCOUPLES","950 / 1175 °C",null,"Afficher"]
["TEM-0127","Thermocouple","Technique / 7700 / Armoire THERMOCOUPLES","950 / 1175 °C",null,"Afficher"]
["TEM-0128","Thermocouple","Technique / 7700 / Armoire THERMOCOUPLES","950 / 1175 °C",null,"Afficher"]
["TEM-0129","Thermocouple","Technique / 7700 / Armoire THERMOCOUPLES","950 / 1175 °C",null,"Afficher"]
["TEM-0130","Thermocouple","Technique / 7700 / Armoire THERMOCOUPLES","950 / 1175 °C",null,"Afficher"]
["TEM-0133","Thermocouple","Technique / 7700 / Armoire THERMOCOUPLES","1050 / 1175 °C",null,"Afficher"]
["TEM-0134","Thermocouple","Technique / 7700 / Armoire THERMOCOUPLES","1050 / 1175 °C",null,"Afficher"]
["TEM-0135","Thermocouple","Technique / 7700 / Armoire THERMOCOUPLES","1050 / 1175 °C",null,"Afficher"]
["TEM-0136","Thermocouple","Technique / 7700 / Armoire THERMOCOUPLES","1050 / 1175 °C",null,"Afficher"]
["TEM-0137","Thermocouple","Technique / 7700 / Armoire THERMOCOUPLES","1050 / 1175 °C",null,"Afficher"]
["TEM-0138","Thermocouple","Technique / 7700 / Armoire THERMOCOUPLES","1050 / 1175 °C",null,"Afficher"]
["TEM-0139","Thermocouple","Technique / 7700 / Armoire THERMOCOUPLES","1050 / 1175 °C",null,"Afficher"]
["TEM-0140","Thermocouple","Technique / 7700 / Armoire THERMOCOUPLES","1050 / 1175 °C",null,"Afficher"]
["TEM-0141","Thermocouple","Technique / 7700 / Armoire THERMOCOUPLES","1050 / 1175 °C",null,"Afficher"]
["TEM-0142","Thermocouple","Technique / 7700 / Armoire THERMOCOUPLES","1050 / 1175 °C",null,"Afficher"]
["TEM-0143","Thermocouple","Technique / 7700 / Armoire THERMOCOUPLES","1050 / 1175 °C",null,"Afficher"]
["TEM-0144","Thermocouple","Technique / 7700 / Armoire THERMOCOUPLES","1050 / 1175 °C",null,"Afficher"]
["TEM-0145","Thermocouple","Technique / 7700 / Armoire THERMOCOUPLES","1050 / 1175 °C",null,"Afficher"]
["TEM-0146","Thermocouple","Technique / 7700 / Armoire THERMOCOUPLES","1050 / 1175 °C",null,"Afficher"]
["TEM-0147","Thermocouple","Technique / 7700 / Armoire THERMOCOUPLES","1050 / 1175 °C",null,"Afficher"]
["TEM-0175","Thermocouple","Technique / 7700 / Armoire THERMOCOUPLES","950 / 1050 °C",null,"Afficher"]
["TEM-0176","Thermocouple","Technique / 7700 / Armoire THERMOCOUPLES","950 / 1050 °C",null,"Afficher"]
["TEM-0177","Thermocouple","Technique / 7700 / Armoire THERMOCOUPLES","950 / 1050 °C",null,"Afficher"]
["TEM-0178","Thermocouple","Technique / 7700 / Armoire THERMOCOUPLES","950 / 1050 °C",null,"Afficher"]
["TEM-0179","Thermocouple","Technique / 7700 / Armoire THERMOCOUPLES","950 / 1050 °C",null,"Afficher"]
["TEM-0180","Thermocouple","Technique / 7700 / Armoire THERMOCOUPLES","950 / 1050 °C",null,"Afficher"]
["TEM-0181","Thermocouple","Technique / 7700 / Armoire THERMOCOUPLES","950 / 1050 °C",null,"Afficher"]
["TEM-0182","Thermocouple","Technique / 7700 / Armoire THERMOCOUPLES","950 / 1050 °C",null,"Afficher"]
["TEM-0183","Thermocouple","Technique / 7700 / Armoire THERMOCOUPLES","950 / 1050 °C",null,"Afficher"]
["TEM-0184","Thermocouple","Technique / 7700 / Armoire THERMOCOUPLES","950 / 1050 °C",null,"Afficher"]
["TEM-0185","Thermocouple","Technique / 7700 / Armoire THERMOCOUPLES","950 / 1050 °C",null,"Afficher"]
["TEM-0186","Thermocouple","Technique / 7700 / Armoire THERMOCOUPLES","950 / 1050 °C",null,"Afficher"]
["TEM-0187","Thermocouple","Technique / 7700 / Armoire THERMOCOUPLES","950 / 1050 °C",null,"Afficher"]
["TEM-0188","Thermocouple","Technique / 7700 / Armoire THERMOCOUPLES","950 / 1050 °C",null,"Afficher"]
["TEM-0189","Thermocouple","Technique / 7700 / Armoire THERMOCOUPLES","950 / 1050 °C",null,"Afficher"]
["TEM-0190","Thermocouple","Technique / 7700 / Armoire THERMOCOUPLES","950 / 1050 °C",null,"Afficher"]
["TEM-0191","Thermocouple","Technique / 7700 / Armoire THERMOCOUPLES","950 / 1050 °C",null,"Afficher"]
["TEM-0192","Thermocouple","Technique / 7700 / Armoire THERMOCOUPLES","950 / 1050 °C",null,"Afficher"]
["TEM-0193","Thermocouple","Technique / 7700 / Armoire THERMOCOUPLES","950 / 1050 °C",null,"Afficher"]
["TEM-0194","Thermocouple","Technique / 7700 / Armoire THERMOCOUPLES","950 / 1050 °C",null,"Afficher"]
["TEM-0195","Thermocouple","Technique / 7700 / Armoire THERMOCOUPLES","700 / 1150 °C",null,"Afficher"]
["TEM-0196","Thermocouple","Technique / 7700 / Armoire THERMOCOUPLES","700 / 1150 °C",null,"Afficher"]
["TEM-0197","Thermocouple","Technique / 7700 / Armoire THERMOCOUPLES","700 / 1150 °C",null,"Afficher"]
["TEM-0198","Thermocouple","Technique / 7700 / Armoire THERMOCOUPLES","700 / 1150 °C",null,"Afficher"]
["TEM-0199","Thermocouple","Technique / 7700 / Armoire THERMOCOUPLES","700 / 1150 °C",null,"Afficher"]
["TEM-0200","Thermocouple","Technique / 7700 / Armoire THERMOCOUPLES","700 / 1150 °C",null,"Afficher"]
["TEM-0201","Thermocouple","Technique / 7700 / Armoire THERMOCOUPLES","700 / 1150 °C",null,"Afficher"]
["TEM-0202","Thermocouple","Technique / 7700 / Armoire THERMOCOUPLES","700 / 1150 °C",null,"Afficher"]
["TEM-0203","Thermocouple","Technique / 7700 / Armoire THERMOCOUPLES","700 / 1150 °C",null,"Afficher"]
["TEM-0204","Thermocouple","Technique / 7700 / Armoire THERMOCOUPLES","700 / 1150 °C",null,"Afficher"]
["TEM-0205","Thermocouple","Technique / 7700 / Armoire THERMOCOUPLES","700 / 1150 °C",null,"Afficher"]
["TEM-0206","Thermocouple","Technique / 7700 / Armoire THERMOCOUPLES","700 / 1150 °C",null,"Afficher"]
["TEM-0207","Thermocouple","Technique / 7700 / Armoire THERMOCOUPLES","700 / 1150 °C",null,"Afficher"]
["TEM-0208","Thermocouple","Technique / 7700 / Armoire THERMOCOUPLES","700 / 1150 °C",null,"Afficher"]
["TEM-0209","Thermocouple","Technique / 7700 / Armoire THERMOCOUPLES","700 / 1150 °C",null,"Afficher"]
["TEM-0210","Thermocouple","Technique / 7700 / Armoire THERMOCOUPLES","700 / 1150 °C",null,"Afficher"]
["TEM-0211","Thermocouple","Technique / 7700 / Armoire THERMOCOUPLES","700 / 1150 °C",null,"Afficher"]
["TEM-0212","Thermocouple","Technique / 7700 / Armoire THERMOCOUPLES","700 / 1150 °C",null,"Afficher"]
["TEM-0213","Thermocouple","Technique / 7700 / Armoire THERMOCOUPLES","700 / 1150 °C",null,"Afficher"]
["TEM-0214","Thermocouple","Technique / 7700 / Armoire THERMOCOUPLES","700 / 1150 °C",null,"Afficher"]
["TEM-0237","Thermocouple","Technique / 7700 / Armoire THERMOCOUPLES","1050 / 1175 °C",null,"Afficher"]
["TEM-0238","Thermocouple","Technique / 7700 / Armoire THERMOCOUPLES","1050 / 1175 °C",null,"Afficher"]
["TEM-0239","Thermocouple","Technique / 7700 / Armoire THERMOCOUPLES","1050 / 1175 °C",null,"Afficher"]
["TEM-0240","Thermocouple","Technique / 7700 / Armoire THERMOCOUPLES","1050 / 1175 °C",null,"Afficher"]
["TEM-0241","Thermocouple","Technique / 7700 / Armoire THERMOCOUPLES","1050 / 1175 °C",null,"Afficher"]
["TEM-0242","Thermocouple","Technique / 7700 / ARMOIRE STOCK A MAINTENANCE (à l'atelier)","1050 / 1175 °C",null,"Afficher"]
["TEM-0243","Thermocouple","Technique / 7700 / ARMOIRE STOCK A MAINTENANCE (à l'atelier)","1050 / 1175 °C",null,"Afficher"]
["TEM-0244","Thermocouple","Technique / 7700 / Armoire THERMOCOUPLES","1050 / 1175 °C",null,"Afficher"]
["TEM-0245","Thermocouple","Technique / 7700 / Armoire THERMOCOUPLES","1050 / 1175 °C",null,"Afficher"]
["TEM-0246","Thermocouple","Technique / 7700 / Armoire THERMOCOUPLES","1050 / 1175 °C",null,"Afficher"]
["TEM-0247","Thermocouple","Technique / 7700 / Armoire THERMOCOUPLES","1050 / 1175 °C",null,"Afficher"]
["TEM-0248","Thermocouple","Technique / 7700 / Armoire THERMOCOUPLES","1050 / 1175 °C",null,"Afficher"]
["TEM-0249","Thermocouple","Technique / 7700 / Armoire THERMOCOUPLES","1050 / 1175 °C",null,"Afficher"]
["TEM-0250","Thermocouple","Technique / 7700 / Armoire THERMOCOUPLES","1050 / 1175 °C",null,"Afficher"]
["TEM-0251","Thermocouple","Technique / 7700 / Armoire THERMOCOUPLES","1050 / 1175 °C",null,"Afficher"]
["TEM-0252","Thermocouple","Technique / 7700 / ARMOIRE STOCK A MAINTENANCE (à l'atelier)","1050 / 1175 °C",null,"Afficher"]
["TEM-0253","Thermocouple","Technique / 7700 / ARMOIRE STOCK A MAINTENANCE (à l'atelier)","1050 / 1175 °C",null,"Afficher"]
["TEM-0254","Thermocouple","Technique / 7700 / Armoire THERMOCOUPLES","1050 / 1175 °C",null,"Afficher"]
["TEM-0255","Thermocouple","Technique / 7700 / Armoire THERMOCOUPLES","1050 / 1175 °C",null,"Afficher"]
["TEM-0256","Thermocouple","Technique / 7700 / Armoire THERMOCOUPLES","1050 / 1175 °C",null,"Afficher"]
["TEM-0287","Thermocouple","Production / 8405 / TT946","1050 / 1175 °C",null,"Afficher"]
["TEM-0288","Thermocouple","Production / 8405 / TT946","1050 / 1175 °C",null,"Afficher"]
["TEM-0289","Thermocouple","Production / 8405 / TT946","1050 / 1175 °C",null,"Afficher"]
["TEM-0290","Thermocouple","Production / 8405 / TT946","1050 / 1175 °C",null,"Afficher"]
["TEM-0291","Thermocouple","Production / 8405 / TT946","1050 / 1175 °C",null,"Afficher"]
["TEM-0292","Thermocouple","Production / 8405 / TT946","1050 / 1175 °C",null,"Afficher"]
["TEM-0293","Thermocouple","Production / 8405 / TT946","1050 / 1175 °C",null,"Afficher"]
["TEM-0294","Thermocouple","Production / 8405 / TT946","1050 / 1175 °C",null,"Afficher"]
["TEM-0295","Thermocouple","Production / 8405 / TT946","1050 / 1175 °C",null,"Afficher"]
["TEM-0296","Thermocouple","Production / 8405 / TT946","1050 / 1175 °C",null,"Afficher"]
["TEM-0297","Thermocouple","Production / 8405 / TT946","1050 / 1175 °C",null,"Afficher"]
["TEM-0298","Thermocouple","Production / 8405 / TT946","1050 / 1175 °C",null,"Afficher"]
["TEM-0065","Thermomètre","Production / 7700 / table en marbre",{"$f":"-30 / 70","v":-0.42857142857142855},null,"Afficher"]
["TEM-0066","Thermomètre","Technique / 7700 / Bureau de Laurent SENEE",-0.42857142857142855,null,"Afficher"]
["TEM-0102","Thermomètre","Technique / 7700 / Bureau de Laurent SENEE",-0.42857142857142855,null,"Afficher"]
["TEM-0103","Thermomètre","Technique / 7700 / Bureau de Laurent SENEE",-0.42857142857142855,null,"Afficher"]
["TEM-0105","Thermomètre","Production / 8401 / Etirage Banc Droit",-0.42857142857142855,null,"Afficher"]
["TEM-0172","Thermomètre","Technique / 7700 / Armoire BOTT JG",-0.42857142857142855,null,"Afficher"]
["TEM-0173","Thermomètre","Technique / 7700 / Armoire BOTT JG",-0.42857142857142855,null,"Afficher"]
["TEM-0174","Thermomètre","Technique / 7700 / Armoire BOTT JG",-0.42857142857142855,null,"Afficher"]
["TEM-0108","Thermomètre à infrarouge","Technique / 7700",null,null,"Afficher"]
["TEM-0109","Thermomètre à infrarouge","Technique / 7700",null,null,"Afficher"]
["ENR-001","Enregistreur de température","Technique / 7245 / Prototype","-100 / 1300 °C",null,"Afficher"]
["SQ.075A","Pyromètre optique","Technique / 7700",null,null,"Afficher"]
["SON-006","Sonde de température","Technique / 7700",null,null,"Afficher"]
["SON-007","Sonde de température","Technique / 7700",null,null,"Afficher"]
["SON-008","Sonde de température","Technique / 7700",null,null,"Afficher"]
["SON-009","Sonde de température","Technique / 7700",null,null,"Afficher"]
["TEM-0030","Sonde de température","Technique / 7700 / Armoire BOTT KD",null,null,"Afficher"]
["TEM-0031","Sonde de température","Technique / 7700 / Armoire BOTT KD",null,null,"Afficher"]
["TEM-0032","Sonde de température","Technique / 7700 / Armoire BOTT KD",null,null,"Afficher"]
["TEM-0033","Sonde de température","Technique / 7700 / Armoire BOTT KD",null,null,"Afficher"]
["TEM-0034","Sonde de température","Technique / 7700 / Armoire BOTT KD",null,null,"Afficher"]
["TC-006","Thermocouple","Technique / 7700",null,null,"Afficher"]
["TC-033","Thermocouple","Technique / 7700 / Armoire THERMOCOUPLES",null,null,"Afficher"]
["TC-036","Thermocouple","Technique / 7700 / Armoire THERMOCOUPLES",null,null,"Afficher"]
["TC-062","Thermocouple","Technique / 7700","0 / 1200 °C",null,"Afficher"]
["TC-064","Thermocouple","Technique / 7700 / Armoire THERMOCOUPLES","1000 / 1100 °C",null,"Afficher"]
["TC-066","Thermocouple","Technique / 7700 / Armoire THERMOCOUPLES","1000 / 1100 °C",null,"Afficher"]
["TC-133","Thermocouple","Technique / 7700 / Armoire BOTT KD",null,null,"Afficher"]
["TC-134","Thermocouple","Technique / 7700 / Armoire BOTT KD",null,null,"Afficher"]
["TC-142","Thermocouple","Technique / 7700 / ARMOIRE STOCK A MAINTENANCE (à l'atelier)","0 / 1200 °C",null,"Afficher"]
["TC-144","Thermocouple","Technique / 7700 / ARMOIRE STOCK A MAINTENANCE (à l'atelier)","0 / 1200 °C",null,"Afficher"]
["TEM-0059","Thermocouple","Technique / 7700 / Armoire THERMOCOUPLES","850 / 1050 °C",null,"Afficher"]
["TEM-0061","Thermocouple","Technique / 7700 / Armoire THERMOCOUPLES","400 / 800 °C",null,"Afficher"]
["TEM-0062","Thermocouple","Technique / 7700","400 / 800 °C",null,"Afficher"]
["TEM-0100","Thermocouple","Technique / 7700 / ARMOIRE STOCK A MAINTENANCE (à l'atelier)","1050 / 1175 °C",null,"Afficher"]
["TEM-0159","Thermocouple","Technique / 7700 / ARMOIRE STOCK A MAINTENANCE (à l'atelier)","1050 / 1175 °C",null,"Afficher"]
["TEM-0160","Thermocouple","Technique / 7700 / ARMOIRE STOCK A MAINTENANCE (à l'atelier)","1050 / 1175 °C",null,"Afficher"]
["TEM-0161","Thermocouple","Technique / 7700 / ARMOIRE STOCK A MAINTENANCE (à l'atelier)","1050 / 1175 °C",null,"Afficher"]
["TEM-0162","Thermocouple","Technique / 7700 / ARMOIRE STOCK A MAINTENANCE (à l'atelier)","1050 / 1175 °C",null,"Afficher"]
["TEM-0163","Thermocouple","Technique / 7700 / ARMOIRE STOCK A MAINTENANCE (à l'atelier)","1050 / 1175 °C",null,"Afficher"]
["TEM-0164","Thermocouple","Technique / 7700 / ARMOIRE STOCK A MAINTENANCE (à l'atelier)","1050 / 1175 °C",null,"Afficher"]
["TEM-0165","Thermocouple","Technique / 7700 / Armoire THERMOCOUPLES","1050 / 1175 °C",null,"Afficher"]
["TEM-0166","Thermocouple","Technique / 7700 / Armoire THERMOCOUPLES","1050 / 1175 °C",null,"Afficher"]
["TEM-0167","Thermocouple","Technique / 7700 / Armoire THERMOCOUPLES","1050 / 1175 °C",null,"Afficher"]
["TEM-0168","Thermocouple","Technique / 7700 / Armoire THERMOCOUPLES","1050 / 1175 °C",null,"Afficher"]
["TEM-0169","Thermocouple","Technique / 7700 / Armoire THERMOCOUPLES","1050 / 1175 °C",null,"Afficher"]
["TEM-0170","Thermocouple","Technique / 7700 / Armoire THERMOCOUPLES","1050 / 1175 °C",null,"Afficher"]
["TEM-0171","Thermocouple","Technique / 7700 / Armoire THERMOCOUPLES","1050 / 1175 °C",null,"Afficher"]
["TEM-0216","Thermocouple","Technique / 7700 / Armoire THERMOCOUPLES",null,null,"Afficher"]
["TEM-0217","Thermocouple","Technique / 7700 / Armoire THERMOCOUPLES","1100 / 1175 °C",null,"Afficher"]
["TEM-0218","Thermocouple","Technique / 7700 / Armoire THERMOCOUPLES","1100 / 1175 °C",null,"Afficher"]
["TEM-0219","Thermocouple","Technique / 7700 / Armoire THERMOCOUPLES","1100 / 1175 °C",null,"Afficher"]
["TEM-0220","Thermocouple","Technique / 7700 / Armoire THERMOCOUPLES","1100 / 1175 °C",null,"Afficher"]
["TEM-0221","Thermocouple","Technique / 7700 / Armoire THERMOCOUPLES","1100 / 1175 °C",null,"Afficher"]
["TEM-0222","Thermocouple","Technique / 7700 / Armoire THERMOCOUPLES",null,null,"Afficher"]
["TEM-0223","Thermocouple","Technique / 7700 / Armoire THERMOCOUPLES",null,null,"Afficher"]
["TEM-0224","Thermocouple","Technique / 7700 / Armoire THERMOCOUPLES",null,null,"Afficher"]
["TEM-0235","Thermocouple","Technique / 7700 / Armoire THERMOCOUPLES","700° C",null,"Afficher"]
["TEM-0257","Thermocouple","Technique / 7700 / Armoire THERMOCOUPLES","1050 / 1175 °C",null,"Afficher"]
["TEM-0258","Thermocouple","Technique / 7700 / Armoire THERMOCOUPLES","1050 / 1175 °C",null,"Afficher"]
["TEM-0259","Thermocouple","Technique / 7700 / Armoire THERMOCOUPLES","1050 / 1175 °C",null,"Afficher"]
["TEM-0260","Thermocouple","Technique / 7700 / Armoire THERMOCOUPLES","1050 / 1175 °C",null,"Afficher"]
["TEM-0261","Thermocouple","Technique / 7700 / Armoire THERMOCOUPLES","1050 / 1175 °C",null,"Afficher"]
["TEM-0262","Thermocouple","Technique / 7700 / Armoire THERMOCOUPLES","1050 / 1175 °C",null,"Afficher"]
["TEM-0263","Thermocouple","Technique / 7700 / ARMOIRE STOCK A MAINTENANCE (à l'atelier)","1050 / 1175 °C",null,"Afficher"]
["TEM-0264","Thermocouple","Technique / 7700 / ARMOIRE STOCK A MAINTENANCE (à l'atelier)","1050 / 1175 °C",null,"Afficher"]
["TEM-0265","Thermocouple","Technique / 7700 / ARMOIRE STOCK A MAINTENANCE (à l'atelier)","1050 / 1175 °C",null,"Afficher"]
["TEM-0266","Thermocouple","Technique / 7700 / ARMOIRE STOCK A MAINTENANCE (à l'atelier)","1050 / 1175 °C",null,"Afficher"]
["TEM-0267","Thermocouple","Technique / 7700 / ARMOIRE STOCK A MAINTENANCE (à l'atelier)","1050 / 1175 °C",null,"Afficher"]
["TEM-0268","Thermocouple","Technique / 7700 / ARMOIRE STOCK A MAINTENANCE (à l'atelier)","1050 / 1175 °C",null,"Afficher"]
["TEM-0269","Thermocouple","Technique / 7700 / ARMOIRE STOCK A MAINTENANCE (à l'atelier)","1050 / 1175 °C",null,"Afficher"]
["TEM-0270","Thermocouple","Technique / 7700 / ARMOIRE STOCK A MAINTENANCE (à l'atelier)","1050 / 1175 °C",null,"Afficher"]
["TEM-0271","Thermocouple","Technique / 7700 / ARMOIRE STOCK A MAINTENANCE (à l'atelier)","1050 / 1175 °C",null,"Afficher"]
["TEM-0272","Thermocouple","Technique / 7700 / Armoire THERMOCOUPLES","1050 / 1175 °C",null,"Afficher"]
["TEM-0273","Thermocouple","Technique / 7700 / Armoire THERMOCOUPLES","1050 / 1175 °C",null,"Afficher"]
["TEM-0274","Thermocouple","Technique / 7700 / Armoire THERMOCOUPLES","1050 / 1175 °C",null,"Afficher"]
["TEM-0275","Thermocouple","Technique / 7700 / Armoire THERMOCOUPLES","1050 / 1175 °C",null,"Afficher"]
["TEM-0276","Thermocouple","Technique / 7700 / Armoire THERMOCOUPLES","1050 / 1175 °C",null,"Afficher"]
["TEM-0277","Thermocouple","Technique / 7700 / Armoire THERMOCOUPLES","1050 / 1175 °C",null,"Afficher"]
["TEM-0278","Thermocouple","Technique / 7700 / Armoire THERMOCOUPLES","1050 / 1175 °C",null,"Afficher"]
["TEM-0279","Thermocouple","Technique / 7700 / Armoire THERMOCOUPLES","1050 / 1175 °C",null,"Afficher"]
["TEM-0280","Thermocouple","Technique / 7700 / Armoire THERMOCOUPLES","1050 / 1175 °C",null,"Afficher"]
["TEM-0281","Thermocouple","Technique / 7700 / Armoire THERMOCOUPLES","1050 / 1175 °C",null,"Afficher"]
["TEM-0282","Thermocouple","Technique / 7700 / Armoire THERMOCOUPLES","1050 / 1175 °C",null,"Afficher"]
["TEM-0283","Thermocouple","Technique / 7700 / Armoire THERMOCOUPLES","1050 / 1175 °C",null,"Afficher"]
["TEM-0284","Thermocouple","Technique / 7700 / Armoire THERMOCOUPLES","1050 / 1175 °C",null,"Afficher"]
["TEM-0285","Thermocouple","Technique / 7700 / Armoire THERMOCOUPLES","1050 / 1175 °C",null,"Afficher"]
["TEM-0286","Thermocouple","Technique / 7700 / Armoire THERMOCOUPLES","1050 / 1175 °C",null,"Afficher"]
["TEM-0307","Thermocouple","Technique / 7700 / Bureau de Michel FAVARO","300 / 300 °C",null,"Afficher"]
["EN.112","Thermomètre","Technique / 7700 / Armoire BOTT JG",null,null,"Afficher"]
["TEM-0001","Thermomètre","Technique / 7700 / Armoire THERMOCOUPLES",null,null,"Afficher"]
["TEM-0054","Thermomètre","Technique / 7700 / Armoire THERMOCOUPLES",null,null,"Afficher"]
["TEM-0071","Thermomètre","Technique / 7700 / Armoire THERMOCOUPLES","1000 / 1100 °C",null,"Afficher"]
["TEM-0106","Thermomètre","Technique / 7700 / Armoire THERMOCOUPLES",null,null,"Afficher"]
["TEM-0111","Thermomètre","Technique / 7700 / Armoire BOTT JG","-50 / 150 °C",null,"Afficher"]
["TEM-0112","Thermomètre","Technique / 7700 / Armoire BOTT JG","-50 / 80 °C",null,"Afficher"]
["THM-002","Thermomètre","Production / 7700",null,null,"Afficher"]
["THM-007","Thermomètre","Technique / 7700 / Armoire BOTT KM","-50 / 1000 °C",null,"Afficher"]
["THM-009","Thermomètre","Technique / 7700 / Bureau de Michel FAVARO","-50 / 150 °C",null,"Afficher"]
["THM-010","Thermomètre","Technique / 7700 / Armoire THERMOCOUPLES",null,null,"Afficher"]
["THM-085","Thermomètre","Technique / 7700 / Bureau de Lucas MELEARD","-50 / 150 °C",null,"Afficher"]
["THM-131","Thermomètre","Technique / 7700 / Armoire BOTT KD",null,null,"Afficher"]
["THM-196","Thermomètre","Technique / 7700 / Armoire BOTT JG","0,1 / 90,0 °C",null,"Afficher"]
["TEM-0301","Régulateur","Production / 8405 / TT946",null,null,"Afficher"]
["TEM-0302","Régulateur","Production / 8405 / TT946",null,null,"Afficher"]
["TEM-0303","Régulateur","Production / 8405 / TT946",null,null,"Afficher"]
["TEM-0304","Régulateur","Production / 8405 / TT946",null,null,"Afficher"]
["TEM-0305","Régulateur","Production / 8405 / TT946",null,null,"Afficher"]
["TEM-0306","Régulateur","Production / 8405 / TT946",null,null,"Afficher"]
["TC-077","Thermocouple","Production / 8405 / TT946","0 / 1250 °C",null,"Afficher"]
["TEM-0055","Thermocouple","Technique / 7700 / Bureau de Michel FAVARO","575 / 750 °C",null,"Afficher"]
["TEM-0132","Thermocouple","Technique / 7700 / Bureau de Michel FAVARO","675 / 800 °C",null,"Afficher"]
["TEM-0068","Thermomètre","Technique / 7700 / Bureau de Michel FAVARO","-20 / 120 °C",null,"Afficher"]
["TEM-0299","Thermomètre","Technique / 7700 / Bureau de Michel FAVARO","20 / 40 °C",null,"Afficher"]
["TEM-0300","Thermomètre","Technique / 7700 / Bureau de Michel FAVARO","20 / 40 °C",null,"Afficher"]
["THM-008","Thermomètre","Technique / 7700 / Bureau de Michel FAVARO","-60 / 400 °C",null,"Afficher"]
["THM-109","Thermomètre","Technique / 7700 / Bureau de Michel FAVARO","-20 / 120 °C",null,"Afficher"]
["THM-111","Thermomètre","Technique / 7700 / Armoire THERMOCOUPLES","0 / 1200",null,"Afficher"]

{"sheet":"Température_hygrométrie","index":65,"n_rows":11,"n_cols":6,"rows_kept":11,"cut":false,"hidden":false,"merged":[]}
[]
[]
["TEM-0227","Thermo-Hygromètre","Technique / 7700 / Armoire BOTT LG",null,null,"Afficher"]
["TEM-0232","Thermo-Hygromètre","Technique / 7700 / Armoire BOTT JG",null,null,"Afficher"]
["TEM-0005","Thermo-Hygromètre","Production / 8346",null,null,"Afficher"]
["TEM-0225","Thermo-Hygromètre","Production / 8414 IMP / Local Formation",null,null,"Afficher"]
["TEM-0226","Thermo-Hygromètre","Production / 8414 IMP / contrôle tube implant",null,null,"Afficher"]
["TEM-0231","Thermo-Hygromètre","Technique / 7700 / Métrologie",null,null,"Afficher"]
["TEM-0233","Thermo-Hygromètre","Production / 8414 IMP / contrôle tube implant",null,null,"Afficher"]
["TEM-0003","Thermo-Hygromètre","Technique / 7700 / Bureau de Michel FAVARO",null,null,"Afficher"]
["THERM-003","Thermo-Hygromètre","Technique / 7700 / Bureau de Michel FAVARO","Testo 608 - H2 // 2 %HR / 70 °C",null,"Afficher"]

{"sheet":"Temps","index":66,"n_rows":7,"n_cols":6,"rows_kept":7,"cut":false,"hidden":false,"merged":[]}
[]
[]
["MINUT-001","Minuterie de travail","Technique / Métrologie",null,null,"Afficher"]
["MINUT-002","Minuterie de travail","Technique / Métrologie",null,null,"Afficher"]
["MINUT-003","Minuterie de travail","Technique / Métrologie",null,null,"Afficher"]
["MINUT-004","Minuterie de travail","Technique / Métrologie",null,null,"Afficher"]
["MINUT-005","Minuterie de travail","Technique / Métrologie",null,null,"Afficher"]

{"sheet":"Vitesse","index":67,"n_rows":10,"n_cols":6,"rows_kept":10,"cut":false,"hidden":false,"merged":[]}
[]
[]
["TAC-003","Tachymètre","Production / 8553 / PRESSE AUTOMATIQUE",null,null,"Afficher"]
["TAC-005","Tachymètre","Production / 8403 / Bull-blocks","1 / 99999 tr/mn",null,"Afficher"]
["TAC-001","Tachymètre","Technique / 7700 / Armoire Bott DM",null,null,"Afficher"]
["TAC-002","Tachymètre","Technique / 7700 / Armoire BOTT DM",null,null,"Afficher"]
["TAC-004","Tachymètre","Technique / 7700 / Armoire BOTT KM","1 / 99999 tr/mn",null,"Afficher"]
["THZ-0001","Tachymètre","Production / 8403 / Bull-blocks","0 / 9999 tr/min",null,"Afficher"]
["DEB-0003","Anémomètre","Technique / 7700 / Zone \"A expédier\"",null,null,"Afficher"]
["M.217","Anémomètre","Technique / 7300",null,null,"Afficher"]

{"sheet":"Volume","index":68,"n_rows":13,"n_cols":6,"rows_kept":13,"cut":false,"hidden":false,"merged":[]}
[]
[]
["DEB-010","Débimètre volumique","Production / 8414 DIV / Contrôle Tubes Divers",null,null,"Afficher"]
["DEB-005","Débimètre volumique","Production / 7700","2 / 20 l/min",null,"Afficher"]
["DEB-012","Débimètre volumique","Technique / 7700","2 / 20 l/min",null,"Afficher"]
["DEB-013","Débimètre volumique","Production / 7700","1 / 15 l/min",null,"Afficher"]
["DEB-001","Débimètre volumique","Production / 7700","1 / 15 l/min",null,"Afficher"]
["DEB-002","Débimètre volumique","Production / 7700","1 / 15 l/min",null,"Afficher"]
["DEB-003","Débimètre volumique","Production / 7700","1 / 15 l/min",null,"Afficher"]
["DEB-004","Débimètre volumique","Technique / 7700 / Armoire BOTT JM","1 / 15 l/min",null,"Afficher"]
["DEB-006","Débimètre volumique","Technique / 7700","2 / 20 l/min",null,"Afficher"]
["DEB-007","Débimètre volumique","Technique / 7700","2 / 20 l/min",null,"Afficher"]
["DEB-008","Débimètre volumique","Technique / 7700","2 / 20 l/min",null,"Afficher"]

{"sheet":"Dim av contact 3d","index":69,"n_rows":0,"n_cols":0,"rows_kept":0,"cut":false,"hidden":true,"merged":[]}